Workbook

Sheet DQbyEvent_Print (hidden)
A1: SERC
A2: DQ | D2: Penalty
A3: =DQ_Codes!M2 -> DQ1 | B3: =IFERROR(VLOOKUP(VALUE(MID(A3,3,LEN(A3)-2)),DQ_Codes!A:B,2),"") -> Not completing the event in accordance with the event description or general rules. | D3: =DQ_Codes!U2 -> P701 | E3: =IFERROR(VLOOKUP(VALUE(MID(D3,3,LEN(D3)-2)),DQ_Codes!A:B,2),"") -> Communication from “dead” team members and the team may result in a penalty to be decided by the Head SERC Official.
A4: =DQ_Codes!M3 -> DQ2 | B4: =IFERROR(VLOOKUP(VALUE(MID(A4,3,LEN(A4)-2)),DQ_Codes!A:B,2),"") -> A competitor or team may be disqualified if a competitor, team or handler is deemed to have competed unfairly. Examples of “competing unfairly” include: • committing a doping or doping-related infraction; • impersonating another competitor; • attempting to defeat the ballot or draw for events or positions; • competing twice in the same individual event; • competing twice in the same event in different teams; • purposely interfering with a course to gain advantage; • jostling or obstructing another competitor handler so as to impede his or her progress; • receiving physical or material outside assistance (other than verbal or other direction). | D4: =DQ_Codes!U3 -> P702 | E4: =IFERROR(VLOOKUP(VALUE(MID(D4,3,LEN(D4)-2)),DQ_Codes!A:B,2),"") -> Entering/Excitting through an ‘out of bounds’ section
A5: =DQ_Codes!M4 -> DQ3 | B5: =IFERROR(VLOOKUP(VALUE(MID(A5,3,LEN(A5)-2)),DQ_Codes!A:B,2),"") -> Competitors may not be permitted to start in an event if they are late reporting to the marshalling area. | D5: =DQ_Codes!U4 ->  | E5: =IFERROR(VLOOKUP(VALUE(MID(D5,3,LEN(D5)-2)),DQ_Codes!A:B,2),"") -> 
A6: =DQ_Codes!M5 -> DQ4 | B6: =IFERROR(VLOOKUP(VALUE(MID(A6,3,LEN(A6)-2)),DQ_Codes!A:B,2),"") -> A competitor or team absent from the start of an event shall be disqualified | D6: =DQ_Codes!U5 ->  | E6: =IFERROR(VLOOKUP(VALUE(MID(D6,3,LEN(D6)-2)),DQ_Codes!A:B,2),"") -> 
A7: =DQ_Codes!M6 -> DQ5 | B7: =IFERROR(VLOOKUP(VALUE(MID(A7,3,LEN(A7)-2)),DQ_Codes!A:B,2),"") -> Activities that result in wilful damage to the venue sites, accommodation sites or the property of others will result in disqualification of the individuals involved from competition. | D7: =DQ_Codes!U6 ->  | E7: =IFERROR(VLOOKUP(VALUE(MID(D7,3,LEN(D7)-2)),DQ_Codes!A:B,2),"") -> 
A8: =DQ_Codes!M7 -> DQ6 | B8: =IFERROR(VLOOKUP(VALUE(MID(A8,3,LEN(A8)-2)),DQ_Codes!A:B,2),"") -> Abuse of officials may result in disqualification from the competition. | D8: =DQ_Codes!U7 ->  | E8: =IFERROR(VLOOKUP(VALUE(MID(D8,3,LEN(D8)-2)),DQ_Codes!A:B,2),"") -> 
A9: =DQ_Codes!M8 -> DQ7 | B9: =IFERROR(VLOOKUP(VALUE(MID(A9,3,LEN(A9)-2)),DQ_Codes!A:B,2),"") -> Using sticky, tacky or adhesive substances (liquid, solid or aerosol) on hands or feet, or on the manikin or rescue tube to improve grip or push off the bottom of the pool. | D9: =DQ_Codes!U8 ->  | E9: =IFERROR(VLOOKUP(VALUE(MID(D9,3,LEN(D9)-2)),DQ_Codes!A:B,2),"") -> 
A10: =DQ_Codes!M9 -> DQ101 | B10: =IFERROR(VLOOKUP(VALUE(MID(A10,3,LEN(A10)-2)),DQ_Codes!A:B,2),"") -> Swimwear must conform to FINA standards | D10: =DQ_Codes!U9 ->  | E10: =IFERROR(VLOOKUP(VALUE(MID(D10,3,LEN(D10)-2)),DQ_Codes!A:B,2),"") -> 
A11: =DQ_Codes!M10 -> DQ102 | B11: =IFERROR(VLOOKUP(VALUE(MID(A11,3,LEN(A11)-2)),DQ_Codes!A:B,2),"") -> All teams shall be made up of four individuals, comprising of at least one male and at least one female. | D11: =DQ_Codes!U10 ->  | E11: =IFERROR(VLOOKUP(VALUE(MID(D11,3,LEN(D11)-2)),DQ_Codes!A:B,2),"") -> 
A12: =DQ_Codes!M11 -> DQ103 | B12: =IFERROR(VLOOKUP(VALUE(MID(A12,3,LEN(A12)-2)),DQ_Codes!A:B,2),"") -> Failure of a competitor to wear an appropriate swimming hat may result in disqualification | D12: =DQ_Codes!U11 ->  | E12: =IFERROR(VLOOKUP(VALUE(MID(D12,3,LEN(D12)-2)),DQ_Codes!A:B,2),"") -> 
A13: =DQ_Codes!M12 -> DQ104 | B13: =IFERROR(VLOOKUP(VALUE(MID(A13,3,LEN(A13)-2)),DQ_Codes!A:B,2),"") -> Failure of a competitor to remove jewellery that may pose a risk to any competitors, spectators, actors, or officials | D13: =DQ_Codes!U12 ->  | E13: =IFERROR(VLOOKUP(VALUE(MID(D13,3,LEN(D13)-2)),DQ_Codes!A:B,2),"") -> 
A14: =DQ_Codes!M13 -> DQ105 | B14: =IFERROR(VLOOKUP(VALUE(MID(A14,3,LEN(A14)-2)),DQ_Codes!A:B,2),"") -> Failing to follow the instruction of a Marshall or Official may result in disqualification | D14: =DQ_Codes!U13 ->  | E14: =IFERROR(VLOOKUP(VALUE(MID(D14,3,LEN(D14)-2)),DQ_Codes!A:B,2),"") -> 
A15: =DQ_Codes!M14 -> DQ106 | B15: =IFERROR(VLOOKUP(VALUE(MID(A15,3,LEN(A15)-2)),DQ_Codes!A:B,2),"") -> Delaying the start, for wilfully disobeying an instruction, or for any other misconduct taking place at the start. | D15: =DQ_Codes!U14 ->  | E15: =IFERROR(VLOOKUP(VALUE(MID(D15,3,LEN(D15)-2)),DQ_Codes!A:B,2),"") -> 
A16: =DQ_Codes!M15 -> DQ301 | B16: =IFERROR(VLOOKUP(VALUE(MID(A16,3,LEN(A16)-2)),DQ_Codes!A:B,2),"") -> Performing cardiopulmonary resuscitation, abdominal thrusts, back blows and/or expired air ventilation on a human actor. | D16: =DQ_Codes!U15 ->  | E16: =IFERROR(VLOOKUP(VALUE(MID(D16,3,LEN(D16)-2)),DQ_Codes!A:B,2),"") -> 
A17: =DQ_Codes!M16 -> DQ302 | B17: =IFERROR(VLOOKUP(VALUE(MID(A17,3,LEN(A17)-2)),DQ_Codes!A:B,2),"") -> Corrective goggles or masks are not permitted in either SERC | D17: =DQ_Codes!U16 ->  | E17: =IFERROR(VLOOKUP(VALUE(MID(D17,3,LEN(D17)-2)),DQ_Codes!A:B,2),"") -> 
A18: =DQ_Codes!M17 -> DQ303 | B18: =IFERROR(VLOOKUP(VALUE(MID(A18,3,LEN(A18)-2)),DQ_Codes!A:B,2),"") -> Receiving outside assistance, direction, or advice. | D18: =DQ_Codes!U17 ->  | E18: =IFERROR(VLOOKUP(VALUE(MID(D18,3,LEN(D18)-2)),DQ_Codes!A:B,2),"") -> 
A19: =DQ_Codes!M18 -> DQ304 | B19: =IFERROR(VLOOKUP(VALUE(MID(A19,3,LEN(A19)-2)),DQ_Codes!A:B,2),"") -> Taking any telecommunication device into the security area. (applies to all teams from each club).) | D19: =DQ_Codes!U18 ->  | E19: =IFERROR(VLOOKUP(VALUE(MID(D19,3,LEN(D19)-2)),DQ_Codes!A:B,2),"") -> 
A20: =DQ_Codes!M19 -> DQ305 | B20: =IFERROR(VLOOKUP(VALUE(MID(A20,3,LEN(A20)-2)),DQ_Codes!A:B,2),"") -> Using any equipment not provided as part of the competition. | D20: =DQ_Codes!U19 ->  | E20: =IFERROR(VLOOKUP(VALUE(MID(D20,3,LEN(D20)-2)),DQ_Codes!A:B,2),"") -> 
A21: =DQ_Codes!M20 -> DQ306 | B21: =IFERROR(VLOOKUP(VALUE(MID(A21,3,LEN(A21)-2)),DQ_Codes!A:B,2),"") -> Competitors who verbally or physically abuse a victim. | D21: =DQ_Codes!U20 ->  | E21: =IFERROR(VLOOKUP(VALUE(MID(D21,3,LEN(D21)-2)),DQ_Codes!A:B,2),"") -> 
A22: =DQ_Codes!M21 ->  | B22: =IFERROR(VLOOKUP(VALUE(MID(A22,3,LEN(A22)-2)),DQ_Codes!A:B,2),"") ->  | D22: =DQ_Codes!U21 -> 0 | E22: =IFERROR(VLOOKUP(VALUE(MID(D22,3,LEN(D22)-2)),DQ_Codes!A:B,2),"") -> 
A23: =DQ_Codes!M22 ->  | B23: =IFERROR(VLOOKUP(VALUE(MID(A23,3,LEN(A23)-2)),DQ_Codes!A:B,2),"") ->  | D23: =DQ_Codes!U22 -> 0 | E23: =IFERROR(VLOOKUP(VALUE(MID(D23,3,LEN(D23)-2)),DQ_Codes!A:B,2),"") -> 
A24: =DQ_Codes!M23 ->  | B24: =IFERROR(VLOOKUP(VALUE(MID(A24,3,LEN(A24)-2)),DQ_Codes!A:B,2),"") ->  | D24: =DQ_Codes!U23 -> 0 | E24: =IFERROR(VLOOKUP(VALUE(MID(D24,3,LEN(D24)-2)),DQ_Codes!A:B,2),"") -> 
A25: =DQ_Codes!M24 ->  | B25: =IFERROR(VLOOKUP(VALUE(MID(A25,3,LEN(A25)-2)),DQ_Codes!A:B,2),"") ->  | D25: =DQ_Codes!U24 -> 0 | E25: =IFERROR(VLOOKUP(VALUE(MID(D25,3,LEN(D25)-2)),DQ_Codes!A:B,2),"") -> 
A26: =DQ_Codes!M25 ->  | B26: =IFERROR(VLOOKUP(VALUE(MID(A26,3,LEN(A26)-2)),DQ_Codes!A:B,2),"") ->  | D26: =DQ_Codes!U25 -> 0 | E26: =IFERROR(VLOOKUP(VALUE(MID(D26,3,LEN(D26)-2)),DQ_Codes!A:B,2),"") -> 
A27: =DQ_Codes!M26 ->  | B27: =IFERROR(VLOOKUP(VALUE(MID(A27,3,LEN(A27)-2)),DQ_Codes!A:B,2),"") ->  | D27: =DQ_Codes!U26 -> 0 | E27: =IFERROR(VLOOKUP(VALUE(MID(D27,3,LEN(D27)-2)),DQ_Codes!A:B,2),"") -> 
A28: =DQ_Codes!M27 ->  | B28: =IFERROR(VLOOKUP(VALUE(MID(A28,3,LEN(A28)-2)),DQ_Codes!A:B,2),"") ->  | D28: =DQ_Codes!U27 -> 0 | E28: =IFERROR(VLOOKUP(VALUE(MID(D28,3,LEN(D28)-2)),DQ_Codes!A:B,2),"") -> 
A29: =DQ_Codes!M28 ->  | B29: =IFERROR(VLOOKUP(VALUE(MID(A29,3,LEN(A29)-2)),DQ_Codes!A:B,2),"") ->  | D29: =DQ_Codes!U28 -> 0 | E29: =IFERROR(VLOOKUP(VALUE(MID(D29,3,LEN(D29)-2)),DQ_Codes!A:B,2),"") -> 
A30: =DQ_Codes!M29 ->  | B30: =IFERROR(VLOOKUP(VALUE(MID(A30,3,LEN(A30)-2)),DQ_Codes!A:B,2),"") ->  | D30: =DQ_Codes!U29 -> 0 | E30: =IFERROR(VLOOKUP(VALUE(MID(D30,3,LEN(D30)-2)),DQ_Codes!A:B,2),"") -> 
A31: =DQ_Codes!M30 ->  | B31: =IFERROR(VLOOKUP(VALUE(MID(A31,3,LEN(A31)-2)),DQ_Codes!A:B,2),"") ->  | D31: =DQ_Codes!U30 -> 0 | E31: =IFERROR(VLOOKUP(VALUE(MID(D31,3,LEN(D31)-2)),DQ_Codes!A:B,2),"") -> 
A32: =DQ_Codes!M31 -> 0 | B32: =IFERROR(VLOOKUP(VALUE(MID(A32,3,LEN(A32)-2)),DQ_Codes!A:B,2),"") ->  | D32: =DQ_Codes!U31 -> 0 | E32: =IFERROR(VLOOKUP(VALUE(MID(D32,3,LEN(D32)-2)),DQ_Codes!A:B,2),"") -> 
A33: =DQ_Codes!M32 -> 0 | B33: =IFERROR(VLOOKUP(VALUE(MID(A33,3,LEN(A33)-2)),DQ_Codes!A:B,2),"") ->  | D33: =DQ_Codes!U32 -> 0 | E33: =IFERROR(VLOOKUP(VALUE(MID(D33,3,LEN(D33)-2)),DQ_Codes!A:B,2),"") -> 
A34: =DQ_Codes!M33 -> 0 | B34: =IFERROR(VLOOKUP(VALUE(MID(A34,3,LEN(A34)-2)),DQ_Codes!A:B,2),"") ->  | D34: =DQ_Codes!U33 -> 0 | E34: =IFERROR(VLOOKUP(VALUE(MID(D34,3,LEN(D34)-2)),DQ_Codes!A:B,2),"") -> 
A35: =DQ_Codes!M34 -> 0 | B35: =IFERROR(VLOOKUP(VALUE(MID(A35,3,LEN(A35)-2)),DQ_Codes!A:B,2),"") ->  | D35: =DQ_Codes!U34 -> 0 | E35: =IFERROR(VLOOKUP(VALUE(MID(D35,3,LEN(D35)-2)),DQ_Codes!A:B,2),"") -> 
A36: =DQ_Codes!M35 -> 0 | B36: =IFERROR(VLOOKUP(VALUE(MID(A36,3,LEN(A36)-2)),DQ_Codes!A:B,2),"") ->  | D36: =DQ_Codes!U35 -> 0 | E36: =IFERROR(VLOOKUP(VALUE(MID(D36,3,LEN(D36)-2)),DQ_Codes!A:B,2),"") -> 
A37: =DQ_Codes!M36 -> 0 | B37: =IFERROR(VLOOKUP(VALUE(MID(A37,3,LEN(A37)-2)),DQ_Codes!A:B,2),"") ->  | D37: =DQ_Codes!U36 -> 0 | E37: =IFERROR(VLOOKUP(VALUE(MID(D37,3,LEN(D37)-2)),DQ_Codes!A:B,2),"") -> 
A38: =DQ_Codes!M37 -> 0 | B38: =IFERROR(VLOOKUP(VALUE(MID(A38,3,LEN(A38)-2)),DQ_Codes!A:B,2),"") ->  | D38: =DQ_Codes!U37 -> 0 | E38: =IFERROR(VLOOKUP(VALUE(MID(D38,3,LEN(D38)-2)),DQ_Codes!A:B,2),"") -> 
A39: =DQ_Codes!M38 -> 0 | B39: =IFERROR(VLOOKUP(VALUE(MID(A39,3,LEN(A39)-2)),DQ_Codes!A:B,2),"") ->  | D39: =DQ_Codes!U38 -> 0 | E39: =IFERROR(VLOOKUP(VALUE(MID(D39,3,LEN(D39)-2)),DQ_Codes!A:B,2),"") -> 
A40: =DQ_Codes!M39 -> 0 | B40: =IFERROR(VLOOKUP(VALUE(MID(A40,3,LEN(A40)-2)),DQ_Codes!A:B,2),"") ->  | D40: =DQ_Codes!U39 -> 0 | E40: =IFERROR(VLOOKUP(VALUE(MID(D40,3,LEN(D40)-2)),DQ_Codes!A:B,2),"") -> 
A41: =DQ_Codes!M40 -> 0 | B41: =IFERROR(VLOOKUP(VALUE(MID(A41,3,LEN(A41)-2)),DQ_Codes!A:B,2),"") ->  | D41: =DQ_Codes!U40 -> 0 | E41: =IFERROR(VLOOKUP(VALUE(MID(D41,3,LEN(D41)-2)),DQ_Codes!A:B,2),"") -> 
A42: =DQ_Codes!M41 -> 0 | B42: =IFERROR(VLOOKUP(VALUE(MID(A42,3,LEN(A42)-2)),DQ_Codes!A:B,2),"") ->  | D42: =DQ_Codes!U41 -> 0 | E42: =IFERROR(VLOOKUP(VALUE(MID(D42,3,LEN(D42)-2)),DQ_Codes!A:B,2),"") -> 
D43: =DQ_Codes!U42 -> 0 | E43: =IFERROR(VLOOKUP(VALUE(MID(D43,3,LEN(D43)-2)),DQ_Codes!A:B,2),"") -> 
A44: Swim and Tow
A45: DQ | D45: Penalty
A46: =DQ_Codes!N3 -> DQ1 | B46: =IFERROR(VLOOKUP(VALUE(MID(A46,3,LEN(A46)-2)),DQ_Codes!A:B,2),"") -> Not completing the event in accordance with the event description or general rules. | D46: =DQ_Codes!V2 -> P900 | E46: =IFERROR(VLOOKUP(VALUE(MID(D46,3,LEN(D46)-2)),DQ_Codes!A:B,2),"") -> Time was more than 10% outside the submitted time, for every additional 15 seconds past the 10% results in a further peanlty
A47: =DQ_Codes!N4 -> DQ2 | B47: =IFERROR(VLOOKUP(VALUE(MID(A47,3,LEN(A47)-2)),DQ_Codes!A:B,2),"") -> A competitor or team may be disqualified if a competitor, team or handler is deemed to have competed unfairly. Examples of “competing unfairly” include: • committing a doping or doping-related infraction; • impersonating another competitor; • attempting to defeat the ballot or draw for events or positions; • competing twice in the same individual event; • competing twice in the same event in different teams; • purposely interfering with a course to gain advantage; • jostling or obstructing another competitor handler so as to impede his or her progress; • receiving physical or material outside assistance (other than verbal or other direction). | D47: =DQ_Codes!V3 -> P901 | E47: =IFERROR(VLOOKUP(VALUE(MID(D47,3,LEN(D47)-2)),DQ_Codes!A:B,2),"") -> Walking or pushing off the bottom after standing on the bottom.
A48: =DQ_Codes!N5 -> DQ3 | B48: =IFERROR(VLOOKUP(VALUE(MID(A48,3,LEN(A48)-2)),DQ_Codes!A:B,2),"") -> Competitors may not be permitted to start in an event if they are late reporting to the marshalling area. | D48: =DQ_Codes!V4 -> P902 | E48: =IFERROR(VLOOKUP(VALUE(MID(D48,3,LEN(D48)-2)),DQ_Codes!A:B,2),"") -> Not surfacing before 15 m off the start or turn.
A49: =DQ_Codes!N6 -> DQ4 | B49: =IFERROR(VLOOKUP(VALUE(MID(A49,3,LEN(A49)-2)),DQ_Codes!A:B,2),"") -> A competitor or team absent from the start of an event shall be disqualified | D49: =DQ_Codes!V5 -> P903 | E49: =IFERROR(VLOOKUP(VALUE(MID(D49,3,LEN(D49)-2)),DQ_Codes!A:B,2),"") -> Failure of casualty to have elbows or shoulders below the water upon pickup.
A50: =DQ_Codes!N7 -> DQ5 | B50: =IFERROR(VLOOKUP(VALUE(MID(A50,3,LEN(A50)-2)),DQ_Codes!A:B,2),"") -> Activities that result in wilful damage to the venue sites, accommodation sites or the property of others will result in disqualification of the individuals involved from competition. | D50: =DQ_Codes!V6 -> P904 | E50: =IFERROR(VLOOKUP(VALUE(MID(D50,3,LEN(D50)-2)),DQ_Codes!A:B,2),"") -> Failure of casualty to be holding the wall on pickup.
A51: =DQ_Codes!N8 -> DQ6 | B51: =IFERROR(VLOOKUP(VALUE(MID(A51,3,LEN(A51)-2)),DQ_Codes!A:B,2),"") -> Abuse of officials may result in disqualification from the competition. | D51: =DQ_Codes!V7 -> P905 | E51: =IFERROR(VLOOKUP(VALUE(MID(D51,3,LEN(D51)-2)),DQ_Codes!A:B,2),"") -> Failure of casualty to be vertical in the water on pickup.
A52: =DQ_Codes!N9 -> DQ7 | B52: =IFERROR(VLOOKUP(VALUE(MID(A52,3,LEN(A52)-2)),DQ_Codes!A:B,2),"") -> Using sticky, tacky or adhesive substances (liquid, solid or aerosol) on hands or feet, or on the manikin or rescue tube to improve grip or push off the bottom of the pool. | D52: =DQ_Codes!V8 -> P906 | E52: =IFERROR(VLOOKUP(VALUE(MID(D52,3,LEN(D52)-2)),DQ_Codes!A:B,2),"") -> Tumble turn preformed either on pick up or transition between competitors.
A53: =DQ_Codes!N10 -> DQ8 | B53: =IFERROR(VLOOKUP(VALUE(MID(A53,3,LEN(A53)-2)),DQ_Codes!A:B,2),"") -> Competitors shall not take assistance from the pool bottom except where specifically allowed (e.g., 4 x 50 m Obstacle Relay, 4 x 25 m Manikin Carry Relay, 4 x 50 m Swim and 50 m Tow Relay). | D53: =DQ_Codes!V9 -> P907 | E53: =IFERROR(VLOOKUP(VALUE(MID(D53,3,LEN(D53)-2)),DQ_Codes!A:B,2),"") -> Casualty not being towed head first through the water.
A54: =DQ_Codes!N11 -> DQ9 | B54: =IFERROR(VLOOKUP(VALUE(MID(A54,3,LEN(A54)-2)),DQ_Codes!A:B,2),"") -> Leaving the water after an event before permission is given by the offcial | D54: =DQ_Codes!V10 -> P908 | E54: =IFERROR(VLOOKUP(VALUE(MID(D54,3,LEN(D54)-2)),DQ_Codes!A:B,2),"") -> Casualty not being towed by the chin.
A55: =DQ_Codes!N12 -> DQ10 | B55: =IFERROR(VLOOKUP(VALUE(MID(A55,3,LEN(A55)-2)),DQ_Codes!A:B,2),"") -> All competitors who start (i.e., commence a starting motion) before the starting signal has been given shall be disqualified | D55: =DQ_Codes!V11 -> P909 | E55: =IFERROR(VLOOKUP(VALUE(MID(D55,3,LEN(D55)-2)),DQ_Codes!A:B,2),"") -> Towing technique contained overarm recovery.
A56: =DQ_Codes!N13 -> DQ12 | B56: =IFERROR(VLOOKUP(VALUE(MID(A56,3,LEN(A56)-2)),DQ_Codes!A:B,2),"") -> Failure to surface after the dive entry or after a turn. | D56: =DQ_Codes!V12 -> P910 | E56: =IFERROR(VLOOKUP(VALUE(MID(D56,3,LEN(D56)-2)),DQ_Codes!A:B,2),"") -> During the tow either Casualty or Rescuer rotated more than 90 degrees from the horizontal plane of the surface.
A57: =DQ_Codes!N14 -> DQ14 | B57: =IFERROR(VLOOKUP(VALUE(MID(A57,3,LEN(A57)-2)),DQ_Codes!A:B,2),"") -> Failure to touch the wall during the turn. | D57: =DQ_Codes!V13 -> P911 | E57: =IFERROR(VLOOKUP(VALUE(MID(D57,3,LEN(D57)-2)),DQ_Codes!A:B,2),"") -> Casualty’s face was not clear of the water.
A58: =DQ_Codes!N15 -> DQ15 | B58: =IFERROR(VLOOKUP(VALUE(MID(A58,3,LEN(A58)-2)),DQ_Codes!A:B,2),"") -> Failure to touch the finish wall. | D58: =DQ_Codes!V14 -> P912 | E58: =IFERROR(VLOOKUP(VALUE(MID(D58,3,LEN(D58)-2)),DQ_Codes!A:B,2),"") -> Casualty was being pushed rather than towed, i.e. the casualty head has passed that of the competitors.
A59: =DQ_Codes!N16 -> DQ17 | B59: =IFERROR(VLOOKUP(VALUE(MID(A59,3,LEN(A59)-2)),DQ_Codes!A:B,2),"") -> Taking assistance from any pool fitting (e.g., lane rope, steps, drains or underwater hockey fittings) when surfacing with the manikin – not including the bottom of the pool. | D59: =DQ_Codes!V15 -> P913 | E59: =IFERROR(VLOOKUP(VALUE(MID(D59,3,LEN(D59)-2)),DQ_Codes!A:B,2),"") -> Casualty provided assistance to the rescuer other than those exceptions listed in the rules.
A60: =DQ_Codes!N17 -> DQ40 | B60: =IFERROR(VLOOKUP(VALUE(MID(A60,3,LEN(A60)-2)),DQ_Codes!A:B,2),"") -> One competitor repeating two or more legs of the event. | D60: =DQ_Codes!V16 -> P914 | E60: =IFERROR(VLOOKUP(VALUE(MID(D60,3,LEN(D60)-2)),DQ_Codes!A:B,2),"") -> Casualty raised arm outside of the last five metres of the tow, as judged by the casualty head
A61: =DQ_Codes!N18 -> DQ41 | B61: =IFERROR(VLOOKUP(VALUE(MID(A61,3,LEN(A61)-2)),DQ_Codes!A:B,2),"") -> Leaving the start before the previous competitor has touched the wall | D61: =DQ_Codes!V17 -> P915 | E61: =IFERROR(VLOOKUP(VALUE(MID(D61,3,LEN(D61)-2)),DQ_Codes!A:B,2),"") -> Rescuer not immediately releasing the casualty upon touching the finish edge at the end of their 50 m tow.
A62: =DQ_Codes!N19 -> DQ50 | B62: =IFERROR(VLOOKUP(VALUE(MID(A62,3,LEN(A62)-2)),DQ_Codes!A:B,2),"") -> A competitor re-entering the water after completing his or her leg of the relay | D62: =DQ_Codes!V18 ->  | E62: =IFERROR(VLOOKUP(VALUE(MID(D62,3,LEN(D62)-2)),DQ_Codes!A:B,2),"") -> 
A63: =DQ_Codes!N20 -> DQ101 | B63: =IFERROR(VLOOKUP(VALUE(MID(A63,3,LEN(A63)-2)),DQ_Codes!A:B,2),"") -> Swimwear must conform to FINA standards | D63: =DQ_Codes!V19 ->  | E63: =IFERROR(VLOOKUP(VALUE(MID(D63,3,LEN(D63)-2)),DQ_Codes!A:B,2),"") -> 
A64: =DQ_Codes!N21 -> DQ102 | B64: =IFERROR(VLOOKUP(VALUE(MID(A64,3,LEN(A64)-2)),DQ_Codes!A:B,2),"") -> All teams shall be made up of four individuals, comprising of at least one male and at least one female. | D64: =DQ_Codes!V20 ->  | E64: =IFERROR(VLOOKUP(VALUE(MID(D64,3,LEN(D64)-2)),DQ_Codes!A:B,2),"") -> 
A65: =DQ_Codes!N22 -> DQ103 | B65: =IFERROR(VLOOKUP(VALUE(MID(A65,3,LEN(A65)-2)),DQ_Codes!A:B,2),"") -> Failure of a competitor to wear an appropriate swimming hat may result in disqualification
A66: =DQ_Codes!N23 -> DQ104 | B66: =IFERROR(VLOOKUP(VALUE(MID(A66,3,LEN(A66)-2)),DQ_Codes!A:B,2),"") -> Failure of a competitor to remove jewellery that may pose a risk to any competitors, spectators, actors, or officials | D66: =DQ_Codes!W22 -> 0 | E66: =IFERROR(VLOOKUP(VALUE(MID(D66,3,LEN(D66)-2)),DQ_Codes!A:B,2),"") -> 
A67: =DQ_Codes!N24 -> DQ105 | B67: =IFERROR(VLOOKUP(VALUE(MID(A67,3,LEN(A67)-2)),DQ_Codes!A:B,2),"") -> Failing to follow the instruction of a Marshall or Official may result in disqualification | D67: =DQ_Codes!W23 -> 0 | E67: =IFERROR(VLOOKUP(VALUE(MID(D67,3,LEN(D67)-2)),DQ_Codes!A:B,2),"") -> 
A68: =DQ_Codes!N25 -> DQ106 | B68: =IFERROR(VLOOKUP(VALUE(MID(A68,3,LEN(A68)-2)),DQ_Codes!A:B,2),"") -> Delaying the start, for wilfully disobeying an instruction, or for any other misconduct taking place at the start. | D68: =DQ_Codes!W24 -> 0 | E68: =IFERROR(VLOOKUP(VALUE(MID(D68,3,LEN(D68)-2)),DQ_Codes!A:B,2),"") -> 
A69: =DQ_Codes!N26 -> DQ201 | B69: =IFERROR(VLOOKUP(VALUE(MID(A69,3,LEN(A69)-2)),DQ_Codes!A:B,2),"") -> Not finishing or completing the event in the same lane in which he or she started. | D69: =DQ_Codes!W25 -> 0 | E69: =IFERROR(VLOOKUP(VALUE(MID(D69,3,LEN(D69)-2)),DQ_Codes!A:B,2),"") -> 
A70: =DQ_Codes!N27 -> DQ202 | B70: =IFERROR(VLOOKUP(VALUE(MID(A70,3,LEN(A70)-2)),DQ_Codes!A:B,2),"") -> Obstructing another Team or Competitor. | D70: =DQ_Codes!W26 -> 0 | E70: =IFERROR(VLOOKUP(VALUE(MID(D70,3,LEN(D70)-2)),DQ_Codes!A:B,2),"") -> 
A71: =DQ_Codes!N28 -> DQ203 | B71: =IFERROR(VLOOKUP(VALUE(MID(A71,3,LEN(A71)-2)),DQ_Codes!A:B,2),"") -> Entering the water during a heat for which they are not entered. | D71: =DQ_Codes!W27 -> 0 | E71: =IFERROR(VLOOKUP(VALUE(MID(D71,3,LEN(D71)-2)),DQ_Codes!A:B,2),"") -> 
A72: =DQ_Codes!N29 -> DQ205 | B72: =IFERROR(VLOOKUP(VALUE(MID(A72,3,LEN(A72)-2)),DQ_Codes!A:B,2),"") -> Pace-making, providing feedback on positions of other teams, attempting to influence or coach an athlete during the race. | D72: =DQ_Codes!W28 -> 0 | E72: =IFERROR(VLOOKUP(VALUE(MID(D72,3,LEN(D72)-2)),DQ_Codes!A:B,2),"") -> 
A73: =DQ_Codes!N30 -> DQ206 | B73: =IFERROR(VLOOKUP(VALUE(MID(A73,3,LEN(A73)-2)),DQ_Codes!A:B,2),"") -> Relay Team is not the same Competitors who took part in the SERC. | D73: =DQ_Codes!W29 -> 0 | E73: =IFERROR(VLOOKUP(VALUE(MID(D73,3,LEN(D73)-2)),DQ_Codes!A:B,2),"") -> 
A74: =DQ_Codes!N31 -> DQ501 | B74: =IFERROR(VLOOKUP(VALUE(MID(A74,3,LEN(A74)-2)),DQ_Codes!A:B,2),"") -> More than five penalties from the 900 Series codes in a single event, excluding DQ 900. | D74: =DQ_Codes!W30 -> 0 | E74: =IFERROR(VLOOKUP(VALUE(MID(D74,3,LEN(D74)-2)),DQ_Codes!A:B,2),"") -> 
A75: =DQ_Codes!N32 -> DQ502 | B75: =IFERROR(VLOOKUP(VALUE(MID(A75,3,LEN(A75)-2)),DQ_Codes!A:B,2),"") -> Tumble turn preformed whilst towing the casualty. | D75: =DQ_Codes!W31 -> 0 | E75: =IFERROR(VLOOKUP(VALUE(MID(D75,3,LEN(D75)-2)),DQ_Codes!A:B,2),"") -> 
A76: =DQ_Codes!N33 -> DQ503 | B76: =IFERROR(VLOOKUP(VALUE(MID(A76,3,LEN(A76)-2)),DQ_Codes!A:B,2),"") -> Rescuer pulling casualty towards the wall in a dangerous manner. | D76: =DQ_Codes!W32 -> 0 | E76: =IFERROR(VLOOKUP(VALUE(MID(D76,3,LEN(D76)-2)),DQ_Codes!A:B,2),"") -> 
A77: =DQ_Codes!N34 ->  | B77: =IFERROR(VLOOKUP(VALUE(MID(A77,3,LEN(A77)-2)),DQ_Codes!A:B,2),"") ->  | D77: =DQ_Codes!W33 -> 0 | E77: =IFERROR(VLOOKUP(VALUE(MID(D77,3,LEN(D77)-2)),DQ_Codes!A:B,2),"") -> 
A78: =DQ_Codes!N35 ->  | B78: =IFERROR(VLOOKUP(VALUE(MID(A78,3,LEN(A78)-2)),DQ_Codes!A:B,2),"") ->  | D78: =DQ_Codes!W34 -> 0 | E78: =IFERROR(VLOOKUP(VALUE(MID(D78,3,LEN(D78)-2)),DQ_Codes!A:B,2),"") -> 
A79: =DQ_Codes!N36 ->  | B79: =IFERROR(VLOOKUP(VALUE(MID(A79,3,LEN(A79)-2)),DQ_Codes!A:B,2),"") ->  | D79: =DQ_Codes!W35 -> 0 | E79: =IFERROR(VLOOKUP(VALUE(MID(D79,3,LEN(D79)-2)),DQ_Codes!A:B,2),"") -> 
A80: =DQ_Codes!N37 ->  | B80: =IFERROR(VLOOKUP(VALUE(MID(A80,3,LEN(A80)-2)),DQ_Codes!A:B,2),"") ->  | D80: =DQ_Codes!W36 -> 0 | E80: =IFERROR(VLOOKUP(VALUE(MID(D80,3,LEN(D80)-2)),DQ_Codes!A:B,2),"") -> 
A81: =DQ_Codes!N38 ->  | B81: =IFERROR(VLOOKUP(VALUE(MID(A81,3,LEN(A81)-2)),DQ_Codes!A:B,2),"") ->  | D81: =DQ_Codes!W37 -> 0 | E81: =IFERROR(VLOOKUP(VALUE(MID(D81,3,LEN(D81)-2)),DQ_Codes!A:B,2),"") -> 
A82: =DQ_Codes!N39 ->  | B82: =IFERROR(VLOOKUP(VALUE(MID(A82,3,LEN(A82)-2)),DQ_Codes!A:B,2),"") ->  | D82: =DQ_Codes!W38 -> 0 | E82: =IFERROR(VLOOKUP(VALUE(MID(D82,3,LEN(D82)-2)),DQ_Codes!A:B,2),"") -> 
A83: =DQ_Codes!N40 ->  | B83: =IFERROR(VLOOKUP(VALUE(MID(A83,3,LEN(A83)-2)),DQ_Codes!A:B,2),"") ->  | D83: =DQ_Codes!W39 -> 0 | E83: =IFERROR(VLOOKUP(VALUE(MID(D83,3,LEN(D83)-2)),DQ_Codes!A:B,2),"") -> 
A84: =DQ_Codes!N41 -> 0 | B84: =IFERROR(VLOOKUP(VALUE(MID(A84,3,LEN(A84)-2)),DQ_Codes!A:B,2),"") ->  | D84: =DQ_Codes!W40 -> 0 | E84: =IFERROR(VLOOKUP(VALUE(MID(D84,3,LEN(D84)-2)),DQ_Codes!A:B,2),"") -> 
A85: =DQ_Codes!N42 -> 0 | B85: =IFERROR(VLOOKUP(VALUE(MID(A85,3,LEN(A85)-2)),DQ_Codes!A:B,2),"") ->  | D85: =DQ_Codes!W41 -> 0 | E85: =IFERROR(VLOOKUP(VALUE(MID(D85,3,LEN(D85)-2)),DQ_Codes!A:B,2),"") -> 
A86: =DQ_Codes!N43 -> 0 | D86: =DQ_Codes!W42 -> 0 | E86: =IFERROR(VLOOKUP(VALUE(MID(D86,3,LEN(D86)-2)),DQ_Codes!A:B,2),"") -> 
D87: =DQ_Codes!W43 -> 0 | E87: =IFERROR(VLOOKUP(VALUE(MID(D87,3,LEN(D87)-2)),DQ_Codes!A:B,2),"") -> 
A88: Rope
A89: DQ | D89: Penalty
A90: =DQ_Codes!O7 -> DQ1 | B90: =IFERROR(VLOOKUP(VALUE(MID(A90,3,LEN(A90)-2)),DQ_Codes!A:B,2),"") -> Not completing the event in accordance with the event description or general rules. | D90: =DQ_Codes!W2 -> P801 | E90: =IFERROR(VLOOKUP(VALUE(MID(D90,3,LEN(D90)-2)),DQ_Codes!A:B,2),"") -> Victims releasing the crossline before grasping the throw line with the other hand.
A91: =DQ_Codes!O8 -> DQ2 | B91: =IFERROR(VLOOKUP(VALUE(MID(A91,3,LEN(A91)-2)),DQ_Codes!A:B,2),"") -> A competitor or team may be disqualified if a competitor, team or handler is deemed to have competed unfairly. Examples of “competing unfairly” include: • committing a doping or doping-related infraction; • impersonating another competitor; • attempting to defeat the ballot or draw for events or positions; • competing twice in the same individual event; • competing twice in the same event in different teams; • purposely interfering with a course to gain advantage; • jostling or obstructing another competitor handler so as to impede his or her progress; • receiving physical or material outside assistance (other than verbal or other direction). | D91: =DQ_Codes!W3 -> P802 | E91: =IFERROR(VLOOKUP(VALUE(MID(D91,3,LEN(D91)-2)),DQ_Codes!A:B,2),"") -> Victim grasping the throw line outside the lane.
A92: =DQ_Codes!O9 -> DQ3 | B92: =IFERROR(VLOOKUP(VALUE(MID(A92,3,LEN(A92)-2)),DQ_Codes!A:B,2),"") -> Competitors may not be permitted to start in an event if they are late reporting to the marshalling area. | D92: =DQ_Codes!W4 -> P803 | E92: =IFERROR(VLOOKUP(VALUE(MID(D92,3,LEN(D92)-2)),DQ_Codes!A:B,2),"") -> Victim not on his or her front while being pulled to the finish edge.
A93: =DQ_Codes!O10 -> DQ4 | B93: =IFERROR(VLOOKUP(VALUE(MID(A93,3,LEN(A93)-2)),DQ_Codes!A:B,2),"") -> A competitor or team absent from the start of an event shall be disqualified | D93: =DQ_Codes!W5 -> P804 | E93: =IFERROR(VLOOKUP(VALUE(MID(D93,3,LEN(D93)-2)),DQ_Codes!A:B,2),"") -> Victim not holding the throw line with both hands while being pulled to the finish edge (victim may release the line with one hand for the sole purpose of touching the wall).
A94: =DQ_Codes!O11 -> DQ5 | B94: =IFERROR(VLOOKUP(VALUE(MID(A94,3,LEN(A94)-2)),DQ_Codes!A:B,2),"") -> Activities that result in wilful damage to the venue sites, accommodation sites or the property of others will result in disqualification of the individuals involved from competition. | D94: =DQ_Codes!W6 -> P805 | E94: =IFERROR(VLOOKUP(VALUE(MID(D94,3,LEN(D94)-2)),DQ_Codes!A:B,2),"") -> Victim kicking legs whilst being pulled in.
A95: =DQ_Codes!O12 -> DQ6 | B95: =IFERROR(VLOOKUP(VALUE(MID(A95,3,LEN(A95)-2)),DQ_Codes!A:B,2),"") -> Abuse of officials may result in disqualification from the competition. | D95: =DQ_Codes!W7 -> P806 | E95: =IFERROR(VLOOKUP(VALUE(MID(D95,3,LEN(D95)-2)),DQ_Codes!A:B,2),"") -> Victims head not being clear of the water during pull in.
A96: =DQ_Codes!O13 -> DQ7 | B96: =IFERROR(VLOOKUP(VALUE(MID(A96,3,LEN(A96)-2)),DQ_Codes!A:B,2),"") -> Using sticky, tacky or adhesive substances (liquid, solid or aerosol) on hands or feet, or on the manikin or rescue tube to improve grip or push off the bottom of the pool. | D96: =DQ_Codes!W8 -> P807 | E96: =IFERROR(VLOOKUP(VALUE(MID(D96,3,LEN(D96)-2)),DQ_Codes!A:B,2),"") -> Victim “climbing” the throw line hand-over-hand.
A97: =DQ_Codes!O14 -> DQ8 | B97: =IFERROR(VLOOKUP(VALUE(MID(A97,3,LEN(A97)-2)),DQ_Codes!A:B,2),"") -> Competitors shall not take assistance from the pool bottom except where specifically allowed (e.g., 4 x 50 m Obstacle Relay, 4 x 25 m Manikin Carry Relay, 4 x 50 m Swim and 50 m Tow Relay). | D97: =DQ_Codes!W9 -> P808 | E97: =IFERROR(VLOOKUP(VALUE(MID(D97,3,LEN(D97)-2)),DQ_Codes!A:B,2),"") -> Thrower exiting the throw zone (as judged by both feet) at any time after the start and before the completion of their throw and rescue.
A98: =DQ_Codes!O15 -> DQ9 | B98: =IFERROR(VLOOKUP(VALUE(MID(A98,3,LEN(A98)-2)),DQ_Codes!A:B,2),"") -> Leaving the water after an event before permission is given by the offcial | D98: =DQ_Codes!W10 -> P809 | E98: =IFERROR(VLOOKUP(VALUE(MID(D98,3,LEN(D98)-2)),DQ_Codes!A:B,2),"") -> Pulling on a semi-rigid or non-rigid cross line.
A99: =DQ_Codes!O16 -> DQ10 | B99: =IFERROR(VLOOKUP(VALUE(MID(A99,3,LEN(A99)-2)),DQ_Codes!A:B,2),"") -> All competitors who start (i.e., commence a starting motion) before the starting signal has been given shall be disqualified | D99: =DQ_Codes!W11 -> P810 | E99: =IFERROR(VLOOKUP(VALUE(MID(D99,3,LEN(D99)-2)),DQ_Codes!A:B,2),"") -> Entering the water and not re-coiling and re-throwing the rope prior to completing the rescue.
A100: =DQ_Codes!O17 -> DQ15 | B100: =IFERROR(VLOOKUP(VALUE(MID(A100,3,LEN(A100)-2)),DQ_Codes!A:B,2),"") -> Failure to touch the finish wall. | D100: =DQ_Codes!W12 -> P811 | E100: =IFERROR(VLOOKUP(VALUE(MID(D100,3,LEN(D100)-2)),DQ_Codes!A:B,2),"") -> Casualty not in contact with the crossline, and throw line at the start.
A101: =DQ_Codes!O18 -> DQ17 | B101: =IFERROR(VLOOKUP(VALUE(MID(A101,3,LEN(A101)-2)),DQ_Codes!A:B,2),"") -> Taking assistance from any pool fitting (e.g., lane rope, steps, drains or underwater hockey fittings) when surfacing with the manikin – not including the bottom of the pool. | D101: =DQ_Codes!W13 ->  | E101: =IFERROR(VLOOKUP(VALUE(MID(D101,3,LEN(D101)-2)),DQ_Codes!A:B,2),"") -> 
A102: =DQ_Codes!O19 -> DQ40 | B102: =IFERROR(VLOOKUP(VALUE(MID(A102,3,LEN(A102)-2)),DQ_Codes!A:B,2),"") -> One competitor repeating two or more legs of the event. | D102: =DQ_Codes!W14 ->  | E102: =IFERROR(VLOOKUP(VALUE(MID(D102,3,LEN(D102)-2)),DQ_Codes!A:B,2),"") -> 
A103: =DQ_Codes!O20 -> DQ41 | B103: =IFERROR(VLOOKUP(VALUE(MID(A103,3,LEN(A103)-2)),DQ_Codes!A:B,2),"") -> Leaving the start before the previous competitor has touched the wall | D103: =DQ_Codes!W15 ->  | E103: =IFERROR(VLOOKUP(VALUE(MID(D103,3,LEN(D103)-2)),DQ_Codes!A:B,2),"") -> 
A104: =DQ_Codes!O21 -> DQ50 | B104: =IFERROR(VLOOKUP(VALUE(MID(A104,3,LEN(A104)-2)),DQ_Codes!A:B,2),"") -> A competitor re-entering the water after completing his or her leg of the relay | D104: =DQ_Codes!W16 ->  | E104: =IFERROR(VLOOKUP(VALUE(MID(D104,3,LEN(D104)-2)),DQ_Codes!A:B,2),"") -> 
A105: =DQ_Codes!O22 -> DQ53 | B105: =IFERROR(VLOOKUP(VALUE(MID(A105,3,LEN(A105)-2)),DQ_Codes!A:B,2),"") -> Final victim exiting the water before the 2minutes 30 second completion signal. | D105: =DQ_Codes!W17 ->  | E105: =IFERROR(VLOOKUP(VALUE(MID(D105,3,LEN(D105)-2)),DQ_Codes!A:B,2),"") -> 
A106: =DQ_Codes!O23 -> DQ58 | B106: =IFERROR(VLOOKUP(VALUE(MID(A106,3,LEN(A106)-2)),DQ_Codes!A:B,2),"") -> Executing a practice throw | D106: =DQ_Codes!W18 ->  | E106: =IFERROR(VLOOKUP(VALUE(MID(D106,3,LEN(D106)-2)),DQ_Codes!A:B,2),"") -> 
A107: =DQ_Codes!O24 -> DQ101 | B107: =IFERROR(VLOOKUP(VALUE(MID(A107,3,LEN(A107)-2)),DQ_Codes!A:B,2),"") -> Swimwear must conform to FINA standards | D107: =DQ_Codes!W19 ->  | E107: =IFERROR(VLOOKUP(VALUE(MID(D107,3,LEN(D107)-2)),DQ_Codes!A:B,2),"") -> 
A108: =DQ_Codes!O25 -> DQ102 | B108: =IFERROR(VLOOKUP(VALUE(MID(A108,3,LEN(A108)-2)),DQ_Codes!A:B,2),"") -> All teams shall be made up of four individuals, comprising of at least one male and at least one female. | D108: =DQ_Codes!W20 ->  | E108: =IFERROR(VLOOKUP(VALUE(MID(D108,3,LEN(D108)-2)),DQ_Codes!A:B,2),"") -> 
A109: =DQ_Codes!O26 -> DQ103 | B109: =IFERROR(VLOOKUP(VALUE(MID(A109,3,LEN(A109)-2)),DQ_Codes!A:B,2),"") -> Failure of a competitor to wear an appropriate swimming hat may result in disqualification | D109: =DQ_Codes!W21 -> 0 | E109: =IFERROR(VLOOKUP(VALUE(MID(D109,3,LEN(D109)-2)),DQ_Codes!A:B,2),"") -> 
A110: =DQ_Codes!O27 -> DQ104 | B110: =IFERROR(VLOOKUP(VALUE(MID(A110,3,LEN(A110)-2)),DQ_Codes!A:B,2),"") -> Failure of a competitor to remove jewellery that may pose a risk to any competitors, spectators, actors, or officials | D110: =DQ_Codes!W22 -> 0 | E110: =IFERROR(VLOOKUP(VALUE(MID(D110,3,LEN(D110)-2)),DQ_Codes!A:B,2),"") -> 
A111: =DQ_Codes!O28 -> DQ105 | B111: =IFERROR(VLOOKUP(VALUE(MID(A111,3,LEN(A111)-2)),DQ_Codes!A:B,2),"") -> Failing to follow the instruction of a Marshall or Official may result in disqualification | D111: =DQ_Codes!W23 -> 0 | E111: =IFERROR(VLOOKUP(VALUE(MID(D111,3,LEN(D111)-2)),DQ_Codes!A:B,2),"") -> 
A112: =DQ_Codes!O29 -> DQ106 | B112: =IFERROR(VLOOKUP(VALUE(MID(A112,3,LEN(A112)-2)),DQ_Codes!A:B,2),"") -> Delaying the start, for wilfully disobeying an instruction, or for any other misconduct taking place at the start. | D112: =DQ_Codes!W24 -> 0 | E112: =IFERROR(VLOOKUP(VALUE(MID(D112,3,LEN(D112)-2)),DQ_Codes!A:B,2),"") -> 
A113: =DQ_Codes!O30 -> DQ201 | B113: =IFERROR(VLOOKUP(VALUE(MID(A113,3,LEN(A113)-2)),DQ_Codes!A:B,2),"") -> Not finishing or completing the event in the same lane in which he or she started. | D113: =DQ_Codes!W25 -> 0 | E113: =IFERROR(VLOOKUP(VALUE(MID(D113,3,LEN(D113)-2)),DQ_Codes!A:B,2),"") -> 
A114: =DQ_Codes!O31 -> DQ202 | B114: =IFERROR(VLOOKUP(VALUE(MID(A114,3,LEN(A114)-2)),DQ_Codes!A:B,2),"") -> Obstructing another Team or Competitor. | D114: =DQ_Codes!W26 -> 0 | E114: =IFERROR(VLOOKUP(VALUE(MID(D114,3,LEN(D114)-2)),DQ_Codes!A:B,2),"") -> 
A115: =DQ_Codes!O32 -> DQ203 | B115: =IFERROR(VLOOKUP(VALUE(MID(A115,3,LEN(A115)-2)),DQ_Codes!A:B,2),"") -> Entering the water during a heat for which they are not entered. | D115: =DQ_Codes!W27 -> 0 | E115: =IFERROR(VLOOKUP(VALUE(MID(D115,3,LEN(D115)-2)),DQ_Codes!A:B,2),"") -> 
A116: =DQ_Codes!O33 -> DQ205 | B116: =IFERROR(VLOOKUP(VALUE(MID(A116,3,LEN(A116)-2)),DQ_Codes!A:B,2),"") -> Pace-making, providing feedback on positions of other teams, attempting to influence or coach an athlete during the race. | D116: =DQ_Codes!W28 -> 0 | E116: =IFERROR(VLOOKUP(VALUE(MID(D116,3,LEN(D116)-2)),DQ_Codes!A:B,2),"") -> 
A117: =DQ_Codes!O34 -> DQ206 | B117: =IFERROR(VLOOKUP(VALUE(MID(A117,3,LEN(A117)-2)),DQ_Codes!A:B,2),"") -> Relay Team is not the same Competitors who took part in the SERC. | D117: =DQ_Codes!W29 -> 0 | E117: =IFERROR(VLOOKUP(VALUE(MID(D117,3,LEN(D117)-2)),DQ_Codes!A:B,2),"") -> 
A118: =DQ_Codes!O35 -> DQ401 | B118: =IFERROR(VLOOKUP(VALUE(MID(A118,3,LEN(A118)-2)),DQ_Codes!A:B,2),"") -> Wilful and deliberate pulling on a Semi-rigid or non-rigid cross line. | D118: =DQ_Codes!W30 -> 0 | E118: =IFERROR(VLOOKUP(VALUE(MID(D118,3,LEN(D118)-2)),DQ_Codes!A:B,2),"") -> 
A119: =DQ_Codes!O36 -> DQ402 | B119: =IFERROR(VLOOKUP(VALUE(MID(A119,3,LEN(A119)-2)),DQ_Codes!A:B,2),"") -> Deliberately interfering with another teams rope. | D119: =DQ_Codes!W31 -> 0 | E119: =IFERROR(VLOOKUP(VALUE(MID(D119,3,LEN(D119)-2)),DQ_Codes!A:B,2),"") -> 
A120: =DQ_Codes!O37 -> DQ403 | B120: =IFERROR(VLOOKUP(VALUE(MID(A120,3,LEN(A120)-2)),DQ_Codes!A:B,2),"") -> Casualty swimming to reach the throw line or to reach the finishing edge. | D120: =DQ_Codes!W32 -> 0 | E120: =IFERROR(VLOOKUP(VALUE(MID(D120,3,LEN(D120)-2)),DQ_Codes!A:B,2),"") -> 
A121: =DQ_Codes!O38 ->  | B121: =IFERROR(VLOOKUP(VALUE(MID(A121,3,LEN(A121)-2)),DQ_Codes!A:B,2),"") ->  | D121: =DQ_Codes!W33 -> 0 | E121: =IFERROR(VLOOKUP(VALUE(MID(D121,3,LEN(D121)-2)),DQ_Codes!A:B,2),"") -> 
A122: =DQ_Codes!O39 ->  | B122: =IFERROR(VLOOKUP(VALUE(MID(A122,3,LEN(A122)-2)),DQ_Codes!A:B,2),"") ->  | D122: =DQ_Codes!W34 -> 0 | E122: =IFERROR(VLOOKUP(VALUE(MID(D122,3,LEN(D122)-2)),DQ_Codes!A:B,2),"") -> 
A123: =DQ_Codes!O40 ->  | B123: =IFERROR(VLOOKUP(VALUE(MID(A123,3,LEN(A123)-2)),DQ_Codes!A:B,2),"") ->  | D123: =DQ_Codes!W35 -> 0 | E123: =IFERROR(VLOOKUP(VALUE(MID(D123,3,LEN(D123)-2)),DQ_Codes!A:B,2),"") -> 
A124: =DQ_Codes!O41 -> 0 | B124: =IFERROR(VLOOKUP(VALUE(MID(A124,3,LEN(A124)-2)),DQ_Codes!A:B,2),"") ->  | D124: =DQ_Codes!W36 -> 0 | E124: =IFERROR(VLOOKUP(VALUE(MID(D124,3,LEN(D124)-2)),DQ_Codes!A:B,2),"") -> 
A125: =DQ_Codes!O42 -> 0 | B125: =IFERROR(VLOOKUP(VALUE(MID(A125,3,LEN(A125)-2)),DQ_Codes!A:B,2),"") ->  | D125: =DQ_Codes!W37 -> 0 | E125: =IFERROR(VLOOKUP(VALUE(MID(D125,3,LEN(D125)-2)),DQ_Codes!A:B,2),"") -> 
A126: =DQ_Codes!O43 -> 0 | B126: =IFERROR(VLOOKUP(VALUE(MID(A126,3,LEN(A126)-2)),DQ_Codes!A:B,2),"") ->  | D126: =DQ_Codes!W38 -> 0 | E126: =IFERROR(VLOOKUP(VALUE(MID(D126,3,LEN(D126)-2)),DQ_Codes!A:B,2),"") -> 
A127: =DQ_Codes!O44 -> 0 | B127: =IFERROR(VLOOKUP(VALUE(MID(A127,3,LEN(A127)-2)),DQ_Codes!A:B,2),"") ->  | D127: =DQ_Codes!W39 -> 0 | E127: =IFERROR(VLOOKUP(VALUE(MID(D127,3,LEN(D127)-2)),DQ_Codes!A:B,2),"") -> 
A128: =DQ_Codes!O45 -> 0 | B128: =IFERROR(VLOOKUP(VALUE(MID(A128,3,LEN(A128)-2)),DQ_Codes!A:B,2),"") ->  | D128: =DQ_Codes!W40 -> 0 | E128: =IFERROR(VLOOKUP(VALUE(MID(D128,3,LEN(D128)-2)),DQ_Codes!A:B,2),"") -> 
A129: =DQ_Codes!O46 -> 0 | B129: =IFERROR(VLOOKUP(VALUE(MID(A129,3,LEN(A129)-2)),DQ_Codes!A:B,2),"") ->  | D129: =DQ_Codes!W41 -> 0 | E129: =IFERROR(VLOOKUP(VALUE(MID(D129,3,LEN(D129)-2)),DQ_Codes!A:B,2),"") -> 
A130: =DQ_Codes!O47 -> 0 | D130: =DQ_Codes!W42 -> 0 | E130: =IFERROR(VLOOKUP(VALUE(MID(D130,3,LEN(D130)-2)),DQ_Codes!A:B,2),"") -> 
A132: Medley Relay
A133: DQ
A134: =DQ_Codes!Q3 -> DQ1 | B134: =IFERROR(VLOOKUP(VALUE(MID(A134,3,LEN(A134)-2)),DQ_Codes!A:B,2),"") -> Not completing the event in accordance with the event description or general rules.
A135: =DQ_Codes!Q4 -> DQ2 | B135: =IFERROR(VLOOKUP(VALUE(MID(A135,3,LEN(A135)-2)),DQ_Codes!A:B,2),"") -> A competitor or team may be disqualified if a competitor, team or handler is deemed to have competed unfairly. Examples of “competing unfairly” include: • committing a doping or doping-related infraction; • impersonating another competitor; • attempting to defeat the ballot or draw for events or positions; • competing twice in the same individual event; • competing twice in the same event in different teams; • purposely interfering with a course to gain advantage; • jostling or obstructing another competitor handler so as to impede his or her progress; • receiving physical or material outside assistance (other than verbal or other direction).
A136: =DQ_Codes!Q5 -> DQ3 | B136: =IFERROR(VLOOKUP(VALUE(MID(A136,3,LEN(A136)-2)),DQ_Codes!A:B,2),"") -> Competitors may not be permitted to start in an event if they are late reporting to the marshalling area.
A137: =DQ_Codes!Q6 -> DQ4 | B137: =IFERROR(VLOOKUP(VALUE(MID(A137,3,LEN(A137)-2)),DQ_Codes!A:B,2),"") -> A competitor or team absent from the start of an event shall be disqualified
A138: =DQ_Codes!Q7 -> DQ5 | B138: =IFERROR(VLOOKUP(VALUE(MID(A138,3,LEN(A138)-2)),DQ_Codes!A:B,2),"") -> Activities that result in wilful damage to the venue sites, accommodation sites or the property of others will result in disqualification of the individuals involved from competition.
A139: =DQ_Codes!Q8 -> DQ6 | B139: =IFERROR(VLOOKUP(VALUE(MID(A139,3,LEN(A139)-2)),DQ_Codes!A:B,2),"") -> Abuse of officials may result in disqualification from the competition.
A140: =DQ_Codes!Q9 -> DQ7 | B140: =IFERROR(VLOOKUP(VALUE(MID(A140,3,LEN(A140)-2)),DQ_Codes!A:B,2),"") -> Using sticky, tacky or adhesive substances (liquid, solid or aerosol) on hands or feet, or on the manikin or rescue tube to improve grip or push off the bottom of the pool.
A141: =DQ_Codes!Q10 -> DQ8 | B141: =IFERROR(VLOOKUP(VALUE(MID(A141,3,LEN(A141)-2)),DQ_Codes!A:B,2),"") -> Competitors shall not take assistance from the pool bottom except where specifically allowed (e.g., 4 x 50 m Obstacle Relay, 4 x 25 m Manikin Carry Relay, 4 x 50 m Swim and 50 m Tow Relay).
A142: =DQ_Codes!Q11 -> DQ9 | B142: =IFERROR(VLOOKUP(VALUE(MID(A142,3,LEN(A142)-2)),DQ_Codes!A:B,2),"") -> Leaving the water after an event before permission is given by the offcial
A143: =DQ_Codes!Q12 -> DQ10 | B143: =IFERROR(VLOOKUP(VALUE(MID(A143,3,LEN(A143)-2)),DQ_Codes!A:B,2),"") -> All competitors who start (i.e., commence a starting motion) before the starting signal has been given shall be disqualified
A144: =DQ_Codes!Q13 -> DQ14 | B144: =IFERROR(VLOOKUP(VALUE(MID(A144,3,LEN(A144)-2)),DQ_Codes!A:B,2),"") -> Failure to touch the wall during the turn.
A145: =DQ_Codes!Q14 -> DQ15 | B145: =IFERROR(VLOOKUP(VALUE(MID(A145,3,LEN(A145)-2)),DQ_Codes!A:B,2),"") -> Failure to touch the finish wall.
A146: =DQ_Codes!Q15 -> DQ17 | B146: =IFERROR(VLOOKUP(VALUE(MID(A146,3,LEN(A146)-2)),DQ_Codes!A:B,2),"") -> Taking assistance from any pool fitting (e.g., lane rope, steps, drains or underwater hockey fittings) when surfacing with the manikin – not including the bottom of the pool.
A147: =DQ_Codes!Q16 -> DQ40 | B147: =IFERROR(VLOOKUP(VALUE(MID(A147,3,LEN(A147)-2)),DQ_Codes!A:B,2),"") -> One competitor repeating two or more legs of the event.
A148: =DQ_Codes!Q17 -> DQ41 | B148: =IFERROR(VLOOKUP(VALUE(MID(A148,3,LEN(A148)-2)),DQ_Codes!A:B,2),"") -> Leaving the start before the previous competitor has touched the wall
A149: =DQ_Codes!Q18 -> DQ44 | B149: =IFERROR(VLOOKUP(VALUE(MID(A149,3,LEN(A149)-2)),DQ_Codes!A:B,2),"") -> The fourth competitor touching the rescue tube harness line or any part of the rescue tube before the third competitor touches the turn wall
A150: =DQ_Codes!Q19 -> DQ45 | B150: =IFERROR(VLOOKUP(VALUE(MID(A150,3,LEN(A150)-2)),DQ_Codes!A:B,2),"") -> The competitor clipping the rescue tube into the ring
A151: =DQ_Codes!Q20 -> DQ46 | B151: =IFERROR(VLOOKUP(VALUE(MID(A151,3,LEN(A151)-2)),DQ_Codes!A:B,2),"") -> The victim holding the rescue tube by the rope or clip
A152: =DQ_Codes!Q21 -> DQ47 | B152: =IFERROR(VLOOKUP(VALUE(MID(A152,3,LEN(A152)-2)),DQ_Codes!A:B,2),"") -> The victim helping with arm movements or not holding the rescue tube with both hands
A153: =DQ_Codes!Q22 -> DQ48 | B153: =IFERROR(VLOOKUP(VALUE(MID(A153,3,LEN(A153)-2)),DQ_Codes!A:B,2),"") -> The victim losing the rescue tube after crossing the 5 m line
A154: =DQ_Codes!Q23 -> DQ49 | B154: =IFERROR(VLOOKUP(VALUE(MID(A154,3,LEN(A154)-2)),DQ_Codes!A:B,2),"") -> The fourth competitor towing the victim without the line of the rescue tube fully extended beyond the 10 m line
A155: =DQ_Codes!Q24 -> DQ50 | B155: =IFERROR(VLOOKUP(VALUE(MID(A155,3,LEN(A155)-2)),DQ_Codes!A:B,2),"") -> A competitor re-entering the water after completing his or her leg of the relay
A156: =DQ_Codes!Q25 -> DQ101 | B156: =IFERROR(VLOOKUP(VALUE(MID(A156,3,LEN(A156)-2)),DQ_Codes!A:B,2),"") -> Swimwear must conform to FINA standards
A157: =DQ_Codes!Q26 -> DQ102 | B157: =IFERROR(VLOOKUP(VALUE(MID(A157,3,LEN(A157)-2)),DQ_Codes!A:B,2),"") -> All teams shall be made up of four individuals, comprising of at least one male and at least one female.
A158: =DQ_Codes!Q27 -> DQ103 | B158: =IFERROR(VLOOKUP(VALUE(MID(A158,3,LEN(A158)-2)),DQ_Codes!A:B,2),"") -> Failure of a competitor to wear an appropriate swimming hat may result in disqualification
A159: =DQ_Codes!Q28 -> DQ104 | B159: =IFERROR(VLOOKUP(VALUE(MID(A159,3,LEN(A159)-2)),DQ_Codes!A:B,2),"") -> Failure of a competitor to remove jewellery that may pose a risk to any competitors, spectators, actors, or officials
A160: =DQ_Codes!Q29 -> DQ105 | B160: =IFERROR(VLOOKUP(VALUE(MID(A160,3,LEN(A160)-2)),DQ_Codes!A:B,2),"") -> Failing to follow the instruction of a Marshall or Official may result in disqualification
A161: =DQ_Codes!Q30 -> DQ106 | B161: =IFERROR(VLOOKUP(VALUE(MID(A161,3,LEN(A161)-2)),DQ_Codes!A:B,2),"") -> Delaying the start, for wilfully disobeying an instruction, or for any other misconduct taking place at the start.
A162: =DQ_Codes!Q31 -> DQ201 | B162: =IFERROR(VLOOKUP(VALUE(MID(A162,3,LEN(A162)-2)),DQ_Codes!A:B,2),"") -> Not finishing or completing the event in the same lane in which he or she started.
A163: =DQ_Codes!Q32 -> DQ202 | B163: =IFERROR(VLOOKUP(VALUE(MID(A163,3,LEN(A163)-2)),DQ_Codes!A:B,2),"") -> Obstructing another Team or Competitor.
A164: =DQ_Codes!Q33 -> DQ203 | B164: =IFERROR(VLOOKUP(VALUE(MID(A164,3,LEN(A164)-2)),DQ_Codes!A:B,2),"") -> Entering the water during a heat for which they are not entered.
A165: =DQ_Codes!Q34 -> DQ205 | B165: =IFERROR(VLOOKUP(VALUE(MID(A165,3,LEN(A165)-2)),DQ_Codes!A:B,2),"") -> Pace-making, providing feedback on positions of other teams, attempting to influence or coach an athlete during the race.
A166: =DQ_Codes!Q35 -> DQ206 | B166: =IFERROR(VLOOKUP(VALUE(MID(A166,3,LEN(A166)-2)),DQ_Codes!A:B,2),"") -> Relay Team is not the same Competitors who took part in the SERC.
A167: =DQ_Codes!Q36 -> DQ601 | B167: =IFERROR(VLOOKUP(VALUE(MID(A167,3,LEN(A167)-2)),DQ_Codes!A:B,2),"") -> The fourth competitor tumble turn at the turning edge whilst towing the victim.
A168: =DQ_Codes!Q37 ->  | B168: =IFERROR(VLOOKUP(VALUE(MID(A168,3,LEN(A168)-2)),DQ_Codes!A:B,2),"") -> 
A169: =DQ_Codes!Q38 ->  | B169: =IFERROR(VLOOKUP(VALUE(MID(A169,3,LEN(A169)-2)),DQ_Codes!A:B,2),"") -> 
A170: =DQ_Codes!Q39 ->  | B170: =IFERROR(VLOOKUP(VALUE(MID(A170,3,LEN(A170)-2)),DQ_Codes!A:B,2),"") -> 
A171: =DQ_Codes!Q40 ->  | B171: =IFERROR(VLOOKUP(VALUE(MID(A171,3,LEN(A171)-2)),DQ_Codes!A:B,2),"") -> 
A172: =DQ_Codes!Q41 -> 0 | B172: =IFERROR(VLOOKUP(VALUE(MID(A172,3,LEN(A172)-2)),DQ_Codes!A:B,2),"") -> 
A173: =DQ_Codes!Q42 -> 0 | B173: =IFERROR(VLOOKUP(VALUE(MID(A173,3,LEN(A173)-2)),DQ_Codes!A:B,2),"") -> 
A174: =DQ_Codes!Q43 -> 0
A176: Manikin Relay
A177: DQ
A178: =DQ_Codes!P3 -> DQ1 | B178: =IFERROR(VLOOKUP(VALUE(MID(A178,3,LEN(A178)-2)),DQ_Codes!A:B,2),"") -> Not completing the event in accordance with the event description or general rules.
A179: =DQ_Codes!P4 -> DQ2 | B179: =IFERROR(VLOOKUP(VALUE(MID(A179,3,LEN(A179)-2)),DQ_Codes!A:B,2),"") -> A competitor or team may be disqualified if a competitor, team or handler is deemed to have competed unfairly. Examples of “competing unfairly” include: • committing a doping or doping-related infraction; • impersonating another competitor; • attempting to defeat the ballot or draw for events or positions; • competing twice in the same individual event; • competing twice in the same event in different teams; • purposely interfering with a course to gain advantage; • jostling or obstructing another competitor handler so as to impede his or her progress; • receiving physical or material outside assistance (other than verbal or other direction).
A180: =DQ_Codes!P5 -> DQ3 | B180: =IFERROR(VLOOKUP(VALUE(MID(A180,3,LEN(A180)-2)),DQ_Codes!A:B,2),"") -> Competitors may not be permitted to start in an event if they are late reporting to the marshalling area.
A181: =DQ_Codes!P6 -> DQ4 | B181: =IFERROR(VLOOKUP(VALUE(MID(A181,3,LEN(A181)-2)),DQ_Codes!A:B,2),"") -> A competitor or team absent from the start of an event shall be disqualified
A182: =DQ_Codes!P7 -> DQ5 | B182: =IFERROR(VLOOKUP(VALUE(MID(A182,3,LEN(A182)-2)),DQ_Codes!A:B,2),"") -> Activities that result in wilful damage to the venue sites, accommodation sites or the property of others will result in disqualification of the individuals involved from competition.
A183: =DQ_Codes!P8 -> DQ6 | B183: =IFERROR(VLOOKUP(VALUE(MID(A183,3,LEN(A183)-2)),DQ_Codes!A:B,2),"") -> Abuse of officials may result in disqualification from the competition.
A184: =DQ_Codes!P9 -> DQ7 | B184: =IFERROR(VLOOKUP(VALUE(MID(A184,3,LEN(A184)-2)),DQ_Codes!A:B,2),"") -> Using sticky, tacky or adhesive substances (liquid, solid or aerosol) on hands or feet, or on the manikin or rescue tube to improve grip or push off the bottom of the pool.
A185: =DQ_Codes!P10 -> DQ8 | B185: =IFERROR(VLOOKUP(VALUE(MID(A185,3,LEN(A185)-2)),DQ_Codes!A:B,2),"") -> Competitors shall not take assistance from the pool bottom except where specifically allowed (e.g., 4 x 50 m Obstacle Relay, 4 x 25 m Manikin Carry Relay, 4 x 50 m Swim and 50 m Tow Relay).
A186: =DQ_Codes!P11 -> DQ9 | B186: =IFERROR(VLOOKUP(VALUE(MID(A186,3,LEN(A186)-2)),DQ_Codes!A:B,2),"") -> Leaving the water after an event before permission is given by the offcial
A187: =DQ_Codes!P12 -> DQ10 | B187: =IFERROR(VLOOKUP(VALUE(MID(A187,3,LEN(A187)-2)),DQ_Codes!A:B,2),"") -> All competitors who start (i.e., commence a starting motion) before the starting signal has been given shall be disqualified
A188: =DQ_Codes!P13 -> DQ14 | B188: =IFERROR(VLOOKUP(VALUE(MID(A188,3,LEN(A188)-2)),DQ_Codes!A:B,2),"") -> Failure to touch the wall during the turn.
A189: =DQ_Codes!P14 -> DQ15 | B189: =IFERROR(VLOOKUP(VALUE(MID(A189,3,LEN(A189)-2)),DQ_Codes!A:B,2),"") -> Failure to touch the finish wall.
A190: =DQ_Codes!P15 -> DQ17 | B190: =IFERROR(VLOOKUP(VALUE(MID(A190,3,LEN(A190)-2)),DQ_Codes!A:B,2),"") -> Taking assistance from any pool fitting (e.g., lane rope, steps, drains or underwater hockey fittings) when surfacing with the manikin – not including the bottom of the pool.
A191: =DQ_Codes!P16 -> DQ19 | B191: =IFERROR(VLOOKUP(VALUE(MID(A191,3,LEN(A191)-2)),DQ_Codes!A:B,2),"") -> Using an incorrect carrying technique
A192: =DQ_Codes!P17 -> DQ20 | B192: =IFERROR(VLOOKUP(VALUE(MID(A192,3,LEN(A192)-2)),DQ_Codes!A:B,2),"") -> Carrying or towing the manikin face down
A193: =DQ_Codes!P18 -> DQ38 | B193: =IFERROR(VLOOKUP(VALUE(MID(A193,3,LEN(A193)-2)),DQ_Codes!A:B,2),"") -> Releasing the manikin before touching the turn wall or finish wall
A194: =DQ_Codes!P19 -> DQ39 | B194: =IFERROR(VLOOKUP(VALUE(MID(A194,3,LEN(A194)-2)),DQ_Codes!A:B,2),"") -> Assistance from a third competitor during the exchange between the incoming and outgoing competitors
A195: =DQ_Codes!P20 -> DQ40 | B195: =IFERROR(VLOOKUP(VALUE(MID(A195,3,LEN(A195)-2)),DQ_Codes!A:B,2),"") -> One competitor repeating two or more legs of the event.
A196: =DQ_Codes!P21 -> DQ41 | B196: =IFERROR(VLOOKUP(VALUE(MID(A196,3,LEN(A196)-2)),DQ_Codes!A:B,2),"") -> Leaving the start before the previous competitor has touched the wall
A197: =DQ_Codes!P22 -> DQ42 | B197: =IFERROR(VLOOKUP(VALUE(MID(A197,3,LEN(A197)-2)),DQ_Codes!A:B,2),"") -> The manikin changing hands: • before or beyond the designated changeover zone • before the second competitor touches the pool wall
A198: =DQ_Codes!P23 -> DQ43 | B198: =IFERROR(VLOOKUP(VALUE(MID(A198,3,LEN(A198)-2)),DQ_Codes!A:B,2),"") -> Releasing the manikin before the next competitor has grasped it (i.e. one had of each competitor must be in contact with the manikin).
A199: =DQ_Codes!P24 -> DQ50 | B199: =IFERROR(VLOOKUP(VALUE(MID(A199,3,LEN(A199)-2)),DQ_Codes!A:B,2),"") -> A competitor re-entering the water after completing his or her leg of the relay
A200: =DQ_Codes!P25 -> DQ101 | B200: =IFERROR(VLOOKUP(VALUE(MID(A200,3,LEN(A200)-2)),DQ_Codes!A:B,2),"") -> Swimwear must conform to FINA standards
A201: =DQ_Codes!P26 -> DQ102 | B201: =IFERROR(VLOOKUP(VALUE(MID(A201,3,LEN(A201)-2)),DQ_Codes!A:B,2),"") -> All teams shall be made up of four individuals, comprising of at least one male and at least one female.
A202: =DQ_Codes!P27 -> DQ103 | B202: =IFERROR(VLOOKUP(VALUE(MID(A202,3,LEN(A202)-2)),DQ_Codes!A:B,2),"") -> Failure of a competitor to wear an appropriate swimming hat may result in disqualification
... 59 more rows

Sheet DQ_Codes (hidden)
A1: Code | B1: Description | C1: SERC | D1: Swim and Tow | E1: Line Throw | F1: Manikin | G1: Medley | H1: Obstcle | I1: D-Disqulification P-Peanalty | L1: DQ | M1: SERC | N1: Swim and Tow | O1: Line Throw | P1: Manikin | Q1: Medley | R1: Obstcle | T1: P | U1: SERC | V1: Swim and Tow | W1: Line Throw | X1: Manikin | Y1: Medley | Z1: Obstcle
A2: 1 | B2: Not completing the event in accordance with the event description or general rules. | C2: D | D2: D | E2: D | F2: D | G2: D | H2: D | M2: =IFERROR("DQ"&INDEX($A:$H, SMALL(IF(("D"=C:C), MATCH(ROW($B:$B), ROW($B:$B))), ROW($A1)), COLUMN($A1)),"") -> DQ1 | N2: Finished | O2: Finished | P2: Finished | Q2: Finished | R2: Finished | U2: =IFERROR(" P"&INDEX($A:$H, SMALL(IF(("P"=C:C), MATCH(ROW($B:$B), ROW($B:$B))), ROW($A1)), COLUMN($A1)),"") -> P701 | V2: =IFERROR(" P"&INDEX($A:$H, SMALL(IF(("P"=D:D), MATCH(ROW($B:$B), ROW($B:$B))), ROW($A1)), COLUMN($A1)),"") -> P900 | W2: =IFERROR(" P"&INDEX($A:$H, SMALL(IF(("P"=E:E), MATCH(ROW($B:$B), ROW($B:$B))), ROW($A1)), COLUMN($A1)),"") -> P801 | X2: =IFERROR("DQ"&INDEX($A:$H, SMALL(IF(("P"=F:F), MATCH(ROW($B:$B), ROW($B:$B))), ROW($A1)), COLUMN($A1)),"") ->  | Y2: =IFERROR("DQ"&INDEX($A:$H, SMALL(IF(("P"=G:G), MATCH(ROW($B:$B), ROW($B:$B))), ROW($A1)), COLUMN($A1)),"") ->  | Z2: =IFERROR("DQ"&INDEX($A:$H, SMALL(IF(("P"=H:H), MATCH(ROW($B:$B), ROW($B:$B))), ROW($A1)), COLUMN($A1)),"") -> 
A3: 2 | B3: A competitor or team may be disqualified if a competitor, team or handler is deemed to have competed unfairly. Examples of “competing unfairly” include: • committing a doping or doping-related infraction; • impersonating another competitor; • attempting to defeat the ballot or draw for events or positions; • competing twice in the same individual event; • competing twice in the same event in different teams; • purposely interfering with a course to gain advantage; • jostling or obstructing another competitor handler so as to impede his or her progress; • receiving physical or material outside assistance (other than verbal or other direction). | C3: D | D3: D | E3: D | F3: D | G3: D | H3: D | M3: =IFERROR("DQ"&INDEX($A:$H, SMALL(IF(("D"=C:C), MATCH(ROW($B:$B), ROW($B:$B))), ROW($A2)), COLUMN($A2)),"") -> DQ2 | N3: =IFERROR("DQ"&INDEX($A:$H, SMALL(IF(("D"=D:D), MATCH(ROW($B:$B), ROW($B:$B))), ROW($A1)), COLUMN($A1)),"") -> DQ1 | O3: DNF - 3 Persons In | P3: =IFERROR("DQ"&INDEX($A:$H, SMALL(IF(("D"=F:F), MATCH(ROW($B:$B), ROW($B:$B))), ROW($A1)), COLUMN($A1)),"") -> DQ1 | Q3: =IFERROR("DQ"&INDEX($A:$H, SMALL(IF(("D"=G:G), MATCH(ROW($B:$B), ROW($B:$B))), ROW($A1)), COLUMN($A1)),"") -> DQ1 | R3: =IFERROR("DQ"&INDEX($A:$H, SMALL(IF(("D"=H:H), MATCH(ROW($B:$B), ROW($B:$B))), ROW($A1)), COLUMN($A1)),"") -> DQ1 | U3: =IFERROR(" P"&INDEX($A:$H, SMALL(IF(("P"=C:C), MATCH(ROW($B:$B), ROW($B:$B))), ROW($A2)), COLUMN($A2)),"") -> P702 | V3: =IFERROR(" P"&INDEX($A:$H, SMALL(IF(("P"=D:D), MATCH(ROW($B:$B), ROW($B:$B))), ROW($A2)), COLUMN($A2)),"") -> P901 | W3: =IFERROR(" P"&INDEX($A:$H, SMALL(IF(("P"=E:E), MATCH(ROW($B:$B), ROW($B:$B))), ROW($A2)), COLUMN($A2)),"") -> P802 | X3: =IFERROR("DQ"&INDEX($A:$H, SMALL(IF(("P"=F:F), MATCH(ROW($B:$B), ROW($B:$B))), ROW($A2)), COLUMN($A2)),"") ->  | Y3: =IFERROR("DQ"&INDEX($A:$H, SMALL(IF(("P"=G:G), MATCH(ROW($B:$B), ROW($B:$B))), ROW($A2)), COLUMN($A2)),"") ->  | Z3: =IFERROR("DQ"&INDEX($A:$H, SMALL(IF(("P"=H:H), MATCH(ROW($B:$B), ROW($B:$B))), ROW($A2)), COLUMN($A2)),"") -> 
A4: 3 | B4: Competitors may not be permitted to start in an event if they are late reporting to the marshalling area. | C4: D | D4: D | E4: D | F4: D | G4: D | H4: D | M4: =IFERROR("DQ"&INDEX($A:$H, SMALL(IF(("D"=C:C), MATCH(ROW($B:$B), ROW($B:$B))), ROW($A3)), COLUMN($A3)),"") -> DQ3 | N4: =IFERROR("DQ"&INDEX($A:$H, SMALL(IF(("D"=D:D), MATCH(ROW($B:$B), ROW($B:$B))), ROW($A2)), COLUMN($A2)),"") -> DQ2 | O4: DNF - 2 Persons In | P4: =IFERROR("DQ"&INDEX($A:$H, SMALL(IF(("D"=F:F), MATCH(ROW($B:$B), ROW($B:$B))), ROW($A2)), COLUMN($A2)),"") -> DQ2 | Q4: =IFERROR("DQ"&INDEX($A:$H, SMALL(IF(("D"=G:G), MATCH(ROW($B:$B), ROW($B:$B))), ROW($A2)), COLUMN($A2)),"") -> DQ2 | R4: =IFERROR("DQ"&INDEX($A:$H, SMALL(IF(("D"=H:H), MATCH(ROW($B:$B), ROW($B:$B))), ROW($A2)), COLUMN($A2)),"") -> DQ2 | U4: =IFERROR(" P"&INDEX($A:$H, SMALL(IF(("P"=C:C), MATCH(ROW($B:$B), ROW($B:$B))), ROW($A3)), COLUMN($A3)),"") ->  | V4: =IFERROR(" P"&INDEX($A:$H, SMALL(IF(("P"=D:D), MATCH(ROW($B:$B), ROW($B:$B))), ROW($A3)), COLUMN($A3)),"") -> P902 | W4: =IFERROR(" P"&INDEX($A:$H, SMALL(IF(("P"=E:E), MATCH(ROW($B:$B), ROW($B:$B))), ROW($A3)), COLUMN($A3)),"") -> P803 | X4: =IFERROR("DQ"&INDEX($A:$H, SMALL(IF(("P"=F:F), MATCH(ROW($B:$B), ROW($B:$B))), ROW($A3)), COLUMN($A3)),"") ->  | Y4: =IFERROR("DQ"&INDEX($A:$H, SMALL(IF(("P"=G:G), MATCH(ROW($B:$B), ROW($B:$B))), ROW($A3)), COLUMN($A3)),"") ->  | Z4: =IFERROR("DQ"&INDEX($A:$H, SMALL(IF(("P"=H:H), MATCH(ROW($B:$B), ROW($B:$B))), ROW($A3)), COLUMN($A3)),"") -> 
A5: 4 | B5: A competitor or team absent from the start of an event shall be disqualified | C5: D | D5: D | E5: D | F5: D | G5: D | H5: D | M5: =IFERROR("DQ"&INDEX($A:$H, SMALL(IF(("D"=C:C), MATCH(ROW($B:$B), ROW($B:$B))), ROW($A4)), COLUMN($A4)),"") -> DQ4 | N5: =IFERROR("DQ"&INDEX($A:$H, SMALL(IF(("D"=D:D), MATCH(ROW($B:$B), ROW($B:$B))), ROW($A3)), COLUMN($A3)),"") -> DQ3 | O5: DNF - 1 Persons In | P5: =IFERROR("DQ"&INDEX($A:$H, SMALL(IF(("D"=F:F), MATCH(ROW($B:$B), ROW($B:$B))), ROW($A3)), COLUMN($A3)),"") -> DQ3 | Q5: =IFERROR("DQ"&INDEX($A:$H, SMALL(IF(("D"=G:G), MATCH(ROW($B:$B), ROW($B:$B))), ROW($A3)), COLUMN($A3)),"") -> DQ3 | R5: =IFERROR("DQ"&INDEX($A:$H, SMALL(IF(("D"=H:H), MATCH(ROW($B:$B), ROW($B:$B))), ROW($A3)), COLUMN($A3)),"") -> DQ3 | U5: =IFERROR(" P"&INDEX($A:$H, SMALL(IF(("P"=C:C), MATCH(ROW($B:$B), ROW($B:$B))), ROW($A4)), COLUMN($A4)),"") ->  | V5: =IFERROR(" P"&INDEX($A:$H, SMALL(IF(("P"=D:D), MATCH(ROW($B:$B), ROW($B:$B))), ROW($A4)), COLUMN($A4)),"") -> P903 | W5: =IFERROR(" P"&INDEX($A:$H, SMALL(IF(("P"=E:E), MATCH(ROW($B:$B), ROW($B:$B))), ROW($A4)), COLUMN($A4)),"") -> P804 | X5: =IFERROR("DQ"&INDEX($A:$H, SMALL(IF(("P"=F:F), MATCH(ROW($B:$B), ROW($B:$B))), ROW($A4)), COLUMN($A4)),"") ->  | Y5: =IFERROR("DQ"&INDEX($A:$H, SMALL(IF(("P"=G:G), MATCH(ROW($B:$B), ROW($B:$B))), ROW($A4)), COLUMN($A4)),"") ->  | Z5: =IFERROR("DQ"&INDEX($A:$H, SMALL(IF(("P"=H:H), MATCH(ROW($B:$B), ROW($B:$B))), ROW($A4)), COLUMN($A4)),"") -> 
A6: 5 | B6: Activities that result in wilful damage to the venue sites, accommodation sites or the property of others will result in disqualification of the individuals involved from competition. | C6: D | D6: D | E6: D | F6: D | G6: D | H6: D | M6: =IFERROR("DQ"&INDEX($A:$H, SMALL(IF(("D"=C:C), MATCH(ROW($B:$B), ROW($B:$B))), ROW($A5)), COLUMN($A5)),"") -> DQ5 | N6: =IFERROR("DQ"&INDEX($A:$H, SMALL(IF(("D"=D:D), MATCH(ROW($B:$B), ROW($B:$B))), ROW($A4)), COLUMN($A4)),"") -> DQ4 | O6: DNF - 0 Persons In | P6: =IFERROR("DQ"&INDEX($A:$H, SMALL(IF(("D"=F:F), MATCH(ROW($B:$B), ROW($B:$B))), ROW($A4)), COLUMN($A4)),"") -> DQ4 | Q6: =IFERROR("DQ"&INDEX($A:$H, SMALL(IF(("D"=G:G), MATCH(ROW($B:$B), ROW($B:$B))), ROW($A4)), COLUMN($A4)),"") -> DQ4 | R6: =IFERROR("DQ"&INDEX($A:$H, SMALL(IF(("D"=H:H), MATCH(ROW($B:$B), ROW($B:$B))), ROW($A4)), COLUMN($A4)),"") -> DQ4 | U6: =IFERROR(" P"&INDEX($A:$H, SMALL(IF(("P"=C:C), MATCH(ROW($B:$B), ROW($B:$B))), ROW($A5)), COLUMN($A5)),"") ->  | V6: =IFERROR(" P"&INDEX($A:$H, SMALL(IF(("P"=D:D), MATCH(ROW($B:$B), ROW($B:$B))), ROW($A5)), COLUMN($A5)),"") -> P904 | W6: =IFERROR(" P"&INDEX($A:$H, SMALL(IF(("P"=E:E), MATCH(ROW($B:$B), ROW($B:$B))), ROW($A5)), COLUMN($A5)),"") -> P805 | X6: =IFERROR("DQ"&INDEX($A:$H, SMALL(IF(("P"=F:F), MATCH(ROW($B:$B), ROW($B:$B))), ROW($A5)), COLUMN($A5)),"") ->  | Y6: =IFERROR("DQ"&INDEX($A:$H, SMALL(IF(("P"=G:G), MATCH(ROW($B:$B), ROW($B:$B))), ROW($A5)), COLUMN($A5)),"") ->  | Z6: =IFERROR("DQ"&INDEX($A:$H, SMALL(IF(("P"=H:H), MATCH(ROW($B:$B), ROW($B:$B))), ROW($A5)), COLUMN($A5)),"") -> 
A7: 6 | B7: Abuse of officials may result in disqualification from the competition. | C7: D | D7: D | E7: D | F7: D | G7: D | H7: D | M7: =IFERROR("DQ"&INDEX($A:$H, SMALL(IF(("D"=C:C), MATCH(ROW($B:$B), ROW($B:$B))), ROW($A6)), COLUMN($A6)),"") -> DQ6 | N7: =IFERROR("DQ"&INDEX($A:$H, SMALL(IF(("D"=D:D), MATCH(ROW($B:$B), ROW($B:$B))), ROW($A5)), COLUMN($A5)),"") -> DQ5 | O7: =IFERROR("DQ"&INDEX($A:$H, SMALL(IF(("D"=E:E), MATCH(ROW($B:$B), ROW($B:$B))), ROW($A1)), COLUMN($A1)),"") -> DQ1 | P7: =IFERROR("DQ"&INDEX($A:$H, SMALL(IF(("D"=F:F), MATCH(ROW($B:$B), ROW($B:$B))), ROW($A5)), COLUMN($A5)),"") -> DQ5 | Q7: =IFERROR("DQ"&INDEX($A:$H, SMALL(IF(("D"=G:G), MATCH(ROW($B:$B), ROW($B:$B))), ROW($A5)), COLUMN($A5)),"") -> DQ5 | R7: =IFERROR("DQ"&INDEX($A:$H, SMALL(IF(("D"=H:H), MATCH(ROW($B:$B), ROW($B:$B))), ROW($A5)), COLUMN($A5)),"") -> DQ5 | U7: =IFERROR(" P"&INDEX($A:$H, SMALL(IF(("P"=C:C), MATCH(ROW($B:$B), ROW($B:$B))), ROW($A6)), COLUMN($A6)),"") ->  | V7: =IFERROR(" P"&INDEX($A:$H, SMALL(IF(("P"=D:D), MATCH(ROW($B:$B), ROW($B:$B))), ROW($A6)), COLUMN($A6)),"") -> P905 | W7: =IFERROR(" P"&INDEX($A:$H, SMALL(IF(("P"=E:E), MATCH(ROW($B:$B), ROW($B:$B))), ROW($A6)), COLUMN($A6)),"") -> P806 | X7: =IFERROR("DQ"&INDEX($A:$H, SMALL(IF(("P"=F:F), MATCH(ROW($B:$B), ROW($B:$B))), ROW($A6)), COLUMN($A6)),"") ->  | Y7: =IFERROR("DQ"&INDEX($A:$H, SMALL(IF(("P"=G:G), MATCH(ROW($B:$B), ROW($B:$B))), ROW($A6)), COLUMN($A6)),"") ->  | Z7: =IFERROR("DQ"&INDEX($A:$H, SMALL(IF(("P"=H:H), MATCH(ROW($B:$B), ROW($B:$B))), ROW($A6)), COLUMN($A6)),"") -> 
A8: 7 | B8: Using sticky, tacky or adhesive substances (liquid, solid or aerosol) on hands or feet, or on the manikin or rescue tube to improve grip or push off the bottom of the pool. | C8: D | D8: D | E8: D | F8: D | G8: D | H8: D | M8: =IFERROR("DQ"&INDEX($A:$H, SMALL(IF(("D"=C:C), MATCH(ROW($B:$B), ROW($B:$B))), ROW($A7)), COLUMN($A7)),"") -> DQ7 | N8: =IFERROR("DQ"&INDEX($A:$H, SMALL(IF(("D"=D:D), MATCH(ROW($B:$B), ROW($B:$B))), ROW($A6)), COLUMN($A6)),"") -> DQ6 | O8: =IFERROR("DQ"&INDEX($A:$H, SMALL(IF(("D"=E:E), MATCH(ROW($B:$B), ROW($B:$B))), ROW($A2)), COLUMN($A2)),"") -> DQ2 | P8: =IFERROR("DQ"&INDEX($A:$H, SMALL(IF(("D"=F:F), MATCH(ROW($B:$B), ROW($B:$B))), ROW($A6)), COLUMN($A6)),"") -> DQ6 | Q8: =IFERROR("DQ"&INDEX($A:$H, SMALL(IF(("D"=G:G), MATCH(ROW($B:$B), ROW($B:$B))), ROW($A6)), COLUMN($A6)),"") -> DQ6 | R8: =IFERROR("DQ"&INDEX($A:$H, SMALL(IF(("D"=H:H), MATCH(ROW($B:$B), ROW($B:$B))), ROW($A6)), COLUMN($A6)),"") -> DQ6 | U8: =IFERROR(" P"&INDEX($A:$H, SMALL(IF(("P"=C:C), MATCH(ROW($B:$B), ROW($B:$B))), ROW($A7)), COLUMN($A7)),"") ->  | V8: =IFERROR(" P"&INDEX($A:$H, SMALL(IF(("P"=D:D), MATCH(ROW($B:$B), ROW($B:$B))), ROW($A7)), COLUMN($A7)),"") -> P906 | W8: =IFERROR(" P"&INDEX($A:$H, SMALL(IF(("P"=E:E), MATCH(ROW($B:$B), ROW($B:$B))), ROW($A7)), COLUMN($A7)),"") -> P807 | X8: =IFERROR("DQ"&INDEX($A:$H, SMALL(IF(("P"=F:F), MATCH(ROW($B:$B), ROW($B:$B))), ROW($A7)), COLUMN($A7)),"") ->  | Y8: =IFERROR("DQ"&INDEX($A:$H, SMALL(IF(("P"=G:G), MATCH(ROW($B:$B), ROW($B:$B))), ROW($A7)), COLUMN($A7)),"") ->  | Z8: =IFERROR("DQ"&INDEX($A:$H, SMALL(IF(("P"=H:H), MATCH(ROW($B:$B), ROW($B:$B))), ROW($A7)), COLUMN($A7)),"") -> 
A9: 8 | B9: Competitors shall not take assistance from the pool bottom except where specifically allowed (e.g., 4 x 50 m Obstacle Relay, 4 x 25 m Manikin Carry Relay, 4 x 50 m Swim and 50 m Tow Relay). | D9: D | E9: D | F9: D | G9: D | H9: D | M9: =IFERROR("DQ"&INDEX($A:$H, SMALL(IF(("D"=C:C), MATCH(ROW($B:$B), ROW($B:$B))), ROW($A8)), COLUMN($A8)),"") -> DQ101 | N9: =IFERROR("DQ"&INDEX($A:$H, SMALL(IF(("D"=D:D), MATCH(ROW($B:$B), ROW($B:$B))), ROW($A7)), COLUMN($A7)),"") -> DQ7 | O9: =IFERROR("DQ"&INDEX($A:$H, SMALL(IF(("D"=E:E), MATCH(ROW($B:$B), ROW($B:$B))), ROW($A3)), COLUMN($A3)),"") -> DQ3 | P9: =IFERROR("DQ"&INDEX($A:$H, SMALL(IF(("D"=F:F), MATCH(ROW($B:$B), ROW($B:$B))), ROW($A7)), COLUMN($A7)),"") -> DQ7 | Q9: =IFERROR("DQ"&INDEX($A:$H, SMALL(IF(("D"=G:G), MATCH(ROW($B:$B), ROW($B:$B))), ROW($A7)), COLUMN($A7)),"") -> DQ7 | R9: =IFERROR("DQ"&INDEX($A:$H, SMALL(IF(("D"=H:H), MATCH(ROW($B:$B), ROW($B:$B))), ROW($A7)), COLUMN($A7)),"") -> DQ7 | U9: =IFERROR(" P"&INDEX($A:$H, SMALL(IF(("P"=C:C), MATCH(ROW($B:$B), ROW($B:$B))), ROW($A8)), COLUMN($A8)),"") ->  | V9: =IFERROR(" P"&INDEX($A:$H, SMALL(IF(("P"=D:D), MATCH(ROW($B:$B), ROW($B:$B))), ROW($A8)), COLUMN($A8)),"") -> P907 | W9: =IFERROR(" P"&INDEX($A:$H, SMALL(IF(("P"=E:E), MATCH(ROW($B:$B), ROW($B:$B))), ROW($A8)), COLUMN($A8)),"") -> P808 | X9: =IFERROR("DQ"&INDEX($A:$H, SMALL(IF(("P"=F:F), MATCH(ROW($B:$B), ROW($B:$B))), ROW($A8)), COLUMN($A8)),"") ->  | Y9: =IFERROR("DQ"&INDEX($A:$H, SMALL(IF(("P"=G:G), MATCH(ROW($B:$B), ROW($B:$B))), ROW($A8)), COLUMN($A8)),"") ->  | Z9: =IFERROR("DQ"&INDEX($A:$H, SMALL(IF(("P"=H:H), MATCH(ROW($B:$B), ROW($B:$B))), ROW($A8)), COLUMN($A8)),"") -> 
A10: 9 | B10: Leaving the water after an event before permission is given by the offcial | D10: D | E10: D | F10: D | G10: D | H10: D | M10: =IFERROR("DQ"&INDEX($A:$H, SMALL(IF(("D"=C:C), MATCH(ROW($B:$B), ROW($B:$B))), ROW($A9)), COLUMN($A9)),"") -> DQ102 | N10: =IFERROR("DQ"&INDEX($A:$H, SMALL(IF(("D"=D:D), MATCH(ROW($B:$B), ROW($B:$B))), ROW($A8)), COLUMN($A8)),"") -> DQ8 | O10: =IFERROR("DQ"&INDEX($A:$H, SMALL(IF(("D"=E:E), MATCH(ROW($B:$B), ROW($B:$B))), ROW($A4)), COLUMN($A4)),"") -> DQ4 | P10: =IFERROR("DQ"&INDEX($A:$H, SMALL(IF(("D"=F:F), MATCH(ROW($B:$B), ROW($B:$B))), ROW($A8)), COLUMN($A8)),"") -> DQ8 | Q10: =IFERROR("DQ"&INDEX($A:$H, SMALL(IF(("D"=G:G), MATCH(ROW($B:$B), ROW($B:$B))), ROW($A8)), COLUMN($A8)),"") -> DQ8 | R10: =IFERROR("DQ"&INDEX($A:$H, SMALL(IF(("D"=H:H), MATCH(ROW($B:$B), ROW($B:$B))), ROW($A8)), COLUMN($A8)),"") -> DQ8 | U10: =IFERROR(" P"&INDEX($A:$H, SMALL(IF(("P"=C:C), MATCH(ROW($B:$B), ROW($B:$B))), ROW($A9)), COLUMN($A9)),"") ->  | V10: =IFERROR(" P"&INDEX($A:$H, SMALL(IF(("P"=D:D), MATCH(ROW($B:$B), ROW($B:$B))), ROW($A9)), COLUMN($A9)),"") -> P908 | W10: =IFERROR(" P"&INDEX($A:$H, SMALL(IF(("P"=E:E), MATCH(ROW($B:$B), ROW($B:$B))), ROW($A9)), COLUMN($A9)),"") -> P809 | X10: =IFERROR("DQ"&INDEX($A:$H, SMALL(IF(("P"=F:F), MATCH(ROW($B:$B), ROW($B:$B))), ROW($A9)), COLUMN($A9)),"") ->  | Y10: =IFERROR("DQ"&INDEX($A:$H, SMALL(IF(("P"=G:G), MATCH(ROW($B:$B), ROW($B:$B))), ROW($A9)), COLUMN($A9)),"") ->  | Z10: =IFERROR("DQ"&INDEX($A:$H, SMALL(IF(("P"=H:H), MATCH(ROW($B:$B), ROW($B:$B))), ROW($A9)), COLUMN($A9)),"") -> 
A11: 10 | B11: All competitors who start (i.e., commence a starting motion) before the starting signal has been given shall be disqualified | D11: D | E11: D | F11: D | G11: D | H11: D | M11: =IFERROR("DQ"&INDEX($A:$H, SMALL(IF(("D"=C:C), MATCH(ROW($B:$B), ROW($B:$B))), ROW($A10)), COLUMN($A10)),"") -> DQ103 | N11: =IFERROR("DQ"&INDEX($A:$H, SMALL(IF(("D"=D:D), MATCH(ROW($B:$B), ROW($B:$B))), ROW($A9)), COLUMN($A9)),"") -> DQ9 | O11: =IFERROR("DQ"&INDEX($A:$H, SMALL(IF(("D"=E:E), MATCH(ROW($B:$B), ROW($B:$B))), ROW($A5)), COLUMN($A5)),"") -> DQ5 | P11: =IFERROR("DQ"&INDEX($A:$H, SMALL(IF(("D"=F:F), MATCH(ROW($B:$B), ROW($B:$B))), ROW($A9)), COLUMN($A9)),"") -> DQ9 | Q11: =IFERROR("DQ"&INDEX($A:$H, SMALL(IF(("D"=G:G), MATCH(ROW($B:$B), ROW($B:$B))), ROW($A9)), COLUMN($A9)),"") -> DQ9 | R11: =IFERROR("DQ"&INDEX($A:$H, SMALL(IF(("D"=H:H), MATCH(ROW($B:$B), ROW($B:$B))), ROW($A9)), COLUMN($A9)),"") -> DQ9 | U11: =IFERROR(" P"&INDEX($A:$H, SMALL(IF(("P"=C:C), MATCH(ROW($B:$B), ROW($B:$B))), ROW($A10)), COLUMN($A10)),"") ->  | V11: =IFERROR(" P"&INDEX($A:$H, SMALL(IF(("P"=D:D), MATCH(ROW($B:$B), ROW($B:$B))), ROW($A10)), COLUMN($A10)),"") -> P909 | W11: =IFERROR(" P"&INDEX($A:$H, SMALL(IF(("P"=E:E), MATCH(ROW($B:$B), ROW($B:$B))), ROW($A10)), COLUMN($A10)),"") -> P810 | X11: =IFERROR("DQ"&INDEX($A:$H, SMALL(IF(("P"=F:F), MATCH(ROW($B:$B), ROW($B:$B))), ROW($A10)), COLUMN($A10)),"") ->  | Y11: =IFERROR("DQ"&INDEX($A:$H, SMALL(IF(("P"=G:G), MATCH(ROW($B:$B), ROW($B:$B))), ROW($A10)), COLUMN($A10)),"") ->  | Z11: =IFERROR("DQ"&INDEX($A:$H, SMALL(IF(("P"=H:H), MATCH(ROW($B:$B), ROW($B:$B))), ROW($A10)), COLUMN($A10)),"") -> 
A12: 11 | B12: Passing over an obstacle without immediately returning over or under that obstacle and then passing under it. | H12: D | M12: =IFERROR("DQ"&INDEX($A:$H, SMALL(IF(("D"=C:C), MATCH(ROW($B:$B), ROW($B:$B))), ROW($A11)), COLUMN($A11)),"") -> DQ104 | N12: =IFERROR("DQ"&INDEX($A:$H, SMALL(IF(("D"=D:D), MATCH(ROW($B:$B), ROW($B:$B))), ROW($A10)), COLUMN($A10)),"") -> DQ10 | O12: =IFERROR("DQ"&INDEX($A:$H, SMALL(IF(("D"=E:E), MATCH(ROW($B:$B), ROW($B:$B))), ROW($A6)), COLUMN($A6)),"") -> DQ6 | P12: =IFERROR("DQ"&INDEX($A:$H, SMALL(IF(("D"=F:F), MATCH(ROW($B:$B), ROW($B:$B))), ROW($A10)), COLUMN($A10)),"") -> DQ10 | Q12: =IFERROR("DQ"&INDEX($A:$H, SMALL(IF(("D"=G:G), MATCH(ROW($B:$B), ROW($B:$B))), ROW($A10)), COLUMN($A10)),"") -> DQ10 | R12: =IFERROR("DQ"&INDEX($A:$H, SMALL(IF(("D"=H:H), MATCH(ROW($B:$B), ROW($B:$B))), ROW($A10)), COLUMN($A10)),"") -> DQ10 | U12: =IFERROR(" P"&INDEX($A:$H, SMALL(IF(("P"=C:C), MATCH(ROW($B:$B), ROW($B:$B))), ROW($A11)), COLUMN($A11)),"") ->  | V12: =IFERROR(" P"&INDEX($A:$H, SMALL(IF(("P"=D:D), MATCH(ROW($B:$B), ROW($B:$B))), ROW($A11)), COLUMN($A11)),"") -> P910 | W12: =IFERROR(" P"&INDEX($A:$H, SMALL(IF(("P"=E:E), MATCH(ROW($B:$B), ROW($B:$B))), ROW($A11)), COLUMN($A11)),"") -> P811 | X12: =IFERROR("DQ"&INDEX($A:$H, SMALL(IF(("P"=F:F), MATCH(ROW($B:$B), ROW($B:$B))), ROW($A11)), COLUMN($A11)),"") ->  | Y12: =IFERROR("DQ"&INDEX($A:$H, SMALL(IF(("P"=G:G), MATCH(ROW($B:$B), ROW($B:$B))), ROW($A11)), COLUMN($A11)),"") ->  | Z12: =IFERROR("DQ"&INDEX($A:$H, SMALL(IF(("P"=H:H), MATCH(ROW($B:$B), ROW($B:$B))), ROW($A11)), COLUMN($A11)),"") -> 
A13: 12 | B13: Failure to surface after the dive entry or after a turn. | D13: D | H13: D | M13: =IFERROR("DQ"&INDEX($A:$H, SMALL(IF(("D"=C:C), MATCH(ROW($B:$B), ROW($B:$B))), ROW($A12)), COLUMN($A12)),"") -> DQ105 | N13: =IFERROR("DQ"&INDEX($A:$H, SMALL(IF(("D"=D:D), MATCH(ROW($B:$B), ROW($B:$B))), ROW($A11)), COLUMN($A11)),"") -> DQ12 | O13: =IFERROR("DQ"&INDEX($A:$H, SMALL(IF(("D"=E:E), MATCH(ROW($B:$B), ROW($B:$B))), ROW($A7)), COLUMN($A7)),"") -> DQ7 | P13: =IFERROR("DQ"&INDEX($A:$H, SMALL(IF(("D"=F:F), MATCH(ROW($B:$B), ROW($B:$B))), ROW($A11)), COLUMN($A11)),"") -> DQ14 | Q13: =IFERROR("DQ"&INDEX($A:$H, SMALL(IF(("D"=G:G), MATCH(ROW($B:$B), ROW($B:$B))), ROW($A11)), COLUMN($A11)),"") -> DQ14 | R13: =IFERROR("DQ"&INDEX($A:$H, SMALL(IF(("D"=H:H), MATCH(ROW($B:$B), ROW($B:$B))), ROW($A11)), COLUMN($A11)),"") -> DQ11 | U13: =IFERROR(" P"&INDEX($A:$H, SMALL(IF(("P"=C:C), MATCH(ROW($B:$B), ROW($B:$B))), ROW($A12)), COLUMN($A12)),"") ->  | V13: =IFERROR(" P"&INDEX($A:$H, SMALL(IF(("P"=D:D), MATCH(ROW($B:$B), ROW($B:$B))), ROW($A12)), COLUMN($A12)),"") -> P911 | W13: =IFERROR(" P"&INDEX($A:$H, SMALL(IF(("P"=E:E), MATCH(ROW($B:$B), ROW($B:$B))), ROW($A12)), COLUMN($A12)),"") ->  | X13: =IFERROR("DQ"&INDEX($A:$H, SMALL(IF(("P"=F:F), MATCH(ROW($B:$B), ROW($B:$B))), ROW($A12)), COLUMN($A12)),"") ->  | Y13: =IFERROR("DQ"&INDEX($A:$H, SMALL(IF(("P"=G:G), MATCH(ROW($B:$B), ROW($B:$B))), ROW($A12)), COLUMN($A12)),"") ->  | Z13: =IFERROR("DQ"&INDEX($A:$H, SMALL(IF(("P"=H:H), MATCH(ROW($B:$B), ROW($B:$B))), ROW($A12)), COLUMN($A12)),"") -> 
A14: 13 | B14: Failure to surface after each obstacle. | H14: D | M14: =IFERROR("DQ"&INDEX($A:$H, SMALL(IF(("D"=C:C), MATCH(ROW($B:$B), ROW($B:$B))), ROW($A13)), COLUMN($A13)),"") -> DQ106 | N14: =IFERROR("DQ"&INDEX($A:$H, SMALL(IF(("D"=D:D), MATCH(ROW($B:$B), ROW($B:$B))), ROW($A12)), COLUMN($A12)),"") -> DQ14 | O14: =IFERROR("DQ"&INDEX($A:$H, SMALL(IF(("D"=E:E), MATCH(ROW($B:$B), ROW($B:$B))), ROW($A8)), COLUMN($A8)),"") -> DQ8 | P14: =IFERROR("DQ"&INDEX($A:$H, SMALL(IF(("D"=F:F), MATCH(ROW($B:$B), ROW($B:$B))), ROW($A12)), COLUMN($A12)),"") -> DQ15 | Q14: =IFERROR("DQ"&INDEX($A:$H, SMALL(IF(("D"=G:G), MATCH(ROW($B:$B), ROW($B:$B))), ROW($A12)), COLUMN($A12)),"") -> DQ15 | R14: =IFERROR("DQ"&INDEX($A:$H, SMALL(IF(("D"=H:H), MATCH(ROW($B:$B), ROW($B:$B))), ROW($A12)), COLUMN($A12)),"") -> DQ12 | U14: =IFERROR(" P"&INDEX($A:$H, SMALL(IF(("P"=C:C), MATCH(ROW($B:$B), ROW($B:$B))), ROW($A13)), COLUMN($A13)),"") ->  | V14: =IFERROR(" P"&INDEX($A:$H, SMALL(IF(("P"=D:D), MATCH(ROW($B:$B), ROW($B:$B))), ROW($A13)), COLUMN($A13)),"") -> P912 | W14: =IFERROR(" P"&INDEX($A:$H, SMALL(IF(("P"=E:E), MATCH(ROW($B:$B), ROW($B:$B))), ROW($A13)), COLUMN($A13)),"") ->  | X14: =IFERROR("DQ"&INDEX($A:$H, SMALL(IF(("P"=F:F), MATCH(ROW($B:$B), ROW($B:$B))), ROW($A13)), COLUMN($A13)),"") ->  | Y14: =IFERROR("DQ"&INDEX($A:$H, SMALL(IF(("P"=G:G), MATCH(ROW($B:$B), ROW($B:$B))), ROW($A13)), COLUMN($A13)),"") ->  | Z14: =IFERROR("DQ"&INDEX($A:$H, SMALL(IF(("P"=H:H), MATCH(ROW($B:$B), ROW($B:$B))), ROW($A13)), COLUMN($A13)),"") -> 
A15: 14 | B15: Failure to touch the wall during the turn. | D15: D | F15: D | G15: D | H15: D | M15: =IFERROR("DQ"&INDEX($A:$H, SMALL(IF(("D"=C:C), MATCH(ROW($B:$B), ROW($B:$B))), ROW($A14)), COLUMN($A14)),"") -> DQ301 | N15: =IFERROR("DQ"&INDEX($A:$H, SMALL(IF(("D"=D:D), MATCH(ROW($B:$B), ROW($B:$B))), ROW($A13)), COLUMN($A13)),"") -> DQ15 | O15: =IFERROR("DQ"&INDEX($A:$H, SMALL(IF(("D"=E:E), MATCH(ROW($B:$B), ROW($B:$B))), ROW($A9)), COLUMN($A9)),"") -> DQ9 | P15: =IFERROR("DQ"&INDEX($A:$H, SMALL(IF(("D"=F:F), MATCH(ROW($B:$B), ROW($B:$B))), ROW($A13)), COLUMN($A13)),"") -> DQ17 | Q15: =IFERROR("DQ"&INDEX($A:$H, SMALL(IF(("D"=G:G), MATCH(ROW($B:$B), ROW($B:$B))), ROW($A13)), COLUMN($A13)),"") -> DQ17 | R15: =IFERROR("DQ"&INDEX($A:$H, SMALL(IF(("D"=H:H), MATCH(ROW($B:$B), ROW($B:$B))), ROW($A13)), COLUMN($A13)),"") -> DQ13 | U15: =IFERROR(" P"&INDEX($A:$H, SMALL(IF(("P"=C:C), MATCH(ROW($B:$B), ROW($B:$B))), ROW($A14)), COLUMN($A14)),"") ->  | V15: =IFERROR(" P"&INDEX($A:$H, SMALL(IF(("P"=D:D), MATCH(ROW($B:$B), ROW($B:$B))), ROW($A14)), COLUMN($A14)),"") -> P913 | W15: =IFERROR(" P"&INDEX($A:$H, SMALL(IF(("P"=E:E), MATCH(ROW($B:$B), ROW($B:$B))), ROW($A14)), COLUMN($A14)),"") ->  | X15: =IFERROR("DQ"&INDEX($A:$H, SMALL(IF(("P"=F:F), MATCH(ROW($B:$B), ROW($B:$B))), ROW($A14)), COLUMN($A14)),"") ->  | Y15: =IFERROR("DQ"&INDEX($A:$H, SMALL(IF(("P"=G:G), MATCH(ROW($B:$B), ROW($B:$B))), ROW($A14)), COLUMN($A14)),"") ->  | Z15: =IFERROR("DQ"&INDEX($A:$H, SMALL(IF(("P"=H:H), MATCH(ROW($B:$B), ROW($B:$B))), ROW($A14)), COLUMN($A14)),"") -> 
A16: 15 | B16: Failure to touch the finish wall. | D16: D | E16: D | F16: D | G16: D | H16: D | M16: =IFERROR("DQ"&INDEX($A:$H, SMALL(IF(("D"=C:C), MATCH(ROW($B:$B), ROW($B:$B))), ROW($A15)), COLUMN($A15)),"") -> DQ302 | N16: =IFERROR("DQ"&INDEX($A:$H, SMALL(IF(("D"=D:D), MATCH(ROW($B:$B), ROW($B:$B))), ROW($A14)), COLUMN($A14)),"") -> DQ17 | O16: =IFERROR("DQ"&INDEX($A:$H, SMALL(IF(("D"=E:E), MATCH(ROW($B:$B), ROW($B:$B))), ROW($A10)), COLUMN($A10)),"") -> DQ10 | P16: =IFERROR("DQ"&INDEX($A:$H, SMALL(IF(("D"=F:F), MATCH(ROW($B:$B), ROW($B:$B))), ROW($A14)), COLUMN($A14)),"") -> DQ19 | Q16: =IFERROR("DQ"&INDEX($A:$H, SMALL(IF(("D"=G:G), MATCH(ROW($B:$B), ROW($B:$B))), ROW($A14)), COLUMN($A14)),"") -> DQ40 | R16: =IFERROR("DQ"&INDEX($A:$H, SMALL(IF(("D"=H:H), MATCH(ROW($B:$B), ROW($B:$B))), ROW($A14)), COLUMN($A14)),"") -> DQ14 | U16: =IFERROR(" P"&INDEX($A:$H, SMALL(IF(("P"=C:C), MATCH(ROW($B:$B), ROW($B:$B))), ROW($A15)), COLUMN($A15)),"") ->  | V16: =IFERROR(" P"&INDEX($A:$H, SMALL(IF(("P"=D:D), MATCH(ROW($B:$B), ROW($B:$B))), ROW($A15)), COLUMN($A15)),"") -> P914 | W16: =IFERROR(" P"&INDEX($A:$H, SMALL(IF(("P"=E:E), MATCH(ROW($B:$B), ROW($B:$B))), ROW($A15)), COLUMN($A15)),"") ->  | X16: =IFERROR("DQ"&INDEX($A:$H, SMALL(IF(("P"=F:F), MATCH(ROW($B:$B), ROW($B:$B))), ROW($A15)), COLUMN($A15)),"") ->  | Y16: =IFERROR("DQ"&INDEX($A:$H, SMALL(IF(("P"=G:G), MATCH(ROW($B:$B), ROW($B:$B))), ROW($A15)), COLUMN($A15)),"") ->  | Z16: =IFERROR("DQ"&INDEX($A:$H, SMALL(IF(("P"=H:H), MATCH(ROW($B:$B), ROW($B:$B))), ROW($A15)), COLUMN($A15)),"") -> 
A17: 17 | B17: Taking assistance from any pool fitting (e.g., lane rope, steps, drains or underwater hockey fittings) when surfacing with the manikin – not including the bottom of the pool. | D17: D | E17: D | F17: D | G17: D | H17: D | M17: =IFERROR("DQ"&INDEX($A:$H, SMALL(IF(("D"=C:C), MATCH(ROW($B:$B), ROW($B:$B))), ROW($A16)), COLUMN($A16)),"") -> DQ303 | N17: =IFERROR("DQ"&INDEX($A:$H, SMALL(IF(("D"=D:D), MATCH(ROW($B:$B), ROW($B:$B))), ROW($A15)), COLUMN($A15)),"") -> DQ40 | O17: =IFERROR("DQ"&INDEX($A:$H, SMALL(IF(("D"=E:E), MATCH(ROW($B:$B), ROW($B:$B))), ROW($A11)), COLUMN($A11)),"") -> DQ15 | P17: =IFERROR("DQ"&INDEX($A:$H, SMALL(IF(("D"=F:F), MATCH(ROW($B:$B), ROW($B:$B))), ROW($A15)), COLUMN($A15)),"") -> DQ20 | Q17: =IFERROR("DQ"&INDEX($A:$H, SMALL(IF(("D"=G:G), MATCH(ROW($B:$B), ROW($B:$B))), ROW($A15)), COLUMN($A15)),"") -> DQ41 | R17: =IFERROR("DQ"&INDEX($A:$H, SMALL(IF(("D"=H:H), MATCH(ROW($B:$B), ROW($B:$B))), ROW($A15)), COLUMN($A15)),"") -> DQ15 | U17: =IFERROR(" P"&INDEX($A:$H, SMALL(IF(("P"=C:C), MATCH(ROW($B:$B), ROW($B:$B))), ROW($A16)), COLUMN($A16)),"") ->  | V17: =IFERROR(" P"&INDEX($A:$H, SMALL(IF(("P"=D:D), MATCH(ROW($B:$B), ROW($B:$B))), ROW($A16)), COLUMN($A16)),"") -> P915 | W17: =IFERROR(" P"&INDEX($A:$H, SMALL(IF(("P"=E:E), MATCH(ROW($B:$B), ROW($B:$B))), ROW($A16)), COLUMN($A16)),"") ->  | X17: =IFERROR("DQ"&INDEX($A:$H, SMALL(IF(("P"=F:F), MATCH(ROW($B:$B), ROW($B:$B))), ROW($A16)), COLUMN($A16)),"") ->  | Y17: =IFERROR("DQ"&INDEX($A:$H, SMALL(IF(("P"=G:G), MATCH(ROW($B:$B), ROW($B:$B))), ROW($A16)), COLUMN($A16)),"") ->  | Z17: =IFERROR("DQ"&INDEX($A:$H, SMALL(IF(("P"=H:H), MATCH(ROW($B:$B), ROW($B:$B))), ROW($A16)), COLUMN($A16)),"") -> 
A18: 19 | B18: Using an incorrect carrying technique | F18: D | M18: =IFERROR("DQ"&INDEX($A:$H, SMALL(IF(("D"=C:C), MATCH(ROW($B:$B), ROW($B:$B))), ROW($A17)), COLUMN($A17)),"") -> DQ304 | N18: =IFERROR("DQ"&INDEX($A:$H, SMALL(IF(("D"=D:D), MATCH(ROW($B:$B), ROW($B:$B))), ROW($A16)), COLUMN($A16)),"") -> DQ41 | O18: =IFERROR("DQ"&INDEX($A:$H, SMALL(IF(("D"=E:E), MATCH(ROW($B:$B), ROW($B:$B))), ROW($A12)), COLUMN($A12)),"") -> DQ17 | P18: =IFERROR("DQ"&INDEX($A:$H, SMALL(IF(("D"=F:F), MATCH(ROW($B:$B), ROW($B:$B))), ROW($A16)), COLUMN($A16)),"") -> DQ38 | Q18: =IFERROR("DQ"&INDEX($A:$H, SMALL(IF(("D"=G:G), MATCH(ROW($B:$B), ROW($B:$B))), ROW($A16)), COLUMN($A16)),"") -> DQ44 | R18: =IFERROR("DQ"&INDEX($A:$H, SMALL(IF(("D"=H:H), MATCH(ROW($B:$B), ROW($B:$B))), ROW($A16)), COLUMN($A16)),"") -> DQ17 | U18: =IFERROR(" P"&INDEX($A:$H, SMALL(IF(("P"=C:C), MATCH(ROW($B:$B), ROW($B:$B))), ROW($A17)), COLUMN($A17)),"") ->  | V18: =IFERROR(" P"&INDEX($A:$H, SMALL(IF(("P"=D:D), MATCH(ROW($B:$B), ROW($B:$B))), ROW($A17)), COLUMN($A17)),"") ->  | W18: =IFERROR(" P"&INDEX($A:$H, SMALL(IF(("P"=E:E), MATCH(ROW($B:$B), ROW($B:$B))), ROW($A17)), COLUMN($A17)),"") ->  | X18: =IFERROR("DQ"&INDEX($A:$H, SMALL(IF(("P"=F:F), MATCH(ROW($B:$B), ROW($B:$B))), ROW($A17)), COLUMN($A17)),"") ->  | Y18: =IFERROR("DQ"&INDEX($A:$H, SMALL(IF(("P"=G:G), MATCH(ROW($B:$B), ROW($B:$B))), ROW($A17)), COLUMN($A17)),"") ->  | Z18: =IFERROR("DQ"&INDEX($A:$H, SMALL(IF(("P"=H:H), MATCH(ROW($B:$B), ROW($B:$B))), ROW($A17)), COLUMN($A17)),"") -> 
A19: 20 | B19: Carrying or towing the manikin face down | F19: D | M19: =IFERROR("DQ"&INDEX($A:$H, SMALL(IF(("D"=C:C), MATCH(ROW($B:$B), ROW($B:$B))), ROW($A18)), COLUMN($A18)),"") -> DQ305 | N19: =IFERROR("DQ"&INDEX($A:$H, SMALL(IF(("D"=D:D), MATCH(ROW($B:$B), ROW($B:$B))), ROW($A17)), COLUMN($A17)),"") -> DQ50 | O19: =IFERROR("DQ"&INDEX($A:$H, SMALL(IF(("D"=E:E), MATCH(ROW($B:$B), ROW($B:$B))), ROW($A13)), COLUMN($A13)),"") -> DQ40 | P19: =IFERROR("DQ"&INDEX($A:$H, SMALL(IF(("D"=F:F), MATCH(ROW($B:$B), ROW($B:$B))), ROW($A17)), COLUMN($A17)),"") -> DQ39 | Q19: =IFERROR("DQ"&INDEX($A:$H, SMALL(IF(("D"=G:G), MATCH(ROW($B:$B), ROW($B:$B))), ROW($A17)), COLUMN($A17)),"") -> DQ45 | R19: =IFERROR("DQ"&INDEX($A:$H, SMALL(IF(("D"=H:H), MATCH(ROW($B:$B), ROW($B:$B))), ROW($A17)), COLUMN($A17)),"") -> DQ40 | U19: =IFERROR(" P"&INDEX($A:$H, SMALL(IF(("P"=C:C), MATCH(ROW($B:$B), ROW($B:$B))), ROW($A18)), COLUMN($A18)),"") ->  | V19: =IFERROR(" P"&INDEX($A:$H, SMALL(IF(("P"=D:D), MATCH(ROW($B:$B), ROW($B:$B))), ROW($A18)), COLUMN($A18)),"") ->  | W19: =IFERROR(" P"&INDEX($A:$H, SMALL(IF(("P"=E:E), MATCH(ROW($B:$B), ROW($B:$B))), ROW($A18)), COLUMN($A18)),"") ->  | X19: =IFERROR("DQ"&INDEX($A:$H, SMALL(IF(("P"=F:F), MATCH(ROW($B:$B), ROW($B:$B))), ROW($A18)), COLUMN($A18)),"") ->  | Y19: =IFERROR("DQ"&INDEX($A:$H, SMALL(IF(("P"=G:G), MATCH(ROW($B:$B), ROW($B:$B))), ROW($A18)), COLUMN($A18)),"") ->  | Z19: =IFERROR("DQ"&INDEX($A:$H, SMALL(IF(("P"=H:H), MATCH(ROW($B:$B), ROW($B:$B))), ROW($A18)), COLUMN($A18)),"") -> 
A20: 38 | B20: Releasing the manikin before touching the turn wall or finish wall | F20: D | M20: =IFERROR("DQ"&INDEX($A:$H, SMALL(IF(("D"=C:C), MATCH(ROW($B:$B), ROW($B:$B))), ROW($A19)), COLUMN($A19)),"") -> DQ306 | N20: =IFERROR("DQ"&INDEX($A:$H, SMALL(IF(("D"=D:D), MATCH(ROW($B:$B), ROW($B:$B))), ROW($A18)), COLUMN($A18)),"") -> DQ101 | O20: =IFERROR("DQ"&INDEX($A:$H, SMALL(IF(("D"=E:E), MATCH(ROW($B:$B), ROW($B:$B))), ROW($A14)), COLUMN($A14)),"") -> DQ41 | P20: =IFERROR("DQ"&INDEX($A:$H, SMALL(IF(("D"=F:F), MATCH(ROW($B:$B), ROW($B:$B))), ROW($A18)), COLUMN($A18)),"") -> DQ40 | Q20: =IFERROR("DQ"&INDEX($A:$H, SMALL(IF(("D"=G:G), MATCH(ROW($B:$B), ROW($B:$B))), ROW($A18)), COLUMN($A18)),"") -> DQ46 | R20: =IFERROR("DQ"&INDEX($A:$H, SMALL(IF(("D"=H:H), MATCH(ROW($B:$B), ROW($B:$B))), ROW($A18)), COLUMN($A18)),"") -> DQ41 | U20: =IFERROR(" P"&INDEX($A:$H, SMALL(IF(("P"=C:C), MATCH(ROW($B:$B), ROW($B:$B))), ROW($A19)), COLUMN($A19)),"") ->  | V20: =IFERROR(" P"&INDEX($A:$H, SMALL(IF(("P"=D:D), MATCH(ROW($B:$B), ROW($B:$B))), ROW($A19)), COLUMN($A19)),"") ->  | W20: =IFERROR(" P"&INDEX($A:$H, SMALL(IF(("P"=E:E), MATCH(ROW($B:$B), ROW($B:$B))), ROW($A19)), COLUMN($A19)),"") ->  | X20: =IFERROR("DQ"&INDEX($A:$H, SMALL(IF(("P"=F:F), MATCH(ROW($B:$B), ROW($B:$B))), ROW($A19)), COLUMN($A19)),"") ->  | Y20: =IFERROR("DQ"&INDEX($A:$H, SMALL(IF(("P"=G:G), MATCH(ROW($B:$B), ROW($B:$B))), ROW($A19)), COLUMN($A19)),"") ->  | Z20: =IFERROR("DQ"&INDEX($A:$H, SMALL(IF(("P"=H:H), MATCH(ROW($B:$B), ROW($B:$B))), ROW($A19)), COLUMN($A19)),"") -> 
A21: 39 | B21: Assistance from a third competitor during the exchange between the incoming and outgoing competitors | F21: D | M21: =IFERROR("DQ"&INDEX($A:$H, SMALL(IF(("D"=C:C), MATCH(ROW($B:$B), ROW($B:$B))), ROW($A20)), COLUMN($A20)),"") ->  | N21: =IFERROR("DQ"&INDEX($A:$H, SMALL(IF(("D"=D:D), MATCH(ROW($B:$B), ROW($B:$B))), ROW($A19)), COLUMN($A19)),"") -> DQ102 | O21: =IFERROR("DQ"&INDEX($A:$H, SMALL(IF(("D"=E:E), MATCH(ROW($B:$B), ROW($B:$B))), ROW($A15)), COLUMN($A15)),"") -> DQ50 | P21: =IFERROR("DQ"&INDEX($A:$H, SMALL(IF(("D"=F:F), MATCH(ROW($B:$B), ROW($B:$B))), ROW($A19)), COLUMN($A19)),"") -> DQ41 | Q21: =IFERROR("DQ"&INDEX($A:$H, SMALL(IF(("D"=G:G), MATCH(ROW($B:$B), ROW($B:$B))), ROW($A19)), COLUMN($A19)),"") -> DQ47 | R21: =IFERROR("DQ"&INDEX($A:$H, SMALL(IF(("D"=H:H), MATCH(ROW($B:$B), ROW($B:$B))), ROW($A19)), COLUMN($A19)),"") -> DQ50 | X21: =IFERROR("DQ"&INDEX($A:$H, SMALL(IF(("P"=F:F), MATCH(ROW($B:$B), ROW($B:$B))), ROW($A20)), COLUMN($A20)),"") ->  | Y21: =IFERROR("DQ"&INDEX($A:$H, SMALL(IF(("P"=G:G), MATCH(ROW($B:$B), ROW($B:$B))), ROW($A20)), COLUMN($A20)),"") ->  | Z21: =IFERROR("DQ"&INDEX($A:$H, SMALL(IF(("P"=H:H), MATCH(ROW($B:$B), ROW($B:$B))), ROW($A20)), COLUMN($A20)),"") -> 
A22: 40 | B22: One competitor repeating two or more legs of the event. | D22: D | E22: D | F22: D | G22: D | H22: D | M22: =IFERROR("DQ"&INDEX($A:$H, SMALL(IF(("D"=C:C), MATCH(ROW($B:$B), ROW($B:$B))), ROW($A21)), COLUMN($A21)),"") ->  | N22: =IFERROR("DQ"&INDEX($A:$H, SMALL(IF(("D"=D:D), MATCH(ROW($B:$B), ROW($B:$B))), ROW($A20)), COLUMN($A20)),"") -> DQ103 | O22: =IFERROR("DQ"&INDEX($A:$H, SMALL(IF(("D"=E:E), MATCH(ROW($B:$B), ROW($B:$B))), ROW($A16)), COLUMN($A16)),"") -> DQ53 | P22: =IFERROR("DQ"&INDEX($A:$H, SMALL(IF(("D"=F:F), MATCH(ROW($B:$B), ROW($B:$B))), ROW($A20)), COLUMN($A20)),"") -> DQ42 | Q22: =IFERROR("DQ"&INDEX($A:$H, SMALL(IF(("D"=G:G), MATCH(ROW($B:$B), ROW($B:$B))), ROW($A20)), COLUMN($A20)),"") -> DQ48 | R22: =IFERROR("DQ"&INDEX($A:$H, SMALL(IF(("D"=H:H), MATCH(ROW($B:$B), ROW($B:$B))), ROW($A20)), COLUMN($A20)),"") -> DQ101 | X22: =IFERROR("DQ"&INDEX($A:$H, SMALL(IF(("P"=F:F), MATCH(ROW($B:$B), ROW($B:$B))), ROW($A21)), COLUMN($A21)),"") ->  | Y22: =IFERROR("DQ"&INDEX($A:$H, SMALL(IF(("P"=G:G), MATCH(ROW($B:$B), ROW($B:$B))), ROW($A21)), COLUMN($A21)),"") ->  | Z22: =IFERROR("DQ"&INDEX($A:$H, SMALL(IF(("P"=H:H), MATCH(ROW($B:$B), ROW($B:$B))), ROW($A21)), COLUMN($A21)),"") -> 
A23: 41 | B23: Leaving the start before the previous competitor has touched the wall | D23: D | E23: D | F23: D | G23: D | H23: D | M23: =IFERROR("DQ"&INDEX($A:$H, SMALL(IF(("D"=C:C), MATCH(ROW($B:$B), ROW($B:$B))), ROW($A22)), COLUMN($A22)),"") ->  | N23: =IFERROR("DQ"&INDEX($A:$H, SMALL(IF(("D"=D:D), MATCH(ROW($B:$B), ROW($B:$B))), ROW($A21)), COLUMN($A21)),"") -> DQ104 | O23: =IFERROR("DQ"&INDEX($A:$H, SMALL(IF(("D"=E:E), MATCH(ROW($B:$B), ROW($B:$B))), ROW($A17)), COLUMN($A17)),"") -> DQ58 | P23: =IFERROR("DQ"&INDEX($A:$H, SMALL(IF(("D"=F:F), MATCH(ROW($B:$B), ROW($B:$B))), ROW($A21)), COLUMN($A21)),"") -> DQ43 | Q23: =IFERROR("DQ"&INDEX($A:$H, SMALL(IF(("D"=G:G), MATCH(ROW($B:$B), ROW($B:$B))), ROW($A21)), COLUMN($A21)),"") -> DQ49 | R23: =IFERROR("DQ"&INDEX($A:$H, SMALL(IF(("D"=H:H), MATCH(ROW($B:$B), ROW($B:$B))), ROW($A21)), COLUMN($A21)),"") -> DQ102 | X23: =IFERROR("DQ"&INDEX($A:$H, SMALL(IF(("P"=F:F), MATCH(ROW($B:$B), ROW($B:$B))), ROW($A22)), COLUMN($A22)),"") ->  | Y23: =IFERROR("DQ"&INDEX($A:$H, SMALL(IF(("P"=G:G), MATCH(ROW($B:$B), ROW($B:$B))), ROW($A22)), COLUMN($A22)),"") ->  | Z23: =IFERROR("DQ"&INDEX($A:$H, SMALL(IF(("P"=H:H), MATCH(ROW($B:$B), ROW($B:$B))), ROW($A22)), COLUMN($A22)),"") -> 
A24: 42 | B24: The manikin changing hands: • before or beyond the designated changeover zone • before the second competitor touches the pool wall | F24: D | M24: =IFERROR("DQ"&INDEX($A:$H, SMALL(IF(("D"=C:C), MATCH(ROW($B:$B), ROW($B:$B))), ROW($A23)), COLUMN($A23)),"") ->  | N24: =IFERROR("DQ"&INDEX($A:$H, SMALL(IF(("D"=D:D), MATCH(ROW($B:$B), ROW($B:$B))), ROW($A22)), COLUMN($A22)),"") -> DQ105 | O24: =IFERROR("DQ"&INDEX($A:$H, SMALL(IF(("D"=E:E), MATCH(ROW($B:$B), ROW($B:$B))), ROW($A18)), COLUMN($A18)),"") -> DQ101 | P24: =IFERROR("DQ"&INDEX($A:$H, SMALL(IF(("D"=F:F), MATCH(ROW($B:$B), ROW($B:$B))), ROW($A22)), COLUMN($A22)),"") -> DQ50 | Q24: =IFERROR("DQ"&INDEX($A:$H, SMALL(IF(("D"=G:G), MATCH(ROW($B:$B), ROW($B:$B))), ROW($A22)), COLUMN($A22)),"") -> DQ50 | R24: =IFERROR("DQ"&INDEX($A:$H, SMALL(IF(("D"=H:H), MATCH(ROW($B:$B), ROW($B:$B))), ROW($A22)), COLUMN($A22)),"") -> DQ103 | X24: =IFERROR("DQ"&INDEX($A:$H, SMALL(IF(("P"=F:F), MATCH(ROW($B:$B), ROW($B:$B))), ROW($A23)), COLUMN($A23)),"") ->  | Y24: =IFERROR("DQ"&INDEX($A:$H, SMALL(IF(("P"=G:G), MATCH(ROW($B:$B), ROW($B:$B))), ROW($A23)), COLUMN($A23)),"") ->  | Z24: =IFERROR("DQ"&INDEX($A:$H, SMALL(IF(("P"=H:H), MATCH(ROW($B:$B), ROW($B:$B))), ROW($A23)), COLUMN($A23)),"") -> 
A25: 43 | B25: Releasing the manikin before the next competitor has grasped it (i.e. one had of each competitor must be in contact with the manikin). | F25: D | M25: =IFERROR("DQ"&INDEX($A:$H, SMALL(IF(("D"=C:C), MATCH(ROW($B:$B), ROW($B:$B))), ROW($A24)), COLUMN($A24)),"") ->  | N25: =IFERROR("DQ"&INDEX($A:$H, SMALL(IF(("D"=D:D), MATCH(ROW($B:$B), ROW($B:$B))), ROW($A23)), COLUMN($A23)),"") -> DQ106 | O25: =IFERROR("DQ"&INDEX($A:$H, SMALL(IF(("D"=E:E), MATCH(ROW($B:$B), ROW($B:$B))), ROW($A19)), COLUMN($A19)),"") -> DQ102 | P25: =IFERROR("DQ"&INDEX($A:$H, SMALL(IF(("D"=F:F), MATCH(ROW($B:$B), ROW($B:$B))), ROW($A23)), COLUMN($A23)),"") -> DQ101 | Q25: =IFERROR("DQ"&INDEX($A:$H, SMALL(IF(("D"=G:G), MATCH(ROW($B:$B), ROW($B:$B))), ROW($A23)), COLUMN($A23)),"") -> DQ101 | R25: =IFERROR("DQ"&INDEX($A:$H, SMALL(IF(("D"=H:H), MATCH(ROW($B:$B), ROW($B:$B))), ROW($A23)), COLUMN($A23)),"") -> DQ104 | X25: =IFERROR("DQ"&INDEX($A:$H, SMALL(IF(("P"=F:F), MATCH(ROW($B:$B), ROW($B:$B))), ROW($A24)), COLUMN($A24)),"") ->  | Y25: =IFERROR("DQ"&INDEX($A:$H, SMALL(IF(("P"=G:G), MATCH(ROW($B:$B), ROW($B:$B))), ROW($A24)), COLUMN($A24)),"") ->  | Z25: =IFERROR("DQ"&INDEX($A:$H, SMALL(IF(("P"=H:H), MATCH(ROW($B:$B), ROW($B:$B))), ROW($A24)), COLUMN($A24)),"") -> 
A26: 44 | B26: The fourth competitor touching the rescue tube harness line or any part of the rescue tube before the third competitor touches the turn wall | G26: D | M26: =IFERROR("DQ"&INDEX($A:$H, SMALL(IF(("D"=C:C), MATCH(ROW($B:$B), ROW($B:$B))), ROW($A25)), COLUMN($A25)),"") ->  | N26: =IFERROR("DQ"&INDEX($A:$H, SMALL(IF(("D"=D:D), MATCH(ROW($B:$B), ROW($B:$B))), ROW($A24)), COLUMN($A24)),"") -> DQ201 | O26: =IFERROR("DQ"&INDEX($A:$H, SMALL(IF(("D"=E:E), MATCH(ROW($B:$B), ROW($B:$B))), ROW($A20)), COLUMN($A20)),"") -> DQ103 | P26: =IFERROR("DQ"&INDEX($A:$H, SMALL(IF(("D"=F:F), MATCH(ROW($B:$B), ROW($B:$B))), ROW($A24)), COLUMN($A24)),"") -> DQ102 | Q26: =IFERROR("DQ"&INDEX($A:$H, SMALL(IF(("D"=G:G), MATCH(ROW($B:$B), ROW($B:$B))), ROW($A24)), COLUMN($A24)),"") -> DQ102 | R26: =IFERROR("DQ"&INDEX($A:$H, SMALL(IF(("D"=H:H), MATCH(ROW($B:$B), ROW($B:$B))), ROW($A24)), COLUMN($A24)),"") -> DQ105 | X26: =IFERROR("DQ"&INDEX($A:$H, SMALL(IF(("P"=F:F), MATCH(ROW($B:$B), ROW($B:$B))), ROW($A25)), COLUMN($A25)),"") ->  | Y26: =IFERROR("DQ"&INDEX($A:$H, SMALL(IF(("P"=G:G), MATCH(ROW($B:$B), ROW($B:$B))), ROW($A25)), COLUMN($A25)),"") ->  | Z26: =IFERROR("DQ"&INDEX($A:$H, SMALL(IF(("P"=H:H), MATCH(ROW($B:$B), ROW($B:$B))), ROW($A25)), COLUMN($A25)),"") -> 
A27: 45 | B27: The competitor clipping the rescue tube into the ring | G27: D | M27: =IFERROR("DQ"&INDEX($A:$H, SMALL(IF(("D"=C:C), MATCH(ROW($B:$B), ROW($B:$B))), ROW($A26)), COLUMN($A26)),"") ->  | N27: =IFERROR("DQ"&INDEX($A:$H, SMALL(IF(("D"=D:D), MATCH(ROW($B:$B), ROW($B:$B))), ROW($A25)), COLUMN($A25)),"") -> DQ202 | O27: =IFERROR("DQ"&INDEX($A:$H, SMALL(IF(("D"=E:E), MATCH(ROW($B:$B), ROW($B:$B))), ROW($A21)), COLUMN($A21)),"") -> DQ104 | P27: =IFERROR("DQ"&INDEX($A:$H, SMALL(IF(("D"=F:F), MATCH(ROW($B:$B), ROW($B:$B))), ROW($A25)), COLUMN($A25)),"") -> DQ103 | Q27: =IFERROR("DQ"&INDEX($A:$H, SMALL(IF(("D"=G:G), MATCH(ROW($B:$B), ROW($B:$B))), ROW($A25)), COLUMN($A25)),"") -> DQ103 | R27: =IFERROR("DQ"&INDEX($A:$H, SMALL(IF(("D"=H:H), MATCH(ROW($B:$B), ROW($B:$B))), ROW($A25)), COLUMN($A25)),"") -> DQ106 | X27: =IFERROR("DQ"&INDEX($A:$H, SMALL(IF(("P"=F:F), MATCH(ROW($B:$B), ROW($B:$B))), ROW($A26)), COLUMN($A26)),"") ->  | Y27: =IFERROR("DQ"&INDEX($A:$H, SMALL(IF(("P"=G:G), MATCH(ROW($B:$B), ROW($B:$B))), ROW($A26)), COLUMN($A26)),"") ->  | Z27: =IFERROR("DQ"&INDEX($A:$H, SMALL(IF(("P"=H:H), MATCH(ROW($B:$B), ROW($B:$B))), ROW($A26)), COLUMN($A26)),"") -> 
A28: 46 | B28: The victim holding the rescue tube by the rope or clip | G28: D | M28: =IFERROR("DQ"&INDEX($A:$H, SMALL(IF(("D"=C:C), MATCH(ROW($B:$B), ROW($B:$B))), ROW($A27)), COLUMN($A27)),"") ->  | N28: =IFERROR("DQ"&INDEX($A:$H, SMALL(IF(("D"=D:D), MATCH(ROW($B:$B), ROW($B:$B))), ROW($A26)), COLUMN($A26)),"") -> DQ203 | O28: =IFERROR("DQ"&INDEX($A:$H, SMALL(IF(("D"=E:E), MATCH(ROW($B:$B), ROW($B:$B))), ROW($A22)), COLUMN($A22)),"") -> DQ105 | P28: =IFERROR("DQ"&INDEX($A:$H, SMALL(IF(("D"=F:F), MATCH(ROW($B:$B), ROW($B:$B))), ROW($A26)), COLUMN($A26)),"") -> DQ104 | Q28: =IFERROR("DQ"&INDEX($A:$H, SMALL(IF(("D"=G:G), MATCH(ROW($B:$B), ROW($B:$B))), ROW($A26)), COLUMN($A26)),"") -> DQ104 | R28: =IFERROR("DQ"&INDEX($A:$H, SMALL(IF(("D"=H:H), MATCH(ROW($B:$B), ROW($B:$B))), ROW($A26)), COLUMN($A26)),"") -> DQ201 | X28: =IFERROR("DQ"&INDEX($A:$H, SMALL(IF(("P"=F:F), MATCH(ROW($B:$B), ROW($B:$B))), ROW($A27)), COLUMN($A27)),"") ->  | Y28: =IFERROR("DQ"&INDEX($A:$H, SMALL(IF(("P"=G:G), MATCH(ROW($B:$B), ROW($B:$B))), ROW($A27)), COLUMN($A27)),"") ->  | Z28: =IFERROR("DQ"&INDEX($A:$H, SMALL(IF(("P"=H:H), MATCH(ROW($B:$B), ROW($B:$B))), ROW($A27)), COLUMN($A27)),"") -> 
A29: 47 | B29: The victim helping with arm movements or not holding the rescue tube with both hands | G29: D | M29: =IFERROR("DQ"&INDEX($A:$H, SMALL(IF(("D"=C:C), MATCH(ROW($B:$B), ROW($B:$B))), ROW($A28)), COLUMN($A28)),"") ->  | N29: =IFERROR("DQ"&INDEX($A:$H, SMALL(IF(("D"=D:D), MATCH(ROW($B:$B), ROW($B:$B))), ROW($A27)), COLUMN($A27)),"") -> DQ205 | O29: =IFERROR("DQ"&INDEX($A:$H, SMALL(IF(("D"=E:E), MATCH(ROW($B:$B), ROW($B:$B))), ROW($A23)), COLUMN($A23)),"") -> DQ106 | P29: =IFERROR("DQ"&INDEX($A:$H, SMALL(IF(("D"=F:F), MATCH(ROW($B:$B), ROW($B:$B))), ROW($A27)), COLUMN($A27)),"") -> DQ105 | Q29: =IFERROR("DQ"&INDEX($A:$H, SMALL(IF(("D"=G:G), MATCH(ROW($B:$B), ROW($B:$B))), ROW($A27)), COLUMN($A27)),"") -> DQ105 | R29: =IFERROR("DQ"&INDEX($A:$H, SMALL(IF(("D"=H:H), MATCH(ROW($B:$B), ROW($B:$B))), ROW($A27)), COLUMN($A27)),"") -> DQ202 | X29: =IFERROR("DQ"&INDEX($A:$H, SMALL(IF(("P"=F:F), MATCH(ROW($B:$B), ROW($B:$B))), ROW($A28)), COLUMN($A28)),"") ->  | Y29: =IFERROR("DQ"&INDEX($A:$H, SMALL(IF(("P"=G:G), MATCH(ROW($B:$B), ROW($B:$B))), ROW($A28)), COLUMN($A28)),"") ->  | Z29: =IFERROR("DQ"&INDEX($A:$H, SMALL(IF(("P"=H:H), MATCH(ROW($B:$B), ROW($B:$B))), ROW($A28)), COLUMN($A28)),"") -> 
A30: 48 | B30: The victim losing the rescue tube after crossing the 5 m line | G30: D | M30: =IFERROR("DQ"&INDEX($A:$H, SMALL(IF(("D"=C:C), MATCH(ROW($B:$B), ROW($B:$B))), ROW($A29)), COLUMN($A29)),"") ->  | N30: =IFERROR("DQ"&INDEX($A:$H, SMALL(IF(("D"=D:D), MATCH(ROW($B:$B), ROW($B:$B))), ROW($A28)), COLUMN($A28)),"") -> DQ206 | O30: =IFERROR("DQ"&INDEX($A:$H, SMALL(IF(("D"=E:E), MATCH(ROW($B:$B), ROW($B:$B))), ROW($A24)), COLUMN($A24)),"") -> DQ201 | P30: =IFERROR("DQ"&INDEX($A:$H, SMALL(IF(("D"=F:F), MATCH(ROW($B:$B), ROW($B:$B))), ROW($A28)), COLUMN($A28)),"") -> DQ106 | Q30: =IFERROR("DQ"&INDEX($A:$H, SMALL(IF(("D"=G:G), MATCH(ROW($B:$B), ROW($B:$B))), ROW($A28)), COLUMN($A28)),"") -> DQ106 | R30: =IFERROR("DQ"&INDEX($A:$H, SMALL(IF(("D"=H:H), MATCH(ROW($B:$B), ROW($B:$B))), ROW($A28)), COLUMN($A28)),"") -> DQ203 | X30: =IFERROR("DQ"&INDEX($A:$H, SMALL(IF(("P"=F:F), MATCH(ROW($B:$B), ROW($B:$B))), ROW($A29)), COLUMN($A29)),"") ->  | Y30: =IFERROR("DQ"&INDEX($A:$H, SMALL(IF(("P"=G:G), MATCH(ROW($B:$B), ROW($B:$B))), ROW($A29)), COLUMN($A29)),"") ->  | Z30: =IFERROR("DQ"&INDEX($A:$H, SMALL(IF(("P"=H:H), MATCH(ROW($B:$B), ROW($B:$B))), ROW($A29)), COLUMN($A29)),"") -> 
A31: 49 | B31: The fourth competitor towing the victim without the line of the rescue tube fully extended beyond the 10 m line | G31: D | N31: =IFERROR("DQ"&INDEX($A:$H, SMALL(IF(("D"=D:D), MATCH(ROW($B:$B), ROW($B:$B))), ROW($A29)), COLUMN($A29)),"") -> DQ501 | O31: =IFERROR("DQ"&INDEX($A:$H, SMALL(IF(("D"=E:E), MATCH(ROW($B:$B), ROW($B:$B))), ROW($A25)), COLUMN($A25)),"") -> DQ202 | P31: =IFERROR("DQ"&INDEX($A:$H, SMALL(IF(("D"=F:F), MATCH(ROW($B:$B), ROW($B:$B))), ROW($A29)), COLUMN($A29)),"") -> DQ201 | Q31: =IFERROR("DQ"&INDEX($A:$H, SMALL(IF(("D"=G:G), MATCH(ROW($B:$B), ROW($B:$B))), ROW($A29)), COLUMN($A29)),"") -> DQ201 | R31: =IFERROR("DQ"&INDEX($A:$H, SMALL(IF(("D"=H:H), MATCH(ROW($B:$B), ROW($B:$B))), ROW($A29)), COLUMN($A29)),"") -> DQ205 | X31: =IFERROR("DQ"&INDEX($A:$H, SMALL(IF(("P"=F:F), MATCH(ROW($B:$B), ROW($B:$B))), ROW($A30)), COLUMN($A30)),"") ->  | Y31: =IFERROR("DQ"&INDEX($A:$H, SMALL(IF(("P"=G:G), MATCH(ROW($B:$B), ROW($B:$B))), ROW($A30)), COLUMN($A30)),"") ->  | Z31: =IFERROR("DQ"&INDEX($A:$H, SMALL(IF(("P"=H:H), MATCH(ROW($B:$B), ROW($B:$B))), ROW($A30)), COLUMN($A30)),"") -> 
A32: 50 | B32: A competitor re-entering the water after completing his or her leg of the relay | D32: D | E32: D | F32: D | G32: D | H32: D | N32: =IFERROR("DQ"&INDEX($A:$H, SMALL(IF(("D"=D:D), MATCH(ROW($B:$B), ROW($B:$B))), ROW($A30)), COLUMN($A30)),"") -> DQ502 | O32: =IFERROR("DQ"&INDEX($A:$H, SMALL(IF(("D"=E:E), MATCH(ROW($B:$B), ROW($B:$B))), ROW($A26)), COLUMN($A26)),"") -> DQ203 | P32: =IFERROR("DQ"&INDEX($A:$H, SMALL(IF(("D"=F:F), MATCH(ROW($B:$B), ROW($B:$B))), ROW($A30)), COLUMN($A30)),"") -> DQ202 | Q32: =IFERROR("DQ"&INDEX($A:$H, SMALL(IF(("D"=G:G), MATCH(ROW($B:$B), ROW($B:$B))), ROW($A30)), COLUMN($A30)),"") -> DQ202 | R32: =IFERROR("DQ"&INDEX($A:$H, SMALL(IF(("D"=H:H), MATCH(ROW($B:$B), ROW($B:$B))), ROW($A30)), COLUMN($A30)),"") -> DQ206 | X32: =IFERROR("DQ"&INDEX($A:$H, SMALL(IF(("P"=F:F), MATCH(ROW($B:$B), ROW($B:$B))), ROW($A31)), COLUMN($A31)),"") ->  | Y32: =IFERROR("DQ"&INDEX($A:$H, SMALL(IF(("P"=G:G), MATCH(ROW($B:$B), ROW($B:$B))), ROW($A31)), COLUMN($A31)),"") ->  | Z32: =IFERROR("DQ"&INDEX($A:$H, SMALL(IF(("P"=H:H), MATCH(ROW($B:$B), ROW($B:$B))), ROW($A31)), COLUMN($A31)),"") -> 
A33: 53 | B33: Final victim exiting the water before the 2minutes 30 second completion signal. | E33: D | N33: =IFERROR("DQ"&INDEX($A:$H, SMALL(IF(("D"=D:D), MATCH(ROW($B:$B), ROW($B:$B))), ROW($A31)), COLUMN($A31)),"") -> DQ503 | O33: =IFERROR("DQ"&INDEX($A:$H, SMALL(IF(("D"=E:E), MATCH(ROW($B:$B), ROW($B:$B))), ROW($A27)), COLUMN($A27)),"") -> DQ205 | P33: =IFERROR("DQ"&INDEX($A:$H, SMALL(IF(("D"=F:F), MATCH(ROW($B:$B), ROW($B:$B))), ROW($A31)), COLUMN($A31)),"") -> DQ203 | Q33: =IFERROR("DQ"&INDEX($A:$H, SMALL(IF(("D"=G:G), MATCH(ROW($B:$B), ROW($B:$B))), ROW($A31)), COLUMN($A31)),"") -> DQ203 | R33: =IFERROR("DQ"&INDEX($A:$H, SMALL(IF(("D"=H:H), MATCH(ROW($B:$B), ROW($B:$B))), ROW($A31)), COLUMN($A31)),"") ->  | X33: =IFERROR("DQ"&INDEX($A:$H, SMALL(IF(("P"=F:F), MATCH(ROW($B:$B), ROW($B:$B))), ROW($A32)), COLUMN($A32)),"") ->  | Y33: =IFERROR("DQ"&INDEX($A:$H, SMALL(IF(("P"=G:G), MATCH(ROW($B:$B), ROW($B:$B))), ROW($A32)), COLUMN($A32)),"") ->  | Z33: =IFERROR("DQ"&INDEX($A:$H, SMALL(IF(("P"=H:H), MATCH(ROW($B:$B), ROW($B:$B))), ROW($A32)), COLUMN($A32)),"") -> 
A34: 58 | B34: Executing a practice throw | E34: D | N34: =IFERROR("DQ"&INDEX($A:$H, SMALL(IF(("D"=D:D), MATCH(ROW($B:$B), ROW($B:$B))), ROW($A32)), COLUMN($A32)),"") ->  | O34: =IFERROR("DQ"&INDEX($A:$H, SMALL(IF(("D"=E:E), MATCH(ROW($B:$B), ROW($B:$B))), ROW($A28)), COLUMN($A28)),"") -> DQ206 | P34: =IFERROR("DQ"&INDEX($A:$H, SMALL(IF(("D"=F:F), MATCH(ROW($B:$B), ROW($B:$B))), ROW($A32)), COLUMN($A32)),"") -> DQ205 | Q34: =IFERROR("DQ"&INDEX($A:$H, SMALL(IF(("D"=G:G), MATCH(ROW($B:$B), ROW($B:$B))), ROW($A32)), COLUMN($A32)),"") -> DQ205 | R34: =IFERROR("DQ"&INDEX($A:$H, SMALL(IF(("D"=H:H), MATCH(ROW($B:$B), ROW($B:$B))), ROW($A32)), COLUMN($A32)),"") ->  | X34: =IFERROR("DQ"&INDEX($A:$H, SMALL(IF(("P"=F:F), MATCH(ROW($B:$B), ROW($B:$B))), ROW($A33)), COLUMN($A33)),"") ->  | Y34: =IFERROR("DQ"&INDEX($A:$H, SMALL(IF(("P"=G:G), MATCH(ROW($B:$B), ROW($B:$B))), ROW($A33)), COLUMN($A33)),"") ->  | Z34: =IFERROR("DQ"&INDEX($A:$H, SMALL(IF(("P"=H:H), MATCH(ROW($B:$B), ROW($B:$B))), ROW($A33)), COLUMN($A33)),"") -> 
A35: 101 | B35: Swimwear must conform to FINA standards | C35: D | D35: D | E35: D | F35: D | G35: D | H35: D | N35: =IFERROR("DQ"&INDEX($A:$H, SMALL(IF(("D"=D:D), MATCH(ROW($B:$B), ROW($B:$B))), ROW($A33)), COLUMN($A33)),"") ->  | O35: =IFERROR("DQ"&INDEX($A:$H, SMALL(IF(("D"=E:E), MATCH(ROW($B:$B), ROW($B:$B))), ROW($A29)), COLUMN($A29)),"") -> DQ401 | P35: =IFERROR("DQ"&INDEX($A:$H, SMALL(IF(("D"=F:F), MATCH(ROW($B:$B), ROW($B:$B))), ROW($A33)), COLUMN($A33)),"") -> DQ206 | Q35: =IFERROR("DQ"&INDEX($A:$H, SMALL(IF(("D"=G:G), MATCH(ROW($B:$B), ROW($B:$B))), ROW($A33)), COLUMN($A33)),"") -> DQ206 | R35: =IFERROR("DQ"&INDEX($A:$H, SMALL(IF(("D"=H:H), MATCH(ROW($B:$B), ROW($B:$B))), ROW($A33)), COLUMN($A33)),"") ->  | X35: =IFERROR("DQ"&INDEX($A:$H, SMALL(IF(("P"=F:F), MATCH(ROW($B:$B), ROW($B:$B))), ROW($A34)), COLUMN($A34)),"") ->  | Y35: =IFERROR("DQ"&INDEX($A:$H, SMALL(IF(("P"=G:G), MATCH(ROW($B:$B), ROW($B:$B))), ROW($A34)), COLUMN($A34)),"") ->  | Z35: =IFERROR("DQ"&INDEX($A:$H, SMALL(IF(("P"=H:H), MATCH(ROW($B:$B), ROW($B:$B))), ROW($A34)), COLUMN($A34)),"") -> 
A36: 102 | B36: All teams shall be made up of four individuals, comprising of at least one male and at least one female. | C36: D | D36: D | E36: D | F36: D | G36: D | H36: D | N36: =IFERROR("DQ"&INDEX($A:$H, SMALL(IF(("D"=D:D), MATCH(ROW($B:$B), ROW($B:$B))), ROW($A34)), COLUMN($A34)),"") ->  | O36: =IFERROR("DQ"&INDEX($A:$H, SMALL(IF(("D"=E:E), MATCH(ROW($B:$B), ROW($B:$B))), ROW($A30)), COLUMN($A30)),"") -> DQ402 | P36: =IFERROR("DQ"&INDEX($A:$H, SMALL(IF(("D"=F:F), MATCH(ROW($B:$B), ROW($B:$B))), ROW($A34)), COLUMN($A34)),"") ->  | Q36: =IFERROR("DQ"&INDEX($A:$H, SMALL(IF(("D"=G:G), MATCH(ROW($B:$B), ROW($B:$B))), ROW($A34)), COLUMN($A34)),"") -> DQ601 | R36: =IFERROR("DQ"&INDEX($A:$H, SMALL(IF(("D"=H:H), MATCH(ROW($B:$B), ROW($B:$B))), ROW($A34)), COLUMN($A34)),"") ->  | X36: =IFERROR("DQ"&INDEX($A:$H, SMALL(IF(("P"=F:F), MATCH(ROW($B:$B), ROW($B:$B))), ROW($A35)), COLUMN($A35)),"") ->  | Y36: =IFERROR("DQ"&INDEX($A:$H, SMALL(IF(("P"=G:G), MATCH(ROW($B:$B), ROW($B:$B))), ROW($A35)), COLUMN($A35)),"") ->  | Z36: =IFERROR("DQ"&INDEX($A:$H, SMALL(IF(("P"=H:H), MATCH(ROW($B:$B), ROW($B:$B))), ROW($A35)), COLUMN($A35)),"") -> 
A37: 103 | B37: Failure of a competitor to wear an appropriate swimming hat may result in disqualification | C37: D | D37: D | E37: D | F37: D | G37: D | H37: D | N37: =IFERROR("DQ"&INDEX($A:$H, SMALL(IF(("D"=D:D), MATCH(ROW($B:$B), ROW($B:$B))), ROW($A35)), COLUMN($A35)),"") ->  | O37: =IFERROR("DQ"&INDEX($A:$H, SMALL(IF(("D"=E:E), MATCH(ROW($B:$B), ROW($B:$B))), ROW($A31)), COLUMN($A31)),"") -> DQ403 | P37: =IFERROR("DQ"&INDEX($A:$H, SMALL(IF(("D"=F:F), MATCH(ROW($B:$B), ROW($B:$B))), ROW($A35)), COLUMN($A35)),"") ->  | Q37: =IFERROR("DQ"&INDEX($A:$H, SMALL(IF(("D"=G:G), MATCH(ROW($B:$B), ROW($B:$B))), ROW($A35)), COLUMN($A35)),"") ->  | R37: =IFERROR("DQ"&INDEX($A:$H, SMALL(IF(("D"=H:H), MATCH(ROW($B:$B), ROW($B:$B))), ROW($A35)), COLUMN($A35)),"") ->  | X37: =IFERROR("DQ"&INDEX($A:$H, SMALL(IF(("P"=F:F), MATCH(ROW($B:$B), ROW($B:$B))), ROW($A36)), COLUMN($A36)),"") ->  | Y37: =IFERROR("DQ"&INDEX($A:$H, SMALL(IF(("P"=G:G), MATCH(ROW($B:$B), ROW($B:$B))), ROW($A36)), COLUMN($A36)),"") ->  | Z37: =IFERROR("DQ"&INDEX($A:$H, SMALL(IF(("P"=H:H), MATCH(ROW($B:$B), ROW($B:$B))), ROW($A36)), COLUMN($A36)),"") -> 
A38: 104 | B38: Failure of a competitor to remove jewellery that may pose a risk to any competitors, spectators, actors, or officials | C38: D | D38: D | E38: D | F38: D | G38: D | H38: D | N38: =IFERROR("DQ"&INDEX($A:$H, SMALL(IF(("D"=D:D), MATCH(ROW($B:$B), ROW($B:$B))), ROW($A36)), COLUMN($A36)),"") ->  | O38: =IFERROR("DQ"&INDEX($A:$H, SMALL(IF(("D"=E:E), MATCH(ROW($B:$B), ROW($B:$B))), ROW($A32)), COLUMN($A32)),"") ->  | P38: =IFERROR("DQ"&INDEX($A:$H, SMALL(IF(("D"=F:F), MATCH(ROW($B:$B), ROW($B:$B))), ROW($A36)), COLUMN($A36)),"") ->  | Q38: =IFERROR("DQ"&INDEX($A:$H, SMALL(IF(("D"=G:G), MATCH(ROW($B:$B), ROW($B:$B))), ROW($A36)), COLUMN($A36)),"") ->  | R38: =IFERROR("DQ"&INDEX($A:$H, SMALL(IF(("D"=H:H), MATCH(ROW($B:$B), ROW($B:$B))), ROW($A36)), COLUMN($A36)),"") ->  | X38: =IFERROR("DQ"&INDEX($A:$H, SMALL(IF(("P"=F:F), MATCH(ROW($B:$B), ROW($B:$B))), ROW($A37)), COLUMN($A37)),"") ->  | Y38: =IFERROR("DQ"&INDEX($A:$H, SMALL(IF(("P"=G:G), MATCH(ROW($B:$B), ROW($B:$B))), ROW($A37)), COLUMN($A37)),"") ->  | Z38: =IFERROR("DQ"&INDEX($A:$H, SMALL(IF(("P"=H:H), MATCH(ROW($B:$B), ROW($B:$B))), ROW($A37)), COLUMN($A37)),"") -> 
A39: 105 | B39: Failing to follow the instruction of a Marshall or Official may result in disqualification | C39: D | D39: D | E39: D | F39: D | G39: D | H39: D | N39: =IFERROR("DQ"&INDEX($A:$H, SMALL(IF(("D"=D:D), MATCH(ROW($B:$B), ROW($B:$B))), ROW($A37)), COLUMN($A37)),"") ->  | O39: =IFERROR("DQ"&INDEX($A:$H, SMALL(IF(("D"=E:E), MATCH(ROW($B:$B), ROW($B:$B))), ROW($A33)), COLUMN($A33)),"") ->  | P39: =IFERROR("DQ"&INDEX($A:$H, SMALL(IF(("D"=F:F), MATCH(ROW($B:$B), ROW($B:$B))), ROW($A37)), COLUMN($A37)),"") ->  | Q39: =IFERROR("DQ"&INDEX($A:$H, SMALL(IF(("D"=G:G), MATCH(ROW($B:$B), ROW($B:$B))), ROW($A37)), COLUMN($A37)),"") ->  | R39: =IFERROR("DQ"&INDEX($A:$H, SMALL(IF(("D"=H:H), MATCH(ROW($B:$B), ROW($B:$B))), ROW($A37)), COLUMN($A37)),"") ->  | X39: =IFERROR("DQ"&INDEX($A:$H, SMALL(IF(("P"=F:F), MATCH(ROW($B:$B), ROW($B:$B))), ROW($A38)), COLUMN($A38)),"") ->  | Y39: =IFERROR("DQ"&INDEX($A:$H, SMALL(IF(("P"=G:G), MATCH(ROW($B:$B), ROW($B:$B))), ROW($A38)), COLUMN($A38)),"") ->  | Z39: =IFERROR("DQ"&INDEX($A:$H, SMALL(IF(("P"=H:H), MATCH(ROW($B:$B), ROW($B:$B))), ROW($A38)), COLUMN($A38)),"") -> 
A40: 106 | B40: Delaying the start, for wilfully disobeying an instruction, or for any other misconduct taking place at the start. | C40: D | D40: D | E40: D | F40: D | G40: D | H40: D | N40: =IFERROR("DQ"&INDEX($A:$H, SMALL(IF(("D"=D:D), MATCH(ROW($B:$B), ROW($B:$B))), ROW($A38)), COLUMN($A38)),"") ->  | O40: =IFERROR("DQ"&INDEX($A:$H, SMALL(IF(("D"=E:E), MATCH(ROW($B:$B), ROW($B:$B))), ROW($A34)), COLUMN($A34)),"") ->  | P40: =IFERROR("DQ"&INDEX($A:$H, SMALL(IF(("D"=F:F), MATCH(ROW($B:$B), ROW($B:$B))), ROW($A38)), COLUMN($A38)),"") ->  | Q40: =IFERROR("DQ"&INDEX($A:$H, SMALL(IF(("D"=G:G), MATCH(ROW($B:$B), ROW($B:$B))), ROW($A38)), COLUMN($A38)),"") ->  | R40: =IFERROR("DQ"&INDEX($A:$H, SMALL(IF(("D"=H:H), MATCH(ROW($B:$B), ROW($B:$B))), ROW($A38)), COLUMN($A38)),"") ->  | X40: =IFERROR("DQ"&INDEX($A:$H, SMALL(IF(("P"=F:F), MATCH(ROW($B:$B), ROW($B:$B))), ROW($A39)), COLUMN($A39)),"") ->  | Y40: =IFERROR("DQ"&INDEX($A:$H, SMALL(IF(("P"=G:G), MATCH(ROW($B:$B), ROW($B:$B))), ROW($A39)), COLUMN($A39)),"") ->  | Z40: =IFERROR("DQ"&INDEX($A:$H, SMALL(IF(("P"=H:H), MATCH(ROW($B:$B), ROW($B:$B))), ROW($A39)), COLUMN($A39)),"") -> 
A41: 201 | B41: Not finishing or completing the event in the same lane in which he or she started. | D41: D | E41: D | F41: D | G41: D | H41: D
A42: 202 | B42: Obstructing another Team or Competitor. | D42: D | E42: D | F42: D | G42: D | H42: D
A43: 203 | B43: Entering the water during a heat for which they are not entered. | D43: D | E43: D | F43: D | G43: D | H43: D
A44: 205 | B44: Pace-making, providing feedback on positions of other teams, attempting to influence or coach an athlete during the race. | D44: D | E44: D | F44: D | G44: D | H44: D
A45: 206 | B45: Relay Team is not the same Competitors who took part in the SERC. | D45: D | E45: D | F45: D | G45: D | H45: D
A46: 301 | B46: Performing cardiopulmonary resuscitation, abdominal thrusts, back blows and/or expired air ventilation on a human actor. | C46: D
A47: 302 | B47: Corrective goggles or masks are not permitted in either SERC | C47: D
A48: 303 | B48: Receiving outside assistance, direction, or advice. | C48: D
A49: 304 | B49: Taking any telecommunication device into the security area. (applies to all teams from each club).) | C49: D
A50: 305 | B50: Using any equipment not provided as part of the competition. | C50: D
A51: 306 | B51: Competitors who verbally or physically abuse a victim. | C51: D
A52: 401 | B52: Wilful and deliberate pulling on a Semi-rigid or non-rigid cross line. | E52: D
A53: 402 | B53: Deliberately interfering with another teams rope. | E53: D
A54: 403 | B54: Casualty swimming to reach the throw line or to reach the finishing edge. | E54: D
A55: 501 | B55: More than five penalties from the 900 Series codes in a single event, excluding DQ 900. | D55: D
A56: 502 | B56: Tumble turn preformed whilst towing the casualty. | D56: D
A57: 503 | B57: Rescuer pulling casualty towards the wall in a dangerous manner. | D57: D
A58: 601 | B58: The fourth competitor tumble turn at the turning edge whilst towing the victim. | G58: D
A59: 701 | B59: Communication from “dead” team members and the team may result in a penalty to be decided by the Head SERC Official. | C59: P
A60: 702 | B60: Entering/Excitting through an ‘out of bounds’ section | C60: P
A61: 801 | B61: Victims releasing the crossline before grasping the throw line with the other hand. | E61: P
A62: 802 | B62: Victim grasping the throw line outside the lane. | E62: P
A63: 803 | B63: Victim not on his or her front while being pulled to the finish edge. | E63: P
A64: 804 | B64: Victim not holding the throw line with both hands while being pulled to the finish edge (victim may release the line with one hand for the sole purpose of touching the wall). | E64: P
A65: 805 | B65: Victim kicking legs whilst being pulled in. | E65: P
A66: 806 | B66: Victims head not being clear of the water during pull in. | E66: P
A67: 807 | B67: Victim “climbing” the throw line hand-over-hand. | E67: P
A68: 808 | B68: Thrower exiting the throw zone (as judged by both feet) at any time after the start and before the completion of their throw and rescue. | E68: P
A69: 809 | B69: Pulling on a semi-rigid or non-rigid cross line. | E69: P
A70: 810 | B70: Entering the water and not re-coiling and re-throwing the rope prior to completing the rescue. | E70: P
A71: 811 | B71: Casualty not in contact with the crossline, and throw line at the start. | E71: P
A72: 900 | B72: Time was more than 10% outside the submitted time, for every additional 15 seconds past the 10% results in a further peanlty | D72: P
A73: 901 | B73: Walking or pushing off the bottom after standing on the bottom. | D73: P
A74: 902 | B74: Not surfacing before 15 m off the start or turn. | D74: P
A75: 903 | B75: Failure of casualty to have elbows or shoulders below the water upon pickup. | D75: P
A76: 904 | B76: Failure of casualty to be holding the wall on pickup. | D76: P
A77: 905 | B77: Failure of casualty to be vertical in the water on pickup. | D77: P
A78: 906 | B78: Tumble turn preformed either on pick up or transition between competitors. | D78: P
A79: 907 | B79: Casualty not being towed head first through the water. | D79: P
A80: 908 | B80: Casualty not being towed by the chin. | D80: P
A81: 909 | B81: Towing technique contained overarm recovery. | D81: P
A82: 910 | B82: During the tow either Casualty or Rescuer rotated more than 90 degrees from the horizontal plane of the surface. | D82: P
A83: 911 | B83: Casualty’s face was not clear of the water. | D83: P
A84: 912 | B84: Casualty was being pushed rather than towed, i.e. the casualty head has passed that of the competitors. | D84: P
A85: 913 | B85: Casualty provided assistance to the rescuer other than those exceptions listed in the rules. | D85: P
A86: 914 | B86: Casualty raised arm outside of the last five metres of the tow, as judged by the casualty head | D86: P
A87: 915 | B87: Rescuer not immediately releasing the casualty upon touching the finish edge at the end of their 50 m tow. | D87: P

Sheet Instructions
C3: British Universities Competition Scoresheet Instructions
C5: When opening this spreadsheet ensure you select the 'ENABLE MACRO'S' option.
C7: General
C8: Enter data in white cells only. All coloured cells (yellow or green) are updated automatically.
C9: During a competition remember to save this file regularly to both your hard disk and a floppy disk/USB pen.
C10: Never Copy and Paste on any sheets.
C12: Set Up Sheet
C13: Enter the Club Name,Team Letter, website number, Swim Tow Time and the class of the teams in this sheet. These are automatically copied from here onto every other sheet.
C14: In all of the sheets, any scores or times that are entered in cells that do not the above are ignored.
C15: Enter the weighting for each of the events at the side of the sheet. These are copied to the relevent palces automatically.
C17: Incident Sheets
C18: Allocate the number of Judges to a incident use the controls at the top of the page. The + and - buttons will hide and show these controls
C19: For each judge, enter a description of what they are marking, their mark categories and the associated weightings in the white boxes provided.
C20: Enter each of the judges scores into this sheet.
C21: A blank cell is treated as a zero. However, for a team to be given a score and a position, one of the judges score cells must contain a number, even if it is a zero.
C22: The judges scores are added up automatically to give the total score.
C24: RopeThrow Sheet
C25: Assuming a team has finished, the seconds and the 1/100 second cells under the stopwatch time must be filled in. The minutes cell is optional.
C26: If a team did not finish or were disqualified, leave the stopwatch time empty.
C27: Next select the finish status from the pull down list:
C28: Finished - All persons successfully pulled in
C29: DNF3 Persons In - Did not finish in time, 3 persons pulled in
C30: DNF2 Persons In - Did not finish in time, 2 persons pulled in
C31: DNF1 Persons In - Did not finish in time, 1 person pulled in
C32: DNF0 Persons In - Did not finish in time, no one pulled in
C33: Disqualified - The team was completely disqualified and will be placed last in this event.
C34: Finally enter the number of penalties the team received in the penalties cell. A blank cell is treated as zero.
C35: Each penalty will result in the team being penalised by discounting one of the “casualties” successfully pulled in.
C36: Penalties are not taken into consideration for teams who were disqualified.
C37: If a team fails to finish within the allotted time, they will be ranked according to the median position of all teams that had successfully pulled in the same number of competitors, after the application of any penalties.
C38: The positions are calculated automatically when opening the sheet i.e. clicking on the tab at the bottom or by entering the Places or Results Sheets
C40: Swim & Tow, Meldey,Manikin Carry and Obstacle Sheets
C41: Enter the penalty size and The Swim and Tow margin Allowed into the top of the sheet.
C42: Agree with the judges the number of seconds per penalty and insert this into the penalty time cell at the top of the sheet.
C43: The seconds and the 1/100 second cells under the stopwatch time must be filled in. The minutes cell is optional.
C44: Select the finish status from the pull down list. This must be filled in.
C45: Finally enter the number of penalties the team received in the penalties cell. A blank cell is treated as zero.
C46: The number of penalties is multiplied by the penalty time and added onto the stopwatch time to give the total time.
C47: Penalties are not taken into consideration for teams who were disqualified.
C48: The Lifesaving point score is a comparision agiast the student record, of how close you are too it. If you were equal to the student record you would score 1000 points. (Still beingTrailed may produce incorrect Numbers)
C50: Competition Results and League Results Sheets
C51: Competition Results = The results are based on all classes of team i.e. Student, Fresher and Old Boys.
C52: League Results = This sheet is only for Calculations
C54: Enter the weighting for each of the events at the top of the sheet. The weightings must be decided before the start of the competition and declared to all competing teams.
C55: All other information is automatically copied from the other sheets. Therefore it is imperative to ensure all the other sheets are up to date.
C56: The final positions are calculated automatically when opening the sheet i.e. clicking on the tab at the bottom.
C57: If teams have an equal sum of total positions, then the wet incident score is taken into account to determine the final results.
C59: Places Sheet
C60: This sheet automatically sorts the teams into final place order from the information contained in the results sheet.
C63: Competition Places = Students, Freshers and Old Boys and Non-Counting Teams
C64: A League Places = A Team that are also Students or Freshers
C65: B League Places = Non-A Team that are also Students or Freshers
C66: Freshers Places = Freshers Only
C68: RLSS Sport League Sheet
C70: Used to produce XML output for RLSS Sport League. It is not required for scoring.
C72: IF you wish to output these results in a formatt for Sports League. Please contact web@bulsca.co.uk for some guidance.

Sheet Version History
C3: Version History
C5: Version 6
C6: Date: January 2006
C7: Status: First released to British Universities Lifesaving Association to be downloadable from the website.
C8: Written By: Simon Harrison
C10: Version 7
C11: Date: 25th February 2006
C12: Change Requested By: Steven Tedds (Birmingham)
C13: Problem / Change Request: Stu Richardson has come across something with regard to the competition scoresheet. Apparently at the moment it places any team that has been disqualified into last place. So, if there is only one team has been disqualified then this is fine. However, if more than one team is disqualified they are all awarded last place - for example at Nottingham, 3 teams were disqualified for one of the events and were all awarded 27th place - but these 3 should all have been given joint 25th (rather than having no team come 25th or 26th and then 3 teams with 27th) - does this makes sense?
C14: Status: This problem has been fixed in Version 7.
C15: Ammended By: Simon Harrison
C17: Version 8
C18: Date: 27th February 2006
C19: Change Requested By: Steven Tedds (Birmingham)
C20: Problem / Change Request: There is a problem with the swim event scoresheets and the rope throw scoresheet. The problem is concerning the allocation of DQ places and DNF places. If there is more than one team occupying a place just before the DNF/DQ places, then the DNF/DQ places are allocated wrong. For example, if the final three teams that finished an event have the same time (after allocation of any penalties) and occupied joint 10th place, then one would expect the next DQ/DNF team(s) to be in 13th place. However, the scoresheet is placing the next DQ/DNF team in 11th place, which is incorrect.
C21: Status: This problem has been fixed in Version 8.
C22: Ammended By: Simon Harrison
C24: Version 9
C25: Date: 12th October 2008
C26: Change Requested By: Dom Roberton (Southampton) and Oliver Coleman (Birmingham)
C27: Changes: The "Teams" worksheet has been updated to allow users to enter a website number (for the database) and a team class i.e. student, fresher or old boys. These are copied onto every other sheet automatically. The incident sheets have been completely overhauled to allow more information to be entered from the judges sheet. The method in which the places for the incidents are calculated has been simplified. Macros are no longer used on these sheets and instead built in excel functions are used. Swim&Tow, SpeedEvent1 and SpeedEvent2 sheets have been updated to make the place calculation more simple. Macros are no longer used. Provision for old boys and freshers teams has been included. Several new results and places spreadsheets have been created for this purpose.
C28: Ammended By: Simon Harrison
C30: Version 9.1
C31: Date: 2nd February 2009
C32: Change Requested By: Laura Thompson (Birmingham)
C33: Changes: To allow for 3 speed to be run in the same competition. The sorting and place calculation method calls were altered to accommodate this.
C34: Amended By: Oliver Coleman
C36: Version 9.2
C37: Date: 2nd February 2009
C38: Change Requested By: Oliver Coleman (Birmingham, Web Officer 2008/2009)
C39: Changes: Provision for Non-Student and Non-Counting Student Teams has now been allowed for, Changed from anusing if's to using vlookup instead
C40: Amended By: Oliver Coleman
C42: Version 9.3
C43: Date: 1st April 2009
C44: Change Requested By: Helen Killingley (Championships Co-Ordinator 2008/2009)
C45: Changes: To amend the dry weighting calculation as it was linked ot the wet weighting not the dry. Discovered at the 2009 BULSCA championships.
C46: Amended By: Oliver Coleman
C48: Version 10.0
C49: Date: 3rd May 2009
C50: Change Requested By: BULSCA General Committee
C51: Changes: Change Scoring to reflect the new League Scoring System as of the 2009/2010 Season. Also to incorporate the Swim and tow time Penalties for out side of the percentage errors
C52: Amended By: Oliver Coleman
C54: Change Requested By: Oliver Coleman (Birmingham, Web Officer 2009/2010)
C55: Changes: Have a Set up sheet with the details of weightings for different Event included on it
C56: Amended By: Oliver Coleman
C58: Change Requested By: Oliver Coleman (Birmingham, Web Officer 2009/2010)
C59: Changes: Remove the need to click sheet to run nessessary macros all now built in
C60: Amended By: Oliver Coleman
C61: Change Requested By: Oliver Coleman (Birmingham, Web Officer 2009/2010)
C62: Changes: Prevent Accidental Deletion by Locking sheet as they are Opened
C63: Amended By: Oliver Coleman
C65: Version 10.1
C66: Date: 20th October 2010
C67: Change Requested By: Oliver Coleman Web Offcier 2010/11
C68: Changes: changed the protection settign in the macros to allow for comments to be added into the SERC, allowing for Judges amendment or comment to be added to the scores
C69: Amended By: Oliver Coleman
C71: Version 10.2
C72: Date: 26th October 2010
C73: Change Requested By: Natalie Moore(Southampton)
C74: Changes: Prior to the fresher comp it was asked, why 'A' that were freshers teams did not count towards the top finishing Freshers team. It was agreed they should be counted. This change is to reflect that change. Extra sheet and columns now added to allow for this. Removed Freshers from League sheet,. Changed instruction on Places sheet
C75: Amended By: Oliver Coleman
C76: Version 11
C77: Date: 20th July 2011
C78: Change Requested By:Oli Coleman(Birmingham, Web Officer)
C79: Changes: Previously team had to unlock the dry and wet incidents to hide columns to make filling out the spreadsheets easier. Put in system to eliminate this. The hidding of colums is now also more important due to the change meantioned below
C80: Change Requested By:Stu Richardson(BULSCA Judges Panel)
C81: Changes: It was shown over the previous 2 season that 10 judging criteria per judge was not enough, particularly on a phone judge. Therefore the standard amount was increased. Was Max 6 Judges and Now Max is 10 Was Max 10 Marking Criteria per Judge and Max 25 Marking Criteria per Judge
C83: Change Requested By:Dom Roberton(Southampton)
C84: Changes: The screen flashes between sheets when calculating different results. This has been resolved by this version
C85: Amended By: Oliver Coleman
C87: Version 11.1
C88: Date: 22nd Feb 2012
C89: Change Requested By:Oli Coleman(Birmingham, Web Officer).
C90: Changes: Spotted in Birmingham Results 2012.Swim and tow penalty gave calculated the outside entry time peanaty allowing team an extra amount of time (15 seconds currently) before the peanalty was activated.. This has been corrected.
C92: Amended By: Oliver Coleman
C94: Version 11.2
C95: Date: 03rd March 2012
C96: Change Requested By: Plymouth Club
C97: Changes: A button to check that macros have been enabled
C99: Amended By: Oliver Coleman
C101: Version 12
C102: Date: 4 April 2012
C103: Change Requested By: Liz Ferris (Scorer BULSCA Champs)
C104: Changes: Highlight placing in each event. To be able to highlight any one clubs results. In addtion to being able to filter results.
C106: Amended By: Oliver Coleman
C107: Version 12.1
C108: Date: 25th October 2012
C109: Change Requested By: Becca Park(University of Brimingham)
C110: Changes: Swim tow result produce and erro if first 3 lines were used. A formula had been lsot. This has been fixed and amended.
C112: Amended By: Oliver Coleman
C113: Version 12.2
C114: Date: 2nd January 2013
C115: Change Requested By: Amy and Teddy(University of St. Andrews)
C116: Changes: 3 SERC were beign run. This has been doen before and was felt an addtional sheet on the spreadsheet to deal this eventuality was required.,
C118: Change Requested By: Oli Coleman (Web Officer)
C119: Changes: Freshers weigting is tied to league weighting has been split out, to give flexibility
C120: Amended By: Oliver Coleman
C121: Version 12.3
C122: Date: 10th Feb 2013
C123: Change Requested By: BULSCA Meeting
C124: Changes: Allow results to be exported to an XML formatt for the RLSS sports league
C126: Change Requested By: Oli Coleman (Web Officer) and Steve Tedds(Judges Panel)
C127: Changes: Clubs given a reletive score out of 1000 as to how close they were to the Student records for each of the events. (Still beign Trailed may produced incorrect numbers)
C128: Amended By: Oliver Coleman
C129: Version 13
C130: Date: 20th Feb 2013
C131: Change Requested By: BULSCA Meeting
C132: Changes: Non-Student onlly ranking to be produced in results to be calculated for the student Championships
C134: Amended By: Oliver Coleman
C136: Version 13.1
C137: Date: 10th March 2013
C138: Change Requested By: Sam O' Connor
C139: Changes: Show the League Placing on the Competition Result page to save having to wait for the release of results
C141: Amended By: Oliver Coleman
C143: Version 13.2
C144: Date: 20th May 2013
C145: Change Requested By: Oliver Coleman ( Web Offcier)
C146: Changes: in second and hundereths cells leading zeros are shown so .09 is 09 and not 9 as currently displayed. This is mainly asthetic but will enable the sheet to be easier to read
C148: Amended By: Oliver Coleman
C150: Version 13.3
C151: Date: 1st June 2013
C152: Change Requested By: Liz Ferris( Scorer BULSCA Champs)
C153: Changes: Noticed she could now highlioght club but wanted a facility to print the Competition places sheet 1 per club with the club highlighted without needing to selct these manually
C154: Change Requested By: Oliver Coleman (Web Offcier)
C155: Changes: Removed the need for macro's in the caculation of rope throw. This now means all the indervidal events results are calculated through excel function making it more accessible on machinces with higher security settings.
C157: Amended By: Oliver Coleman
C159: Version 14
C160: Date: 1st August 2013
C161: Change Requested By: Oliver Coleman (Web Officer 2007-2014)
C162: Changes: SERC now given a comparitive point total were first is awarded 1500 , so will be changeble at each comeptition. and rope throw point put into stages. These changes are the first steps toward potensialy using comapritive based scoring. SERC collums being kept hidden currently for clarity.
C164: Changed the way Rope Throw results point are caculated to included 0,1,2,3 in. The algrotitum takes the 750 to 1000 portion as beign 4 in and split the remaining 750up evenly across the 1,2,3 in depending on how many in each section. This should give a representation that can be sued in a whole competittion scoring approach
C166: Overall calculated by having fixed ceiling and then sumed together
C167: Amended By: Oliver Coleman (Web Officer 2007-2014)
C169: Version 14.1
C170: Date: 25th September
C171: Change Requested By: Oliver Coleman (Web Officer 2007-2014)
C172: Changes: Sheet set up for new scorign method. Using a comparative sytem by scalling point totals back to 500 for the scores.
C173: Tweaks to the Rope through points Calculation to make its inpact on the overall result more in line with the rest. By adding and diving in various manners
C175: Amended By: Oliver Coleman (Web Officer 2007-2014)
C177: Version 14.2
C178: Date: 3rd October2013
C179: Change Requested By: Oli Coleman,Alex Blanford and Matt Sedgewick
C180: Changes: During development was unsure on the ceiling applied during rope through.
C181: Rope Throw adjsuted to allow for the wide spread of abilty expected, Split intop small unit and then the mid-point of each group of competitiors taken
C182: On competition resutls the bottom score will always be An amount ste on the set up sheet to allow those DQ to score 0.
C183: This scaling ensure consitence of importnace of each event better, it also allow for a final total, normally 7000 to be chased as the perfect score
C184: Amended By: Oliver Coleman (Web Officer 2007-2014)
C185: Version 14.3
C186: Date: 4th October2013
C187: Change Requested By: Oli Coleman
C188: Changes: During testing ti was discovered, on gettign 4 in a time of close to 2 min 30 which is the liit would cause teams to score more points for slower times. This ahs been corrected in this version.
C192: Amended By: Oliver Coleman (Web Officer 2007-2014)
C193: Version 14.4
C194: Date: 4th October2013
C195: Change Requested By: Oli Coleman
C196: Changes: Comparitive scalling added to the League Process. Only Rope needs re-calculating bt all need rescalling accordingly
C200: Amended By: Oliver Coleman (Web Officer 2007-2014)
C201: Version 15
C202: Date: 31st October
C203: Change Requested By: Adam martin (Warwick Traing officer)
C204: Changes: It is a lot of work to make comaprisons bewteen SERC havign to apply all own formatting. Can the be centralised at all.
C206: 1) Will comapre agaist 6 different types of data set. Q1,Q2, Q3 or mean and standard deviates for Whole, A leage or B League.
C207: Filtering can the be applied by club, just for the judges marks, selected collums, top 5 finishers, Just A League, Just B League
C208: Change Requested By: Sam (Birmingham Training Officer)
C209: Changes: Extra Metric to concider just how the top preformign B teams have done as a data set to comapre too
C211: 1) Will comapre agaist 6 different types of data set. Q1,Q2, Q3 or mean and standard deviates for Whole, A leage or B League.
C212: 1) add the data set for just the top finishing B teams
C216: Amended By: Oliver Coleman (Web Officer 2007-2014)
C217: Version 15.1
C218: Date: 9th Feb 2014
C219: Change Requested By: Alex Blanford (London Scorer)
C220: Changes: Iwitht he new analysis it was runnign very slowly. On investigation this was because the condisional formattign was replicated multiple times over. This has been removed. Birmingham warned that colour codding may not work correctly but will be corrected for results to be sent of. Result calculation is un-effected.
C223: Amended By: Oliver Coleman (Web Officer 2007-2014)
C224: Version 16
C225: Date: Sept 2014
C226: Change Requested By: BULSCA GM
C227: Changes: All Places sheets chnaged to refer to the new scorign emthods, wrote sheet for Non-student and Fresher for new scoring
C230: Amended By: Oliver Coleman (Web Officer 2007-2015)
C231: Version 16.1
C232: Date: Oct 2014
C233: Change Requested By: Chris harper (London)
C234: Changes: The Fresher rules allow for a fresher team to be non-league counting but still a freasher team, coddign of Teams and results altered to allow for this.
C237: Amended By: Oliver Coleman (Web Officer 2007-2015)
C238: Version 16.2
C239: Date: Nov 2014
C240: Change Requested By: Britol
C241: Changes: a Team scored negative as were more than double the student record. This has been corrected to be capped at 0
C244: Amended By: Oliver Coleman (Web Officer 2007-2015)
C245: Version 16.3
C246: Date: Nov 2014
C247: Change Requested By: Britol
C248: Changes: Hide code password protect sheets and workbook due to unforseen modifcations at London 2014 casuign an error in results
C251: Amended By: Oliver Coleman (Web Officer 2007-2015)
C252: Version 16.4
C253: Date: Nov 2015
C254: Change Requested By: Katie W (Birmingham)
C255: Changes:Sheet only allows for 40 Teams, 42 required for her competittion max extended to 48 so 8 heats of 6 or 6 heats of 8
C258: Amended By: Oliver Coleman (Web Officer 2007-2015)(Judges Panel 2015-2016)
C259: Version 17
C260: Date: Sept 2016
... 3 more rows

Sheet Set UP
C3: Teams | Q3: Scoring
C5: Website Number | D5: Club | E5: Team | F5: Class (F, S, OB,NS,NC) | G5: Swim and Tow | I5: Time in Seconds | L5: Class | N5: must be in aphabetically order | Q5: Event | R5: League Weighting | S5: Compettion Weighting | T5: Freshers Weighting | U5: Non-Student Weighting | W5: Current Record Short (31/10/15)
G6: mins | H6: secs | L6: FC=Freshers counting | Q6: Wet Incident | R6: 2 | S6: 2 | T6: 2 | U6: 2
B7: 1 | C7: 2392 | D7: University of Southampton | E7: C | F7: S | G7: 8 | H7: 59 | I7: =G7*60+H7 -> 539 | K7: =IF(OR(F7=0,E7=0,D7=0,C7=0),-1,VLOOKUP(F7,N$7:O$12,2)+IF(OR(E7="A",E7="a",VLOOKUP(F7,N$7:O$12,2)=0),0,1)) -> 2 | L7: FN = Fresher | N7: FC | O7: 1 | Q7: Dry Incident | R7: 1 | S7: 1 | T7: 1 | U7: 1
B8: 2 | C8: 2380 | D8: Bristol University | E8: C | F8: S | G8: 8 | H8: 30 | I8: =G8*60+H8 -> 510 | K8: 2 | L8: S = Student | N8: FN | O8: 0 | Q8: Extra Incident | R8: 0 | S8: 0 | T8: 0 | U8: 0 | W8: Min | X8: Sec | Y8: 100th
B9: 3 | C9: 2389 | D9: University of Nottingham | E9: C | F9: S | G9: 8 | H9: 20 | I9: 500 | K9: 2 | L9: OB = Old Boys | N9: NC | O9: 0 | Q9: Rope Throw | R9: 1 | S9: 1 | T9: 1 | U9: 1 | W9: 1 | X9: 12 | Y9: 40 | Z9: =W9*60+X9+Y9/100 -> 72.4
B10: 4 | C10: 2386 | D10: Swansea Universities Lifesaving | E10: C | F10: S | G10: 8 | H10: 10 | I10: 490 | K10: 2 | L10: NS=Non Student Team | N10: NS | O10: 0 | Q10: Swim and Tow | R10: 1 | S10: 1 | T10: 1 | U10: 1 | W10: 6 | X10: 34 | Y10: 85 | Z10: =W10*60+X10+Y10/100 -> 394.85
B11: 5 | C11: 2385 | D11: Swansea Universities Lifesaving | E11: B | F11: S | G11: 7 | H11: 55 | I11: 475 | K11: 2 | L11: NC=Non -Counting Student Team | N11: OB | O11: 0 | Q11: Medley | R11: 0 | S11: 0 | T11: 0 | U11: 0 | W11: 1 | X11: 50 | Y11: 72 | Z11: =W11*60+X11+Y11/100 -> 110.72
B12: 6 | C12: 2384 | D12: Swansea Universities Lifesaving | E12: A | F12: S | G12: 7 | H12: 50 | I12: 470 | K12: 2 | N12: S | O12: 1 | Q12: Manikin Carry | R12: 0 | S12: 0 | T12: 0 | U12: 0 | W12: 1 | X12: 26 | Y12: 30 | Z12: =W12*60+X12+Y12/100 -> 86.3
B13: 7 | C13: 2377 | D13: University of Sheffield | E13: C | F13: NC | G13: 7 | H13: 53 | I13: 473 | K13: 0 | L13: Club to Highlight | Q13: Obs Relay | R13: 0 | S13: 0 | T13: 0 | U13: 0 | W13: 1 | X13: 57 | Y13: 23 | Z13: =W13*60+X13+Y13/100 -> 117.23
B14: 8 | C14: 2394 | D14: University of Warwick | E14: B | F14: S | G14: 8 | H14: 0 | I14: 480 | K14: 2
B15: 9 | C15: 2400 | D15: UoB LSC | E15: B | F15: NC | G15: 8 | H15: 10 | I15: 490 | K15: 0 | Q15: DQ Amount | R15: 100
B16: 10 | C16: 2391 | D16: University of Southampton | E16: B | F16: S | G16: 7 | H16: 45 | I16: 465 | K16: 2
B17: 11 | C17: 2375 | D17: University of Sheffield | E17: A | F17: S | G17: 7 | H17: 34 | I17: 454 | K17: 2
B18: 12 | C18: 2390 | D18: University of Southampton | E18: A | F18: S | G18: 7 | H18: 27 | I18: 447 | K18: 2
B19: 13 | C19: 2388 | D19: University of Nottingham | E19: B | F19: S | G19: 7 | H19: 31 | I19: 451 | K19: 2
B20: 14 | C20: 2376 | D20: University of Sheffield | E20: B | F20: S | G20: 7 | H20: 44 | I20: 464 | K20: 2
B21: 15 | C21: 2395 | D21: University of Warwick | E21: C | F21: NC | G21: 7 | H21: 50 | I21: 470 | K21: 0
B22: 16 | C22: 2382 | D22: Loughborough University | E22: B | F22: S | G22: 7 | H22: 25 | I22: 445 | K22: 2
B23: 17 | C23: 2397 | D23: University of Birmingham | E23: B | F23: NC | G23: 7 | H23: 15 | I23: 435 | K23: 0
B24: 18 | C24: 2379 | D24: Bristol University | E24: B | F24: S | G24: 7 | H24: 9 | I24: 429 | K24: 2
B25: 19 | C25: 2398 | D25: University of Birmingham | E25: C | F25: S | G25: 7 | H25: 15 | I25: 435 | K25: 2
B26: 20 | C26: 2399 | D26: UoB LSC | E26: A | F26: NC | G26: 7 | H26: 17 | I26: 437 | K26: 0
B27: 21 | C27: 2401 | D27: UoB LSC | E27: C | F27: NC | G27: 7 | H27: 25 | I27: 445 | K27: 0
B28: 22 | C28: 2387 | D28: University of Nottingham | E28: A | F28: S | G28: 7 | H28: 5 | I28: 425 | K28: 2
B29: 23 | C29: 2378 | D29: Bristol University | E29: A | F29: S | G29: 6 | H29: 55 | I29: 415 | K29: 2
B30: 24 | C30: 2381 | D30: Loughborough University | E30: A | F30: S | G30: 6 | H30: 30 | I30: 390 | K30: 2
B31: 25 | C31: 2383 | D31: Loughborough University | E31: C | F31: S | G31: 6 | H31: 45 | I31: 405 | K31: 2
B32: 26 | C32: 2393 | D32: University of Warwick | E32: A | F32: S | G32: 6 | H32: 55 | I32: 415 | K32: 2
B33: 27 | C33: 2396 | D33: University of Birmingham | E33: A | F33: S | G33: 7 | H33: 5 | I33: 425 | K33: 2
B34: 28 | C34: 1 | D34: Crawley Town LSC | E34: A | F34: NC | G34: 9 | H34: 59 | I34: 599 | K34: 0
B35: 29 | I35: 0 | K35: -1
B36: 30 | I36: 0 | K36: -1
B37: 31 | I37: 0 | K37: -1
B38: 32 | I38: 0 | K38: -1
B39: 33 | I39: 0 | K39: -1
B40: 34 | I40: 0 | K40: -1
B41: 35 | I41: 0 | K41: -1
B42: 36 | I42: 0 | K42: -1
B43: 37 | I43: 0 | K43: -1
B44: 38 | I44: 0 | K44: -1
B45: 39 | I45: =G45*60+H45 -> 0 | K45: =IF(OR(F45=0,E45=0,D45=0,C45=0),-1,VLOOKUP(F45,N$7:O$12,2)+IF(OR(E45="A",E45="a",VLOOKUP(F45,N$7:O$12,2)=0),0,1)) -> -1
B46: 40 | I46: 0 | K46: -1
B47: 41 | I47: 0 | K47: -1
B48: 42 | I48: 0 | K48: -1
B49: 43 | I49: 0 | K49: -1
B50: 44 | I50: 0 | K50: -1
B51: 45 | I51: 0 | K51: -1
B52: 46 | I52: 0 | K52: -1
B53: 47 | I53: 0 | K53: -1
B54: 48 | I54: 0 | K54: -1

Sheet SERCs

Sheet Dry Incident
E1: JUDGE START HIDE ROW | F1: 1 | AG1: 2 | BH1: 3 | CI1: 4 | DJ1: 5 | EK1: 6 | FL1: 7 | GM1: 8 | HN1: 9 | IO1: 10 | JP1: 11 | JR1: h | JT1: h | JV1: h | JX1: h | KC1: h | KD1: h | KE1: e
D2: No. Judges Required(1 to 10) | E2: 6
D3: Judge 1 Citeria (1 to 25) | E3: 4
D4: Judge 2 Citeria (1 to 25) | E4: 6
D5: Judge 3 Citeria (1 to 25) | E5: 10
D6: Judge 4 Citeria (1 to 25) | E6: 4
D7: Judge 5 Citeria (1 to 25) | E7: 7
D8: Judge 6 Citeria (1 to 25) | E8: 6
D9: Judge 7 Citeria (1 to 25) | E9: 10
D10: Judge 8 Citeria (1 to 25) | E10: 10
D11: Judge 9 Citeria (1 to 25) | E11: 10
D12: Judge 10 Citeria (1 to 25) | E12: 10
E14: Anaylsis/Filters to Apply | F14: Boxes For the Sellect Filter
D15: ='Set UP'!Q7 -> Dry Incident | E15: All
D16: Club to Highlight | E16: All | F16: JUDGE 1 | AG16: JUDGE 2 | BH16: JUDGE 3 | CI16: JUDGE 4 | DJ16: JUDGE 5 | EK16: JUDGE 6 | FL16: Judge 7 | GM16: Judge 8 | HN16: Judge 9 | IO16: Judge 10 | JP16: ¬ OVERALL TOTAL | JQ16: ¬ POSITION (COMPETITION) | JR16: ¬ OVERALL (A LEAGUE RANK) | JS16: ¬ POSITION ( A LEAGUE) | JT16: ¬ OVERALL (B LEAGUE RANK) | JU16: POSITION ( BLEAGUE) | JV16: ¬ OVERALL (FRESHERS LEAGUE RANK) | JW16: POSITION ( FRESHERS LEAGUE) | JX16: ¬ OVERALL (Non- Student RANK) | JY16: POSITION ( Non-Students LEAGUE) | JZ16: Lifesaving Points (Competition)
E17: No Anylisis Applied | F17: Overall | AG17: Phone | BH17: Cas 1 - Hand Bleed, Cas 3 - Asthma, Cas 6 - Panicking | CI17: Cas 2 - Unc NB | DJ17: Cas 4 - Head Bleed, Cas 5 - Broken Wrist | EK17: Cas 7 - Panicking, Cas 8 - Hyperventilating | FL17: Judge 7 Description <Enter Here> | GM17: Judge 8 Description <Enter Here> | HN17: Judge 9 Description <Enter Here> | IO17: Judge 10 Description <Enter Here>
F18: Captaincy | G18: Communication | H18: Control | I18: Prioritisation / eprioritisation | J18: Mark Category 5 <Enter Here> | K18: Mark Category 6 <Enter Here> | L18: Mark Category 7 <Enter Here> | M18: Mark Category 8 <Enter Here> | N18: Mark Category 9 <Enter Here> | O18: Mark Category 10 <Enter Here> | P18: Mark Category 11 <Enter Here> | Q18: Mark Category 12 <Enter Here> | R18: Mark Category 13 <Enter Here> | S18: Mark Category 14<Enter Here> | T18: Mark Category 15 <Enter Here> | U18: Mark Category 16<Enter Here> | V18: Mark Category 17<Enter Here> | W18: Mark Category 18<Enter Here> | X18: Mark Category 19 <Enter Here> | Y18: Mark Category 20 <Enter Here> | Z18: Mark Category 21 <Enter Here> | AA18: Mark Category 22<Enter Here> | AB18: Mark Category 23 <Enter Here> | AC18: Mark Category 24<Enter Here> | AD18: Mark Category 25 <Enter Here> | AE18: Do not fill in required for hiding process | AF18: ¬ JUDGE 1 TOTAL | AG18: Emergency Services | AH18: Location | AI18: Unc NB, asthma, hypervent | AJ18: Hand bleed, head bleed, broken wrist | AK18: Treatment being given | AL18: What happened/happening/danagers | AP18: Mark Category 10 <Enter Here> | AQ18: Mark Category 11 <Enter Here> | AR18: Mark Category 12 <Enter Here> | AS18: Mark Category 13 <Enter Here> | AT18: Mark Category 14<Enter Here> | AU18: Mark Category 15 <Enter Here> | AV18: Mark Category 16<Enter Here> | AW18: Mark Category 17<Enter Here> | AX18: Mark Category 18<Enter Here> | AY18: Mark Category 19 <Enter Here> | AZ18: Mark Category 20 <Enter Here> | BA18: Mark Category 21 <Enter Here> | BB18: Mark Category 22<Enter Here> | BC18: Mark Category 23 <Enter Here> | BD18: Mark Category 24<Enter Here> | BE18: Mark Category 25 <Enter Here> | BF18: Do not fill in required for hidding process | BG18: ¬ JUDGE 2 TOTAL | BH18: Cas 1 - Identification | BI18: Cas 1 - Primary Treatment | BJ18: Cas 1 - Secondary Treatment | BK18: Cas 1 - Aftercare | BL18: Cas 3 - Identification | BM18: Cas3 - Treatment | BN18: Cas 3 - Aftercare | BO18: Cas 6 - Identification | BP18: Cas 6 - Treatment | BQ18: Cas 6 - Aftercare | BT18: Mark Category 13 <Enter Here> | BU18: Mark Category 14<Enter Here> | BV18: Mark Category 15 <Enter Here> | BW18: Mark Category 16<Enter Here> | BX18: Mark Category 17<Enter Here> | BY18: Mark Category 18<Enter Here> | BZ18: Mark Category 19 <Enter Here> | CA18: Mark Category 20 <Enter Here> | CB18: Mark Category 21 <Enter Here> | CC18: Mark Category 22<Enter Here> | CD18: Mark Category 23 <Enter Here> | CE18: Mark Category 24<Enter Here> | CF18: Mark Category 25 <Enter Here> | CG18: Do not fill in required for hidding process | CH18: ¬ JUDGE 3 TOTAL | CI18: Cas 2 - Identification | CJ18: Cas 2 - Time to first compression | CK18: Cas 2 - CPR | CL18: Cas 2 - Use of pocket mask | CR18: Mark Category 10 <Enter Here> | CS18: Mark Category 11 <Enter Here> | CT18: Mark Category 12 <Enter Here> | CU18: Mark Category 13 <Enter Here> | CV18: Mark Category 14<Enter Here> | CW18: Mark Category 15 <Enter Here> | CX18: Mark Category 16<Enter Here> | CY18: Mark Category 17<Enter Here> | CZ18: Mark Category 18<Enter Here> | DA18: Mark Category 19 <Enter Here> | DB18: Mark Category 20 <Enter Here> | DC18: Mark Category 21 <Enter Here> | DD18: Mark Category 22<Enter Here> | DE18: Mark Category 23 <Enter Here> | DF18: Mark Category 24<Enter Here> | DG18: Mark Category 25 <Enter Here> | DH18: Do not fill in required for hidding process | DI18: ¬ JUDGE 4 TOTAL | DJ18: Cas 4 - Identification | DK18: Cas 4 - Primary Treatment | DL18: Cas 4 - Secondary treatment | DM18: Cas 4 - Aftercare | DN18: Cas 5 - Identification | DO18: Cas 5 - Treatment | DP18: Cas 5 - Aftercare | DS18: Mark Category 10 <Enter Here> | DT18: Mark Category 11 <Enter Here> | DU18: Mark Category 12 <Enter Here> | DV18: Mark Category 13 <Enter Here> | DW18: Mark Category 14<Enter Here> | DX18: Mark Category 15 <Enter Here> | DY18: Mark Category 16<Enter Here> | DZ18: Mark Category 17<Enter Here> | EA18: Mark Category 18<Enter Here> | EB18: Mark Category 19 <Enter Here> | EC18: Mark Category 20 <Enter Here> | ED18: Mark Category 21 <Enter Here> | EE18: Mark Category 22<Enter Here> | EF18: Mark Category 23 <Enter Here> | EG18: Mark Category 24<Enter Here> | EH18: Mark Category 25 <Enter Here> | EI18: Do not fill in required for hidding process | EJ18: ¬ JUDGE 5 TOTAL | EK18: Cas 7 - Identification | EL18: Cas 7 - Treatment | EM18: Cas 7 - Aftercare | EN18: Cas 8 - Identifcation | EO18: Cas 8 - Treatment | EP18: Cas 8 - Aftercare | EV18: Mark Category 12 <Enter Here> | EW18: Mark Category 13 <Enter Here> | EX18: Mark Category 14<Enter Here> | EY18: Mark Category 15 <Enter Here> | EZ18: Mark Category 16<Enter Here> | FA18: Mark Category 17<Enter Here> | FB18: Mark Category 18<Enter Here> | FC18: Mark Category 19 <Enter Here> | FD18: Mark Category 20 <Enter Here> | FE18: Mark Category 21 <Enter Here> | FF18: Mark Category 22<Enter Here> | FG18: Mark Category 23 <Enter Here> | FH18: Mark Category 24<Enter Here> | FI18: Mark Category 25 <Enter Here> | FJ18: Do not fill in required for hidding process | FK18: ¬ JUDGE 6 TOTAL | FL18: Mark Category 1 <Enter Here> | FM18: Mark Category 2 <Enter Here> | FN18: Mark Category 3 <Enter Here> | FO18: Mark Category 4 <Enter Here> | FP18: Mark Category 5 <Enter Here> | FQ18: Mark Category 6 <Enter Here> | FR18: Mark Category 7 <Enter Here> | FS18: Mark Category 8 <Enter Here> | FT18: Mark Category 9 <Enter Here> | FU18: Mark Category 10 <Enter Here> | FV18: Mark Category 11 <Enter Here> | FW18: Mark Category 12 <Enter Here> | FX18: Mark Category 13 <Enter Here> | FY18: Mark Category 14<Enter Here> | FZ18: Mark Category 15 <Enter Here> | GA18: Mark Category 16<Enter Here> | GB18: Mark Category 17<Enter Here> | GC18: Mark Category 18<Enter Here> | GD18: Mark Category 19 <Enter Here> | GE18: Mark Category 20 <Enter Here> | GF18: Mark Category 21 <Enter Here> | GG18: Mark Category 22<Enter Here> | GH18: Mark Category 23 <Enter Here> | GI18: Mark Category 24<Enter Here> | GJ18: Mark Category 25 <Enter Here> | GK18: Do not fill in required for hidding process | GL18: ¬ JUDGE 7 TOTAL | GM18: Mark Category 1 <Enter Here> | GN18: Mark Category 2 <Enter Here> | GO18: Mark Category 3 <Enter Here> | GP18: Mark Category 4 <Enter Here> | GQ18: Mark Category 5 <Enter Here> | GR18: Mark Category 6 <Enter Here> | GS18: Mark Category 7 <Enter Here> | GT18: Mark Category 8 <Enter Here> | GU18: Mark Category 9 <Enter Here> | GV18: Mark Category 10 <Enter Here> | GW18: Mark Category 11 <Enter Here> | GX18: Mark Category 12 <Enter Here> | GY18: Mark Category 13 <Enter Here> | GZ18: Mark Category 14<Enter Here> | HA18: Mark Category 15 <Enter Here> | HB18: Mark Category 16<Enter Here> | HC18: Mark Category 17<Enter Here> | HD18: Mark Category 18<Enter Here> | HE18: Mark Category 19 <Enter Here> | HF18: Mark Category 20 <Enter Here> | HG18: Mark Category 21 <Enter Here> | HH18: Mark Category 22<Enter Here> | HI18: Mark Category 23 <Enter Here> | HJ18: Mark Category 24<Enter Here> | HK18: Mark Category 25 <Enter Here> | HL18: Do not fill in required for hidding process | HM18: ¬ JUDGE 8 TOTAL | HN18: Mark Category 1 <Enter Here> | HO18: Mark Category 2 <Enter Here> | HP18: Mark Category 3 <Enter Here> | HQ18: Mark Category 4 <Enter Here> | HR18: Mark Category 5 <Enter Here> | HS18: Mark Category 6 <Enter Here> | HT18: Mark Category 7 <Enter Here> | HU18: Mark Category 8 <Enter Here> | HV18: Mark Category 9 <Enter Here> | HW18: Mark Category 10 <Enter Here> | HX18: Mark Category 11 <Enter Here> | HY18: Mark Category 12 <Enter Here> | HZ18: Mark Category 13 <Enter Here> | IA18: Mark Category 14<Enter Here> | IB18: Mark Category 15 <Enter Here> | IC18: Mark Category 16<Enter Here> | ID18: Mark Category 17<Enter Here> | IE18: Mark Category 18<Enter Here> | IF18: Mark Category 19 <Enter Here> | IG18: Mark Category 20 <Enter Here> | IH18: Mark Category 21 <Enter Here> | II18: Mark Category 22<Enter Here> | IJ18: Mark Category 23 <Enter Here> | IK18: Mark Category 24<Enter Here> | IL18: Mark Category 25 <Enter Here> | IM18: Do not fill in required for hidding process | IN18: ¬ JUDGE 9 TOTAL | IO18: Mark Category 1 <Enter Here> | IP18: Mark Category 2 <Enter Here> | IQ18: Mark Category 3 <Enter Here> | IR18: Mark Category 4 <Enter Here> | IS18: Mark Category 5 <Enter Here> | IT18: Mark Category 6 <Enter Here> | IU18: Mark Category 7 <Enter Here> | IV18: Mark Category 8 <Enter Here> | IW18: Mark Category 9 <Enter Here> | IX18: Mark Category 10 <Enter Here> | IY18: Mark Category 11 <Enter Here> | IZ18: Mark Category 12 <Enter Here> | JA18: Mark Category 13 <Enter Here> | JB18: Mark Category 14<Enter Here> | JC18: Mark Category 15 <Enter Here> | JD18: Mark Category 16<Enter Here> | JE18: Mark Category 17<Enter Here> | JF18: Mark Category 18<Enter Here> | JG18: Mark Category 19 <Enter Here> | JH18: Mark Category 20 <Enter Here> | JI18: Mark Category 21 <Enter Here> | JJ18: Mark Category 22<Enter Here> | JK18: Mark Category 23 <Enter Here> | JL18: Mark Category 24<Enter Here> | JM18: Mark Category 25 <Enter Here> | JN18: Do not fill in required for hidding process | JO18: ¬ JUDGE 10 TOTAL | KC18: Contain max POSTION for any UNIS B teamS | KD18: only thEse teams carried forward TO indentify best B team from each club
E19: MARK WEIGHTING → | F19: 2.5 | G19: 3 | H19: 2 | I19: 3 | AG19: 1.5 | AH19: 1.5 | AI19: 2 | AJ19: 1.5 | AK19: 1.5 | AL19: 1.5 | BH19: 1.5 | BI19: 1.5 | BJ19: 2 | BK19: 1 | BL19: 1 | BM19: 3 | BN19: 1.5 | BO19: 0.75 | BP19: 1.5 | BQ19: 0.5 | CI19: 1.5 | CJ19: 2.5 | CK19: 4 | CL19: 0.5 | DJ19: 1.5 | DK19: 1.5 | DL19: 2 | DM19: 1 | DN19: 1 | DO19: 1.5 | DP19: 0.5 | EK19: 0.75 | EL19: 1 | EM19: 0.5 | EN19: 1 | EO19: 2.5 | EP19: 1
C20: WEB | F20: =IFERROR(VLOOKUP($G87+0.3,$D98:$JP152,2+F97,FALSE),"") ->  | G20: =IFERROR(VLOOKUP($G87+0.3,$D98:$JP152,2+G97,FALSE),"") ->  | BS20: =IFERROR(VLOOKUP($G87+0.3,$D98:$JP152,2+BS97,FALSE),"") ->  | EE20: =IFERROR(VLOOKUP($G87+0.3,$D98:$JP152,2+EE97,FALSE),"") ->  | GQ20: =IFERROR(VLOOKUP($G87+0.3,$D98:$JP152,2+GQ97,FALSE),"") ->  | JC20: =IFERROR(VLOOKUP($G87+0.3,$D98:$JP152,2+JC97,FALSE),"") -> 
B21: 1 | C21: =IF(OR('Set UP'!$C7=0,'Set UP'!$D7=0,'Set UP'!$E7=0,'Set UP'!F7=0)," --",'Set UP'!C7) -> 2392 | D21: =IF(OR('Set UP'!$C7=0,'Set UP'!$D7=0,'Set UP'!$E7=0,'Set UP'!F7=0)," --",'Set UP'!D7&" "&'Set UP'!E7) -> University of Southampton C | E21: =IF(OR('Set UP'!$C7=0,'Set UP'!$D7=0,'Set UP'!$E7=0,'Set UP'!F7=0)," --",'Set UP'!F7) -> S | F21: 6 | G21: 6 | H21: 7 | I21: 7 | AF21: =IF(OR('Set UP'!$C7=0,'Set UP'!$D7=0,'Set UP'!$E7=0),"",(F$19*F21)+(G$19*G21)+(H$19*H21)+(I$19*I21)+(J$19*J21)+(K$19*K21)+(L$19*L21)+(M$19*M21)+(N$19*N21)+(O$19*O21)+(P$19*P21)+(Q$19*Q21)+(R$19*R21)+(S$19*S21)+(T$19*T21)+(U$19*U21)+(V$19*V21)+(W$19*W21)+(X$19*X21)+(Y$19*Y21)+(Z$19*Z21)+(AA$19*AA21)+(AB$19*AB21)+(AC$19*AC21)+(AD$19*AD21)) -> 68 | AG21: 10 | AH21: 10 | AI21: 3 | AJ21: 4 | AK21: 0 | AL21: 0 | BG21: =IF(OR('Set UP'!$C7=0,'Set UP'!$D7=0,'Set UP'!$E7=0),"",(AG$19*AG21)+(AH$19*AH21)+(AI$19*AI21)+(AJ$19*AJ21)+(AK$19*AK21)+(AL$19*AL21)+(AM$19*AM21)+(AN$19*AN21)+(AO$19*AO21)+(AP$19*AP21)+(AQ$19*AQ21)+(AR$19*AR21)+(AS$19*AS21)+(AT$19*AT21)+(AU$19*AU21)+(AV$19*AV21)+(AW$19*AW21)+(AX$19*AX21)+(AY$19*AY21)+(AZ$19*AZ21)+(BA$19*BA21)+(BB$19*BB21)+(BC$19*BC21)+(BD$19*BD21)+(BE$19*BE21)) -> 42 | BH21: 9 | BI21: 4 | BJ21: 0 | BK21: 1 | BL21: 9 | BM21: 7 | BN21: 3 | BO21: 9 | BP21: 9 | BQ21: 8 | CH21: =IF(OR('Set UP'!$C7=0,'Set UP'!$D7=0,'Set UP'!$E7=0),"",(BH$19*BH21)+(BI$19*BI21)+(BJ$19*BJ21)+(BK$19*BK21)+(BL$19*BL21)+(BM$19*BM21)+(BN$19*BN21)+(BO$19*BO21)+(BP$19*BP21)+(BQ$19*BQ21)+(BR$19*BR21)+(BS$19*BS21)+(BT$19*BT21)+(BU$19*BU21)+(BV$19*BV21)+(BW$19*BW21)+(BX$19*BX21)+(BY$19*BY21)+(BZ$19*BZ21)+(CA$19*CA21)+(CB$19*CB21)+(CC$19*CC21)+(CD$19*CD21)+(CE$19*CE21)+(CF$19*CF21)) -> 79.25 | CI21: 6 | CJ21: 2 | CK21: 2 | CL21: 0 | DI21: =IF(OR('Set UP'!$C7=0,'Set UP'!$D7=0,'Set UP'!$E7=0),"",(CI$19*CI21)+(CJ$19*CJ21)+(CK$19*CK21)+(CL$19*CL21)+(CM$19*CM21)+(CN$19*CN21)+(CO$19*CO21)+(CP$19*CP21)+(CQ$19*CQ21)+(CR$19*CR21)+(CS$19*CS21)+(CT$19*CT21)+(CU$19*CU21)+(CV$19*CV21)+(CW$19*CW21)+(CX$19*CX21)+(CY$19*CY21)+(CZ$19*CZ21)+(DA$19*DA21)+(DB$19*DB21)+(DC$19*DC21)+(DD$19*DD21)+(DE$19*DE21)+(DF$19*DF21)+(DG$19*DG21)) -> 22 | DJ21: 7 | DK21: 7 | DL21: 7 | DM21: 8 | DN21: 8 | DO21: 4 | DP21: 7 | EJ21: =IF(OR('Set UP'!$C7=0,'Set UP'!$D7=0,'Set UP'!$E7=0),"",(DJ$19*DJ21)+(DK$19*DK21)+(DL$19*DL21)+(DM$19*DM21)+(DN$19*DN21)+(DO$19*DO21)+(DP$19*DP21)+(DQ$19*DQ21)+(DR$19*DR21)+(DS$19*DS21)+(DT$19*DT21)+(DU$19*DU21)+(DV$19*DV21)+(DW$19*DW21)+(DX$19*DX21)+(DY$19*DY21)+(DZ$19*DZ21)+(EA$19*EA21)+(EB$19*EB21)+(EC$19*EC21)+(ED$19*ED21)+(EE$19*EE21)+(EF$19*EF21)+(EG$19*EG21)+(EH$19*EH21)) -> 60.5 | EK21: 4 | EL21: 4 | EM21: 7 | EN21: 7 | EO21: 6 | EP21: 4 | FK21: =IF(OR('Set UP'!$C7=0,'Set UP'!$D7=0,'Set UP'!$E7=0),"",(EK$19*EK21)+(EL$19*EL21)+(EM$19*EM21)+(EN$19*EN21)+(EO$19*EO21)+(EP$19*EP21)+(EQ$19*EQ21)+(ER$19*ER21)+(ES$19*ES21)+(ET$19*ET21)+(EU$19*EU21)+(EV$19*EV21)+(EW$19*EW21)+(EX$19*EX21)+(EY$19*EY21)+(EZ$19*EZ21)+(FA$19*FA21)+(FB$19*FB21)+(FC$19*FC21)+(FD$19*FD21)+(FE$19*FE21)+(FF$19*FF21)+(FG$19*FG21)+(FH$19*FH21)+(FI$19*FI21)) -> 36.5 | GL21: =IF(OR('Set UP'!$C7=0,'Set UP'!$D7=0,'Set UP'!$E7=0),"",(FL$19*FL21)+(FM$19*FM21)+(FN$19*FN21)+(FO$19*FO21)+(FP$19*FP21)+(FQ$19*FQ21)+(FR$19*FR21)+(FS$19*FS21)+(FT$19*FT21)+(FU$19*FU21)+(FV$19*FV21)+(FW$19*FW21)+(FX$19*FX21)+(FY$19*FY21)+(FZ$19*FZ21)+(GA$19*GA21)+(GB$19*GB21)+(GC$19*GC21)+(GD$19*GD21)+(GE$19*GE21)+(GF$19*GF21)+(GG$19*GG21)+(GH$19*GH21)+(GI$19*GI21)+(GJ$19*GJ21)) -> 0 | HM21: =IF(OR('Set UP'!$C7=0,'Set UP'!$D7=0,'Set UP'!$E7=0),"",(GM$19*GM21)+(GN$19*GN21)+(GO$19*GO21)+(GP$19*GP21)+(GQ$19*GQ21)+(GR$19*GR21)+(GS$19*GS21)+(GT$19*GT21)+(GU$19*GU21)+(GV$19*GV21)+(GW$19*GW21)+(GX$19*GX21)+(GY$19*GY21)+(GZ$19*GZ21)+(HA$19*HA21)+(HB$19*HB21)+(HC$19*HC21)+(HD$19*HD21)+(HE$19*HE21)+(HF$19*HF21)+(HG$19*HG21)+(HH$19*HH21)+(HI$19*HI21)+(HJ$19*HJ21)+(HK$19*HK21)) -> 0 | IN21: =IF(OR('Set UP'!$C7=0,'Set UP'!$D7=0,'Set UP'!$E7=0),"",(HN$19*HN21)+(HO$19*HO21)+(HP$19*HP21)+(HQ$19*HQ21)+(HR$19*HR21)+(HS$19*HS21)+(HT$19*HT21)+(HU$19*HU21)+(HV$19*HV21)+(HW$19*HW21)+(HX$19*HX21)+(HY$19*HY21)+(HZ$19*HZ21)+(IA$19*IA21)+(IB$19*IB21)+(IC$19*IC21)+(ID$19*ID21)+(IE$19*IE21)+(IF$19*IF21)+(IG$19*IG21)+(IH$19*IH21)+(II$19*II21)+(IJ$19*IJ21)+(IK$19*IK21)+(IL$19*IL21)) -> 0 | JO21: =IF(OR('Set UP'!$C7=0,'Set UP'!$D7=0,'Set UP'!$E7=0),"",(IO$19*IO21)+(IP$19*IP21)+(IQ$19*IQ21)+(IR$19*IR21)+(IS$19*IS21)+(IT$19*IT21)+(IU$19*IU21)+(IV$19*IV21)+(IW$19*IW21)+(IX$19*IX21)+(IY$19*IY21)+(IZ$19*IZ21)+(JA$19*JA21)+(JB$19*JB21)+(JC$19*JC21)+(JD$19*JD21)+(JE$19*JE21)+(JF$19*JF21)+(JG$19*JG21)+(JH$19*JH21)+(JI$19*JI21)+(JJ$19*JJ21)+(JK$19*JK21)+(JL$19*JL21)+(JM$19*JM21)) -> 0 | JP21: =IF(OR('Set UP'!$C7=0,'Set UP'!$D7=0,'Set UP'!$E7=0),"",(AF21+BG21+CH21+DI21+EJ21+FK21+GL21+HM21+IN21+JO21)) -> 308.25 | JQ21: =IF(OR('Set UP'!$C7=0,'Set UP'!$D7=0,'Set UP'!$E7=0),"",RANK(JP21,$JP$21:$JP$68,0)) -> 21 | JR21: =IF(OR('Set UP'!K7<>1,'Set UP'!C7=0,'Set UP'!D7=0,'Set UP'!E7=0,'Set UP'!F7=0),"",$JP21) ->  | JS21: =IF(OR('Set UP'!K7<>1,'Set UP'!C7=0,'Set UP'!D7=0,'Set UP'!E7=0,'Set UP'!F7=0),"",RANK(JR21,$JR$21:$JR$68,0)) ->  | JT21: =IF(OR('Set UP'!K7<>2,'Set UP'!C7=0,'Set UP'!D7=0,'Set UP'!E7=0,'Set UP'!F7=0),"",$JP21) -> 308.25 | JU21: =IF(OR('Set UP'!K7<>2,'Set UP'!C7=0,'Set UP'!D7=0,'Set UP'!E7=0,'Set UP'!F7=0),"",RANK(JT21,$JT$21:$JT$68,0)) -> 17 | JV21: =IF(OR(LEFT('Set UP'!F7,1)<>"F",'Set UP'!C7=0,'Set UP'!D7=0,'Set UP'!E7=0),"",$JP21) ->  | JW21: =IF(OR(LEFT('Set UP'!F7,1)<>"F",'Set UP'!C7=0,'Set UP'!D7=0,'Set UP'!E7=0),"",RANK(JV21,$JV$21:$JV$68,0)) ->  | JX21: =IF(OR('Set UP'!F7<>"NS",'Set UP'!C7=0,'Set UP'!D7=0,'Set UP'!E7=0),"",$JP21) ->  | JY21: =IF(OR('Set UP'!F7<>"NS",'Set UP'!C7=0,'Set UP'!D7=0,'Set UP'!E7=0),"",RANK(JX21,$JX$21:$JX$68,0)) ->  | JZ21: =IF(OR('Set UP'!$C7=0,'Set UP'!$D7=0,'Set UP'!$E7=0,JP21=0),"",JP21/MAX(JP$21:JP$68)*1000) -> 771.5894869 | KC21: =MAX(IF(Clubs='Set UP'!D7,'Wet Incident'!JU$21:JU$68)) -> 17 | KD21: =IF(AND(KC21=JU21,JU21<>""),KC21,"") -> 17
B22: 2 | C22: =IF(OR('Set UP'!$C8=0,'Set UP'!$D8=0,'Set UP'!$E8=0,'Set UP'!F8=0)," --",'Set UP'!C8) -> 2380 | D22: =IF(OR('Set UP'!$C8=0,'Set UP'!$D8=0,'Set UP'!$E8=0,'Set UP'!F8=0)," --",'Set UP'!D8&" "&'Set UP'!E8) -> Bristol University C | E22: =IF(OR('Set UP'!$C8=0,'Set UP'!$D8=0,'Set UP'!$E8=0,'Set UP'!F8=0)," --",'Set UP'!F8) -> S | F22: 7 | G22: 6 | H22: 7 | I22: 6 | AF22: =IF(OR('Set UP'!$C8=0,'Set UP'!$D8=0,'Set UP'!$E8=0),"",(F$19*F22)+(G$19*G22)+(H$19*H22)+(I$19*I22)+(J$19*J22)+(K$19*K22)+(L$19*L22)+(M$19*M22)+(N$19*N22)+(O$19*O22)+(P$19*P22)+(Q$19*Q22)+(R$19*R22)+(S$19*S22)+(T$19*T22)+(U$19*U22)+(V$19*V22)+(W$19*W22)+(X$19*X22)+(Y$19*Y22)+(Z$19*Z22)+(AA$19*AA22)+(AB$19*AB22)+(AC$19*AC22)+(AD$19*AD22)) -> 67.5 | AG22: 10 | AH22: 10 | AI22: 7 | AJ22: 10 | AK22: 2 | AL22: 0 | BG22: =IF(OR('Set UP'!$C8=0,'Set UP'!$D8=0,'Set UP'!$E8=0),"",(AG$19*AG22)+(AH$19*AH22)+(AI$19*AI22)+(AJ$19*AJ22)+(AK$19*AK22)+(AL$19*AL22)+(AM$19*AM22)+(AN$19*AN22)+(AO$19*AO22)+(AP$19*AP22)+(AQ$19*AQ22)+(AR$19*AR22)+(AS$19*AS22)+(AT$19*AT22)+(AU$19*AU22)+(AV$19*AV22)+(AW$19*AW22)+(AX$19*AX22)+(AY$19*AY22)+(AZ$19*AZ22)+(BA$19*BA22)+(BB$19*BB22)+(BC$19*BC22)+(BD$19*BD22)+(BE$19*BE22)) -> 62 | BH22: 9 | BI22: 8 | BJ22: 9 | BK22: 7 | BL22: 9 | BM22: 7 | BN22: 5 | BO22: 7 | BP22: 5 | BQ22: 3 | CH22: =IF(OR('Set UP'!$C8=0,'Set UP'!$D8=0,'Set UP'!$E8=0),"",(BH$19*BH22)+(BI$19*BI22)+(BJ$19*BJ22)+(BK$19*BK22)+(BL$19*BL22)+(BM$19*BM22)+(BN$19*BN22)+(BO$19*BO22)+(BP$19*BP22)+(BQ$19*BQ22)+(BR$19*BR22)+(BS$19*BS22)+(BT$19*BT22)+(BU$19*BU22)+(BV$19*BV22)+(BW$19*BW22)+(BX$19*BX22)+(BY$19*BY22)+(BZ$19*BZ22)+(CA$19*CA22)+(CB$19*CB22)+(CC$19*CC22)+(CD$19*CD22)+(CE$19*CE22)+(CF$19*CF22)) -> 102.25 | CI22: 8 | CJ22: 8 | CK22: 6 | CL22: 10 | DI22: =IF(OR('Set UP'!$C8=0,'Set UP'!$D8=0,'Set UP'!$E8=0),"",(CI$19*CI22)+(CJ$19*CJ22)+(CK$19*CK22)+(CL$19*CL22)+(CM$19*CM22)+(CN$19*CN22)+(CO$19*CO22)+(CP$19*CP22)+(CQ$19*CQ22)+(CR$19*CR22)+(CS$19*CS22)+(CT$19*CT22)+(CU$19*CU22)+(CV$19*CV22)+(CW$19*CW22)+(CX$19*CX22)+(CY$19*CY22)+(CZ$19*CZ22)+(DA$19*DA22)+(DB$19*DB22)+(DC$19*DC22)+(DD$19*DD22)+(DE$19*DE22)+(DF$19*DF22)+(DG$19*DG22)) -> 61 | DJ22: 3 | DK22: 2 | DL22: 0 | DM22: 1 | DN22: 6 | DO22: 0 | DP22: 2 | EJ22: =IF(OR('Set UP'!$C8=0,'Set UP'!$D8=0,'Set UP'!$E8=0),"",(DJ$19*DJ22)+(DK$19*DK22)+(DL$19*DL22)+(DM$19*DM22)+(DN$19*DN22)+(DO$19*DO22)+(DP$19*DP22)+(DQ$19*DQ22)+(DR$19*DR22)+(DS$19*DS22)+(DT$19*DT22)+(DU$19*DU22)+(DV$19*DV22)+(DW$19*DW22)+(DX$19*DX22)+(DY$19*DY22)+(DZ$19*DZ22)+(EA$19*EA22)+(EB$19*EB22)+(EC$19*EC22)+(ED$19*ED22)+(EE$19*EE22)+(EF$19*EF22)+(EG$19*EG22)+(EH$19*EH22)) -> 15.5 | EK22: 5 | EL22: 2 | EM22: 5 | EN22: 4 | EO22: 5 | EP22: 4 | FK22: =IF(OR('Set UP'!$C8=0,'Set UP'!$D8=0,'Set UP'!$E8=0),"",(EK$19*EK22)+(EL$19*EL22)+(EM$19*EM22)+(EN$19*EN22)+(EO$19*EO22)+(EP$19*EP22)+(EQ$19*EQ22)+(ER$19*ER22)+(ES$19*ES22)+(ET$19*ET22)+(EU$19*EU22)+(EV$19*EV22)+(EW$19*EW22)+(EX$19*EX22)+(EY$19*EY22)+(EZ$19*EZ22)+(FA$19*FA22)+(FB$19*FB22)+(FC$19*FC22)+(FD$19*FD22)+(FE$19*FE22)+(FF$19*FF22)+(FG$19*FG22)+(FH$19*FH22)+(FI$19*FI22)) -> 28.75 | GL22: =IF(OR('Set UP'!$C8=0,'Set UP'!$D8=0,'Set UP'!$E8=0),"",(FL$19*FL22)+(FM$19*FM22)+(FN$19*FN22)+(FO$19*FO22)+(FP$19*FP22)+(FQ$19*FQ22)+(FR$19*FR22)+(FS$19*FS22)+(FT$19*FT22)+(FU$19*FU22)+(FV$19*FV22)+(FW$19*FW22)+(FX$19*FX22)+(FY$19*FY22)+(FZ$19*FZ22)+(GA$19*GA22)+(GB$19*GB22)+(GC$19*GC22)+(GD$19*GD22)+(GE$19*GE22)+(GF$19*GF22)+(GG$19*GG22)+(GH$19*GH22)+(GI$19*GI22)+(GJ$19*GJ22)) -> 0 | HM22: =IF(OR('Set UP'!$C8=0,'Set UP'!$D8=0,'Set UP'!$E8=0),"",(GM$19*GM22)+(GN$19*GN22)+(GO$19*GO22)+(GP$19*GP22)+(GQ$19*GQ22)+(GR$19*GR22)+(GS$19*GS22)+(GT$19*GT22)+(GU$19*GU22)+(GV$19*GV22)+(GW$19*GW22)+(GX$19*GX22)+(GY$19*GY22)+(GZ$19*GZ22)+(HA$19*HA22)+(HB$19*HB22)+(HC$19*HC22)+(HD$19*HD22)+(HE$19*HE22)+(HF$19*HF22)+(HG$19*HG22)+(HH$19*HH22)+(HI$19*HI22)+(HJ$19*HJ22)+(HK$19*HK22)) -> 0 | IN22: =IF(OR('Set UP'!$C8=0,'Set UP'!$D8=0,'Set UP'!$E8=0),"",(HN$19*HN22)+(HO$19*HO22)+(HP$19*HP22)+(HQ$19*HQ22)+(HR$19*HR22)+(HS$19*HS22)+(HT$19*HT22)+(HU$19*HU22)+(HV$19*HV22)+(HW$19*HW22)+(HX$19*HX22)+(HY$19*HY22)+(HZ$19*HZ22)+(IA$19*IA22)+(IB$19*IB22)+(IC$19*IC22)+(ID$19*ID22)+(IE$19*IE22)+(IF$19*IF22)+(IG$19*IG22)+(IH$19*IH22)+(II$19*II22)+(IJ$19*IJ22)+(IK$19*IK22)+(IL$19*IL22)) -> 0 | JO22: =IF(OR('Set UP'!$C8=0,'Set UP'!$D8=0,'Set UP'!$E8=0),"",(IO$19*IO22)+(IP$19*IP22)+(IQ$19*IQ22)+(IR$19*IR22)+(IS$19*IS22)+(IT$19*IT22)+(IU$19*IU22)+(IV$19*IV22)+(IW$19*IW22)+(IX$19*IX22)+(IY$19*IY22)+(IZ$19*IZ22)+(JA$19*JA22)+(JB$19*JB22)+(JC$19*JC22)+(JD$19*JD22)+(JE$19*JE22)+(JF$19*JF22)+(JG$19*JG22)+(JH$19*JH22)+(JI$19*JI22)+(JJ$19*JJ22)+(JK$19*JK22)+(JL$19*JL22)+(JM$19*JM22)) -> 0 | JP22: =IF(OR('Set UP'!$C8=0,'Set UP'!$D8=0,'Set UP'!$E8=0),"",(AF22+BG22+CH22+DI22+EJ22+FK22+GL22+HM22+IN22+JO22)) -> 337 | JQ22: =IF(OR('Set UP'!$C8=0,'Set UP'!$D8=0,'Set UP'!$E8=0),"",RANK(JP22,$JP$21:$JP$68,0)) -> 11 | JR22: =IF(OR('Set UP'!K8<>1,'Set UP'!C8=0,'Set UP'!D8=0,'Set UP'!E8=0,'Set UP'!F8=0),"",$JP22) ->  | JS22: =IF(OR('Set UP'!K8<>1,'Set UP'!C8=0,'Set UP'!D8=0,'Set UP'!E8=0,'Set UP'!F8=0),"",RANK(JR22,$JR$21:$JR$68,0)) ->  | JT22: =IF(OR('Set UP'!K8<>2,'Set UP'!C8=0,'Set UP'!D8=0,'Set UP'!E8=0,'Set UP'!F8=0),"",$JP22) -> 337 | JU22: =IF(OR('Set UP'!K8<>2,'Set UP'!C8=0,'Set UP'!D8=0,'Set UP'!E8=0,'Set UP'!F8=0),"",RANK(JT22,$JT$21:$JT$68,0)) -> 8 | JV22: =IF(OR(LEFT('Set UP'!F8,1)<>"F",'Set UP'!C8=0,'Set UP'!D8=0,'Set UP'!E8=0),"",$JP22) ->  | JW22: =IF(OR(LEFT('Set UP'!F8,1)<>"F",'Set UP'!C8=0,'Set UP'!D8=0,'Set UP'!E8=0),"",RANK(JV22,$JV$21:$JV$68,0)) ->  | JX22: =IF(OR('Set UP'!F8<>"NS",'Set UP'!C8=0,'Set UP'!D8=0,'Set UP'!E8=0),"",$JP22) ->  | JY22: =IF(OR('Set UP'!F8<>"NS",'Set UP'!C8=0,'Set UP'!D8=0,'Set UP'!E8=0),"",RANK(JX22,$JX$21:$JX$68,0)) ->  | JZ22: =IF(OR('Set UP'!$C8=0,'Set UP'!$D8=0,'Set UP'!$E8=0,JP22=0),"",JP22/MAX(JP$21:JP$68)*1000) -> 843.5544431 | KC22: =MAX(IF(Clubs='Set UP'!D8,'Wet Incident'!JU$21:JU$68)) -> 20 | KD22: =IF(AND(KC22=JU22,JU22<>""),KC22,"") -> 
B23: 3 | C23: =IF(OR('Set UP'!$C9=0,'Set UP'!$D9=0,'Set UP'!$E9=0,'Set UP'!F9=0)," --",'Set UP'!C9) -> 2389 | D23: =IF(OR('Set UP'!$C9=0,'Set UP'!$D9=0,'Set UP'!$E9=0,'Set UP'!F9=0)," --",'Set UP'!D9&" "&'Set UP'!E9) -> University of Nottingham C | E23: =IF(OR('Set UP'!$C9=0,'Set UP'!$D9=0,'Set UP'!$E9=0,'Set UP'!F9=0)," --",'Set UP'!F9) -> S | F23: 7 | G23: 6 | H23: 7 | I23: 6 | AF23: =IF(OR('Set UP'!$C9=0,'Set UP'!$D9=0,'Set UP'!$E9=0),"",(F$19*F23)+(G$19*G23)+(H$19*H23)+(I$19*I23)+(J$19*J23)+(K$19*K23)+(L$19*L23)+(M$19*M23)+(N$19*N23)+(O$19*O23)+(P$19*P23)+(Q$19*Q23)+(R$19*R23)+(S$19*S23)+(T$19*T23)+(U$19*U23)+(V$19*V23)+(W$19*W23)+(X$19*X23)+(Y$19*Y23)+(Z$19*Z23)+(AA$19*AA23)+(AB$19*AB23)+(AC$19*AC23)+(AD$19*AD23)) -> 67.5 | AG23: 10 | AH23: 10 | AI23: 6 | AJ23: 0 | AK23: 0 | AL23: 0 | BG23: =IF(OR('Set UP'!$C9=0,'Set UP'!$D9=0,'Set UP'!$E9=0),"",(AG$19*AG23)+(AH$19*AH23)+(AI$19*AI23)+(AJ$19*AJ23)+(AK$19*AK23)+(AL$19*AL23)+(AM$19*AM23)+(AN$19*AN23)+(AO$19*AO23)+(AP$19*AP23)+(AQ$19*AQ23)+(AR$19*AR23)+(AS$19*AS23)+(AT$19*AT23)+(AU$19*AU23)+(AV$19*AV23)+(AW$19*AW23)+(AX$19*AX23)+(AY$19*AY23)+(AZ$19*AZ23)+(BA$19*BA23)+(BB$19*BB23)+(BC$19*BC23)+(BD$19*BD23)+(BE$19*BE23)) -> 42 | BH23: 9 | BI23: 3 | BJ23: 0 | BK23: 1 | BL23: 9 | BM23: 4 | BN23: 6 | BO23: 6 | BP23: 2 | BQ23: 6 | CH23: =IF(OR('Set UP'!$C9=0,'Set UP'!$D9=0,'Set UP'!$E9=0),"",(BH$19*BH23)+(BI$19*BI23)+(BJ$19*BJ23)+(BK$19*BK23)+(BL$19*BL23)+(BM$19*BM23)+(BN$19*BN23)+(BO$19*BO23)+(BP$19*BP23)+(BQ$19*BQ23)+(BR$19*BR23)+(BS$19*BS23)+(BT$19*BT23)+(BU$19*BU23)+(BV$19*BV23)+(BW$19*BW23)+(BX$19*BX23)+(BY$19*BY23)+(BZ$19*BZ23)+(CA$19*CA23)+(CB$19*CB23)+(CC$19*CC23)+(CD$19*CD23)+(CE$19*CE23)+(CF$19*CF23)) -> 59.5 | CI23: 7 | CJ23: 7 | CK23: 5 | CL23: 0 | DI23: =IF(OR('Set UP'!$C9=0,'Set UP'!$D9=0,'Set UP'!$E9=0),"",(CI$19*CI23)+(CJ$19*CJ23)+(CK$19*CK23)+(CL$19*CL23)+(CM$19*CM23)+(CN$19*CN23)+(CO$19*CO23)+(CP$19*CP23)+(CQ$19*CQ23)+(CR$19*CR23)+(CS$19*CS23)+(CT$19*CT23)+(CU$19*CU23)+(CV$19*CV23)+(CW$19*CW23)+(CX$19*CX23)+(CY$19*CY23)+(CZ$19*CZ23)+(DA$19*DA23)+(DB$19*DB23)+(DC$19*DC23)+(DD$19*DD23)+(DE$19*DE23)+(DF$19*DF23)+(DG$19*DG23)) -> 48 | DJ23: 4 | DK23: 4 | DL23: 0 | DM23: 2 | DN23: 7 | DO23: 5 | DP23: 3 | EJ23: =IF(OR('Set UP'!$C9=0,'Set UP'!$D9=0,'Set UP'!$E9=0),"",(DJ$19*DJ23)+(DK$19*DK23)+(DL$19*DL23)+(DM$19*DM23)+(DN$19*DN23)+(DO$19*DO23)+(DP$19*DP23)+(DQ$19*DQ23)+(DR$19*DR23)+(DS$19*DS23)+(DT$19*DT23)+(DU$19*DU23)+(DV$19*DV23)+(DW$19*DW23)+(DX$19*DX23)+(DY$19*DY23)+(DZ$19*DZ23)+(EA$19*EA23)+(EB$19*EB23)+(EC$19*EC23)+(ED$19*ED23)+(EE$19*EE23)+(EF$19*EF23)+(EG$19*EG23)+(EH$19*EH23)) -> 30 | EK23: 1 | EL23: 3 | EM23: 1 | EN23: 8 | EO23: 6 | EP23: 4 | FK23: =IF(OR('Set UP'!$C9=0,'Set UP'!$D9=0,'Set UP'!$E9=0),"",(EK$19*EK23)+(EL$19*EL23)+(EM$19*EM23)+(EN$19*EN23)+(EO$19*EO23)+(EP$19*EP23)+(EQ$19*EQ23)+(ER$19*ER23)+(ES$19*ES23)+(ET$19*ET23)+(EU$19*EU23)+(EV$19*EV23)+(EW$19*EW23)+(EX$19*EX23)+(EY$19*EY23)+(EZ$19*EZ23)+(FA$19*FA23)+(FB$19*FB23)+(FC$19*FC23)+(FD$19*FD23)+(FE$19*FE23)+(FF$19*FF23)+(FG$19*FG23)+(FH$19*FH23)+(FI$19*FI23)) -> 31.25 | GL23: =IF(OR('Set UP'!$C9=0,'Set UP'!$D9=0,'Set UP'!$E9=0),"",(FL$19*FL23)+(FM$19*FM23)+(FN$19*FN23)+(FO$19*FO23)+(FP$19*FP23)+(FQ$19*FQ23)+(FR$19*FR23)+(FS$19*FS23)+(FT$19*FT23)+(FU$19*FU23)+(FV$19*FV23)+(FW$19*FW23)+(FX$19*FX23)+(FY$19*FY23)+(FZ$19*FZ23)+(GA$19*GA23)+(GB$19*GB23)+(GC$19*GC23)+(GD$19*GD23)+(GE$19*GE23)+(GF$19*GF23)+(GG$19*GG23)+(GH$19*GH23)+(GI$19*GI23)+(GJ$19*GJ23)) -> 0 | HM23: =IF(OR('Set UP'!$C9=0,'Set UP'!$D9=0,'Set UP'!$E9=0),"",(GM$19*GM23)+(GN$19*GN23)+(GO$19*GO23)+(GP$19*GP23)+(GQ$19*GQ23)+(GR$19*GR23)+(GS$19*GS23)+(GT$19*GT23)+(GU$19*GU23)+(GV$19*GV23)+(GW$19*GW23)+(GX$19*GX23)+(GY$19*GY23)+(GZ$19*GZ23)+(HA$19*HA23)+(HB$19*HB23)+(HC$19*HC23)+(HD$19*HD23)+(HE$19*HE23)+(HF$19*HF23)+(HG$19*HG23)+(HH$19*HH23)+(HI$19*HI23)+(HJ$19*HJ23)+(HK$19*HK23)) -> 0 | IN23: =IF(OR('Set UP'!$C9=0,'Set UP'!$D9=0,'Set UP'!$E9=0),"",(HN$19*HN23)+(HO$19*HO23)+(HP$19*HP23)+(HQ$19*HQ23)+(HR$19*HR23)+(HS$19*HS23)+(HT$19*HT23)+(HU$19*HU23)+(HV$19*HV23)+(HW$19*HW23)+(HX$19*HX23)+(HY$19*HY23)+(HZ$19*HZ23)+(IA$19*IA23)+(IB$19*IB23)+(IC$19*IC23)+(ID$19*ID23)+(IE$19*IE23)+(IF$19*IF23)+(IG$19*IG23)+(IH$19*IH23)+(II$19*II23)+(IJ$19*IJ23)+(IK$19*IK23)+(IL$19*IL23)) -> 0 | JO23: =IF(OR('Set UP'!$C9=0,'Set UP'!$D9=0,'Set UP'!$E9=0),"",(IO$19*IO23)+(IP$19*IP23)+(IQ$19*IQ23)+(IR$19*IR23)+(IS$19*IS23)+(IT$19*IT23)+(IU$19*IU23)+(IV$19*IV23)+(IW$19*IW23)+(IX$19*IX23)+(IY$19*IY23)+(IZ$19*IZ23)+(JA$19*JA23)+(JB$19*JB23)+(JC$19*JC23)+(JD$19*JD23)+(JE$19*JE23)+(JF$19*JF23)+(JG$19*JG23)+(JH$19*JH23)+(JI$19*JI23)+(JJ$19*JJ23)+(JK$19*JK23)+(JL$19*JL23)+(JM$19*JM23)) -> 0 | JP23: =IF(OR('Set UP'!$C9=0,'Set UP'!$D9=0,'Set UP'!$E9=0),"",(AF23+BG23+CH23+DI23+EJ23+FK23+GL23+HM23+IN23+JO23)) -> 278.25 | JQ23: =IF(OR('Set UP'!$C9=0,'Set UP'!$D9=0,'Set UP'!$E9=0),"",RANK(JP23,$JP$21:$JP$68,0)) -> 25 | JR23: =IF(OR('Set UP'!K9<>1,'Set UP'!C9=0,'Set UP'!D9=0,'Set UP'!E9=0,'Set UP'!F9=0),"",$JP23) ->  | JS23: =IF(OR('Set UP'!K9<>1,'Set UP'!C9=0,'Set UP'!D9=0,'Set UP'!E9=0,'Set UP'!F9=0),"",RANK(JR23,$JR$21:$JR$68,0)) ->  | JT23: =IF(OR('Set UP'!K9<>2,'Set UP'!C9=0,'Set UP'!D9=0,'Set UP'!E9=0,'Set UP'!F9=0),"",$JP23) -> 278.25 | JU23: =IF(OR('Set UP'!K9<>2,'Set UP'!C9=0,'Set UP'!D9=0,'Set UP'!E9=0,'Set UP'!F9=0),"",RANK(JT23,$JT$21:$JT$68,0)) -> 19 | JV23: =IF(OR(LEFT('Set UP'!F9,1)<>"F",'Set UP'!C9=0,'Set UP'!D9=0,'Set UP'!E9=0),"",$JP23) ->  | JW23: =IF(OR(LEFT('Set UP'!F9,1)<>"F",'Set UP'!C9=0,'Set UP'!D9=0,'Set UP'!E9=0),"",RANK(JV23,$JV$21:$JV$68,0)) ->  | JX23: =IF(OR('Set UP'!F9<>"NS",'Set UP'!C9=0,'Set UP'!D9=0,'Set UP'!E9=0),"",$JP23) ->  | JY23: =IF(OR('Set UP'!F9<>"NS",'Set UP'!C9=0,'Set UP'!D9=0,'Set UP'!E9=0),"",RANK(JX23,$JX$21:$JX$68,0)) ->  | JZ23: =IF(OR('Set UP'!$C9=0,'Set UP'!$D9=0,'Set UP'!$E9=0,JP23=0),"",JP23/MAX(JP$21:JP$68)*1000) -> 696.4956195 | KC23: =MAX(IF(Clubs='Set UP'!D9,'Wet Incident'!JU$21:JU$68)) -> 18
B24: 4 | C24: =IF(OR('Set UP'!$C10=0,'Set UP'!$D10=0,'Set UP'!$E10=0,'Set UP'!F10=0)," --",'Set UP'!C10) -> 2386 | D24: =IF(OR('Set UP'!$C10=0,'Set UP'!$D10=0,'Set UP'!$E10=0,'Set UP'!F10=0)," --",'Set UP'!D10&" "&'Set UP'!E10) -> Swansea Universities Lifesaving C | E24: =IF(OR('Set UP'!$C10=0,'Set UP'!$D10=0,'Set UP'!$E10=0,'Set UP'!F10=0)," --",'Set UP'!F10) -> S | F24: 5 | G24: 4 | H24: 7 | I24: 7 | AF24: =IF(OR('Set UP'!$C10=0,'Set UP'!$D10=0,'Set UP'!$E10=0),"",(F$19*F24)+(G$19*G24)+(H$19*H24)+(I$19*I24)+(J$19*J24)+(K$19*K24)+(L$19*L24)+(M$19*M24)+(N$19*N24)+(O$19*O24)+(P$19*P24)+(Q$19*Q24)+(R$19*R24)+(S$19*S24)+(T$19*T24)+(U$19*U24)+(V$19*V24)+(W$19*W24)+(X$19*X24)+(Y$19*Y24)+(Z$19*Z24)+(AA$19*AA24)+(AB$19*AB24)+(AC$19*AC24)+(AD$19*AD24)) -> 59.5 | AG24: 10 | AH24: 10 | AI24: 10 | AJ24: 10 | AK24: 1 | AL24: 0 | BG24: =IF(OR('Set UP'!$C10=0,'Set UP'!$D10=0,'Set UP'!$E10=0),"",(AG$19*AG24)+(AH$19*AH24)+(AI$19*AI24)+(AJ$19*AJ24)+(AK$19*AK24)+(AL$19*AL24)+(AM$19*AM24)+(AN$19*AN24)+(AO$19*AO24)+(AP$19*AP24)+(AQ$19*AQ24)+(AR$19*AR24)+(AS$19*AS24)+(AT$19*AT24)+(AU$19*AU24)+(AV$19*AV24)+(AW$19*AW24)+(AX$19*AX24)+(AY$19*AY24)+(AZ$19*AZ24)+(BA$19*BA24)+(BB$19*BB24)+(BC$19*BC24)+(BD$19*BD24)+(BE$19*BE24)) -> 66.5 | BH24: 9 | BI24: 5 | BJ24: 0 | BK24: 6 | BL24: 8 | BM24: 5 | BN24: 1 | BO24: 9 | BP24: 8 | BQ24: 6 | CH24: =IF(OR('Set UP'!$C10=0,'Set UP'!$D10=0,'Set UP'!$E10=0),"",(BH$19*BH24)+(BI$19*BI24)+(BJ$19*BJ24)+(BK$19*BK24)+(BL$19*BL24)+(BM$19*BM24)+(BN$19*BN24)+(BO$19*BO24)+(BP$19*BP24)+(BQ$19*BQ24)+(BR$19*BR24)+(BS$19*BS24)+(BT$19*BT24)+(BU$19*BU24)+(BV$19*BV24)+(BW$19*BW24)+(BX$19*BX24)+(BY$19*BY24)+(BZ$19*BZ24)+(CA$19*CA24)+(CB$19*CB24)+(CC$19*CC24)+(CD$19*CD24)+(CE$19*CE24)+(CF$19*CF24)) -> 73.25 | CI24: 6 | CJ24: 8 | CK24: 5 | CL24: 10 | DI24: =IF(OR('Set UP'!$C10=0,'Set UP'!$D10=0,'Set UP'!$E10=0),"",(CI$19*CI24)+(CJ$19*CJ24)+(CK$19*CK24)+(CL$19*CL24)+(CM$19*CM24)+(CN$19*CN24)+(CO$19*CO24)+(CP$19*CP24)+(CQ$19*CQ24)+(CR$19*CR24)+(CS$19*CS24)+(CT$19*CT24)+(CU$19*CU24)+(CV$19*CV24)+(CW$19*CW24)+(CX$19*CX24)+(CY$19*CY24)+(CZ$19*CZ24)+(DA$19*DA24)+(DB$19*DB24)+(DC$19*DC24)+(DD$19*DD24)+(DE$19*DE24)+(DF$19*DF24)+(DG$19*DG24)) -> 54 | DJ24: 6 | DK24: 6 | DL24: 5 | DM24: 2 | DN24: 7 | DO24: 2 | DP24: 1 | EJ24: =IF(OR('Set UP'!$C10=0,'Set UP'!$D10=0,'Set UP'!$E10=0),"",(DJ$19*DJ24)+(DK$19*DK24)+(DL$19*DL24)+(DM$19*DM24)+(DN$19*DN24)+(DO$19*DO24)+(DP$19*DP24)+(DQ$19*DQ24)+(DR$19*DR24)+(DS$19*DS24)+(DT$19*DT24)+(DU$19*DU24)+(DV$19*DV24)+(DW$19*DW24)+(DX$19*DX24)+(DY$19*DY24)+(DZ$19*DZ24)+(EA$19*EA24)+(EB$19*EB24)+(EC$19*EC24)+(ED$19*ED24)+(EE$19*EE24)+(EF$19*EF24)+(EG$19*EG24)+(EH$19*EH24)) -> 40.5 | EK24: 2 | EL24: 4 | EM24: 5 | EN24: 6 | EO24: 6 | EP24: 5 | FK24: =IF(OR('Set UP'!$C10=0,'Set UP'!$D10=0,'Set UP'!$E10=0),"",(EK$19*EK24)+(EL$19*EL24)+(EM$19*EM24)+(EN$19*EN24)+(EO$19*EO24)+(EP$19*EP24)+(EQ$19*EQ24)+(ER$19*ER24)+(ES$19*ES24)+(ET$19*ET24)+(EU$19*EU24)+(EV$19*EV24)+(EW$19*EW24)+(EX$19*EX24)+(EY$19*EY24)+(EZ$19*EZ24)+(FA$19*FA24)+(FB$19*FB24)+(FC$19*FC24)+(FD$19*FD24)+(FE$19*FE24)+(FF$19*FF24)+(FG$19*FG24)+(FH$19*FH24)+(FI$19*FI24)) -> 34 | GL24: =IF(OR('Set UP'!$C10=0,'Set UP'!$D10=0,'Set UP'!$E10=0),"",(FL$19*FL24)+(FM$19*FM24)+(FN$19*FN24)+(FO$19*FO24)+(FP$19*FP24)+(FQ$19*FQ24)+(FR$19*FR24)+(FS$19*FS24)+(FT$19*FT24)+(FU$19*FU24)+(FV$19*FV24)+(FW$19*FW24)+(FX$19*FX24)+(FY$19*FY24)+(FZ$19*FZ24)+(GA$19*GA24)+(GB$19*GB24)+(GC$19*GC24)+(GD$19*GD24)+(GE$19*GE24)+(GF$19*GF24)+(GG$19*GG24)+(GH$19*GH24)+(GI$19*GI24)+(GJ$19*GJ24)) -> 0 | HM24: =IF(OR('Set UP'!$C10=0,'Set UP'!$D10=0,'Set UP'!$E10=0),"",(GM$19*GM24)+(GN$19*GN24)+(GO$19*GO24)+(GP$19*GP24)+(GQ$19*GQ24)+(GR$19*GR24)+(GS$19*GS24)+(GT$19*GT24)+(GU$19*GU24)+(GV$19*GV24)+(GW$19*GW24)+(GX$19*GX24)+(GY$19*GY24)+(GZ$19*GZ24)+(HA$19*HA24)+(HB$19*HB24)+(HC$19*HC24)+(HD$19*HD24)+(HE$19*HE24)+(HF$19*HF24)+(HG$19*HG24)+(HH$19*HH24)+(HI$19*HI24)+(HJ$19*HJ24)+(HK$19*HK24)) -> 0 | IN24: =IF(OR('Set UP'!$C10=0,'Set UP'!$D10=0,'Set UP'!$E10=0),"",(HN$19*HN24)+(HO$19*HO24)+(HP$19*HP24)+(HQ$19*HQ24)+(HR$19*HR24)+(HS$19*HS24)+(HT$19*HT24)+(HU$19*HU24)+(HV$19*HV24)+(HW$19*HW24)+(HX$19*HX24)+(HY$19*HY24)+(HZ$19*HZ24)+(IA$19*IA24)+(IB$19*IB24)+(IC$19*IC24)+(ID$19*ID24)+(IE$19*IE24)+(IF$19*IF24)+(IG$19*IG24)+(IH$19*IH24)+(II$19*II24)+(IJ$19*IJ24)+(IK$19*IK24)+(IL$19*IL24)) -> 0 | JO24: =IF(OR('Set UP'!$C10=0,'Set UP'!$D10=0,'Set UP'!$E10=0),"",(IO$19*IO24)+(IP$19*IP24)+(IQ$19*IQ24)+(IR$19*IR24)+(IS$19*IS24)+(IT$19*IT24)+(IU$19*IU24)+(IV$19*IV24)+(IW$19*IW24)+(IX$19*IX24)+(IY$19*IY24)+(IZ$19*IZ24)+(JA$19*JA24)+(JB$19*JB24)+(JC$19*JC24)+(JD$19*JD24)+(JE$19*JE24)+(JF$19*JF24)+(JG$19*JG24)+(JH$19*JH24)+(JI$19*JI24)+(JJ$19*JJ24)+(JK$19*JK24)+(JL$19*JL24)+(JM$19*JM24)) -> 0 | JP24: =IF(OR('Set UP'!$C10=0,'Set UP'!$D10=0,'Set UP'!$E10=0),"",(AF24+BG24+CH24+DI24+EJ24+FK24+GL24+HM24+IN24+JO24)) -> 327.75 | JQ24: =IF(OR('Set UP'!$C10=0,'Set UP'!$D10=0,'Set UP'!$E10=0),"",RANK(JP24,$JP$21:$JP$68,0)) -> 15 | JR24: =IF(OR('Set UP'!K10<>1,'Set UP'!C10=0,'Set UP'!D10=0,'Set UP'!E10=0,'Set UP'!F10=0),"",$JP24) ->  | JS24: =IF(OR('Set UP'!K10<>1,'Set UP'!C10=0,'Set UP'!D10=0,'Set UP'!E10=0,'Set UP'!F10=0),"",RANK(JR24,$JR$21:$JR$68,0)) ->  | JT24: =IF(OR('Set UP'!K10<>2,'Set UP'!C10=0,'Set UP'!D10=0,'Set UP'!E10=0,'Set UP'!F10=0),"",$JP24) -> 327.75 | JU24: =IF(OR('Set UP'!K10<>2,'Set UP'!C10=0,'Set UP'!D10=0,'Set UP'!E10=0,'Set UP'!F10=0),"",RANK(JT24,$JT$21:$JT$68,0)) -> 11 | JV24: =IF(OR(LEFT('Set UP'!F10,1)<>"F",'Set UP'!C10=0,'Set UP'!D10=0,'Set UP'!E10=0),"",$JP24) ->  | JW24: =IF(OR(LEFT('Set UP'!F10,1)<>"F",'Set UP'!C10=0,'Set UP'!D10=0,'Set UP'!E10=0),"",RANK(JV24,$JV$21:$JV$68,0)) ->  | JX24: =IF(OR('Set UP'!F10<>"NS",'Set UP'!C10=0,'Set UP'!D10=0,'Set UP'!E10=0),"",$JP24) ->  | JY24: =IF(OR('Set UP'!F10<>"NS",'Set UP'!C10=0,'Set UP'!D10=0,'Set UP'!E10=0),"",RANK(JX24,$JX$21:$JX$68,0)) ->  | JZ24: =IF(OR('Set UP'!$C10=0,'Set UP'!$D10=0,'Set UP'!$E10=0,JP24=0),"",JP24/MAX(JP$21:JP$68)*1000) -> 820.4005006 | KC24: =MAX(IF(Clubs='Set UP'!D10,'Wet Incident'!JU$21:JU$68)) -> 21
B25: 5 | C25: =IF(OR('Set UP'!$C11=0,'Set UP'!$D11=0,'Set UP'!$E11=0,'Set UP'!F11=0)," --",'Set UP'!C11) -> 2385 | D25: =IF(OR('Set UP'!$C11=0,'Set UP'!$D11=0,'Set UP'!$E11=0,'Set UP'!F11=0)," --",'Set UP'!D11&" "&'Set UP'!E11) -> Swansea Universities Lifesaving B | E25: =IF(OR('Set UP'!$C11=0,'Set UP'!$D11=0,'Set UP'!$E11=0,'Set UP'!F11=0)," --",'Set UP'!F11) -> S | F25: 4 | G25: 4 | H25: 5 | I25: 7 | AF25: =IF(OR('Set UP'!$C11=0,'Set UP'!$D11=0,'Set UP'!$E11=0),"",(F$19*F25)+(G$19*G25)+(H$19*H25)+(I$19*I25)+(J$19*J25)+(K$19*K25)+(L$19*L25)+(M$19*M25)+(N$19*N25)+(O$19*O25)+(P$19*P25)+(Q$19*Q25)+(R$19*R25)+(S$19*S25)+(T$19*T25)+(U$19*U25)+(V$19*V25)+(W$19*W25)+(X$19*X25)+(Y$19*Y25)+(Z$19*Z25)+(AA$19*AA25)+(AB$19*AB25)+(AC$19*AC25)+(AD$19*AD25)) -> 53 | AG25: 10 | AH25: 10 | AI25: 3 | AJ25: 3 | AK25: 0 | AL25: 3 | BG25: =IF(OR('Set UP'!$C11=0,'Set UP'!$D11=0,'Set UP'!$E11=0),"",(AG$19*AG25)+(AH$19*AH25)+(AI$19*AI25)+(AJ$19*AJ25)+(AK$19*AK25)+(AL$19*AL25)+(AM$19*AM25)+(AN$19*AN25)+(AO$19*AO25)+(AP$19*AP25)+(AQ$19*AQ25)+(AR$19*AR25)+(AS$19*AS25)+(AT$19*AT25)+(AU$19*AU25)+(AV$19*AV25)+(AW$19*AW25)+(AX$19*AX25)+(AY$19*AY25)+(AZ$19*AZ25)+(BA$19*BA25)+(BB$19*BB25)+(BC$19*BC25)+(BD$19*BD25)+(BE$19*BE25)) -> 45 | BH25: 8 | BI25: 7 | BJ25: 0 | BK25: 1 | BL25: 3 | BM25: 1 | BN25: 0 | BO25: 3 | BP25: 1 | BQ25: 7 | CH25: =IF(OR('Set UP'!$C11=0,'Set UP'!$D11=0,'Set UP'!$E11=0),"",(BH$19*BH25)+(BI$19*BI25)+(BJ$19*BJ25)+(BK$19*BK25)+(BL$19*BL25)+(BM$19*BM25)+(BN$19*BN25)+(BO$19*BO25)+(BP$19*BP25)+(BQ$19*BQ25)+(BR$19*BR25)+(BS$19*BS25)+(BT$19*BT25)+(BU$19*BU25)+(BV$19*BV25)+(BW$19*BW25)+(BX$19*BX25)+(BY$19*BY25)+(BZ$19*BZ25)+(CA$19*CA25)+(CB$19*CB25)+(CC$19*CC25)+(CD$19*CD25)+(CE$19*CE25)+(CF$19*CF25)) -> 36.75 | CI25: 6 | CJ25: 2 | CK25: 3 | CL25: 0 | DI25: =IF(OR('Set UP'!$C11=0,'Set UP'!$D11=0,'Set UP'!$E11=0),"",(CI$19*CI25)+(CJ$19*CJ25)+(CK$19*CK25)+(CL$19*CL25)+(CM$19*CM25)+(CN$19*CN25)+(CO$19*CO25)+(CP$19*CP25)+(CQ$19*CQ25)+(CR$19*CR25)+(CS$19*CS25)+(CT$19*CT25)+(CU$19*CU25)+(CV$19*CV25)+(CW$19*CW25)+(CX$19*CX25)+(CY$19*CY25)+(CZ$19*CZ25)+(DA$19*DA25)+(DB$19*DB25)+(DC$19*DC25)+(DD$19*DD25)+(DE$19*DE25)+(DF$19*DF25)+(DG$19*DG25)) -> 26 | DJ25: 5 | DK25: 4 | DL25: 5 | DM25: 0 | DN25: 8 | DO25: 6 | DP25: 1 | EJ25: =IF(OR('Set UP'!$C11=0,'Set UP'!$D11=0,'Set UP'!$E11=0),"",(DJ$19*DJ25)+(DK$19*DK25)+(DL$19*DL25)+(DM$19*DM25)+(DN$19*DN25)+(DO$19*DO25)+(DP$19*DP25)+(DQ$19*DQ25)+(DR$19*DR25)+(DS$19*DS25)+(DT$19*DT25)+(DU$19*DU25)+(DV$19*DV25)+(DW$19*DW25)+(DX$19*DX25)+(DY$19*DY25)+(DZ$19*DZ25)+(EA$19*EA25)+(EB$19*EB25)+(EC$19*EC25)+(ED$19*ED25)+(EE$19*EE25)+(EF$19*EF25)+(EG$19*EG25)+(EH$19*EH25)) -> 41 | EK25: 3 | EL25: 3 | EM25: 3 | EN25: 3 | EO25: 3 | EP25: 5 | FK25: =IF(OR('Set UP'!$C11=0,'Set UP'!$D11=0,'Set UP'!$E11=0),"",(EK$19*EK25)+(EL$19*EL25)+(EM$19*EM25)+(EN$19*EN25)+(EO$19*EO25)+(EP$19*EP25)+(EQ$19*EQ25)+(ER$19*ER25)+(ES$19*ES25)+(ET$19*ET25)+(EU$19*EU25)+(EV$19*EV25)+(EW$19*EW25)+(EX$19*EX25)+(EY$19*EY25)+(EZ$19*EZ25)+(FA$19*FA25)+(FB$19*FB25)+(FC$19*FC25)+(FD$19*FD25)+(FE$19*FE25)+(FF$19*FF25)+(FG$19*FG25)+(FH$19*FH25)+(FI$19*FI25)) -> 22.25 | GL25: =IF(OR('Set UP'!$C11=0,'Set UP'!$D11=0,'Set UP'!$E11=0),"",(FL$19*FL25)+(FM$19*FM25)+(FN$19*FN25)+(FO$19*FO25)+(FP$19*FP25)+(FQ$19*FQ25)+(FR$19*FR25)+(FS$19*FS25)+(FT$19*FT25)+(FU$19*FU25)+(FV$19*FV25)+(FW$19*FW25)+(FX$19*FX25)+(FY$19*FY25)+(FZ$19*FZ25)+(GA$19*GA25)+(GB$19*GB25)+(GC$19*GC25)+(GD$19*GD25)+(GE$19*GE25)+(GF$19*GF25)+(GG$19*GG25)+(GH$19*GH25)+(GI$19*GI25)+(GJ$19*GJ25)) -> 0 | HM25: =IF(OR('Set UP'!$C11=0,'Set UP'!$D11=0,'Set UP'!$E11=0),"",(GM$19*GM25)+(GN$19*GN25)+(GO$19*GO25)+(GP$19*GP25)+(GQ$19*GQ25)+(GR$19*GR25)+(GS$19*GS25)+(GT$19*GT25)+(GU$19*GU25)+(GV$19*GV25)+(GW$19*GW25)+(GX$19*GX25)+(GY$19*GY25)+(GZ$19*GZ25)+(HA$19*HA25)+(HB$19*HB25)+(HC$19*HC25)+(HD$19*HD25)+(HE$19*HE25)+(HF$19*HF25)+(HG$19*HG25)+(HH$19*HH25)+(HI$19*HI25)+(HJ$19*HJ25)+(HK$19*HK25)) -> 0 | IN25: =IF(OR('Set UP'!$C11=0,'Set UP'!$D11=0,'Set UP'!$E11=0),"",(HN$19*HN25)+(HO$19*HO25)+(HP$19*HP25)+(HQ$19*HQ25)+(HR$19*HR25)+(HS$19*HS25)+(HT$19*HT25)+(HU$19*HU25)+(HV$19*HV25)+(HW$19*HW25)+(HX$19*HX25)+(HY$19*HY25)+(HZ$19*HZ25)+(IA$19*IA25)+(IB$19*IB25)+(IC$19*IC25)+(ID$19*ID25)+(IE$19*IE25)+(IF$19*IF25)+(IG$19*IG25)+(IH$19*IH25)+(II$19*II25)+(IJ$19*IJ25)+(IK$19*IK25)+(IL$19*IL25)) -> 0 | JO25: =IF(OR('Set UP'!$C11=0,'Set UP'!$D11=0,'Set UP'!$E11=0),"",(IO$19*IO25)+(IP$19*IP25)+(IQ$19*IQ25)+(IR$19*IR25)+(IS$19*IS25)+(IT$19*IT25)+(IU$19*IU25)+(IV$19*IV25)+(IW$19*IW25)+(IX$19*IX25)+(IY$19*IY25)+(IZ$19*IZ25)+(JA$19*JA25)+(JB$19*JB25)+(JC$19*JC25)+(JD$19*JD25)+(JE$19*JE25)+(JF$19*JF25)+(JG$19*JG25)+(JH$19*JH25)+(JI$19*JI25)+(JJ$19*JJ25)+(JK$19*JK25)+(JL$19*JL25)+(JM$19*JM25)) -> 0 | JP25: =IF(OR('Set UP'!$C11=0,'Set UP'!$D11=0,'Set UP'!$E11=0),"",(AF25+BG25+CH25+DI25+EJ25+FK25+GL25+HM25+IN25+JO25)) -> 224 | JQ25: =IF(OR('Set UP'!$C11=0,'Set UP'!$D11=0,'Set UP'!$E11=0),"",RANK(JP25,$JP$21:$JP$68,0)) -> 27 | JR25: =IF(OR('Set UP'!K11<>1,'Set UP'!C11=0,'Set UP'!D11=0,'Set UP'!E11=0,'Set UP'!F11=0),"",$JP25) ->  | JS25: =IF(OR('Set UP'!K11<>1,'Set UP'!C11=0,'Set UP'!D11=0,'Set UP'!E11=0,'Set UP'!F11=0),"",RANK(JR25,$JR$21:$JR$68,0)) ->  | JT25: =IF(OR('Set UP'!K11<>2,'Set UP'!C11=0,'Set UP'!D11=0,'Set UP'!E11=0,'Set UP'!F11=0),"",$JP25) -> 224 | JU25: =IF(OR('Set UP'!K11<>2,'Set UP'!C11=0,'Set UP'!D11=0,'Set UP'!E11=0,'Set UP'!F11=0),"",RANK(JT25,$JT$21:$JT$68,0)) -> 21 | JV25: =IF(OR(LEFT('Set UP'!F11,1)<>"F",'Set UP'!C11=0,'Set UP'!D11=0,'Set UP'!E11=0),"",$JP25) ->  | JW25: =IF(OR(LEFT('Set UP'!F11,1)<>"F",'Set UP'!C11=0,'Set UP'!D11=0,'Set UP'!E11=0),"",RANK(JV25,$JV$21:$JV$68,0)) ->  | JX25: =IF(OR('Set UP'!F11<>"NS",'Set UP'!C11=0,'Set UP'!D11=0,'Set UP'!E11=0),"",$JP25) ->  | JY25: =IF(OR('Set UP'!F11<>"NS",'Set UP'!C11=0,'Set UP'!D11=0,'Set UP'!E11=0),"",RANK(JX25,$JX$21:$JX$68,0)) ->  | JZ25: =IF(OR('Set UP'!$C11=0,'Set UP'!$D11=0,'Set UP'!$E11=0,JP25=0),"",JP25/MAX(JP$21:JP$68)*1000) -> 560.7008761 | KC25: =MAX(IF(Clubs='Set UP'!D11,'Wet Incident'!JU$21:JU$68)) -> 21 | KD25: 21
B26: 6 | C26: =IF(OR('Set UP'!$C12=0,'Set UP'!$D12=0,'Set UP'!$E12=0,'Set UP'!F12=0)," --",'Set UP'!C12) -> 2384 | D26: =IF(OR('Set UP'!$C12=0,'Set UP'!$D12=0,'Set UP'!$E12=0,'Set UP'!F12=0)," --",'Set UP'!D12&" "&'Set UP'!E12) -> Swansea Universities Lifesaving A | E26: =IF(OR('Set UP'!$C12=0,'Set UP'!$D12=0,'Set UP'!$E12=0,'Set UP'!F12=0)," --",'Set UP'!F12) -> S | F26: 8 | G26: 6 | H26: 5 | I26: 7 | AF26: =IF(OR('Set UP'!$C12=0,'Set UP'!$D12=0,'Set UP'!$E12=0),"",(F$19*F26)+(G$19*G26)+(H$19*H26)+(I$19*I26)+(J$19*J26)+(K$19*K26)+(L$19*L26)+(M$19*M26)+(N$19*N26)+(O$19*O26)+(P$19*P26)+(Q$19*Q26)+(R$19*R26)+(S$19*S26)+(T$19*T26)+(U$19*U26)+(V$19*V26)+(W$19*W26)+(X$19*X26)+(Y$19*Y26)+(Z$19*Z26)+(AA$19*AA26)+(AB$19*AB26)+(AC$19*AC26)+(AD$19*AD26)) -> 69 | AG26: 10 | AH26: 10 | AI26: 10 | AJ26: 10 | AK26: 2 | AL26: 5 | BG26: =IF(OR('Set UP'!$C12=0,'Set UP'!$D12=0,'Set UP'!$E12=0),"",(AG$19*AG26)+(AH$19*AH26)+(AI$19*AI26)+(AJ$19*AJ26)+(AK$19*AK26)+(AL$19*AL26)+(AM$19*AM26)+(AN$19*AN26)+(AO$19*AO26)+(AP$19*AP26)+(AQ$19*AQ26)+(AR$19*AR26)+(AS$19*AS26)+(AT$19*AT26)+(AU$19*AU26)+(AV$19*AV26)+(AW$19*AW26)+(AX$19*AX26)+(AY$19*AY26)+(AZ$19*AZ26)+(BA$19*BA26)+(BB$19*BB26)+(BC$19*BC26)+(BD$19*BD26)+(BE$19*BE26)) -> 75.5 | BH26: 9 | BI26: 4 | BJ26: 0 | BK26: 2 | BL26: 8 | BM26: 1 | BN26: 3 | BO26: 6 | BP26: 4 | BQ26: 0 | CH26: =IF(OR('Set UP'!$C12=0,'Set UP'!$D12=0,'Set UP'!$E12=0),"",(BH$19*BH26)+(BI$19*BI26)+(BJ$19*BJ26)+(BK$19*BK26)+(BL$19*BL26)+(BM$19*BM26)+(BN$19*BN26)+(BO$19*BO26)+(BP$19*BP26)+(BQ$19*BQ26)+(BR$19*BR26)+(BS$19*BS26)+(BT$19*BT26)+(BU$19*BU26)+(BV$19*BV26)+(BW$19*BW26)+(BX$19*BX26)+(BY$19*BY26)+(BZ$19*BZ26)+(CA$19*CA26)+(CB$19*CB26)+(CC$19*CC26)+(CD$19*CD26)+(CE$19*CE26)+(CF$19*CF26)) -> 47.5 | CI26: 8 | CJ26: 7 | CK26: 6 | CL26: 2 | DI26: =IF(OR('Set UP'!$C12=0,'Set UP'!$D12=0,'Set UP'!$E12=0),"",(CI$19*CI26)+(CJ$19*CJ26)+(CK$19*CK26)+(CL$19*CL26)+(CM$19*CM26)+(CN$19*CN26)+(CO$19*CO26)+(CP$19*CP26)+(CQ$19*CQ26)+(CR$19*CR26)+(CS$19*CS26)+(CT$19*CT26)+(CU$19*CU26)+(CV$19*CV26)+(CW$19*CW26)+(CX$19*CX26)+(CY$19*CY26)+(CZ$19*CZ26)+(DA$19*DA26)+(DB$19*DB26)+(DC$19*DC26)+(DD$19*DD26)+(DE$19*DE26)+(DF$19*DF26)+(DG$19*DG26)) -> 54.5 | DJ26: 5 | DK26: 1 | DL26: 2 | DM26: 0 | DN26: 2 | DO26: 2 | DP26: 4 | EJ26: =IF(OR('Set UP'!$C12=0,'Set UP'!$D12=0,'Set UP'!$E12=0),"",(DJ$19*DJ26)+(DK$19*DK26)+(DL$19*DL26)+(DM$19*DM26)+(DN$19*DN26)+(DO$19*DO26)+(DP$19*DP26)+(DQ$19*DQ26)+(DR$19*DR26)+(DS$19*DS26)+(DT$19*DT26)+(DU$19*DU26)+(DV$19*DV26)+(DW$19*DW26)+(DX$19*DX26)+(DY$19*DY26)+(DZ$19*DZ26)+(EA$19*EA26)+(EB$19*EB26)+(EC$19*EC26)+(ED$19*ED26)+(EE$19*EE26)+(EF$19*EF26)+(EG$19*EG26)+(EH$19*EH26)) -> 20 | EK26: 2 | EL26: 3 | EM26: 3 | EN26: 4 | EO26: 4 | EP26: 4 | FK26: =IF(OR('Set UP'!$C12=0,'Set UP'!$D12=0,'Set UP'!$E12=0),"",(EK$19*EK26)+(EL$19*EL26)+(EM$19*EM26)+(EN$19*EN26)+(EO$19*EO26)+(EP$19*EP26)+(EQ$19*EQ26)+(ER$19*ER26)+(ES$19*ES26)+(ET$19*ET26)+(EU$19*EU26)+(EV$19*EV26)+(EW$19*EW26)+(EX$19*EX26)+(EY$19*EY26)+(EZ$19*EZ26)+(FA$19*FA26)+(FB$19*FB26)+(FC$19*FC26)+(FD$19*FD26)+(FE$19*FE26)+(FF$19*FF26)+(FG$19*FG26)+(FH$19*FH26)+(FI$19*FI26)) -> 24 | GL26: =IF(OR('Set UP'!$C12=0,'Set UP'!$D12=0,'Set UP'!$E12=0),"",(FL$19*FL26)+(FM$19*FM26)+(FN$19*FN26)+(FO$19*FO26)+(FP$19*FP26)+(FQ$19*FQ26)+(FR$19*FR26)+(FS$19*FS26)+(FT$19*FT26)+(FU$19*FU26)+(FV$19*FV26)+(FW$19*FW26)+(FX$19*FX26)+(FY$19*FY26)+(FZ$19*FZ26)+(GA$19*GA26)+(GB$19*GB26)+(GC$19*GC26)+(GD$19*GD26)+(GE$19*GE26)+(GF$19*GF26)+(GG$19*GG26)+(GH$19*GH26)+(GI$19*GI26)+(GJ$19*GJ26)) -> 0 | HM26: =IF(OR('Set UP'!$C12=0,'Set UP'!$D12=0,'Set UP'!$E12=0),"",(GM$19*GM26)+(GN$19*GN26)+(GO$19*GO26)+(GP$19*GP26)+(GQ$19*GQ26)+(GR$19*GR26)+(GS$19*GS26)+(GT$19*GT26)+(GU$19*GU26)+(GV$19*GV26)+(GW$19*GW26)+(GX$19*GX26)+(GY$19*GY26)+(GZ$19*GZ26)+(HA$19*HA26)+(HB$19*HB26)+(HC$19*HC26)+(HD$19*HD26)+(HE$19*HE26)+(HF$19*HF26)+(HG$19*HG26)+(HH$19*HH26)+(HI$19*HI26)+(HJ$19*HJ26)+(HK$19*HK26)) -> 0 | IN26: =IF(OR('Set UP'!$C12=0,'Set UP'!$D12=0,'Set UP'!$E12=0),"",(HN$19*HN26)+(HO$19*HO26)+(HP$19*HP26)+(HQ$19*HQ26)+(HR$19*HR26)+(HS$19*HS26)+(HT$19*HT26)+(HU$19*HU26)+(HV$19*HV26)+(HW$19*HW26)+(HX$19*HX26)+(HY$19*HY26)+(HZ$19*HZ26)+(IA$19*IA26)+(IB$19*IB26)+(IC$19*IC26)+(ID$19*ID26)+(IE$19*IE26)+(IF$19*IF26)+(IG$19*IG26)+(IH$19*IH26)+(II$19*II26)+(IJ$19*IJ26)+(IK$19*IK26)+(IL$19*IL26)) -> 0 | JO26: =IF(OR('Set UP'!$C12=0,'Set UP'!$D12=0,'Set UP'!$E12=0),"",(IO$19*IO26)+(IP$19*IP26)+(IQ$19*IQ26)+(IR$19*IR26)+(IS$19*IS26)+(IT$19*IT26)+(IU$19*IU26)+(IV$19*IV26)+(IW$19*IW26)+(IX$19*IX26)+(IY$19*IY26)+(IZ$19*IZ26)+(JA$19*JA26)+(JB$19*JB26)+(JC$19*JC26)+(JD$19*JD26)+(JE$19*JE26)+(JF$19*JF26)+(JG$19*JG26)+(JH$19*JH26)+(JI$19*JI26)+(JJ$19*JJ26)+(JK$19*JK26)+(JL$19*JL26)+(JM$19*JM26)) -> 0 | JP26: =IF(OR('Set UP'!$C12=0,'Set UP'!$D12=0,'Set UP'!$E12=0),"",(AF26+BG26+CH26+DI26+EJ26+FK26+GL26+HM26+IN26+JO26)) -> 290.5 | JQ26: =IF(OR('Set UP'!$C12=0,'Set UP'!$D12=0,'Set UP'!$E12=0),"",RANK(JP26,$JP$21:$JP$68,0)) -> 24 | JR26: =IF(OR('Set UP'!K12<>1,'Set UP'!C12=0,'Set UP'!D12=0,'Set UP'!E12=0,'Set UP'!F12=0),"",$JP26) ->  | JS26: =IF(OR('Set UP'!K12<>1,'Set UP'!C12=0,'Set UP'!D12=0,'Set UP'!E12=0,'Set UP'!F12=0),"",RANK(JR26,$JR$21:$JR$68,0)) ->  | JT26: =IF(OR('Set UP'!K12<>2,'Set UP'!C12=0,'Set UP'!D12=0,'Set UP'!E12=0,'Set UP'!F12=0),"",$JP26) -> 290.5 | JU26: =IF(OR('Set UP'!K12<>2,'Set UP'!C12=0,'Set UP'!D12=0,'Set UP'!E12=0,'Set UP'!F12=0),"",RANK(JT26,$JT$21:$JT$68,0)) -> 18 | JV26: =IF(OR(LEFT('Set UP'!F12,1)<>"F",'Set UP'!C12=0,'Set UP'!D12=0,'Set UP'!E12=0),"",$JP26) ->  | JW26: =IF(OR(LEFT('Set UP'!F12,1)<>"F",'Set UP'!C12=0,'Set UP'!D12=0,'Set UP'!E12=0),"",RANK(JV26,$JV$21:$JV$68,0)) ->  | JX26: =IF(OR('Set UP'!F12<>"NS",'Set UP'!C12=0,'Set UP'!D12=0,'Set UP'!E12=0),"",$JP26) ->  | JY26: =IF(OR('Set UP'!F12<>"NS",'Set UP'!C12=0,'Set UP'!D12=0,'Set UP'!E12=0),"",RANK(JX26,$JX$21:$JX$68,0)) ->  | JZ26: =IF(OR('Set UP'!$C12=0,'Set UP'!$D12=0,'Set UP'!$E12=0,JP26=0),"",JP26/MAX(JP$21:JP$68)*1000) -> 727.1589487 | KC26: =MAX(IF(Clubs='Set UP'!D12,'Wet Incident'!JU$21:JU$68)) -> 21
B27: 7 | C27: =IF(OR('Set UP'!$C13=0,'Set UP'!$D13=0,'Set UP'!$E13=0,'Set UP'!F13=0)," --",'Set UP'!C13) -> 2377 | D27: =IF(OR('Set UP'!$C13=0,'Set UP'!$D13=0,'Set UP'!$E13=0,'Set UP'!F13=0)," --",'Set UP'!D13&" "&'Set UP'!E13) -> University of Sheffield C | E27: =IF(OR('Set UP'!$C13=0,'Set UP'!$D13=0,'Set UP'!$E13=0,'Set UP'!F13=0)," --",'Set UP'!F13) -> NC | F27: 6 | G27: 7 | H27: 7 | I27: 7 | AF27: =IF(OR('Set UP'!$C13=0,'Set UP'!$D13=0,'Set UP'!$E13=0),"",(F$19*F27)+(G$19*G27)+(H$19*H27)+(I$19*I27)+(J$19*J27)+(K$19*K27)+(L$19*L27)+(M$19*M27)+(N$19*N27)+(O$19*O27)+(P$19*P27)+(Q$19*Q27)+(R$19*R27)+(S$19*S27)+(T$19*T27)+(U$19*U27)+(V$19*V27)+(W$19*W27)+(X$19*X27)+(Y$19*Y27)+(Z$19*Z27)+(AA$19*AA27)+(AB$19*AB27)+(AC$19*AC27)+(AD$19*AD27)) -> 71 | AG27: 10 | AH27: 8 | AI27: 10 | AJ27: 10 | AK27: 2 | AL27: 0 | BG27: =IF(OR('Set UP'!$C13=0,'Set UP'!$D13=0,'Set UP'!$E13=0),"",(AG$19*AG27)+(AH$19*AH27)+(AI$19*AI27)+(AJ$19*AJ27)+(AK$19*AK27)+(AL$19*AL27)+(AM$19*AM27)+(AN$19*AN27)+(AO$19*AO27)+(AP$19*AP27)+(AQ$19*AQ27)+(AR$19*AR27)+(AS$19*AS27)+(AT$19*AT27)+(AU$19*AU27)+(AV$19*AV27)+(AW$19*AW27)+(AX$19*AX27)+(AY$19*AY27)+(AZ$19*AZ27)+(BA$19*BA27)+(BB$19*BB27)+(BC$19*BC27)+(BD$19*BD27)+(BE$19*BE27)) -> 65 | BH27: 9 | BI27: 6 | BJ27: 3 | BK27: 1 | BL27: 9 | BM27: 7 | BN27: 1 | BO27: 4 | BP27: 1 | BQ27: 1 | CH27: =IF(OR('Set UP'!$C13=0,'Set UP'!$D13=0,'Set UP'!$E13=0),"",(BH$19*BH27)+(BI$19*BI27)+(BJ$19*BJ27)+(BK$19*BK27)+(BL$19*BL27)+(BM$19*BM27)+(BN$19*BN27)+(BO$19*BO27)+(BP$19*BP27)+(BQ$19*BQ27)+(BR$19*BR27)+(BS$19*BS27)+(BT$19*BT27)+(BU$19*BU27)+(BV$19*BV27)+(BW$19*BW27)+(BX$19*BX27)+(BY$19*BY27)+(BZ$19*BZ27)+(CA$19*CA27)+(CB$19*CB27)+(CC$19*CC27)+(CD$19*CD27)+(CE$19*CE27)+(CF$19*CF27)) -> 66 | CI27: 7 | CJ27: 5 | CK27: 9 | CL27: 0 | DI27: =IF(OR('Set UP'!$C13=0,'Set UP'!$D13=0,'Set UP'!$E13=0),"",(CI$19*CI27)+(CJ$19*CJ27)+(CK$19*CK27)+(CL$19*CL27)+(CM$19*CM27)+(CN$19*CN27)+(CO$19*CO27)+(CP$19*CP27)+(CQ$19*CQ27)+(CR$19*CR27)+(CS$19*CS27)+(CT$19*CT27)+(CU$19*CU27)+(CV$19*CV27)+(CW$19*CW27)+(CX$19*CX27)+(CY$19*CY27)+(CZ$19*CZ27)+(DA$19*DA27)+(DB$19*DB27)+(DC$19*DC27)+(DD$19*DD27)+(DE$19*DE27)+(DF$19*DF27)+(DG$19*DG27)) -> 59 | DJ27: 5 | DK27: 6 | DL27: 5 | DM27: 3 | DN27: 7 | DO27: 2 | DP27: 3 | EJ27: =IF(OR('Set UP'!$C13=0,'Set UP'!$D13=0,'Set UP'!$E13=0),"",(DJ$19*DJ27)+(DK$19*DK27)+(DL$19*DL27)+(DM$19*DM27)+(DN$19*DN27)+(DO$19*DO27)+(DP$19*DP27)+(DQ$19*DQ27)+(DR$19*DR27)+(DS$19*DS27)+(DT$19*DT27)+(DU$19*DU27)+(DV$19*DV27)+(DW$19*DW27)+(DX$19*DX27)+(DY$19*DY27)+(DZ$19*DZ27)+(EA$19*EA27)+(EB$19*EB27)+(EC$19*EC27)+(ED$19*ED27)+(EE$19*EE27)+(EF$19*EF27)+(EG$19*EG27)+(EH$19*EH27)) -> 41 | EK27: 2 | EL27: 2 | EM27: 3 | EN27: 5 | EO27: 7 | EP27: 4 | FK27: =IF(OR('Set UP'!$C13=0,'Set UP'!$D13=0,'Set UP'!$E13=0),"",(EK$19*EK27)+(EL$19*EL27)+(EM$19*EM27)+(EN$19*EN27)+(EO$19*EO27)+(EP$19*EP27)+(EQ$19*EQ27)+(ER$19*ER27)+(ES$19*ES27)+(ET$19*ET27)+(EU$19*EU27)+(EV$19*EV27)+(EW$19*EW27)+(EX$19*EX27)+(EY$19*EY27)+(EZ$19*EZ27)+(FA$19*FA27)+(FB$19*FB27)+(FC$19*FC27)+(FD$19*FD27)+(FE$19*FE27)+(FF$19*FF27)+(FG$19*FG27)+(FH$19*FH27)+(FI$19*FI27)) -> 31.5 | GL27: =IF(OR('Set UP'!$C13=0,'Set UP'!$D13=0,'Set UP'!$E13=0),"",(FL$19*FL27)+(FM$19*FM27)+(FN$19*FN27)+(FO$19*FO27)+(FP$19*FP27)+(FQ$19*FQ27)+(FR$19*FR27)+(FS$19*FS27)+(FT$19*FT27)+(FU$19*FU27)+(FV$19*FV27)+(FW$19*FW27)+(FX$19*FX27)+(FY$19*FY27)+(FZ$19*FZ27)+(GA$19*GA27)+(GB$19*GB27)+(GC$19*GC27)+(GD$19*GD27)+(GE$19*GE27)+(GF$19*GF27)+(GG$19*GG27)+(GH$19*GH27)+(GI$19*GI27)+(GJ$19*GJ27)) -> 0 | HM27: =IF(OR('Set UP'!$C13=0,'Set UP'!$D13=0,'Set UP'!$E13=0),"",(GM$19*GM27)+(GN$19*GN27)+(GO$19*GO27)+(GP$19*GP27)+(GQ$19*GQ27)+(GR$19*GR27)+(GS$19*GS27)+(GT$19*GT27)+(GU$19*GU27)+(GV$19*GV27)+(GW$19*GW27)+(GX$19*GX27)+(GY$19*GY27)+(GZ$19*GZ27)+(HA$19*HA27)+(HB$19*HB27)+(HC$19*HC27)+(HD$19*HD27)+(HE$19*HE27)+(HF$19*HF27)+(HG$19*HG27)+(HH$19*HH27)+(HI$19*HI27)+(HJ$19*HJ27)+(HK$19*HK27)) -> 0 | IN27: =IF(OR('Set UP'!$C13=0,'Set UP'!$D13=0,'Set UP'!$E13=0),"",(HN$19*HN27)+(HO$19*HO27)+(HP$19*HP27)+(HQ$19*HQ27)+(HR$19*HR27)+(HS$19*HS27)+(HT$19*HT27)+(HU$19*HU27)+(HV$19*HV27)+(HW$19*HW27)+(HX$19*HX27)+(HY$19*HY27)+(HZ$19*HZ27)+(IA$19*IA27)+(IB$19*IB27)+(IC$19*IC27)+(ID$19*ID27)+(IE$19*IE27)+(IF$19*IF27)+(IG$19*IG27)+(IH$19*IH27)+(II$19*II27)+(IJ$19*IJ27)+(IK$19*IK27)+(IL$19*IL27)) -> 0 | JO27: =IF(OR('Set UP'!$C13=0,'Set UP'!$D13=0,'Set UP'!$E13=0),"",(IO$19*IO27)+(IP$19*IP27)+(IQ$19*IQ27)+(IR$19*IR27)+(IS$19*IS27)+(IT$19*IT27)+(IU$19*IU27)+(IV$19*IV27)+(IW$19*IW27)+(IX$19*IX27)+(IY$19*IY27)+(IZ$19*IZ27)+(JA$19*JA27)+(JB$19*JB27)+(JC$19*JC27)+(JD$19*JD27)+(JE$19*JE27)+(JF$19*JF27)+(JG$19*JG27)+(JH$19*JH27)+(JI$19*JI27)+(JJ$19*JJ27)+(JK$19*JK27)+(JL$19*JL27)+(JM$19*JM27)) -> 0 | JP27: =IF(OR('Set UP'!$C13=0,'Set UP'!$D13=0,'Set UP'!$E13=0),"",(AF27+BG27+CH27+DI27+EJ27+FK27+GL27+HM27+IN27+JO27)) -> 333.5 | JQ27: =IF(OR('Set UP'!$C13=0,'Set UP'!$D13=0,'Set UP'!$E13=0),"",RANK(JP27,$JP$21:$JP$68,0)) -> 12 | JR27: =IF(OR('Set UP'!K13<>1,'Set UP'!C13=0,'Set UP'!D13=0,'Set UP'!E13=0,'Set UP'!F13=0),"",$JP27) ->  | JS27: =IF(OR('Set UP'!K13<>1,'Set UP'!C13=0,'Set UP'!D13=0,'Set UP'!E13=0,'Set UP'!F13=0),"",RANK(JR27,$JR$21:$JR$68,0)) ->  | JT27: =IF(OR('Set UP'!K13<>2,'Set UP'!C13=0,'Set UP'!D13=0,'Set UP'!E13=0,'Set UP'!F13=0),"",$JP27) ->  | JU27: =IF(OR('Set UP'!K13<>2,'Set UP'!C13=0,'Set UP'!D13=0,'Set UP'!E13=0,'Set UP'!F13=0),"",RANK(JT27,$JT$21:$JT$68,0)) ->  | JV27: =IF(OR(LEFT('Set UP'!F13,1)<>"F",'Set UP'!C13=0,'Set UP'!D13=0,'Set UP'!E13=0),"",$JP27) ->  | JW27: =IF(OR(LEFT('Set UP'!F13,1)<>"F",'Set UP'!C13=0,'Set UP'!D13=0,'Set UP'!E13=0),"",RANK(JV27,$JV$21:$JV$68,0)) ->  | JX27: =IF(OR('Set UP'!F13<>"NS",'Set UP'!C13=0,'Set UP'!D13=0,'Set UP'!E13=0),"",$JP27) ->  | JY27: =IF(OR('Set UP'!F13<>"NS",'Set UP'!C13=0,'Set UP'!D13=0,'Set UP'!E13=0),"",RANK(JX27,$JX$21:$JX$68,0)) ->  | JZ27: =IF(OR('Set UP'!$C13=0,'Set UP'!$D13=0,'Set UP'!$E13=0,JP27=0),"",JP27/MAX(JP$21:JP$68)*1000) -> 834.7934919 | KC27: =MAX(IF(Clubs='Set UP'!D13,'Wet Incident'!JU$21:JU$68)) -> 9
B28: 8 | C28: =IF(OR('Set UP'!$C14=0,'Set UP'!$D14=0,'Set UP'!$E14=0,'Set UP'!F14=0)," --",'Set UP'!C14) -> 2394 | D28: =IF(OR('Set UP'!$C14=0,'Set UP'!$D14=0,'Set UP'!$E14=0,'Set UP'!F14=0)," --",'Set UP'!D14&" "&'Set UP'!E14) -> University of Warwick B | E28: =IF(OR('Set UP'!$C14=0,'Set UP'!$D14=0,'Set UP'!$E14=0,'Set UP'!F14=0)," --",'Set UP'!F14) -> S | F28: 8 | G28: 7 | H28: 8 | I28: 8 | AF28: =IF(OR('Set UP'!$C14=0,'Set UP'!$D14=0,'Set UP'!$E14=0),"",(F$19*F28)+(G$19*G28)+(H$19*H28)+(I$19*I28)+(J$19*J28)+(K$19*K28)+(L$19*L28)+(M$19*M28)+(N$19*N28)+(O$19*O28)+(P$19*P28)+(Q$19*Q28)+(R$19*R28)+(S$19*S28)+(T$19*T28)+(U$19*U28)+(V$19*V28)+(W$19*W28)+(X$19*X28)+(Y$19*Y28)+(Z$19*Z28)+(AA$19*AA28)+(AB$19*AB28)+(AC$19*AC28)+(AD$19*AD28)) -> 81 | AG28: 10 | AH28: 10 | AI28: 6 | AJ28: 9 | AK28: 0 | AL28: 6 | BG28: =IF(OR('Set UP'!$C14=0,'Set UP'!$D14=0,'Set UP'!$E14=0),"",(AG$19*AG28)+(AH$19*AH28)+(AI$19*AI28)+(AJ$19*AJ28)+(AK$19*AK28)+(AL$19*AL28)+(AM$19*AM28)+(AN$19*AN28)+(AO$19*AO28)+(AP$19*AP28)+(AQ$19*AQ28)+(AR$19*AR28)+(AS$19*AS28)+(AT$19*AT28)+(AU$19*AU28)+(AV$19*AV28)+(AW$19*AW28)+(AX$19*AX28)+(AY$19*AY28)+(AZ$19*AZ28)+(BA$19*BA28)+(BB$19*BB28)+(BC$19*BC28)+(BD$19*BD28)+(BE$19*BE28)) -> 64.5 | BH28: 8 | BI28: 1 | BJ28: 0 | BK28: 1 | BL28: 8 | BM28: 3 | BN28: 2 | BO28: 7 | BP28: 3 | BQ28: 3 | CH28: =IF(OR('Set UP'!$C14=0,'Set UP'!$D14=0,'Set UP'!$E14=0),"",(BH$19*BH28)+(BI$19*BI28)+(BJ$19*BJ28)+(BK$19*BK28)+(BL$19*BL28)+(BM$19*BM28)+(BN$19*BN28)+(BO$19*BO28)+(BP$19*BP28)+(BQ$19*BQ28)+(BR$19*BR28)+(BS$19*BS28)+(BT$19*BT28)+(BU$19*BU28)+(BV$19*BV28)+(BW$19*BW28)+(BX$19*BX28)+(BY$19*BY28)+(BZ$19*BZ28)+(CA$19*CA28)+(CB$19*CB28)+(CC$19*CC28)+(CD$19*CD28)+(CE$19*CE28)+(CF$19*CF28)) -> 45.75 | CI28: 7 | CJ28: 4 | CK28: 7 | CL28: 0 | DI28: =IF(OR('Set UP'!$C14=0,'Set UP'!$D14=0,'Set UP'!$E14=0),"",(CI$19*CI28)+(CJ$19*CJ28)+(CK$19*CK28)+(CL$19*CL28)+(CM$19*CM28)+(CN$19*CN28)+(CO$19*CO28)+(CP$19*CP28)+(CQ$19*CQ28)+(CR$19*CR28)+(CS$19*CS28)+(CT$19*CT28)+(CU$19*CU28)+(CV$19*CV28)+(CW$19*CW28)+(CX$19*CX28)+(CY$19*CY28)+(CZ$19*CZ28)+(DA$19*DA28)+(DB$19*DB28)+(DC$19*DC28)+(DD$19*DD28)+(DE$19*DE28)+(DF$19*DF28)+(DG$19*DG28)) -> 48.5 | DJ28: 7 | DK28: 5 | DL28: 4 | DM28: 1 | DN28: 7 | DO28: 5 | DP28: 1 | EJ28: =IF(OR('Set UP'!$C14=0,'Set UP'!$D14=0,'Set UP'!$E14=0),"",(DJ$19*DJ28)+(DK$19*DK28)+(DL$19*DL28)+(DM$19*DM28)+(DN$19*DN28)+(DO$19*DO28)+(DP$19*DP28)+(DQ$19*DQ28)+(DR$19*DR28)+(DS$19*DS28)+(DT$19*DT28)+(DU$19*DU28)+(DV$19*DV28)+(DW$19*DW28)+(DX$19*DX28)+(DY$19*DY28)+(DZ$19*DZ28)+(EA$19*EA28)+(EB$19*EB28)+(EC$19*EC28)+(ED$19*ED28)+(EE$19*EE28)+(EF$19*EF28)+(EG$19*EG28)+(EH$19*EH28)) -> 42 | EK28: 2 | EL28: 4 | EM28: 3 | EN28: 6 | EO28: 7 | EP28: 5 | FK28: =IF(OR('Set UP'!$C14=0,'Set UP'!$D14=0,'Set UP'!$E14=0),"",(EK$19*EK28)+(EL$19*EL28)+(EM$19*EM28)+(EN$19*EN28)+(EO$19*EO28)+(EP$19*EP28)+(EQ$19*EQ28)+(ER$19*ER28)+(ES$19*ES28)+(ET$19*ET28)+(EU$19*EU28)+(EV$19*EV28)+(EW$19*EW28)+(EX$19*EX28)+(EY$19*EY28)+(EZ$19*EZ28)+(FA$19*FA28)+(FB$19*FB28)+(FC$19*FC28)+(FD$19*FD28)+(FE$19*FE28)+(FF$19*FF28)+(FG$19*FG28)+(FH$19*FH28)+(FI$19*FI28)) -> 35.5 | GL28: =IF(OR('Set UP'!$C14=0,'Set UP'!$D14=0,'Set UP'!$E14=0),"",(FL$19*FL28)+(FM$19*FM28)+(FN$19*FN28)+(FO$19*FO28)+(FP$19*FP28)+(FQ$19*FQ28)+(FR$19*FR28)+(FS$19*FS28)+(FT$19*FT28)+(FU$19*FU28)+(FV$19*FV28)+(FW$19*FW28)+(FX$19*FX28)+(FY$19*FY28)+(FZ$19*FZ28)+(GA$19*GA28)+(GB$19*GB28)+(GC$19*GC28)+(GD$19*GD28)+(GE$19*GE28)+(GF$19*GF28)+(GG$19*GG28)+(GH$19*GH28)+(GI$19*GI28)+(GJ$19*GJ28)) -> 0 | HM28: =IF(OR('Set UP'!$C14=0,'Set UP'!$D14=0,'Set UP'!$E14=0),"",(GM$19*GM28)+(GN$19*GN28)+(GO$19*GO28)+(GP$19*GP28)+(GQ$19*GQ28)+(GR$19*GR28)+(GS$19*GS28)+(GT$19*GT28)+(GU$19*GU28)+(GV$19*GV28)+(GW$19*GW28)+(GX$19*GX28)+(GY$19*GY28)+(GZ$19*GZ28)+(HA$19*HA28)+(HB$19*HB28)+(HC$19*HC28)+(HD$19*HD28)+(HE$19*HE28)+(HF$19*HF28)+(HG$19*HG28)+(HH$19*HH28)+(HI$19*HI28)+(HJ$19*HJ28)+(HK$19*HK28)) -> 0 | IN28: =IF(OR('Set UP'!$C14=0,'Set UP'!$D14=0,'Set UP'!$E14=0),"",(HN$19*HN28)+(HO$19*HO28)+(HP$19*HP28)+(HQ$19*HQ28)+(HR$19*HR28)+(HS$19*HS28)+(HT$19*HT28)+(HU$19*HU28)+(HV$19*HV28)+(HW$19*HW28)+(HX$19*HX28)+(HY$19*HY28)+(HZ$19*HZ28)+(IA$19*IA28)+(IB$19*IB28)+(IC$19*IC28)+(ID$19*ID28)+(IE$19*IE28)+(IF$19*IF28)+(IG$19*IG28)+(IH$19*IH28)+(II$19*II28)+(IJ$19*IJ28)+(IK$19*IK28)+(IL$19*IL28)) -> 0 | JO28: =IF(OR('Set UP'!$C14=0,'Set UP'!$D14=0,'Set UP'!$E14=0),"",(IO$19*IO28)+(IP$19*IP28)+(IQ$19*IQ28)+(IR$19*IR28)+(IS$19*IS28)+(IT$19*IT28)+(IU$19*IU28)+(IV$19*IV28)+(IW$19*IW28)+(IX$19*IX28)+(IY$19*IY28)+(IZ$19*IZ28)+(JA$19*JA28)+(JB$19*JB28)+(JC$19*JC28)+(JD$19*JD28)+(JE$19*JE28)+(JF$19*JF28)+(JG$19*JG28)+(JH$19*JH28)+(JI$19*JI28)+(JJ$19*JJ28)+(JK$19*JK28)+(JL$19*JL28)+(JM$19*JM28)) -> 0 | JP28: =IF(OR('Set UP'!$C14=0,'Set UP'!$D14=0,'Set UP'!$E14=0),"",(AF28+BG28+CH28+DI28+EJ28+FK28+GL28+HM28+IN28+JO28)) -> 317.25 | JQ28: =IF(OR('Set UP'!$C14=0,'Set UP'!$D14=0,'Set UP'!$E14=0),"",RANK(JP28,$JP$21:$JP$68,0)) -> 18 | JR28: =IF(OR('Set UP'!K14<>1,'Set UP'!C14=0,'Set UP'!D14=0,'Set UP'!E14=0,'Set UP'!F14=0),"",$JP28) ->  | JS28: =IF(OR('Set UP'!K14<>1,'Set UP'!C14=0,'Set UP'!D14=0,'Set UP'!E14=0,'Set UP'!F14=0),"",RANK(JR28,$JR$21:$JR$68,0)) ->  | JT28: =IF(OR('Set UP'!K14<>2,'Set UP'!C14=0,'Set UP'!D14=0,'Set UP'!E14=0,'Set UP'!F14=0),"",$JP28) -> 317.25 | JU28: =IF(OR('Set UP'!K14<>2,'Set UP'!C14=0,'Set UP'!D14=0,'Set UP'!E14=0,'Set UP'!F14=0),"",RANK(JT28,$JT$21:$JT$68,0)) -> 14 | JV28: =IF(OR(LEFT('Set UP'!F14,1)<>"F",'Set UP'!C14=0,'Set UP'!D14=0,'Set UP'!E14=0),"",$JP28) ->  | JW28: =IF(OR(LEFT('Set UP'!F14,1)<>"F",'Set UP'!C14=0,'Set UP'!D14=0,'Set UP'!E14=0),"",RANK(JV28,$JV$21:$JV$68,0)) ->  | JX28: =IF(OR('Set UP'!F14<>"NS",'Set UP'!C14=0,'Set UP'!D14=0,'Set UP'!E14=0),"",$JP28) ->  | JY28: =IF(OR('Set UP'!F14<>"NS",'Set UP'!C14=0,'Set UP'!D14=0,'Set UP'!E14=0),"",RANK(JX28,$JX$21:$JX$68,0)) ->  | JZ28: =IF(OR('Set UP'!$C14=0,'Set UP'!$D14=0,'Set UP'!$E14=0,JP28=0),"",JP28/MAX(JP$21:JP$68)*1000) -> 794.1176471 | KC28: =MAX(IF(Clubs='Set UP'!D14,'Wet Incident'!JU$21:JU$68)) -> 15
B29: 9 | C29: =IF(OR('Set UP'!$C15=0,'Set UP'!$D15=0,'Set UP'!$E15=0,'Set UP'!F15=0)," --",'Set UP'!C15) -> 2400 | D29: =IF(OR('Set UP'!$C15=0,'Set UP'!$D15=0,'Set UP'!$E15=0,'Set UP'!F15=0)," --",'Set UP'!D15&" "&'Set UP'!E15) -> UoB LSC B | E29: =IF(OR('Set UP'!$C15=0,'Set UP'!$D15=0,'Set UP'!$E15=0,'Set UP'!F15=0)," --",'Set UP'!F15) -> NC | F29: 6 | G29: 6 | H29: 8 | I29: 6 | AF29: =IF(OR('Set UP'!$C15=0,'Set UP'!$D15=0,'Set UP'!$E15=0),"",(F$19*F29)+(G$19*G29)+(H$19*H29)+(I$19*I29)+(J$19*J29)+(K$19*K29)+(L$19*L29)+(M$19*M29)+(N$19*N29)+(O$19*O29)+(P$19*P29)+(Q$19*Q29)+(R$19*R29)+(S$19*S29)+(T$19*T29)+(U$19*U29)+(V$19*V29)+(W$19*W29)+(X$19*X29)+(Y$19*Y29)+(Z$19*Z29)+(AA$19*AA29)+(AB$19*AB29)+(AC$19*AC29)+(AD$19*AD29)) -> 67 | AG29: 10 | AH29: 10 | AI29: 10 | AJ29: 10 | AK29: 10 | AL29: 9 | BG29: =IF(OR('Set UP'!$C15=0,'Set UP'!$D15=0,'Set UP'!$E15=0),"",(AG$19*AG29)+(AH$19*AH29)+(AI$19*AI29)+(AJ$19*AJ29)+(AK$19*AK29)+(AL$19*AL29)+(AM$19*AM29)+(AN$19*AN29)+(AO$19*AO29)+(AP$19*AP29)+(AQ$19*AQ29)+(AR$19*AR29)+(AS$19*AS29)+(AT$19*AT29)+(AU$19*AU29)+(AV$19*AV29)+(AW$19*AW29)+(AX$19*AX29)+(AY$19*AY29)+(AZ$19*AZ29)+(BA$19*BA29)+(BB$19*BB29)+(BC$19*BC29)+(BD$19*BD29)+(BE$19*BE29)) -> 93.5 | BH29: 7 | BI29: 8 | BJ29: 0 | BK29: 0 | BL29: 8 | BM29: 7 | BN29: 3 | BO29: 8 | BP29: 8 | BQ29: 6 | CH29: =IF(OR('Set UP'!$C15=0,'Set UP'!$D15=0,'Set UP'!$E15=0),"",(BH$19*BH29)+(BI$19*BI29)+(BJ$19*BJ29)+(BK$19*BK29)+(BL$19*BL29)+(BM$19*BM29)+(BN$19*BN29)+(BO$19*BO29)+(BP$19*BP29)+(BQ$19*BQ29)+(BR$19*BR29)+(BS$19*BS29)+(BT$19*BT29)+(BU$19*BU29)+(BV$19*BV29)+(BW$19*BW29)+(BX$19*BX29)+(BY$19*BY29)+(BZ$19*BZ29)+(CA$19*CA29)+(CB$19*CB29)+(CC$19*CC29)+(CD$19*CD29)+(CE$19*CE29)+(CF$19*CF29)) -> 77 | CI29: 7 | CJ29: 7 | CK29: 7 | CL29: 10 | DI29: =IF(OR('Set UP'!$C15=0,'Set UP'!$D15=0,'Set UP'!$E15=0),"",(CI$19*CI29)+(CJ$19*CJ29)+(CK$19*CK29)+(CL$19*CL29)+(CM$19*CM29)+(CN$19*CN29)+(CO$19*CO29)+(CP$19*CP29)+(CQ$19*CQ29)+(CR$19*CR29)+(CS$19*CS29)+(CT$19*CT29)+(CU$19*CU29)+(CV$19*CV29)+(CW$19*CW29)+(CX$19*CX29)+(CY$19*CY29)+(CZ$19*CZ29)+(DA$19*DA29)+(DB$19*DB29)+(DC$19*DC29)+(DD$19*DD29)+(DE$19*DE29)+(DF$19*DF29)+(DG$19*DG29)) -> 61 | DJ29: 4 | DK29: 4 | DL29: 7 | DM29: 7 | DN29: 3 | DO29: 3 | DP29: 3 | EJ29: =IF(OR('Set UP'!$C15=0,'Set UP'!$D15=0,'Set UP'!$E15=0),"",(DJ$19*DJ29)+(DK$19*DK29)+(DL$19*DL29)+(DM$19*DM29)+(DN$19*DN29)+(DO$19*DO29)+(DP$19*DP29)+(DQ$19*DQ29)+(DR$19*DR29)+(DS$19*DS29)+(DT$19*DT29)+(DU$19*DU29)+(DV$19*DV29)+(DW$19*DW29)+(DX$19*DX29)+(DY$19*DY29)+(DZ$19*DZ29)+(EA$19*EA29)+(EB$19*EB29)+(EC$19*EC29)+(ED$19*ED29)+(EE$19*EE29)+(EF$19*EF29)+(EG$19*EG29)+(EH$19*EH29)) -> 42 | EK29: 3 | EL29: 5 | EM29: 6 | EN29: 7 | EO29: 7 | EP29: 7 | FK29: =IF(OR('Set UP'!$C15=0,'Set UP'!$D15=0,'Set UP'!$E15=0),"",(EK$19*EK29)+(EL$19*EL29)+(EM$19*EM29)+(EN$19*EN29)+(EO$19*EO29)+(EP$19*EP29)+(EQ$19*EQ29)+(ER$19*ER29)+(ES$19*ES29)+(ET$19*ET29)+(EU$19*EU29)+(EV$19*EV29)+(EW$19*EW29)+(EX$19*EX29)+(EY$19*EY29)+(EZ$19*EZ29)+(FA$19*FA29)+(FB$19*FB29)+(FC$19*FC29)+(FD$19*FD29)+(FE$19*FE29)+(FF$19*FF29)+(FG$19*FG29)+(FH$19*FH29)+(FI$19*FI29)) -> 41.75 | GL29: =IF(OR('Set UP'!$C15=0,'Set UP'!$D15=0,'Set UP'!$E15=0),"",(FL$19*FL29)+(FM$19*FM29)+(FN$19*FN29)+(FO$19*FO29)+(FP$19*FP29)+(FQ$19*FQ29)+(FR$19*FR29)+(FS$19*FS29)+(FT$19*FT29)+(FU$19*FU29)+(FV$19*FV29)+(FW$19*FW29)+(FX$19*FX29)+(FY$19*FY29)+(FZ$19*FZ29)+(GA$19*GA29)+(GB$19*GB29)+(GC$19*GC29)+(GD$19*GD29)+(GE$19*GE29)+(GF$19*GF29)+(GG$19*GG29)+(GH$19*GH29)+(GI$19*GI29)+(GJ$19*GJ29)) -> 0 | HM29: =IF(OR('Set UP'!$C15=0,'Set UP'!$D15=0,'Set UP'!$E15=0),"",(GM$19*GM29)+(GN$19*GN29)+(GO$19*GO29)+(GP$19*GP29)+(GQ$19*GQ29)+(GR$19*GR29)+(GS$19*GS29)+(GT$19*GT29)+(GU$19*GU29)+(GV$19*GV29)+(GW$19*GW29)+(GX$19*GX29)+(GY$19*GY29)+(GZ$19*GZ29)+(HA$19*HA29)+(HB$19*HB29)+(HC$19*HC29)+(HD$19*HD29)+(HE$19*HE29)+(HF$19*HF29)+(HG$19*HG29)+(HH$19*HH29)+(HI$19*HI29)+(HJ$19*HJ29)+(HK$19*HK29)) -> 0 | IN29: =IF(OR('Set UP'!$C15=0,'Set UP'!$D15=0,'Set UP'!$E15=0),"",(HN$19*HN29)+(HO$19*HO29)+(HP$19*HP29)+(HQ$19*HQ29)+(HR$19*HR29)+(HS$19*HS29)+(HT$19*HT29)+(HU$19*HU29)+(HV$19*HV29)+(HW$19*HW29)+(HX$19*HX29)+(HY$19*HY29)+(HZ$19*HZ29)+(IA$19*IA29)+(IB$19*IB29)+(IC$19*IC29)+(ID$19*ID29)+(IE$19*IE29)+(IF$19*IF29)+(IG$19*IG29)+(IH$19*IH29)+(II$19*II29)+(IJ$19*IJ29)+(IK$19*IK29)+(IL$19*IL29)) -> 0 | JO29: =IF(OR('Set UP'!$C15=0,'Set UP'!$D15=0,'Set UP'!$E15=0),"",(IO$19*IO29)+(IP$19*IP29)+(IQ$19*IQ29)+(IR$19*IR29)+(IS$19*IS29)+(IT$19*IT29)+(IU$19*IU29)+(IV$19*IV29)+(IW$19*IW29)+(IX$19*IX29)+(IY$19*IY29)+(IZ$19*IZ29)+(JA$19*JA29)+(JB$19*JB29)+(JC$19*JC29)+(JD$19*JD29)+(JE$19*JE29)+(JF$19*JF29)+(JG$19*JG29)+(JH$19*JH29)+(JI$19*JI29)+(JJ$19*JJ29)+(JK$19*JK29)+(JL$19*JL29)+(JM$19*JM29)) -> 0 | JP29: =IF(OR('Set UP'!$C15=0,'Set UP'!$D15=0,'Set UP'!$E15=0),"",(AF29+BG29+CH29+DI29+EJ29+FK29+GL29+HM29+IN29+JO29)) -> 382.25 | JQ29: =IF(OR('Set UP'!$C15=0,'Set UP'!$D15=0,'Set UP'!$E15=0),"",RANK(JP29,$JP$21:$JP$68,0)) -> 4 | JR29: =IF(OR('Set UP'!K15<>1,'Set UP'!C15=0,'Set UP'!D15=0,'Set UP'!E15=0,'Set UP'!F15=0),"",$JP29) ->  | JS29: =IF(OR('Set UP'!K15<>1,'Set UP'!C15=0,'Set UP'!D15=0,'Set UP'!E15=0,'Set UP'!F15=0),"",RANK(JR29,$JR$21:$JR$68,0)) ->  | JT29: =IF(OR('Set UP'!K15<>2,'Set UP'!C15=0,'Set UP'!D15=0,'Set UP'!E15=0,'Set UP'!F15=0),"",$JP29) ->  | JU29: =IF(OR('Set UP'!K15<>2,'Set UP'!C15=0,'Set UP'!D15=0,'Set UP'!E15=0,'Set UP'!F15=0),"",RANK(JT29,$JT$21:$JT$68,0)) ->  | JV29: =IF(OR(LEFT('Set UP'!F15,1)<>"F",'Set UP'!C15=0,'Set UP'!D15=0,'Set UP'!E15=0),"",$JP29) ->  | JW29: =IF(OR(LEFT('Set UP'!F15,1)<>"F",'Set UP'!C15=0,'Set UP'!D15=0,'Set UP'!E15=0),"",RANK(JV29,$JV$21:$JV$68,0)) ->  | JX29: =IF(OR('Set UP'!F15<>"NS",'Set UP'!C15=0,'Set UP'!D15=0,'Set UP'!E15=0),"",$JP29) ->  | JY29: =IF(OR('Set UP'!F15<>"NS",'Set UP'!C15=0,'Set UP'!D15=0,'Set UP'!E15=0),"",RANK(JX29,$JX$21:$JX$68,0)) ->  | JZ29: =IF(OR('Set UP'!$C15=0,'Set UP'!$D15=0,'Set UP'!$E15=0,JP29=0),"",JP29/MAX(JP$21:JP$68)*1000) -> 956.8210263 | KC29: =MAX(IF(Clubs='Set UP'!D15,'Wet Incident'!JU$21:JU$68)) -> 0
B30: 10 | C30: =IF(OR('Set UP'!$C16=0,'Set UP'!$D16=0,'Set UP'!$E16=0,'Set UP'!F16=0)," --",'Set UP'!C16) -> 2391 | D30: =IF(OR('Set UP'!$C16=0,'Set UP'!$D16=0,'Set UP'!$E16=0,'Set UP'!F16=0)," --",'Set UP'!D16&" "&'Set UP'!E16) -> University of Southampton B | E30: =IF(OR('Set UP'!$C16=0,'Set UP'!$D16=0,'Set UP'!$E16=0,'Set UP'!F16=0)," --",'Set UP'!F16) -> S | F30: 5 | G30: 5 | H30: 6 | I30: 7 | AF30: =IF(OR('Set UP'!$C16=0,'Set UP'!$D16=0,'Set UP'!$E16=0),"",(F$19*F30)+(G$19*G30)+(H$19*H30)+(I$19*I30)+(J$19*J30)+(K$19*K30)+(L$19*L30)+(M$19*M30)+(N$19*N30)+(O$19*O30)+(P$19*P30)+(Q$19*Q30)+(R$19*R30)+(S$19*S30)+(T$19*T30)+(U$19*U30)+(V$19*V30)+(W$19*W30)+(X$19*X30)+(Y$19*Y30)+(Z$19*Z30)+(AA$19*AA30)+(AB$19*AB30)+(AC$19*AC30)+(AD$19*AD30)) -> 60.5 | AG30: 10 | AH30: 0 | AI30: 10 | AJ30: 10 | AK30: 8 | AL30: 0 | BG30: =IF(OR('Set UP'!$C16=0,'Set UP'!$D16=0,'Set UP'!$E16=0),"",(AG$19*AG30)+(AH$19*AH30)+(AI$19*AI30)+(AJ$19*AJ30)+(AK$19*AK30)+(AL$19*AL30)+(AM$19*AM30)+(AN$19*AN30)+(AO$19*AO30)+(AP$19*AP30)+(AQ$19*AQ30)+(AR$19*AR30)+(AS$19*AS30)+(AT$19*AT30)+(AU$19*AU30)+(AV$19*AV30)+(AW$19*AW30)+(AX$19*AX30)+(AY$19*AY30)+(AZ$19*AZ30)+(BA$19*BA30)+(BB$19*BB30)+(BC$19*BC30)+(BD$19*BD30)+(BE$19*BE30)) -> 62 | BH30: 9 | BI30: 4 | BJ30: 0 | BK30: 1 | BL30: 9 | BM30: 5 | BN30: 0 | BO30: 9 | BP30: 8 | BQ30: 6 | CH30: =IF(OR('Set UP'!$C16=0,'Set UP'!$D16=0,'Set UP'!$E16=0),"",(BH$19*BH30)+(BI$19*BI30)+(BJ$19*BJ30)+(BK$19*BK30)+(BL$19*BL30)+(BM$19*BM30)+(BN$19*BN30)+(BO$19*BO30)+(BP$19*BP30)+(BQ$19*BQ30)+(BR$19*BR30)+(BS$19*BS30)+(BT$19*BT30)+(BU$19*BU30)+(BV$19*BV30)+(BW$19*BW30)+(BX$19*BX30)+(BY$19*BY30)+(BZ$19*BZ30)+(CA$19*CA30)+(CB$19*CB30)+(CC$19*CC30)+(CD$19*CD30)+(CE$19*CE30)+(CF$19*CF30)) -> 66.25 | CI30: 5 | CJ30: 8 | CK30: 9 | CL30: 0 | DI30: =IF(OR('Set UP'!$C16=0,'Set UP'!$D16=0,'Set UP'!$E16=0),"",(CI$19*CI30)+(CJ$19*CJ30)+(CK$19*CK30)+(CL$19*CL30)+(CM$19*CM30)+(CN$19*CN30)+(CO$19*CO30)+(CP$19*CP30)+(CQ$19*CQ30)+(CR$19*CR30)+(CS$19*CS30)+(CT$19*CT30)+(CU$19*CU30)+(CV$19*CV30)+(CW$19*CW30)+(CX$19*CX30)+(CY$19*CY30)+(CZ$19*CZ30)+(DA$19*DA30)+(DB$19*DB30)+(DC$19*DC30)+(DD$19*DD30)+(DE$19*DE30)+(DF$19*DF30)+(DG$19*DG30)) -> 63.5 | DJ30: 3 | DK30: 4 | DL30: 5 | DM30: 4 | DN30: 5 | DO30: 2 | DP30: 2 | EJ30: =IF(OR('Set UP'!$C16=0,'Set UP'!$D16=0,'Set UP'!$E16=0),"",(DJ$19*DJ30)+(DK$19*DK30)+(DL$19*DL30)+(DM$19*DM30)+(DN$19*DN30)+(DO$19*DO30)+(DP$19*DP30)+(DQ$19*DQ30)+(DR$19*DR30)+(DS$19*DS30)+(DT$19*DT30)+(DU$19*DU30)+(DV$19*DV30)+(DW$19*DW30)+(DX$19*DX30)+(DY$19*DY30)+(DZ$19*DZ30)+(EA$19*EA30)+(EB$19*EB30)+(EC$19*EC30)+(ED$19*ED30)+(EE$19*EE30)+(EF$19*EF30)+(EG$19*EG30)+(EH$19*EH30)) -> 33.5 | EK30: 8 | EL30: 8 | EM30: 9 | EN30: 5 | EO30: 7 | EP30: 4 | FK30: =IF(OR('Set UP'!$C16=0,'Set UP'!$D16=0,'Set UP'!$E16=0),"",(EK$19*EK30)+(EL$19*EL30)+(EM$19*EM30)+(EN$19*EN30)+(EO$19*EO30)+(EP$19*EP30)+(EQ$19*EQ30)+(ER$19*ER30)+(ES$19*ES30)+(ET$19*ET30)+(EU$19*EU30)+(EV$19*EV30)+(EW$19*EW30)+(EX$19*EX30)+(EY$19*EY30)+(EZ$19*EZ30)+(FA$19*FA30)+(FB$19*FB30)+(FC$19*FC30)+(FD$19*FD30)+(FE$19*FE30)+(FF$19*FF30)+(FG$19*FG30)+(FH$19*FH30)+(FI$19*FI30)) -> 45 | GL30: =IF(OR('Set UP'!$C16=0,'Set UP'!$D16=0,'Set UP'!$E16=0),"",(FL$19*FL30)+(FM$19*FM30)+(FN$19*FN30)+(FO$19*FO30)+(FP$19*FP30)+(FQ$19*FQ30)+(FR$19*FR30)+(FS$19*FS30)+(FT$19*FT30)+(FU$19*FU30)+(FV$19*FV30)+(FW$19*FW30)+(FX$19*FX30)+(FY$19*FY30)+(FZ$19*FZ30)+(GA$19*GA30)+(GB$19*GB30)+(GC$19*GC30)+(GD$19*GD30)+(GE$19*GE30)+(GF$19*GF30)+(GG$19*GG30)+(GH$19*GH30)+(GI$19*GI30)+(GJ$19*GJ30)) -> 0 | HM30: =IF(OR('Set UP'!$C16=0,'Set UP'!$D16=0,'Set UP'!$E16=0),"",(GM$19*GM30)+(GN$19*GN30)+(GO$19*GO30)+(GP$19*GP30)+(GQ$19*GQ30)+(GR$19*GR30)+(GS$19*GS30)+(GT$19*GT30)+(GU$19*GU30)+(GV$19*GV30)+(GW$19*GW30)+(GX$19*GX30)+(GY$19*GY30)+(GZ$19*GZ30)+(HA$19*HA30)+(HB$19*HB30)+(HC$19*HC30)+(HD$19*HD30)+(HE$19*HE30)+(HF$19*HF30)+(HG$19*HG30)+(HH$19*HH30)+(HI$19*HI30)+(HJ$19*HJ30)+(HK$19*HK30)) -> 0 | IN30: =IF(OR('Set UP'!$C16=0,'Set UP'!$D16=0,'Set UP'!$E16=0),"",(HN$19*HN30)+(HO$19*HO30)+(HP$19*HP30)+(HQ$19*HQ30)+(HR$19*HR30)+(HS$19*HS30)+(HT$19*HT30)+(HU$19*HU30)+(HV$19*HV30)+(HW$19*HW30)+(HX$19*HX30)+(HY$19*HY30)+(HZ$19*HZ30)+(IA$19*IA30)+(IB$19*IB30)+(IC$19*IC30)+(ID$19*ID30)+(IE$19*IE30)+(IF$19*IF30)+(IG$19*IG30)+(IH$19*IH30)+(II$19*II30)+(IJ$19*IJ30)+(IK$19*IK30)+(IL$19*IL30)) -> 0 | JO30: =IF(OR('Set UP'!$C16=0,'Set UP'!$D16=0,'Set UP'!$E16=0),"",(IO$19*IO30)+(IP$19*IP30)+(IQ$19*IQ30)+(IR$19*IR30)+(IS$19*IS30)+(IT$19*IT30)+(IU$19*IU30)+(IV$19*IV30)+(IW$19*IW30)+(IX$19*IX30)+(IY$19*IY30)+(IZ$19*IZ30)+(JA$19*JA30)+(JB$19*JB30)+(JC$19*JC30)+(JD$19*JD30)+(JE$19*JE30)+(JF$19*JF30)+(JG$19*JG30)+(JH$19*JH30)+(JI$19*JI30)+(JJ$19*JJ30)+(JK$19*JK30)+(JL$19*JL30)+(JM$19*JM30)) -> 0 | JP30: =IF(OR('Set UP'!$C16=0,'Set UP'!$D16=0,'Set UP'!$E16=0),"",(AF30+BG30+CH30+DI30+EJ30+FK30+GL30+HM30+IN30+JO30)) -> 330.75 | JQ30: =IF(OR('Set UP'!$C16=0,'Set UP'!$D16=0,'Set UP'!$E16=0),"",RANK(JP30,$JP$21:$JP$68,0)) -> 14 | JR30: =IF(OR('Set UP'!K16<>1,'Set UP'!C16=0,'Set UP'!D16=0,'Set UP'!E16=0,'Set UP'!F16=0),"",$JP30) ->  | JS30: =IF(OR('Set UP'!K16<>1,'Set UP'!C16=0,'Set UP'!D16=0,'Set UP'!E16=0,'Set UP'!F16=0),"",RANK(JR30,$JR$21:$JR$68,0)) ->  | JT30: =IF(OR('Set UP'!K16<>2,'Set UP'!C16=0,'Set UP'!D16=0,'Set UP'!E16=0,'Set UP'!F16=0),"",$JP30) -> 330.75 | JU30: =IF(OR('Set UP'!K16<>2,'Set UP'!C16=0,'Set UP'!D16=0,'Set UP'!E16=0,'Set UP'!F16=0),"",RANK(JT30,$JT$21:$JT$68,0)) -> 10 | JV30: =IF(OR(LEFT('Set UP'!F16,1)<>"F",'Set UP'!C16=0,'Set UP'!D16=0,'Set UP'!E16=0),"",$JP30) ->  | JW30: =IF(OR(LEFT('Set UP'!F16,1)<>"F",'Set UP'!C16=0,'Set UP'!D16=0,'Set UP'!E16=0),"",RANK(JV30,$JV$21:$JV$68,0)) ->  | JX30: =IF(OR('Set UP'!F16<>"NS",'Set UP'!C16=0,'Set UP'!D16=0,'Set UP'!E16=0),"",$JP30) ->  | JY30: =IF(OR('Set UP'!F16<>"NS",'Set UP'!C16=0,'Set UP'!D16=0,'Set UP'!E16=0),"",RANK(JX30,$JX$21:$JX$68,0)) ->  | JZ30: =IF(OR('Set UP'!$C16=0,'Set UP'!$D16=0,'Set UP'!$E16=0,JP30=0),"",JP30/MAX(JP$21:JP$68)*1000) -> 827.9098874 | KC30: =MAX(IF(Clubs='Set UP'!D16,'Wet Incident'!JU$21:JU$68)) -> 17
B31: 11 | C31: =IF(OR('Set UP'!$C17=0,'Set UP'!$D17=0,'Set UP'!$E17=0,'Set UP'!F17=0)," --",'Set UP'!C17) -> 2375 | D31: =IF(OR('Set UP'!$C17=0,'Set UP'!$D17=0,'Set UP'!$E17=0,'Set UP'!F17=0)," --",'Set UP'!D17&" "&'Set UP'!E17) -> University of Sheffield A | E31: =IF(OR('Set UP'!$C17=0,'Set UP'!$D17=0,'Set UP'!$E17=0,'Set UP'!F17=0)," --",'Set UP'!F17) -> S | F31: 8 | G31: 7 | H31: 8 | I31: 9 | AF31: =IF(OR('Set UP'!$C17=0,'Set UP'!$D17=0,'Set UP'!$E17=0),"",(F$19*F31)+(G$19*G31)+(H$19*H31)+(I$19*I31)+(J$19*J31)+(K$19*K31)+(L$19*L31)+(M$19*M31)+(N$19*N31)+(O$19*O31)+(P$19*P31)+(Q$19*Q31)+(R$19*R31)+(S$19*S31)+(T$19*T31)+(U$19*U31)+(V$19*V31)+(W$19*W31)+(X$19*X31)+(Y$19*Y31)+(Z$19*Z31)+(AA$19*AA31)+(AB$19*AB31)+(AC$19*AC31)+(AD$19*AD31)) -> 84 | AG31: 10 | AH31: 10 | AI31: 10 | AJ31: 10 | AK31: 10 | AL31: 9 | BG31: =IF(OR('Set UP'!$C17=0,'Set UP'!$D17=0,'Set UP'!$E17=0),"",(AG$19*AG31)+(AH$19*AH31)+(AI$19*AI31)+(AJ$19*AJ31)+(AK$19*AK31)+(AL$19*AL31)+(AM$19*AM31)+(AN$19*AN31)+(AO$19*AO31)+(AP$19*AP31)+(AQ$19*AQ31)+(AR$19*AR31)+(AS$19*AS31)+(AT$19*AT31)+(AU$19*AU31)+(AV$19*AV31)+(AW$19*AW31)+(AX$19*AX31)+(AY$19*AY31)+(AZ$19*AZ31)+(BA$19*BA31)+(BB$19*BB31)+(BC$19*BC31)+(BD$19*BD31)+(BE$19*BE31)) -> 93.5 | BH31: 8 | BI31: 8 | BJ31: 0 | BK31: 7 | BL31: 7 | BM31: 3 | BN31: 6 | BO31: 6 | BP31: 2 | BQ31: 1 | CH31: =IF(OR('Set UP'!$C17=0,'Set UP'!$D17=0,'Set UP'!$E17=0),"",(BH$19*BH31)+(BI$19*BI31)+(BJ$19*BJ31)+(BK$19*BK31)+(BL$19*BL31)+(BM$19*BM31)+(BN$19*BN31)+(BO$19*BO31)+(BP$19*BP31)+(BQ$19*BQ31)+(BR$19*BR31)+(BS$19*BS31)+(BT$19*BT31)+(BU$19*BU31)+(BV$19*BV31)+(BW$19*BW31)+(BX$19*BX31)+(BY$19*BY31)+(BZ$19*BZ31)+(CA$19*CA31)+(CB$19*CB31)+(CC$19*CC31)+(CD$19*CD31)+(CE$19*CE31)+(CF$19*CF31)) -> 64 | CI31: 5 | CJ31: 7 | CK31: 4 | CL31: 10 | DI31: =IF(OR('Set UP'!$C17=0,'Set UP'!$D17=0,'Set UP'!$E17=0),"",(CI$19*CI31)+(CJ$19*CJ31)+(CK$19*CK31)+(CL$19*CL31)+(CM$19*CM31)+(CN$19*CN31)+(CO$19*CO31)+(CP$19*CP31)+(CQ$19*CQ31)+(CR$19*CR31)+(CS$19*CS31)+(CT$19*CT31)+(CU$19*CU31)+(CV$19*CV31)+(CW$19*CW31)+(CX$19*CX31)+(CY$19*CY31)+(CZ$19*CZ31)+(DA$19*DA31)+(DB$19*DB31)+(DC$19*DC31)+(DD$19*DD31)+(DE$19*DE31)+(DF$19*DF31)+(DG$19*DG31)) -> 46 | DJ31: 4 | DK31: 3 | DL31: 6 | DM31: 1 | DN31: 4 | DO31: 0 | DP31: 3 | EJ31: =IF(OR('Set UP'!$C17=0,'Set UP'!$D17=0,'Set UP'!$E17=0),"",(DJ$19*DJ31)+(DK$19*DK31)+(DL$19*DL31)+(DM$19*DM31)+(DN$19*DN31)+(DO$19*DO31)+(DP$19*DP31)+(DQ$19*DQ31)+(DR$19*DR31)+(DS$19*DS31)+(DT$19*DT31)+(DU$19*DU31)+(DV$19*DV31)+(DW$19*DW31)+(DX$19*DX31)+(DY$19*DY31)+(DZ$19*DZ31)+(EA$19*EA31)+(EB$19*EB31)+(EC$19*EC31)+(ED$19*ED31)+(EE$19*EE31)+(EF$19*EF31)+(EG$19*EG31)+(EH$19*EH31)) -> 29 | EK31: 2 | EL31: 4 | EM31: 3 | EN31: 3 | EO31: 0 | EP31: 1 | FK31: =IF(OR('Set UP'!$C17=0,'Set UP'!$D17=0,'Set UP'!$E17=0),"",(EK$19*EK31)+(EL$19*EL31)+(EM$19*EM31)+(EN$19*EN31)+(EO$19*EO31)+(EP$19*EP31)+(EQ$19*EQ31)+(ER$19*ER31)+(ES$19*ES31)+(ET$19*ET31)+(EU$19*EU31)+(EV$19*EV31)+(EW$19*EW31)+(EX$19*EX31)+(EY$19*EY31)+(EZ$19*EZ31)+(FA$19*FA31)+(FB$19*FB31)+(FC$19*FC31)+(FD$19*FD31)+(FE$19*FE31)+(FF$19*FF31)+(FG$19*FG31)+(FH$19*FH31)+(FI$19*FI31)) -> 11 | GL31: =IF(OR('Set UP'!$C17=0,'Set UP'!$D17=0,'Set UP'!$E17=0),"",(FL$19*FL31)+(FM$19*FM31)+(FN$19*FN31)+(FO$19*FO31)+(FP$19*FP31)+(FQ$19*FQ31)+(FR$19*FR31)+(FS$19*FS31)+(FT$19*FT31)+(FU$19*FU31)+(FV$19*FV31)+(FW$19*FW31)+(FX$19*FX31)+(FY$19*FY31)+(FZ$19*FZ31)+(GA$19*GA31)+(GB$19*GB31)+(GC$19*GC31)+(GD$19*GD31)+(GE$19*GE31)+(GF$19*GF31)+(GG$19*GG31)+(GH$19*GH31)+(GI$19*GI31)+(GJ$19*GJ31)) -> 0 | HM31: =IF(OR('Set UP'!$C17=0,'Set UP'!$D17=0,'Set UP'!$E17=0),"",(GM$19*GM31)+(GN$19*GN31)+(GO$19*GO31)+(GP$19*GP31)+(GQ$19*GQ31)+(GR$19*GR31)+(GS$19*GS31)+(GT$19*GT31)+(GU$19*GU31)+(GV$19*GV31)+(GW$19*GW31)+(GX$19*GX31)+(GY$19*GY31)+(GZ$19*GZ31)+(HA$19*HA31)+(HB$19*HB31)+(HC$19*HC31)+(HD$19*HD31)+(HE$19*HE31)+(HF$19*HF31)+(HG$19*HG31)+(HH$19*HH31)+(HI$19*HI31)+(HJ$19*HJ31)+(HK$19*HK31)) -> 0 | IN31: =IF(OR('Set UP'!$C17=0,'Set UP'!$D17=0,'Set UP'!$E17=0),"",(HN$19*HN31)+(HO$19*HO31)+(HP$19*HP31)+(HQ$19*HQ31)+(HR$19*HR31)+(HS$19*HS31)+(HT$19*HT31)+(HU$19*HU31)+(HV$19*HV31)+(HW$19*HW31)+(HX$19*HX31)+(HY$19*HY31)+(HZ$19*HZ31)+(IA$19*IA31)+(IB$19*IB31)+(IC$19*IC31)+(ID$19*ID31)+(IE$19*IE31)+(IF$19*IF31)+(IG$19*IG31)+(IH$19*IH31)+(II$19*II31)+(IJ$19*IJ31)+(IK$19*IK31)+(IL$19*IL31)) -> 0 | JO31: =IF(OR('Set UP'!$C17=0,'Set UP'!$D17=0,'Set UP'!$E17=0),"",(IO$19*IO31)+(IP$19*IP31)+(IQ$19*IQ31)+(IR$19*IR31)+(IS$19*IS31)+(IT$19*IT31)+(IU$19*IU31)+(IV$19*IV31)+(IW$19*IW31)+(IX$19*IX31)+(IY$19*IY31)+(IZ$19*IZ31)+(JA$19*JA31)+(JB$19*JB31)+(JC$19*JC31)+(JD$19*JD31)+(JE$19*JE31)+(JF$19*JF31)+(JG$19*JG31)+(JH$19*JH31)+(JI$19*JI31)+(JJ$19*JJ31)+(JK$19*JK31)+(JL$19*JL31)+(JM$19*JM31)) -> 0 | JP31: =IF(OR('Set UP'!$C17=0,'Set UP'!$D17=0,'Set UP'!$E17=0),"",(AF31+BG31+CH31+DI31+EJ31+FK31+GL31+HM31+IN31+JO31)) -> 327.5 | JQ31: =IF(OR('Set UP'!$C17=0,'Set UP'!$D17=0,'Set UP'!$E17=0),"",RANK(JP31,$JP$21:$JP$68,0)) -> 16 | JR31: =IF(OR('Set UP'!K17<>1,'Set UP'!C17=0,'Set UP'!D17=0,'Set UP'!E17=0,'Set UP'!F17=0),"",$JP31) ->  | JS31: =IF(OR('Set UP'!K17<>1,'Set UP'!C17=0,'Set UP'!D17=0,'Set UP'!E17=0,'Set UP'!F17=0),"",RANK(JR31,$JR$21:$JR$68,0)) ->  | JT31: =IF(OR('Set UP'!K17<>2,'Set UP'!C17=0,'Set UP'!D17=0,'Set UP'!E17=0,'Set UP'!F17=0),"",$JP31) -> 327.5 | JU31: =IF(OR('Set UP'!K17<>2,'Set UP'!C17=0,'Set UP'!D17=0,'Set UP'!E17=0,'Set UP'!F17=0),"",RANK(JT31,$JT$21:$JT$68,0)) -> 12 | JV31: =IF(OR(LEFT('Set UP'!F17,1)<>"F",'Set UP'!C17=0,'Set UP'!D17=0,'Set UP'!E17=0),"",$JP31) ->  | JW31: =IF(OR(LEFT('Set UP'!F17,1)<>"F",'Set UP'!C17=0,'Set UP'!D17=0,'Set UP'!E17=0),"",RANK(JV31,$JV$21:$JV$68,0)) ->  | JX31: =IF(OR('Set UP'!F17<>"NS",'Set UP'!C17=0,'Set UP'!D17=0,'Set UP'!E17=0),"",$JP31) ->  | JY31: =IF(OR('Set UP'!F17<>"NS",'Set UP'!C17=0,'Set UP'!D17=0,'Set UP'!E17=0),"",RANK(JX31,$JX$21:$JX$68,0)) ->  | JZ31: =IF(OR('Set UP'!$C17=0,'Set UP'!$D17=0,'Set UP'!$E17=0,JP31=0),"",JP31/MAX(JP$21:JP$68)*1000) -> 819.7747184 | KC31: =MAX(IF(Clubs='Set UP'!D17,'Wet Incident'!JU$21:JU$68)) -> 9
B32: 12 | C32: =IF(OR('Set UP'!$C18=0,'Set UP'!$D18=0,'Set UP'!$E18=0,'Set UP'!F18=0)," --",'Set UP'!C18) -> 2390 | D32: =IF(OR('Set UP'!$C18=0,'Set UP'!$D18=0,'Set UP'!$E18=0,'Set UP'!F18=0)," --",'Set UP'!D18&" "&'Set UP'!E18) -> University of Southampton A | E32: =IF(OR('Set UP'!$C18=0,'Set UP'!$D18=0,'Set UP'!$E18=0,'Set UP'!F18=0)," --",'Set UP'!F18) -> S | F32: 9 | G32: 9 | H32: 7 | I32: 7 | AF32: =IF(OR('Set UP'!$C18=0,'Set UP'!$D18=0,'Set UP'!$E18=0),"",(F$19*F32)+(G$19*G32)+(H$19*H32)+(I$19*I32)+(J$19*J32)+(K$19*K32)+(L$19*L32)+(M$19*M32)+(N$19*N32)+(O$19*O32)+(P$19*P32)+(Q$19*Q32)+(R$19*R32)+(S$19*S32)+(T$19*T32)+(U$19*U32)+(V$19*V32)+(W$19*W32)+(X$19*X32)+(Y$19*Y32)+(Z$19*Z32)+(AA$19*AA32)+(AB$19*AB32)+(AC$19*AC32)+(AD$19*AD32)) -> 84.5 | AG32: 10 | AH32: 10 | AI32: 6 | AJ32: 6 | AK32: 5 | AL32: 0 | BG32: =IF(OR('Set UP'!$C18=0,'Set UP'!$D18=0,'Set UP'!$E18=0),"",(AG$19*AG32)+(AH$19*AH32)+(AI$19*AI32)+(AJ$19*AJ32)+(AK$19*AK32)+(AL$19*AL32)+(AM$19*AM32)+(AN$19*AN32)+(AO$19*AO32)+(AP$19*AP32)+(AQ$19*AQ32)+(AR$19*AR32)+(AS$19*AS32)+(AT$19*AT32)+(AU$19*AU32)+(AV$19*AV32)+(AW$19*AW32)+(AX$19*AX32)+(AY$19*AY32)+(AZ$19*AZ32)+(BA$19*BA32)+(BB$19*BB32)+(BC$19*BC32)+(BD$19*BD32)+(BE$19*BE32)) -> 58.5 | BH32: 8 | BI32: 5 | BJ32: 0 | BK32: 0 | BL32: 9 | BM32: 5 | BN32: 3 | BO32: 9 | BP32: 9 | BQ32: 7 | CH32: =IF(OR('Set UP'!$C18=0,'Set UP'!$D18=0,'Set UP'!$E18=0),"",(BH$19*BH32)+(BI$19*BI32)+(BJ$19*BJ32)+(BK$19*BK32)+(BL$19*BL32)+(BM$19*BM32)+(BN$19*BN32)+(BO$19*BO32)+(BP$19*BP32)+(BQ$19*BQ32)+(BR$19*BR32)+(BS$19*BS32)+(BT$19*BT32)+(BU$19*BU32)+(BV$19*BV32)+(BW$19*BW32)+(BX$19*BX32)+(BY$19*BY32)+(BZ$19*BZ32)+(CA$19*CA32)+(CB$19*CB32)+(CC$19*CC32)+(CD$19*CD32)+(CE$19*CE32)+(CF$19*CF32)) -> 71.75 | CI32: 7 | CJ32: 8 | CK32: 7 | CL32: 0 | DI32: =IF(OR('Set UP'!$C18=0,'Set UP'!$D18=0,'Set UP'!$E18=0),"",(CI$19*CI32)+(CJ$19*CJ32)+(CK$19*CK32)+(CL$19*CL32)+(CM$19*CM32)+(CN$19*CN32)+(CO$19*CO32)+(CP$19*CP32)+(CQ$19*CQ32)+(CR$19*CR32)+(CS$19*CS32)+(CT$19*CT32)+(CU$19*CU32)+(CV$19*CV32)+(CW$19*CW32)+(CX$19*CX32)+(CY$19*CY32)+(CZ$19*CZ32)+(DA$19*DA32)+(DB$19*DB32)+(DC$19*DC32)+(DD$19*DD32)+(DE$19*DE32)+(DF$19*DF32)+(DG$19*DG32)) -> 58.5 | DJ32: 3 | DK32: 3 | DL32: 1 | DM32: 0 | DN32: 4 | DO32: 1 | DP32: 0 | EJ32: =IF(OR('Set UP'!$C18=0,'Set UP'!$D18=0,'Set UP'!$E18=0),"",(DJ$19*DJ32)+(DK$19*DK32)+(DL$19*DL32)+(DM$19*DM32)+(DN$19*DN32)+(DO$19*DO32)+(DP$19*DP32)+(DQ$19*DQ32)+(DR$19*DR32)+(DS$19*DS32)+(DT$19*DT32)+(DU$19*DU32)+(DV$19*DV32)+(DW$19*DW32)+(DX$19*DX32)+(DY$19*DY32)+(DZ$19*DZ32)+(EA$19*EA32)+(EB$19*EB32)+(EC$19*EC32)+(ED$19*ED32)+(EE$19*EE32)+(EF$19*EF32)+(EG$19*EG32)+(EH$19*EH32)) -> 16.5 | EK32: 4 | EL32: 5 | EM32: 7 | EN32: 6 | EO32: 6 | EP32: 4 | FK32: =IF(OR('Set UP'!$C18=0,'Set UP'!$D18=0,'Set UP'!$E18=0),"",(EK$19*EK32)+(EL$19*EL32)+(EM$19*EM32)+(EN$19*EN32)+(EO$19*EO32)+(EP$19*EP32)+(EQ$19*EQ32)+(ER$19*ER32)+(ES$19*ES32)+(ET$19*ET32)+(EU$19*EU32)+(EV$19*EV32)+(EW$19*EW32)+(EX$19*EX32)+(EY$19*EY32)+(EZ$19*EZ32)+(FA$19*FA32)+(FB$19*FB32)+(FC$19*FC32)+(FD$19*FD32)+(FE$19*FE32)+(FF$19*FF32)+(FG$19*FG32)+(FH$19*FH32)+(FI$19*FI32)) -> 36.5 | GL32: =IF(OR('Set UP'!$C18=0,'Set UP'!$D18=0,'Set UP'!$E18=0),"",(FL$19*FL32)+(FM$19*FM32)+(FN$19*FN32)+(FO$19*FO32)+(FP$19*FP32)+(FQ$19*FQ32)+(FR$19*FR32)+(FS$19*FS32)+(FT$19*FT32)+(FU$19*FU32)+(FV$19*FV32)+(FW$19*FW32)+(FX$19*FX32)+(FY$19*FY32)+(FZ$19*FZ32)+(GA$19*GA32)+(GB$19*GB32)+(GC$19*GC32)+(GD$19*GD32)+(GE$19*GE32)+(GF$19*GF32)+(GG$19*GG32)+(GH$19*GH32)+(GI$19*GI32)+(GJ$19*GJ32)) -> 0 | HM32: =IF(OR('Set UP'!$C18=0,'Set UP'!$D18=0,'Set UP'!$E18=0),"",(GM$19*GM32)+(GN$19*GN32)+(GO$19*GO32)+(GP$19*GP32)+(GQ$19*GQ32)+(GR$19*GR32)+(GS$19*GS32)+(GT$19*GT32)+(GU$19*GU32)+(GV$19*GV32)+(GW$19*GW32)+(GX$19*GX32)+(GY$19*GY32)+(GZ$19*GZ32)+(HA$19*HA32)+(HB$19*HB32)+(HC$19*HC32)+(HD$19*HD32)+(HE$19*HE32)+(HF$19*HF32)+(HG$19*HG32)+(HH$19*HH32)+(HI$19*HI32)+(HJ$19*HJ32)+(HK$19*HK32)) -> 0 | IN32: =IF(OR('Set UP'!$C18=0,'Set UP'!$D18=0,'Set UP'!$E18=0),"",(HN$19*HN32)+(HO$19*HO32)+(HP$19*HP32)+(HQ$19*HQ32)+(HR$19*HR32)+(HS$19*HS32)+(HT$19*HT32)+(HU$19*HU32)+(HV$19*HV32)+(HW$19*HW32)+(HX$19*HX32)+(HY$19*HY32)+(HZ$19*HZ32)+(IA$19*IA32)+(IB$19*IB32)+(IC$19*IC32)+(ID$19*ID32)+(IE$19*IE32)+(IF$19*IF32)+(IG$19*IG32)+(IH$19*IH32)+(II$19*II32)+(IJ$19*IJ32)+(IK$19*IK32)+(IL$19*IL32)) -> 0 | JO32: =IF(OR('Set UP'!$C18=0,'Set UP'!$D18=0,'Set UP'!$E18=0),"",(IO$19*IO32)+(IP$19*IP32)+(IQ$19*IQ32)+(IR$19*IR32)+(IS$19*IS32)+(IT$19*IT32)+(IU$19*IU32)+(IV$19*IV32)+(IW$19*IW32)+(IX$19*IX32)+(IY$19*IY32)+(IZ$19*IZ32)+(JA$19*JA32)+(JB$19*JB32)+(JC$19*JC32)+(JD$19*JD32)+(JE$19*JE32)+(JF$19*JF32)+(JG$19*JG32)+(JH$19*JH32)+(JI$19*JI32)+(JJ$19*JJ32)+(JK$19*JK32)+(JL$19*JL32)+(JM$19*JM32)) -> 0 | JP32: =IF(OR('Set UP'!$C18=0,'Set UP'!$D18=0,'Set UP'!$E18=0),"",(AF32+BG32+CH32+DI32+EJ32+FK32+GL32+HM32+IN32+JO32)) -> 326.25 | JQ32: =IF(OR('Set UP'!$C18=0,'Set UP'!$D18=0,'Set UP'!$E18=0),"",RANK(JP32,$JP$21:$JP$68,0)) -> 17 | JR32: =IF(OR('Set UP'!K18<>1,'Set UP'!C18=0,'Set UP'!D18=0,'Set UP'!E18=0,'Set UP'!F18=0),"",$JP32) ->  | JS32: =IF(OR('Set UP'!K18<>1,'Set UP'!C18=0,'Set UP'!D18=0,'Set UP'!E18=0,'Set UP'!F18=0),"",RANK(JR32,$JR$21:$JR$68,0)) ->  | JT32: =IF(OR('Set UP'!K18<>2,'Set UP'!C18=0,'Set UP'!D18=0,'Set UP'!E18=0,'Set UP'!F18=0),"",$JP32) -> 326.25 | JU32: =IF(OR('Set UP'!K18<>2,'Set UP'!C18=0,'Set UP'!D18=0,'Set UP'!E18=0,'Set UP'!F18=0),"",RANK(JT32,$JT$21:$JT$68,0)) -> 13 | JV32: =IF(OR(LEFT('Set UP'!F18,1)<>"F",'Set UP'!C18=0,'Set UP'!D18=0,'Set UP'!E18=0),"",$JP32) ->  | JW32: =IF(OR(LEFT('Set UP'!F18,1)<>"F",'Set UP'!C18=0,'Set UP'!D18=0,'Set UP'!E18=0),"",RANK(JV32,$JV$21:$JV$68,0)) ->  | JX32: =IF(OR('Set UP'!F18<>"NS",'Set UP'!C18=0,'Set UP'!D18=0,'Set UP'!E18=0),"",$JP32) ->  | JY32: =IF(OR('Set UP'!F18<>"NS",'Set UP'!C18=0,'Set UP'!D18=0,'Set UP'!E18=0),"",RANK(JX32,$JX$21:$JX$68,0)) ->  | JZ32: =IF(OR('Set UP'!$C18=0,'Set UP'!$D18=0,'Set UP'!$E18=0,JP32=0),"",JP32/MAX(JP$21:JP$68)*1000) -> 816.6458073 | KC32: =MAX(IF(Clubs='Set UP'!D18,'Wet Incident'!JU$21:JU$68)) -> 17
B33: 13 | C33: =IF(OR('Set UP'!$C19=0,'Set UP'!$D19=0,'Set UP'!$E19=0,'Set UP'!F19=0)," --",'Set UP'!C19) -> 2388 | D33: =IF(OR('Set UP'!$C19=0,'Set UP'!$D19=0,'Set UP'!$E19=0,'Set UP'!F19=0)," --",'Set UP'!D19&" "&'Set UP'!E19) -> University of Nottingham B | E33: =IF(OR('Set UP'!$C19=0,'Set UP'!$D19=0,'Set UP'!$E19=0,'Set UP'!F19=0)," --",'Set UP'!F19) -> S | F33: 9 | G33: 9 | H33: 8 | I33: 7 | AF33: =IF(OR('Set UP'!$C19=0,'Set UP'!$D19=0,'Set UP'!$E19=0),"",(F$19*F33)+(G$19*G33)+(H$19*H33)+(I$19*I33)+(J$19*J33)+(K$19*K33)+(L$19*L33)+(M$19*M33)+(N$19*N33)+(O$19*O33)+(P$19*P33)+(Q$19*Q33)+(R$19*R33)+(S$19*S33)+(T$19*T33)+(U$19*U33)+(V$19*V33)+(W$19*W33)+(X$19*X33)+(Y$19*Y33)+(Z$19*Z33)+(AA$19*AA33)+(AB$19*AB33)+(AC$19*AC33)+(AD$19*AD33)) -> 86.5 | AG33: 10 | AH33: 0 | AI33: 10 | AJ33: 10 | AK33: 0 | AL33: 0 | BG33: =IF(OR('Set UP'!$C19=0,'Set UP'!$D19=0,'Set UP'!$E19=0),"",(AG$19*AG33)+(AH$19*AH33)+(AI$19*AI33)+(AJ$19*AJ33)+(AK$19*AK33)+(AL$19*AL33)+(AM$19*AM33)+(AN$19*AN33)+(AO$19*AO33)+(AP$19*AP33)+(AQ$19*AQ33)+(AR$19*AR33)+(AS$19*AS33)+(AT$19*AT33)+(AU$19*AU33)+(AV$19*AV33)+(AW$19*AW33)+(AX$19*AX33)+(AY$19*AY33)+(AZ$19*AZ33)+(BA$19*BA33)+(BB$19*BB33)+(BC$19*BC33)+(BD$19*BD33)+(BE$19*BE33)) -> 50 | BH33: 9 | BI33: 6 | BJ33: 0 | BK33: 6 | BL33: 9 | BM33: 8 | BN33: 4 | BO33: 4 | BP33: 1 | BQ33: 3 | CH33: =IF(OR('Set UP'!$C19=0,'Set UP'!$D19=0,'Set UP'!$E19=0),"",(BH$19*BH33)+(BI$19*BI33)+(BJ$19*BJ33)+(BK$19*BK33)+(BL$19*BL33)+(BM$19*BM33)+(BN$19*BN33)+(BO$19*BO33)+(BP$19*BP33)+(BQ$19*BQ33)+(BR$19*BR33)+(BS$19*BS33)+(BT$19*BT33)+(BU$19*BU33)+(BV$19*BV33)+(BW$19*BW33)+(BX$19*BX33)+(BY$19*BY33)+(BZ$19*BZ33)+(CA$19*CA33)+(CB$19*CB33)+(CC$19*CC33)+(CD$19*CD33)+(CE$19*CE33)+(CF$19*CF33)) -> 73.5 | CI33: 5 | CJ33: 6 | CK33: 7 | CL33: 10 | DI33: =IF(OR('Set UP'!$C19=0,'Set UP'!$D19=0,'Set UP'!$E19=0),"",(CI$19*CI33)+(CJ$19*CJ33)+(CK$19*CK33)+(CL$19*CL33)+(CM$19*CM33)+(CN$19*CN33)+(CO$19*CO33)+(CP$19*CP33)+(CQ$19*CQ33)+(CR$19*CR33)+(CS$19*CS33)+(CT$19*CT33)+(CU$19*CU33)+(CV$19*CV33)+(CW$19*CW33)+(CX$19*CX33)+(CY$19*CY33)+(CZ$19*CZ33)+(DA$19*DA33)+(DB$19*DB33)+(DC$19*DC33)+(DD$19*DD33)+(DE$19*DE33)+(DF$19*DF33)+(DG$19*DG33)) -> 55.5 | DJ33: 6 | DK33: 5 | DL33: 4 | DM33: 0 | DN33: 7 | DO33: 3 | DP33: 1 | EJ33: =IF(OR('Set UP'!$C19=0,'Set UP'!$D19=0,'Set UP'!$E19=0),"",(DJ$19*DJ33)+(DK$19*DK33)+(DL$19*DL33)+(DM$19*DM33)+(DN$19*DN33)+(DO$19*DO33)+(DP$19*DP33)+(DQ$19*DQ33)+(DR$19*DR33)+(DS$19*DS33)+(DT$19*DT33)+(DU$19*DU33)+(DV$19*DV33)+(DW$19*DW33)+(DX$19*DX33)+(DY$19*DY33)+(DZ$19*DZ33)+(EA$19*EA33)+(EB$19*EB33)+(EC$19*EC33)+(ED$19*ED33)+(EE$19*EE33)+(EF$19*EF33)+(EG$19*EG33)+(EH$19*EH33)) -> 36.5 | EK33: 4 | EL33: 5 | EM33: 7 | EN33: 4 | EO33: 3 | EP33: 7 | FK33: =IF(OR('Set UP'!$C19=0,'Set UP'!$D19=0,'Set UP'!$E19=0),"",(EK$19*EK33)+(EL$19*EL33)+(EM$19*EM33)+(EN$19*EN33)+(EO$19*EO33)+(EP$19*EP33)+(EQ$19*EQ33)+(ER$19*ER33)+(ES$19*ES33)+(ET$19*ET33)+(EU$19*EU33)+(EV$19*EV33)+(EW$19*EW33)+(EX$19*EX33)+(EY$19*EY33)+(EZ$19*EZ33)+(FA$19*FA33)+(FB$19*FB33)+(FC$19*FC33)+(FD$19*FD33)+(FE$19*FE33)+(FF$19*FF33)+(FG$19*FG33)+(FH$19*FH33)+(FI$19*FI33)) -> 30 | GL33: =IF(OR('Set UP'!$C19=0,'Set UP'!$D19=0,'Set UP'!$E19=0),"",(FL$19*FL33)+(FM$19*FM33)+(FN$19*FN33)+(FO$19*FO33)+(FP$19*FP33)+(FQ$19*FQ33)+(FR$19*FR33)+(FS$19*FS33)+(FT$19*FT33)+(FU$19*FU33)+(FV$19*FV33)+(FW$19*FW33)+(FX$19*FX33)+(FY$19*FY33)+(FZ$19*FZ33)+(GA$19*GA33)+(GB$19*GB33)+(GC$19*GC33)+(GD$19*GD33)+(GE$19*GE33)+(GF$19*GF33)+(GG$19*GG33)+(GH$19*GH33)+(GI$19*GI33)+(GJ$19*GJ33)) -> 0 | HM33: =IF(OR('Set UP'!$C19=0,'Set UP'!$D19=0,'Set UP'!$E19=0),"",(GM$19*GM33)+(GN$19*GN33)+(GO$19*GO33)+(GP$19*GP33)+(GQ$19*GQ33)+(GR$19*GR33)+(GS$19*GS33)+(GT$19*GT33)+(GU$19*GU33)+(GV$19*GV33)+(GW$19*GW33)+(GX$19*GX33)+(GY$19*GY33)+(GZ$19*GZ33)+(HA$19*HA33)+(HB$19*HB33)+(HC$19*HC33)+(HD$19*HD33)+(HE$19*HE33)+(HF$19*HF33)+(HG$19*HG33)+(HH$19*HH33)+(HI$19*HI33)+(HJ$19*HJ33)+(HK$19*HK33)) -> 0 | IN33: =IF(OR('Set UP'!$C19=0,'Set UP'!$D19=0,'Set UP'!$E19=0),"",(HN$19*HN33)+(HO$19*HO33)+(HP$19*HP33)+(HQ$19*HQ33)+(HR$19*HR33)+(HS$19*HS33)+(HT$19*HT33)+(HU$19*HU33)+(HV$19*HV33)+(HW$19*HW33)+(HX$19*HX33)+(HY$19*HY33)+(HZ$19*HZ33)+(IA$19*IA33)+(IB$19*IB33)+(IC$19*IC33)+(ID$19*ID33)+(IE$19*IE33)+(IF$19*IF33)+(IG$19*IG33)+(IH$19*IH33)+(II$19*II33)+(IJ$19*IJ33)+(IK$19*IK33)+(IL$19*IL33)) -> 0 | JO33: =IF(OR('Set UP'!$C19=0,'Set UP'!$D19=0,'Set UP'!$E19=0),"",(IO$19*IO33)+(IP$19*IP33)+(IQ$19*IQ33)+(IR$19*IR33)+(IS$19*IS33)+(IT$19*IT33)+(IU$19*IU33)+(IV$19*IV33)+(IW$19*IW33)+(IX$19*IX33)+(IY$19*IY33)+(IZ$19*IZ33)+(JA$19*JA33)+(JB$19*JB33)+(JC$19*JC33)+(JD$19*JD33)+(JE$19*JE33)+(JF$19*JF33)+(JG$19*JG33)+(JH$19*JH33)+(JI$19*JI33)+(JJ$19*JJ33)+(JK$19*JK33)+(JL$19*JL33)+(JM$19*JM33)) -> 0 | JP33: =IF(OR('Set UP'!$C19=0,'Set UP'!$D19=0,'Set UP'!$E19=0),"",(AF33+BG33+CH33+DI33+EJ33+FK33+GL33+HM33+IN33+JO33)) -> 332 | JQ33: =IF(OR('Set UP'!$C19=0,'Set UP'!$D19=0,'Set UP'!$E19=0),"",RANK(JP33,$JP$21:$JP$68,0)) -> 13 | JR33: =IF(OR('Set UP'!K19<>1,'Set UP'!C19=0,'Set UP'!D19=0,'Set UP'!E19=0,'Set UP'!F19=0),"",$JP33) ->  | JS33: =IF(OR('Set UP'!K19<>1,'Set UP'!C19=0,'Set UP'!D19=0,'Set UP'!E19=0,'Set UP'!F19=0),"",RANK(JR33,$JR$21:$JR$68,0)) ->  | JT33: =IF(OR('Set UP'!K19<>2,'Set UP'!C19=0,'Set UP'!D19=0,'Set UP'!E19=0,'Set UP'!F19=0),"",$JP33) -> 332 | JU33: =IF(OR('Set UP'!K19<>2,'Set UP'!C19=0,'Set UP'!D19=0,'Set UP'!E19=0,'Set UP'!F19=0),"",RANK(JT33,$JT$21:$JT$68,0)) -> 9 | JV33: =IF(OR(LEFT('Set UP'!F19,1)<>"F",'Set UP'!C19=0,'Set UP'!D19=0,'Set UP'!E19=0),"",$JP33) ->  | JW33: =IF(OR(LEFT('Set UP'!F19,1)<>"F",'Set UP'!C19=0,'Set UP'!D19=0,'Set UP'!E19=0),"",RANK(JV33,$JV$21:$JV$68,0)) ->  | JX33: =IF(OR('Set UP'!F19<>"NS",'Set UP'!C19=0,'Set UP'!D19=0,'Set UP'!E19=0),"",$JP33) ->  | JY33: =IF(OR('Set UP'!F19<>"NS",'Set UP'!C19=0,'Set UP'!D19=0,'Set UP'!E19=0),"",RANK(JX33,$JX$21:$JX$68,0)) ->  | JZ33: =IF(OR('Set UP'!$C19=0,'Set UP'!$D19=0,'Set UP'!$E19=0,JP33=0),"",JP33/MAX(JP$21:JP$68)*1000) -> 831.0387985 | KC33: =MAX(IF(Clubs='Set UP'!D19,'Wet Incident'!JU$21:JU$68)) -> 18
B34: 14 | C34: =IF(OR('Set UP'!$C20=0,'Set UP'!$D20=0,'Set UP'!$E20=0,'Set UP'!F20=0)," --",'Set UP'!C20) -> 2376 | D34: =IF(OR('Set UP'!$C20=0,'Set UP'!$D20=0,'Set UP'!$E20=0,'Set UP'!F20=0)," --",'Set UP'!D20&" "&'Set UP'!E20) -> University of Sheffield B | E34: =IF(OR('Set UP'!$C20=0,'Set UP'!$D20=0,'Set UP'!$E20=0,'Set UP'!F20=0)," --",'Set UP'!F20) -> S | F34: 4 | G34: 5 | H34: 5 | I34: 7 | AF34: =IF(OR('Set UP'!$C20=0,'Set UP'!$D20=0,'Set UP'!$E20=0),"",(F$19*F34)+(G$19*G34)+(H$19*H34)+(I$19*I34)+(J$19*J34)+(K$19*K34)+(L$19*L34)+(M$19*M34)+(N$19*N34)+(O$19*O34)+(P$19*P34)+(Q$19*Q34)+(R$19*R34)+(S$19*S34)+(T$19*T34)+(U$19*U34)+(V$19*V34)+(W$19*W34)+(X$19*X34)+(Y$19*Y34)+(Z$19*Z34)+(AA$19*AA34)+(AB$19*AB34)+(AC$19*AC34)+(AD$19*AD34)) -> 56 | AG34: 10 | AH34: 10 | AI34: 6 | AJ34: 10 | AK34: 0 | AL34: 0 | BG34: =IF(OR('Set UP'!$C20=0,'Set UP'!$D20=0,'Set UP'!$E20=0),"",(AG$19*AG34)+(AH$19*AH34)+(AI$19*AI34)+(AJ$19*AJ34)+(AK$19*AK34)+(AL$19*AL34)+(AM$19*AM34)+(AN$19*AN34)+(AO$19*AO34)+(AP$19*AP34)+(AQ$19*AQ34)+(AR$19*AR34)+(AS$19*AS34)+(AT$19*AT34)+(AU$19*AU34)+(AV$19*AV34)+(AW$19*AW34)+(AX$19*AX34)+(AY$19*AY34)+(AZ$19*AZ34)+(BA$19*BA34)+(BB$19*BB34)+(BC$19*BC34)+(BD$19*BD34)+(BE$19*BE34)) -> 57 | BH34: 8 | BI34: 3 | BJ34: 0 | BK34: 1 | BL34: 8 | BM34: 1 | BN34: 1 | BO34: 5 | BP34: 3 | BQ34: 2 | CH34: =IF(OR('Set UP'!$C20=0,'Set UP'!$D20=0,'Set UP'!$E20=0),"",(BH$19*BH34)+(BI$19*BI34)+(BJ$19*BJ34)+(BK$19*BK34)+(BL$19*BL34)+(BM$19*BM34)+(BN$19*BN34)+(BO$19*BO34)+(BP$19*BP34)+(BQ$19*BQ34)+(BR$19*BR34)+(BS$19*BS34)+(BT$19*BT34)+(BU$19*BU34)+(BV$19*BV34)+(BW$19*BW34)+(BX$19*BX34)+(BY$19*BY34)+(BZ$19*BZ34)+(CA$19*CA34)+(CB$19*CB34)+(CC$19*CC34)+(CD$19*CD34)+(CE$19*CE34)+(CF$19*CF34)) -> 39.25 | CI34: 2 | CJ34: 8 | CK34: 2 | CL34: 0 | DI34: =IF(OR('Set UP'!$C20=0,'Set UP'!$D20=0,'Set UP'!$E20=0),"",(CI$19*CI34)+(CJ$19*CJ34)+(CK$19*CK34)+(CL$19*CL34)+(CM$19*CM34)+(CN$19*CN34)+(CO$19*CO34)+(CP$19*CP34)+(CQ$19*CQ34)+(CR$19*CR34)+(CS$19*CS34)+(CT$19*CT34)+(CU$19*CU34)+(CV$19*CV34)+(CW$19*CW34)+(CX$19*CX34)+(CY$19*CY34)+(CZ$19*CZ34)+(DA$19*DA34)+(DB$19*DB34)+(DC$19*DC34)+(DD$19*DD34)+(DE$19*DE34)+(DF$19*DF34)+(DG$19*DG34)) -> 31 | DJ34: 4 | DK34: 7 | DL34: 7 | DM34: 7 | DN34: 4 | DO34: 2 | DP34: 1 | EJ34: =IF(OR('Set UP'!$C20=0,'Set UP'!$D20=0,'Set UP'!$E20=0),"",(DJ$19*DJ34)+(DK$19*DK34)+(DL$19*DL34)+(DM$19*DM34)+(DN$19*DN34)+(DO$19*DO34)+(DP$19*DP34)+(DQ$19*DQ34)+(DR$19*DR34)+(DS$19*DS34)+(DT$19*DT34)+(DU$19*DU34)+(DV$19*DV34)+(DW$19*DW34)+(DX$19*DX34)+(DY$19*DY34)+(DZ$19*DZ34)+(EA$19*EA34)+(EB$19*EB34)+(EC$19*EC34)+(ED$19*ED34)+(EE$19*EE34)+(EF$19*EF34)+(EG$19*EG34)+(EH$19*EH34)) -> 45 | EK34: 3 | EL34: 5 | EM34: 6 | EN34: 4 | EO34: 6 | EP34: 7 | FK34: =IF(OR('Set UP'!$C20=0,'Set UP'!$D20=0,'Set UP'!$E20=0),"",(EK$19*EK34)+(EL$19*EL34)+(EM$19*EM34)+(EN$19*EN34)+(EO$19*EO34)+(EP$19*EP34)+(EQ$19*EQ34)+(ER$19*ER34)+(ES$19*ES34)+(ET$19*ET34)+(EU$19*EU34)+(EV$19*EV34)+(EW$19*EW34)+(EX$19*EX34)+(EY$19*EY34)+(EZ$19*EZ34)+(FA$19*FA34)+(FB$19*FB34)+(FC$19*FC34)+(FD$19*FD34)+(FE$19*FE34)+(FF$19*FF34)+(FG$19*FG34)+(FH$19*FH34)+(FI$19*FI34)) -> 36.25 | GL34: =IF(OR('Set UP'!$C20=0,'Set UP'!$D20=0,'Set UP'!$E20=0),"",(FL$19*FL34)+(FM$19*FM34)+(FN$19*FN34)+(FO$19*FO34)+(FP$19*FP34)+(FQ$19*FQ34)+(FR$19*FR34)+(FS$19*FS34)+(FT$19*FT34)+(FU$19*FU34)+(FV$19*FV34)+(FW$19*FW34)+(FX$19*FX34)+(FY$19*FY34)+(FZ$19*FZ34)+(GA$19*GA34)+(GB$19*GB34)+(GC$19*GC34)+(GD$19*GD34)+(GE$19*GE34)+(GF$19*GF34)+(GG$19*GG34)+(GH$19*GH34)+(GI$19*GI34)+(GJ$19*GJ34)) -> 0 | HM34: =IF(OR('Set UP'!$C20=0,'Set UP'!$D20=0,'Set UP'!$E20=0),"",(GM$19*GM34)+(GN$19*GN34)+(GO$19*GO34)+(GP$19*GP34)+(GQ$19*GQ34)+(GR$19*GR34)+(GS$19*GS34)+(GT$19*GT34)+(GU$19*GU34)+(GV$19*GV34)+(GW$19*GW34)+(GX$19*GX34)+(GY$19*GY34)+(GZ$19*GZ34)+(HA$19*HA34)+(HB$19*HB34)+(HC$19*HC34)+(HD$19*HD34)+(HE$19*HE34)+(HF$19*HF34)+(HG$19*HG34)+(HH$19*HH34)+(HI$19*HI34)+(HJ$19*HJ34)+(HK$19*HK34)) -> 0 | IN34: =IF(OR('Set UP'!$C20=0,'Set UP'!$D20=0,'Set UP'!$E20=0),"",(HN$19*HN34)+(HO$19*HO34)+(HP$19*HP34)+(HQ$19*HQ34)+(HR$19*HR34)+(HS$19*HS34)+(HT$19*HT34)+(HU$19*HU34)+(HV$19*HV34)+(HW$19*HW34)+(HX$19*HX34)+(HY$19*HY34)+(HZ$19*HZ34)+(IA$19*IA34)+(IB$19*IB34)+(IC$19*IC34)+(ID$19*ID34)+(IE$19*IE34)+(IF$19*IF34)+(IG$19*IG34)+(IH$19*IH34)+(II$19*II34)+(IJ$19*IJ34)+(IK$19*IK34)+(IL$19*IL34)) -> 0 | JO34: =IF(OR('Set UP'!$C20=0,'Set UP'!$D20=0,'Set UP'!$E20=0),"",(IO$19*IO34)+(IP$19*IP34)+(IQ$19*IQ34)+(IR$19*IR34)+(IS$19*IS34)+(IT$19*IT34)+(IU$19*IU34)+(IV$19*IV34)+(IW$19*IW34)+(IX$19*IX34)+(IY$19*IY34)+(IZ$19*IZ34)+(JA$19*JA34)+(JB$19*JB34)+(JC$19*JC34)+(JD$19*JD34)+(JE$19*JE34)+(JF$19*JF34)+(JG$19*JG34)+(JH$19*JH34)+(JI$19*JI34)+(JJ$19*JJ34)+(JK$19*JK34)+(JL$19*JL34)+(JM$19*JM34)) -> 0 | JP34: =IF(OR('Set UP'!$C20=0,'Set UP'!$D20=0,'Set UP'!$E20=0),"",(AF34+BG34+CH34+DI34+EJ34+FK34+GL34+HM34+IN34+JO34)) -> 264.5 | JQ34: =IF(OR('Set UP'!$C20=0,'Set UP'!$D20=0,'Set UP'!$E20=0),"",RANK(JP34,$JP$21:$JP$68,0)) -> 26 | JR34: =IF(OR('Set UP'!K20<>1,'Set UP'!C20=0,'Set UP'!D20=0,'Set UP'!E20=0,'Set UP'!F20=0),"",$JP34) ->  | JS34: =IF(OR('Set UP'!K20<>1,'Set UP'!C20=0,'Set UP'!D20=0,'Set UP'!E20=0,'Set UP'!F20=0),"",RANK(JR34,$JR$21:$JR$68,0)) ->  | JT34: =IF(OR('Set UP'!K20<>2,'Set UP'!C20=0,'Set UP'!D20=0,'Set UP'!E20=0,'Set UP'!F20=0),"",$JP34) -> 264.5 | JU34: =IF(OR('Set UP'!K20<>2,'Set UP'!C20=0,'Set UP'!D20=0,'Set UP'!E20=0,'Set UP'!F20=0),"",RANK(JT34,$JT$21:$JT$68,0)) -> 20 | JV34: =IF(OR(LEFT('Set UP'!F20,1)<>"F",'Set UP'!C20=0,'Set UP'!D20=0,'Set UP'!E20=0),"",$JP34) ->  | JW34: =IF(OR(LEFT('Set UP'!F20,1)<>"F",'Set UP'!C20=0,'Set UP'!D20=0,'Set UP'!E20=0),"",RANK(JV34,$JV$21:$JV$68,0)) ->  | JX34: =IF(OR('Set UP'!F20<>"NS",'Set UP'!C20=0,'Set UP'!D20=0,'Set UP'!E20=0),"",$JP34) ->  | JY34: =IF(OR('Set UP'!F20<>"NS",'Set UP'!C20=0,'Set UP'!D20=0,'Set UP'!E20=0),"",RANK(JX34,$JX$21:$JX$68,0)) ->  | JZ34: =IF(OR('Set UP'!$C20=0,'Set UP'!$D20=0,'Set UP'!$E20=0,JP34=0),"",JP34/MAX(JP$21:JP$68)*1000) -> 662.077597 | KC34: =MAX(IF(Clubs='Set UP'!D20,'Wet Incident'!JU$21:JU$68)) -> 9
B35: 15 | C35: =IF(OR('Set UP'!$C21=0,'Set UP'!$D21=0,'Set UP'!$E21=0,'Set UP'!F21=0)," --",'Set UP'!C21) -> 2395 | D35: =IF(OR('Set UP'!$C21=0,'Set UP'!$D21=0,'Set UP'!$E21=0,'Set UP'!F21=0)," --",'Set UP'!D21&" "&'Set UP'!E21) -> University of Warwick C | E35: =IF(OR('Set UP'!$C21=0,'Set UP'!$D21=0,'Set UP'!$E21=0,'Set UP'!F21=0)," --",'Set UP'!F21) -> NC | F35: 7 | G35: 6 | H35: 8 | I35: 6 | AF35: =IF(OR('Set UP'!$C21=0,'Set UP'!$D21=0,'Set UP'!$E21=0),"",(F$19*F35)+(G$19*G35)+(H$19*H35)+(I$19*I35)+(J$19*J35)+(K$19*K35)+(L$19*L35)+(M$19*M35)+(N$19*N35)+(O$19*O35)+(P$19*P35)+(Q$19*Q35)+(R$19*R35)+(S$19*S35)+(T$19*T35)+(U$19*U35)+(V$19*V35)+(W$19*W35)+(X$19*X35)+(Y$19*Y35)+(Z$19*Z35)+(AA$19*AA35)+(AB$19*AB35)+(AC$19*AC35)+(AD$19*AD35)) -> 69.5 | AG35: 10 | AH35: 10 | AI35: 10 | AJ35: 10 | AK35: 0 | AL35: 0 | BG35: =IF(OR('Set UP'!$C21=0,'Set UP'!$D21=0,'Set UP'!$E21=0),"",(AG$19*AG35)+(AH$19*AH35)+(AI$19*AI35)+(AJ$19*AJ35)+(AK$19*AK35)+(AL$19*AL35)+(AM$19*AM35)+(AN$19*AN35)+(AO$19*AO35)+(AP$19*AP35)+(AQ$19*AQ35)+(AR$19*AR35)+(AS$19*AS35)+(AT$19*AT35)+(AU$19*AU35)+(AV$19*AV35)+(AW$19*AW35)+(AX$19*AX35)+(AY$19*AY35)+(AZ$19*AZ35)+(BA$19*BA35)+(BB$19*BB35)+(BC$19*BC35)+(BD$19*BD35)+(BE$19*BE35)) -> 65 | BH35: 9 | BI35: 2 | BJ35: 0 | BK35: 3 | BL35: 9 | BM35: 5 | BN35: 6 | BO35: 4 | BP35: 1 | BQ35: 1 | CH35: =IF(OR('Set UP'!$C21=0,'Set UP'!$D21=0,'Set UP'!$E21=0),"",(BH$19*BH35)+(BI$19*BI35)+(BJ$19*BJ35)+(BK$19*BK35)+(BL$19*BL35)+(BM$19*BM35)+(BN$19*BN35)+(BO$19*BO35)+(BP$19*BP35)+(BQ$19*BQ35)+(BR$19*BR35)+(BS$19*BS35)+(BT$19*BT35)+(BU$19*BU35)+(BV$19*BV35)+(BW$19*BW35)+(BX$19*BX35)+(BY$19*BY35)+(BZ$19*BZ35)+(CA$19*CA35)+(CB$19*CB35)+(CC$19*CC35)+(CD$19*CD35)+(CE$19*CE35)+(CF$19*CF35)) -> 57.5 | CI35: 8 | CJ35: 5 | CK35: 3 | CL35: 0 | DI35: =IF(OR('Set UP'!$C21=0,'Set UP'!$D21=0,'Set UP'!$E21=0),"",(CI$19*CI35)+(CJ$19*CJ35)+(CK$19*CK35)+(CL$19*CL35)+(CM$19*CM35)+(CN$19*CN35)+(CO$19*CO35)+(CP$19*CP35)+(CQ$19*CQ35)+(CR$19*CR35)+(CS$19*CS35)+(CT$19*CT35)+(CU$19*CU35)+(CV$19*CV35)+(CW$19*CW35)+(CX$19*CX35)+(CY$19*CY35)+(CZ$19*CZ35)+(DA$19*DA35)+(DB$19*DB35)+(DC$19*DC35)+(DD$19*DD35)+(DE$19*DE35)+(DF$19*DF35)+(DG$19*DG35)) -> 36.5 | DJ35: 6 | DK35: 4 | DL35: 5 | DM35: 3 | DN35: 7 | DO35: 1 | DP35: 1 | EJ35: =IF(OR('Set UP'!$C21=0,'Set UP'!$D21=0,'Set UP'!$E21=0),"",(DJ$19*DJ35)+(DK$19*DK35)+(DL$19*DL35)+(DM$19*DM35)+(DN$19*DN35)+(DO$19*DO35)+(DP$19*DP35)+(DQ$19*DQ35)+(DR$19*DR35)+(DS$19*DS35)+(DT$19*DT35)+(DU$19*DU35)+(DV$19*DV35)+(DW$19*DW35)+(DX$19*DX35)+(DY$19*DY35)+(DZ$19*DZ35)+(EA$19*EA35)+(EB$19*EB35)+(EC$19*EC35)+(ED$19*ED35)+(EE$19*EE35)+(EF$19*EF35)+(EG$19*EG35)+(EH$19*EH35)) -> 37 | EK35: 1 | EL35: 3 | EM35: 1 | EN35: 5 | EO35: 7 | EP35: 5 | FK35: =IF(OR('Set UP'!$C21=0,'Set UP'!$D21=0,'Set UP'!$E21=0),"",(EK$19*EK35)+(EL$19*EL35)+(EM$19*EM35)+(EN$19*EN35)+(EO$19*EO35)+(EP$19*EP35)+(EQ$19*EQ35)+(ER$19*ER35)+(ES$19*ES35)+(ET$19*ET35)+(EU$19*EU35)+(EV$19*EV35)+(EW$19*EW35)+(EX$19*EX35)+(EY$19*EY35)+(EZ$19*EZ35)+(FA$19*FA35)+(FB$19*FB35)+(FC$19*FC35)+(FD$19*FD35)+(FE$19*FE35)+(FF$19*FF35)+(FG$19*FG35)+(FH$19*FH35)+(FI$19*FI35)) -> 31.75 | GL35: =IF(OR('Set UP'!$C21=0,'Set UP'!$D21=0,'Set UP'!$E21=0),"",(FL$19*FL35)+(FM$19*FM35)+(FN$19*FN35)+(FO$19*FO35)+(FP$19*FP35)+(FQ$19*FQ35)+(FR$19*FR35)+(FS$19*FS35)+(FT$19*FT35)+(FU$19*FU35)+(FV$19*FV35)+(FW$19*FW35)+(FX$19*FX35)+(FY$19*FY35)+(FZ$19*FZ35)+(GA$19*GA35)+(GB$19*GB35)+(GC$19*GC35)+(GD$19*GD35)+(GE$19*GE35)+(GF$19*GF35)+(GG$19*GG35)+(GH$19*GH35)+(GI$19*GI35)+(GJ$19*GJ35)) -> 0 | HM35: =IF(OR('Set UP'!$C21=0,'Set UP'!$D21=0,'Set UP'!$E21=0),"",(GM$19*GM35)+(GN$19*GN35)+(GO$19*GO35)+(GP$19*GP35)+(GQ$19*GQ35)+(GR$19*GR35)+(GS$19*GS35)+(GT$19*GT35)+(GU$19*GU35)+(GV$19*GV35)+(GW$19*GW35)+(GX$19*GX35)+(GY$19*GY35)+(GZ$19*GZ35)+(HA$19*HA35)+(HB$19*HB35)+(HC$19*HC35)+(HD$19*HD35)+(HE$19*HE35)+(HF$19*HF35)+(HG$19*HG35)+(HH$19*HH35)+(HI$19*HI35)+(HJ$19*HJ35)+(HK$19*HK35)) -> 0 | IN35: =IF(OR('Set UP'!$C21=0,'Set UP'!$D21=0,'Set UP'!$E21=0),"",(HN$19*HN35)+(HO$19*HO35)+(HP$19*HP35)+(HQ$19*HQ35)+(HR$19*HR35)+(HS$19*HS35)+(HT$19*HT35)+(HU$19*HU35)+(HV$19*HV35)+(HW$19*HW35)+(HX$19*HX35)+(HY$19*HY35)+(HZ$19*HZ35)+(IA$19*IA35)+(IB$19*IB35)+(IC$19*IC35)+(ID$19*ID35)+(IE$19*IE35)+(IF$19*IF35)+(IG$19*IG35)+(IH$19*IH35)+(II$19*II35)+(IJ$19*IJ35)+(IK$19*IK35)+(IL$19*IL35)) -> 0 | JO35: =IF(OR('Set UP'!$C21=0,'Set UP'!$D21=0,'Set UP'!$E21=0),"",(IO$19*IO35)+(IP$19*IP35)+(IQ$19*IQ35)+(IR$19*IR35)+(IS$19*IS35)+(IT$19*IT35)+(IU$19*IU35)+(IV$19*IV35)+(IW$19*IW35)+(IX$19*IX35)+(IY$19*IY35)+(IZ$19*IZ35)+(JA$19*JA35)+(JB$19*JB35)+(JC$19*JC35)+(JD$19*JD35)+(JE$19*JE35)+(JF$19*JF35)+(JG$19*JG35)+(JH$19*JH35)+(JI$19*JI35)+(JJ$19*JJ35)+(JK$19*JK35)+(JL$19*JL35)+(JM$19*JM35)) -> 0 | JP35: =IF(OR('Set UP'!$C21=0,'Set UP'!$D21=0,'Set UP'!$E21=0),"",(AF35+BG35+CH35+DI35+EJ35+FK35+GL35+HM35+IN35+JO35)) -> 297.25 | JQ35: =IF(OR('Set UP'!$C21=0,'Set UP'!$D21=0,'Set UP'!$E21=0),"",RANK(JP35,$JP$21:$JP$68,0)) -> 23 | JR35: =IF(OR('Set UP'!K21<>1,'Set UP'!C21=0,'Set UP'!D21=0,'Set UP'!E21=0,'Set UP'!F21=0),"",$JP35) ->  | JS35: =IF(OR('Set UP'!K21<>1,'Set UP'!C21=0,'Set UP'!D21=0,'Set UP'!E21=0,'Set UP'!F21=0),"",RANK(JR35,$JR$21:$JR$68,0)) ->  | JT35: =IF(OR('Set UP'!K21<>2,'Set UP'!C21=0,'Set UP'!D21=0,'Set UP'!E21=0,'Set UP'!F21=0),"",$JP35) ->  | JU35: =IF(OR('Set UP'!K21<>2,'Set UP'!C21=0,'Set UP'!D21=0,'Set UP'!E21=0,'Set UP'!F21=0),"",RANK(JT35,$JT$21:$JT$68,0)) ->  | JV35: =IF(OR(LEFT('Set UP'!F21,1)<>"F",'Set UP'!C21=0,'Set UP'!D21=0,'Set UP'!E21=0),"",$JP35) ->  | JW35: =IF(OR(LEFT('Set UP'!F21,1)<>"F",'Set UP'!C21=0,'Set UP'!D21=0,'Set UP'!E21=0),"",RANK(JV35,$JV$21:$JV$68,0)) ->  | JX35: =IF(OR('Set UP'!F21<>"NS",'Set UP'!C21=0,'Set UP'!D21=0,'Set UP'!E21=0),"",$JP35) ->  | JY35: =IF(OR('Set UP'!F21<>"NS",'Set UP'!C21=0,'Set UP'!D21=0,'Set UP'!E21=0),"",RANK(JX35,$JX$21:$JX$68,0)) ->  | JZ35: =IF(OR('Set UP'!$C21=0,'Set UP'!$D21=0,'Set UP'!$E21=0,JP35=0),"",JP35/MAX(JP$21:JP$68)*1000) -> 744.0550688 | KC35: =MAX(IF(Clubs='Set UP'!D21,'Wet Incident'!JU$21:JU$68)) -> 15
B36: 16 | C36: =IF(OR('Set UP'!$C22=0,'Set UP'!$D22=0,'Set UP'!$E22=0,'Set UP'!F22=0)," --",'Set UP'!C22) -> 2382 | D36: =IF(OR('Set UP'!$C22=0,'Set UP'!$D22=0,'Set UP'!$E22=0,'Set UP'!F22=0)," --",'Set UP'!D22&" "&'Set UP'!E22) -> Loughborough University B | E36: =IF(OR('Set UP'!$C22=0,'Set UP'!$D22=0,'Set UP'!$E22=0,'Set UP'!F22=0)," --",'Set UP'!F22) -> S | F36: 8 | G36: 8 | H36: 6 | I36: 7 | AF36: =IF(OR('Set UP'!$C22=0,'Set UP'!$D22=0,'Set UP'!$E22=0),"",(F$19*F36)+(G$19*G36)+(H$19*H36)+(I$19*I36)+(J$19*J36)+(K$19*K36)+(L$19*L36)+(M$19*M36)+(N$19*N36)+(O$19*O36)+(P$19*P36)+(Q$19*Q36)+(R$19*R36)+(S$19*S36)+(T$19*T36)+(U$19*U36)+(V$19*V36)+(W$19*W36)+(X$19*X36)+(Y$19*Y36)+(Z$19*Z36)+(AA$19*AA36)+(AB$19*AB36)+(AC$19*AC36)+(AD$19*AD36)) -> 77 | AG36: 10 | AH36: 0 | AI36: 10 | AJ36: 6 | AK36: 3 | AL36: 0 | BG36: =IF(OR('Set UP'!$C22=0,'Set UP'!$D22=0,'Set UP'!$E22=0),"",(AG$19*AG36)+(AH$19*AH36)+(AI$19*AI36)+(AJ$19*AJ36)+(AK$19*AK36)+(AL$19*AL36)+(AM$19*AM36)+(AN$19*AN36)+(AO$19*AO36)+(AP$19*AP36)+(AQ$19*AQ36)+(AR$19*AR36)+(AS$19*AS36)+(AT$19*AT36)+(AU$19*AU36)+(AV$19*AV36)+(AW$19*AW36)+(AX$19*AX36)+(AY$19*AY36)+(AZ$19*AZ36)+(BA$19*BA36)+(BB$19*BB36)+(BC$19*BC36)+(BD$19*BD36)+(BE$19*BE36)) -> 48.5 | BH36: 5 | BI36: 0 | BJ36: 0 | BK36: 2 | BL36: 8 | BM36: 6 | BN36: 7 | BO36: 6 | BP36: 2 | BQ36: 2 | CH36: =IF(OR('Set UP'!$C22=0,'Set UP'!$D22=0,'Set UP'!$E22=0),"",(BH$19*BH36)+(BI$19*BI36)+(BJ$19*BJ36)+(BK$19*BK36)+(BL$19*BL36)+(BM$19*BM36)+(BN$19*BN36)+(BO$19*BO36)+(BP$19*BP36)+(BQ$19*BQ36)+(BR$19*BR36)+(BS$19*BS36)+(BT$19*BT36)+(BU$19*BU36)+(BV$19*BV36)+(BW$19*BW36)+(BX$19*BX36)+(BY$19*BY36)+(BZ$19*BZ36)+(CA$19*CA36)+(CB$19*CB36)+(CC$19*CC36)+(CD$19*CD36)+(CE$19*CE36)+(CF$19*CF36)) -> 54.5 | CI36: 8 | CJ36: 8 | CK36: 6 | CL36: 10 | DI36: =IF(OR('Set UP'!$C22=0,'Set UP'!$D22=0,'Set UP'!$E22=0),"",(CI$19*CI36)+(CJ$19*CJ36)+(CK$19*CK36)+(CL$19*CL36)+(CM$19*CM36)+(CN$19*CN36)+(CO$19*CO36)+(CP$19*CP36)+(CQ$19*CQ36)+(CR$19*CR36)+(CS$19*CS36)+(CT$19*CT36)+(CU$19*CU36)+(CV$19*CV36)+(CW$19*CW36)+(CX$19*CX36)+(CY$19*CY36)+(CZ$19*CZ36)+(DA$19*DA36)+(DB$19*DB36)+(DC$19*DC36)+(DD$19*DD36)+(DE$19*DE36)+(DF$19*DF36)+(DG$19*DG36)) -> 61 | DJ36: 5 | DK36: 6 | DL36: 5 | DM36: 1 | DN36: 6 | DO36: 0 | DP36: 1 | EJ36: =IF(OR('Set UP'!$C22=0,'Set UP'!$D22=0,'Set UP'!$E22=0),"",(DJ$19*DJ36)+(DK$19*DK36)+(DL$19*DL36)+(DM$19*DM36)+(DN$19*DN36)+(DO$19*DO36)+(DP$19*DP36)+(DQ$19*DQ36)+(DR$19*DR36)+(DS$19*DS36)+(DT$19*DT36)+(DU$19*DU36)+(DV$19*DV36)+(DW$19*DW36)+(DX$19*DX36)+(DY$19*DY36)+(DZ$19*DZ36)+(EA$19*EA36)+(EB$19*EB36)+(EC$19*EC36)+(ED$19*ED36)+(EE$19*EE36)+(EF$19*EF36)+(EG$19*EG36)+(EH$19*EH36)) -> 34 | EK36: 4 | EL36: 5 | EM36: 6 | EN36: 5 | EO36: 6 | EP36: 4 | FK36: =IF(OR('Set UP'!$C22=0,'Set UP'!$D22=0,'Set UP'!$E22=0),"",(EK$19*EK36)+(EL$19*EL36)+(EM$19*EM36)+(EN$19*EN36)+(EO$19*EO36)+(EP$19*EP36)+(EQ$19*EQ36)+(ER$19*ER36)+(ES$19*ES36)+(ET$19*ET36)+(EU$19*EU36)+(EV$19*EV36)+(EW$19*EW36)+(EX$19*EX36)+(EY$19*EY36)+(EZ$19*EZ36)+(FA$19*FA36)+(FB$19*FB36)+(FC$19*FC36)+(FD$19*FD36)+(FE$19*FE36)+(FF$19*FF36)+(FG$19*FG36)+(FH$19*FH36)+(FI$19*FI36)) -> 35 | GL36: =IF(OR('Set UP'!$C22=0,'Set UP'!$D22=0,'Set UP'!$E22=0),"",(FL$19*FL36)+(FM$19*FM36)+(FN$19*FN36)+(FO$19*FO36)+(FP$19*FP36)+(FQ$19*FQ36)+(FR$19*FR36)+(FS$19*FS36)+(FT$19*FT36)+(FU$19*FU36)+(FV$19*FV36)+(FW$19*FW36)+(FX$19*FX36)+(FY$19*FY36)+(FZ$19*FZ36)+(GA$19*GA36)+(GB$19*GB36)+(GC$19*GC36)+(GD$19*GD36)+(GE$19*GE36)+(GF$19*GF36)+(GG$19*GG36)+(GH$19*GH36)+(GI$19*GI36)+(GJ$19*GJ36)) -> 0 | HM36: =IF(OR('Set UP'!$C22=0,'Set UP'!$D22=0,'Set UP'!$E22=0),"",(GM$19*GM36)+(GN$19*GN36)+(GO$19*GO36)+(GP$19*GP36)+(GQ$19*GQ36)+(GR$19*GR36)+(GS$19*GS36)+(GT$19*GT36)+(GU$19*GU36)+(GV$19*GV36)+(GW$19*GW36)+(GX$19*GX36)+(GY$19*GY36)+(GZ$19*GZ36)+(HA$19*HA36)+(HB$19*HB36)+(HC$19*HC36)+(HD$19*HD36)+(HE$19*HE36)+(HF$19*HF36)+(HG$19*HG36)+(HH$19*HH36)+(HI$19*HI36)+(HJ$19*HJ36)+(HK$19*HK36)) -> 0 | IN36: =IF(OR('Set UP'!$C22=0,'Set UP'!$D22=0,'Set UP'!$E22=0),"",(HN$19*HN36)+(HO$19*HO36)+(HP$19*HP36)+(HQ$19*HQ36)+(HR$19*HR36)+(HS$19*HS36)+(HT$19*HT36)+(HU$19*HU36)+(HV$19*HV36)+(HW$19*HW36)+(HX$19*HX36)+(HY$19*HY36)+(HZ$19*HZ36)+(IA$19*IA36)+(IB$19*IB36)+(IC$19*IC36)+(ID$19*ID36)+(IE$19*IE36)+(IF$19*IF36)+(IG$19*IG36)+(IH$19*IH36)+(II$19*II36)+(IJ$19*IJ36)+(IK$19*IK36)+(IL$19*IL36)) -> 0 | JO36: =IF(OR('Set UP'!$C22=0,'Set UP'!$D22=0,'Set UP'!$E22=0),"",(IO$19*IO36)+(IP$19*IP36)+(IQ$19*IQ36)+(IR$19*IR36)+(IS$19*IS36)+(IT$19*IT36)+(IU$19*IU36)+(IV$19*IV36)+(IW$19*IW36)+(IX$19*IX36)+(IY$19*IY36)+(IZ$19*IZ36)+(JA$19*JA36)+(JB$19*JB36)+(JC$19*JC36)+(JD$19*JD36)+(JE$19*JE36)+(JF$19*JF36)+(JG$19*JG36)+(JH$19*JH36)+(JI$19*JI36)+(JJ$19*JJ36)+(JK$19*JK36)+(JL$19*JL36)+(JM$19*JM36)) -> 0 | JP36: =IF(OR('Set UP'!$C22=0,'Set UP'!$D22=0,'Set UP'!$E22=0),"",(AF36+BG36+CH36+DI36+EJ36+FK36+GL36+HM36+IN36+JO36)) -> 310 | JQ36: =IF(OR('Set UP'!$C22=0,'Set UP'!$D22=0,'Set UP'!$E22=0),"",RANK(JP36,$JP$21:$JP$68,0)) -> 20 | JR36: =IF(OR('Set UP'!K22<>1,'Set UP'!C22=0,'Set UP'!D22=0,'Set UP'!E22=0,'Set UP'!F22=0),"",$JP36) ->  | JS36: =IF(OR('Set UP'!K22<>1,'Set UP'!C22=0,'Set UP'!D22=0,'Set UP'!E22=0,'Set UP'!F22=0),"",RANK(JR36,$JR$21:$JR$68,0)) ->  | JT36: =IF(OR('Set UP'!K22<>2,'Set UP'!C22=0,'Set UP'!D22=0,'Set UP'!E22=0,'Set UP'!F22=0),"",$JP36) -> 310 | JU36: =IF(OR('Set UP'!K22<>2,'Set UP'!C22=0,'Set UP'!D22=0,'Set UP'!E22=0,'Set UP'!F22=0),"",RANK(JT36,$JT$21:$JT$68,0)) -> 16 | JV36: =IF(OR(LEFT('Set UP'!F22,1)<>"F",'Set UP'!C22=0,'Set UP'!D22=0,'Set UP'!E22=0),"",$JP36) ->  | JW36: =IF(OR(LEFT('Set UP'!F22,1)<>"F",'Set UP'!C22=0,'Set UP'!D22=0,'Set UP'!E22=0),"",RANK(JV36,$JV$21:$JV$68,0)) ->  | JX36: =IF(OR('Set UP'!F22<>"NS",'Set UP'!C22=0,'Set UP'!D22=0,'Set UP'!E22=0),"",$JP36) ->  | JY36: =IF(OR('Set UP'!F22<>"NS",'Set UP'!C22=0,'Set UP'!D22=0,'Set UP'!E22=0),"",RANK(JX36,$JX$21:$JX$68,0)) ->  | JZ36: =IF(OR('Set UP'!$C22=0,'Set UP'!$D22=0,'Set UP'!$E22=0,JP36=0),"",JP36/MAX(JP$21:JP$68)*1000) -> 775.9699625 | KC36: =MAX(IF(Clubs='Set UP'!D22,'Wet Incident'!JU$21:JU$68)) -> 6
B37: 17 | C37: =IF(OR('Set UP'!$C23=0,'Set UP'!$D23=0,'Set UP'!$E23=0,'Set UP'!F23=0)," --",'Set UP'!C23) -> 2397 | D37: =IF(OR('Set UP'!$C23=0,'Set UP'!$D23=0,'Set UP'!$E23=0,'Set UP'!F23=0)," --",'Set UP'!D23&" "&'Set UP'!E23) -> University of Birmingham B | E37: =IF(OR('Set UP'!$C23=0,'Set UP'!$D23=0,'Set UP'!$E23=0,'Set UP'!F23=0)," --",'Set UP'!F23) -> NC | F37: 8 | G37: 6 | H37: 7 | I37: 6 | AF37: =IF(OR('Set UP'!$C23=0,'Set UP'!$D23=0,'Set UP'!$E23=0),"",(F$19*F37)+(G$19*G37)+(H$19*H37)+(I$19*I37)+(J$19*J37)+(K$19*K37)+(L$19*L37)+(M$19*M37)+(N$19*N37)+(O$19*O37)+(P$19*P37)+(Q$19*Q37)+(R$19*R37)+(S$19*S37)+(T$19*T37)+(U$19*U37)+(V$19*V37)+(W$19*W37)+(X$19*X37)+(Y$19*Y37)+(Z$19*Z37)+(AA$19*AA37)+(AB$19*AB37)+(AC$19*AC37)+(AD$19*AD37)) -> 70 | AG37: 10 | AH37: 10 | AI37: 10 | AJ37: 10 | AK37: 10 | AL37: 9 | BG37: =IF(OR('Set UP'!$C23=0,'Set UP'!$D23=0,'Set UP'!$E23=0),"",(AG$19*AG37)+(AH$19*AH37)+(AI$19*AI37)+(AJ$19*AJ37)+(AK$19*AK37)+(AL$19*AL37)+(AM$19*AM37)+(AN$19*AN37)+(AO$19*AO37)+(AP$19*AP37)+(AQ$19*AQ37)+(AR$19*AR37)+(AS$19*AS37)+(AT$19*AT37)+(AU$19*AU37)+(AV$19*AV37)+(AW$19*AW37)+(AX$19*AX37)+(AY$19*AY37)+(AZ$19*AZ37)+(BA$19*BA37)+(BB$19*BB37)+(BC$19*BC37)+(BD$19*BD37)+(BE$19*BE37)) -> 93.5 | BH37: 7 | BI37: 9 | BJ37: 0 | BK37: 4 | BL37: 9 | BM37: 7 | BN37: 4 | BO37: 9 | BP37: 7 | BQ37: 4 | CH37: =IF(OR('Set UP'!$C23=0,'Set UP'!$D23=0,'Set UP'!$E23=0),"",(BH$19*BH37)+(BI$19*BI37)+(BJ$19*BJ37)+(BK$19*BK37)+(BL$19*BL37)+(BM$19*BM37)+(BN$19*BN37)+(BO$19*BO37)+(BP$19*BP37)+(BQ$19*BQ37)+(BR$19*BR37)+(BS$19*BS37)+(BT$19*BT37)+(BU$19*BU37)+(BV$19*BV37)+(BW$19*BW37)+(BX$19*BX37)+(BY$19*BY37)+(BZ$19*BZ37)+(CA$19*CA37)+(CB$19*CB37)+(CC$19*CC37)+(CD$19*CD37)+(CE$19*CE37)+(CF$19*CF37)) -> 83.25 | CI37: 6 | CJ37: 6 | CK37: 8 | CL37: 10 | DI37: =IF(OR('Set UP'!$C23=0,'Set UP'!$D23=0,'Set UP'!$E23=0),"",(CI$19*CI37)+(CJ$19*CJ37)+(CK$19*CK37)+(CL$19*CL37)+(CM$19*CM37)+(CN$19*CN37)+(CO$19*CO37)+(CP$19*CP37)+(CQ$19*CQ37)+(CR$19*CR37)+(CS$19*CS37)+(CT$19*CT37)+(CU$19*CU37)+(CV$19*CV37)+(CW$19*CW37)+(CX$19*CX37)+(CY$19*CY37)+(CZ$19*CZ37)+(DA$19*DA37)+(DB$19*DB37)+(DC$19*DC37)+(DD$19*DD37)+(DE$19*DE37)+(DF$19*DF37)+(DG$19*DG37)) -> 61 | DJ37: 8 | DK37: 5 | DL37: 6 | DM37: 3 | DN37: 3 | DO37: 4 | DP37: 3 | EJ37: =IF(OR('Set UP'!$C23=0,'Set UP'!$D23=0,'Set UP'!$E23=0),"",(DJ$19*DJ37)+(DK$19*DK37)+(DL$19*DL37)+(DM$19*DM37)+(DN$19*DN37)+(DO$19*DO37)+(DP$19*DP37)+(DQ$19*DQ37)+(DR$19*DR37)+(DS$19*DS37)+(DT$19*DT37)+(DU$19*DU37)+(DV$19*DV37)+(DW$19*DW37)+(DX$19*DX37)+(DY$19*DY37)+(DZ$19*DZ37)+(EA$19*EA37)+(EB$19*EB37)+(EC$19*EC37)+(ED$19*ED37)+(EE$19*EE37)+(EF$19*EF37)+(EG$19*EG37)+(EH$19*EH37)) -> 45 | EK37: 5 | EL37: 8 | EM37: 6 | EN37: 7 | EO37: 7 | EP37: 6 | FK37: =IF(OR('Set UP'!$C23=0,'Set UP'!$D23=0,'Set UP'!$E23=0),"",(EK$19*EK37)+(EL$19*EL37)+(EM$19*EM37)+(EN$19*EN37)+(EO$19*EO37)+(EP$19*EP37)+(EQ$19*EQ37)+(ER$19*ER37)+(ES$19*ES37)+(ET$19*ET37)+(EU$19*EU37)+(EV$19*EV37)+(EW$19*EW37)+(EX$19*EX37)+(EY$19*EY37)+(EZ$19*EZ37)+(FA$19*FA37)+(FB$19*FB37)+(FC$19*FC37)+(FD$19*FD37)+(FE$19*FE37)+(FF$19*FF37)+(FG$19*FG37)+(FH$19*FH37)+(FI$19*FI37)) -> 45.25 | GL37: =IF(OR('Set UP'!$C23=0,'Set UP'!$D23=0,'Set UP'!$E23=0),"",(FL$19*FL37)+(FM$19*FM37)+(FN$19*FN37)+(FO$19*FO37)+(FP$19*FP37)+(FQ$19*FQ37)+(FR$19*FR37)+(FS$19*FS37)+(FT$19*FT37)+(FU$19*FU37)+(FV$19*FV37)+(FW$19*FW37)+(FX$19*FX37)+(FY$19*FY37)+(FZ$19*FZ37)+(GA$19*GA37)+(GB$19*GB37)+(GC$19*GC37)+(GD$19*GD37)+(GE$19*GE37)+(GF$19*GF37)+(GG$19*GG37)+(GH$19*GH37)+(GI$19*GI37)+(GJ$19*GJ37)) -> 0 | HM37: =IF(OR('Set UP'!$C23=0,'Set UP'!$D23=0,'Set UP'!$E23=0),"",(GM$19*GM37)+(GN$19*GN37)+(GO$19*GO37)+(GP$19*GP37)+(GQ$19*GQ37)+(GR$19*GR37)+(GS$19*GS37)+(GT$19*GT37)+(GU$19*GU37)+(GV$19*GV37)+(GW$19*GW37)+(GX$19*GX37)+(GY$19*GY37)+(GZ$19*GZ37)+(HA$19*HA37)+(HB$19*HB37)+(HC$19*HC37)+(HD$19*HD37)+(HE$19*HE37)+(HF$19*HF37)+(HG$19*HG37)+(HH$19*HH37)+(HI$19*HI37)+(HJ$19*HJ37)+(HK$19*HK37)) -> 0 | IN37: =IF(OR('Set UP'!$C23=0,'Set UP'!$D23=0,'Set UP'!$E23=0),"",(HN$19*HN37)+(HO$19*HO37)+(HP$19*HP37)+(HQ$19*HQ37)+(HR$19*HR37)+(HS$19*HS37)+(HT$19*HT37)+(HU$19*HU37)+(HV$19*HV37)+(HW$19*HW37)+(HX$19*HX37)+(HY$19*HY37)+(HZ$19*HZ37)+(IA$19*IA37)+(IB$19*IB37)+(IC$19*IC37)+(ID$19*ID37)+(IE$19*IE37)+(IF$19*IF37)+(IG$19*IG37)+(IH$19*IH37)+(II$19*II37)+(IJ$19*IJ37)+(IK$19*IK37)+(IL$19*IL37)) -> 0 | JO37: =IF(OR('Set UP'!$C23=0,'Set UP'!$D23=0,'Set UP'!$E23=0),"",(IO$19*IO37)+(IP$19*IP37)+(IQ$19*IQ37)+(IR$19*IR37)+(IS$19*IS37)+(IT$19*IT37)+(IU$19*IU37)+(IV$19*IV37)+(IW$19*IW37)+(IX$19*IX37)+(IY$19*IY37)+(IZ$19*IZ37)+(JA$19*JA37)+(JB$19*JB37)+(JC$19*JC37)+(JD$19*JD37)+(JE$19*JE37)+(JF$19*JF37)+(JG$19*JG37)+(JH$19*JH37)+(JI$19*JI37)+(JJ$19*JJ37)+(JK$19*JK37)+(JL$19*JL37)+(JM$19*JM37)) -> 0 | JP37: =IF(OR('Set UP'!$C23=0,'Set UP'!$D23=0,'Set UP'!$E23=0),"",(AF37+BG37+CH37+DI37+EJ37+FK37+GL37+HM37+IN37+JO37)) -> 398 | JQ37: =IF(OR('Set UP'!$C23=0,'Set UP'!$D23=0,'Set UP'!$E23=0),"",RANK(JP37,$JP$21:$JP$68,0)) -> 2 | JR37: =IF(OR('Set UP'!K23<>1,'Set UP'!C23=0,'Set UP'!D23=0,'Set UP'!E23=0,'Set UP'!F23=0),"",$JP37) ->  | JS37: =IF(OR('Set UP'!K23<>1,'Set UP'!C23=0,'Set UP'!D23=0,'Set UP'!E23=0,'Set UP'!F23=0),"",RANK(JR37,$JR$21:$JR$68,0)) ->  | JT37: =IF(OR('Set UP'!K23<>2,'Set UP'!C23=0,'Set UP'!D23=0,'Set UP'!E23=0,'Set UP'!F23=0),"",$JP37) ->  | JU37: =IF(OR('Set UP'!K23<>2,'Set UP'!C23=0,'Set UP'!D23=0,'Set UP'!E23=0,'Set UP'!F23=0),"",RANK(JT37,$JT$21:$JT$68,0)) ->  | JV37: =IF(OR(LEFT('Set UP'!F23,1)<>"F",'Set UP'!C23=0,'Set UP'!D23=0,'Set UP'!E23=0),"",$JP37) ->  | JW37: =IF(OR(LEFT('Set UP'!F23,1)<>"F",'Set UP'!C23=0,'Set UP'!D23=0,'Set UP'!E23=0),"",RANK(JV37,$JV$21:$JV$68,0)) ->  | JX37: =IF(OR('Set UP'!F23<>"NS",'Set UP'!C23=0,'Set UP'!D23=0,'Set UP'!E23=0),"",$JP37) ->  | JY37: =IF(OR('Set UP'!F23<>"NS",'Set UP'!C23=0,'Set UP'!D23=0,'Set UP'!E23=0),"",RANK(JX37,$JX$21:$JX$68,0)) ->  | JZ37: =IF(OR('Set UP'!$C23=0,'Set UP'!$D23=0,'Set UP'!$E23=0,JP37=0),"",JP37/MAX(JP$21:JP$68)*1000) -> 996.2453066 | KC37: =MAX(IF(Clubs='Set UP'!D23,'Wet Incident'!JU$21:JU$68)) -> 13
B38: 18 | C38: =IF(OR('Set UP'!$C24=0,'Set UP'!$D24=0,'Set UP'!$E24=0,'Set UP'!F24=0)," --",'Set UP'!C24) -> 2379 | D38: =IF(OR('Set UP'!$C24=0,'Set UP'!$D24=0,'Set UP'!$E24=0,'Set UP'!F24=0)," --",'Set UP'!D24&" "&'Set UP'!E24) -> Bristol University B | E38: =IF(OR('Set UP'!$C24=0,'Set UP'!$D24=0,'Set UP'!$E24=0,'Set UP'!F24=0)," --",'Set UP'!F24) -> S | F38: 8 | G38: 8 | H38: 8 | I38: 8 | AF38: =IF(OR('Set UP'!$C24=0,'Set UP'!$D24=0,'Set UP'!$E24=0),"",(F$19*F38)+(G$19*G38)+(H$19*H38)+(I$19*I38)+(J$19*J38)+(K$19*K38)+(L$19*L38)+(M$19*M38)+(N$19*N38)+(O$19*O38)+(P$19*P38)+(Q$19*Q38)+(R$19*R38)+(S$19*S38)+(T$19*T38)+(U$19*U38)+(V$19*V38)+(W$19*W38)+(X$19*X38)+(Y$19*Y38)+(Z$19*Z38)+(AA$19*AA38)+(AB$19*AB38)+(AC$19*AC38)+(AD$19*AD38)) -> 84 | AG38: 10 | AH38: 10 | AI38: 9 | AJ38: 10 | AK38: 1 | AL38: 0 | BG38: =IF(OR('Set UP'!$C24=0,'Set UP'!$D24=0,'Set UP'!$E24=0),"",(AG$19*AG38)+(AH$19*AH38)+(AI$19*AI38)+(AJ$19*AJ38)+(AK$19*AK38)+(AL$19*AL38)+(AM$19*AM38)+(AN$19*AN38)+(AO$19*AO38)+(AP$19*AP38)+(AQ$19*AQ38)+(AR$19*AR38)+(AS$19*AS38)+(AT$19*AT38)+(AU$19*AU38)+(AV$19*AV38)+(AW$19*AW38)+(AX$19*AX38)+(AY$19*AY38)+(AZ$19*AZ38)+(BA$19*BA38)+(BB$19*BB38)+(BC$19*BC38)+(BD$19*BD38)+(BE$19*BE38)) -> 64.5 | BH38: 8 | BI38: 9 | BJ38: 0 | BK38: 3 | BL38: 8 | BM38: 4 | BN38: 4 | BO38: 3 | BP38: 1 | BQ38: 1 | CH38: =IF(OR('Set UP'!$C24=0,'Set UP'!$D24=0,'Set UP'!$E24=0),"",(BH$19*BH38)+(BI$19*BI38)+(BJ$19*BJ38)+(BK$19*BK38)+(BL$19*BL38)+(BM$19*BM38)+(BN$19*BN38)+(BO$19*BO38)+(BP$19*BP38)+(BQ$19*BQ38)+(BR$19*BR38)+(BS$19*BS38)+(BT$19*BT38)+(BU$19*BU38)+(BV$19*BV38)+(BW$19*BW38)+(BX$19*BX38)+(BY$19*BY38)+(BZ$19*BZ38)+(CA$19*CA38)+(CB$19*CB38)+(CC$19*CC38)+(CD$19*CD38)+(CE$19*CE38)+(CF$19*CF38)) -> 58.75 | CI38: 7 | CJ38: 7 | CK38: 6 | CL38: 10 | DI38: =IF(OR('Set UP'!$C24=0,'Set UP'!$D24=0,'Set UP'!$E24=0),"",(CI$19*CI38)+(CJ$19*CJ38)+(CK$19*CK38)+(CL$19*CL38)+(CM$19*CM38)+(CN$19*CN38)+(CO$19*CO38)+(CP$19*CP38)+(CQ$19*CQ38)+(CR$19*CR38)+(CS$19*CS38)+(CT$19*CT38)+(CU$19*CU38)+(CV$19*CV38)+(CW$19*CW38)+(CX$19*CX38)+(CY$19*CY38)+(CZ$19*CZ38)+(DA$19*DA38)+(DB$19*DB38)+(DC$19*DC38)+(DD$19*DD38)+(DE$19*DE38)+(DF$19*DF38)+(DG$19*DG38)) -> 57 | DJ38: 3 | DK38: 3 | DL38: 0 | DM38: 1 | DN38: 4 | DO38: 4 | DP38: 2 | EJ38: =IF(OR('Set UP'!$C24=0,'Set UP'!$D24=0,'Set UP'!$E24=0),"",(DJ$19*DJ38)+(DK$19*DK38)+(DL$19*DL38)+(DM$19*DM38)+(DN$19*DN38)+(DO$19*DO38)+(DP$19*DP38)+(DQ$19*DQ38)+(DR$19*DR38)+(DS$19*DS38)+(DT$19*DT38)+(DU$19*DU38)+(DV$19*DV38)+(DW$19*DW38)+(DX$19*DX38)+(DY$19*DY38)+(DZ$19*DZ38)+(EA$19*EA38)+(EB$19*EB38)+(EC$19*EC38)+(ED$19*ED38)+(EE$19*EE38)+(EF$19*EF38)+(EG$19*EG38)+(EH$19*EH38)) -> 21 | EK38: 2 | EL38: 4 | EM38: 5 | EN38: 4 | EO38: 5 | EP38: 7 | FK38: =IF(OR('Set UP'!$C24=0,'Set UP'!$D24=0,'Set UP'!$E24=0),"",(EK$19*EK38)+(EL$19*EL38)+(EM$19*EM38)+(EN$19*EN38)+(EO$19*EO38)+(EP$19*EP38)+(EQ$19*EQ38)+(ER$19*ER38)+(ES$19*ES38)+(ET$19*ET38)+(EU$19*EU38)+(EV$19*EV38)+(EW$19*EW38)+(EX$19*EX38)+(EY$19*EY38)+(EZ$19*EZ38)+(FA$19*FA38)+(FB$19*FB38)+(FC$19*FC38)+(FD$19*FD38)+(FE$19*FE38)+(FF$19*FF38)+(FG$19*FG38)+(FH$19*FH38)+(FI$19*FI38)) -> 31.5 | GL38: =IF(OR('Set UP'!$C24=0,'Set UP'!$D24=0,'Set UP'!$E24=0),"",(FL$19*FL38)+(FM$19*FM38)+(FN$19*FN38)+(FO$19*FO38)+(FP$19*FP38)+(FQ$19*FQ38)+(FR$19*FR38)+(FS$19*FS38)+(FT$19*FT38)+(FU$19*FU38)+(FV$19*FV38)+(FW$19*FW38)+(FX$19*FX38)+(FY$19*FY38)+(FZ$19*FZ38)+(GA$19*GA38)+(GB$19*GB38)+(GC$19*GC38)+(GD$19*GD38)+(GE$19*GE38)+(GF$19*GF38)+(GG$19*GG38)+(GH$19*GH38)+(GI$19*GI38)+(GJ$19*GJ38)) -> 0 | HM38: =IF(OR('Set UP'!$C24=0,'Set UP'!$D24=0,'Set UP'!$E24=0),"",(GM$19*GM38)+(GN$19*GN38)+(GO$19*GO38)+(GP$19*GP38)+(GQ$19*GQ38)+(GR$19*GR38)+(GS$19*GS38)+(GT$19*GT38)+(GU$19*GU38)+(GV$19*GV38)+(GW$19*GW38)+(GX$19*GX38)+(GY$19*GY38)+(GZ$19*GZ38)+(HA$19*HA38)+(HB$19*HB38)+(HC$19*HC38)+(HD$19*HD38)+(HE$19*HE38)+(HF$19*HF38)+(HG$19*HG38)+(HH$19*HH38)+(HI$19*HI38)+(HJ$19*HJ38)+(HK$19*HK38)) -> 0 | IN38: =IF(OR('Set UP'!$C24=0,'Set UP'!$D24=0,'Set UP'!$E24=0),"",(HN$19*HN38)+(HO$19*HO38)+(HP$19*HP38)+(HQ$19*HQ38)+(HR$19*HR38)+(HS$19*HS38)+(HT$19*HT38)+(HU$19*HU38)+(HV$19*HV38)+(HW$19*HW38)+(HX$19*HX38)+(HY$19*HY38)+(HZ$19*HZ38)+(IA$19*IA38)+(IB$19*IB38)+(IC$19*IC38)+(ID$19*ID38)+(IE$19*IE38)+(IF$19*IF38)+(IG$19*IG38)+(IH$19*IH38)+(II$19*II38)+(IJ$19*IJ38)+(IK$19*IK38)+(IL$19*IL38)) -> 0 | JO38: =IF(OR('Set UP'!$C24=0,'Set UP'!$D24=0,'Set UP'!$E24=0),"",(IO$19*IO38)+(IP$19*IP38)+(IQ$19*IQ38)+(IR$19*IR38)+(IS$19*IS38)+(IT$19*IT38)+(IU$19*IU38)+(IV$19*IV38)+(IW$19*IW38)+(IX$19*IX38)+(IY$19*IY38)+(IZ$19*IZ38)+(JA$19*JA38)+(JB$19*JB38)+(JC$19*JC38)+(JD$19*JD38)+(JE$19*JE38)+(JF$19*JF38)+(JG$19*JG38)+(JH$19*JH38)+(JI$19*JI38)+(JJ$19*JJ38)+(JK$19*JK38)+(JL$19*JL38)+(JM$19*JM38)) -> 0 | JP38: =IF(OR('Set UP'!$C24=0,'Set UP'!$D24=0,'Set UP'!$E24=0),"",(AF38+BG38+CH38+DI38+EJ38+FK38+GL38+HM38+IN38+JO38)) -> 316.75 | JQ38: =IF(OR('Set UP'!$C24=0,'Set UP'!$D24=0,'Set UP'!$E24=0),"",RANK(JP38,$JP$21:$JP$68,0)) -> 19 | JR38: =IF(OR('Set UP'!K24<>1,'Set UP'!C24=0,'Set UP'!D24=0,'Set UP'!E24=0,'Set UP'!F24=0),"",$JP38) ->  | JS38: =IF(OR('Set UP'!K24<>1,'Set UP'!C24=0,'Set UP'!D24=0,'Set UP'!E24=0,'Set UP'!F24=0),"",RANK(JR38,$JR$21:$JR$68,0)) ->  | JT38: =IF(OR('Set UP'!K24<>2,'Set UP'!C24=0,'Set UP'!D24=0,'Set UP'!E24=0,'Set UP'!F24=0),"",$JP38) -> 316.75 | JU38: =IF(OR('Set UP'!K24<>2,'Set UP'!C24=0,'Set UP'!D24=0,'Set UP'!E24=0,'Set UP'!F24=0),"",RANK(JT38,$JT$21:$JT$68,0)) -> 15 | JV38: =IF(OR(LEFT('Set UP'!F24,1)<>"F",'Set UP'!C24=0,'Set UP'!D24=0,'Set UP'!E24=0),"",$JP38) ->  | JW38: =IF(OR(LEFT('Set UP'!F24,1)<>"F",'Set UP'!C24=0,'Set UP'!D24=0,'Set UP'!E24=0),"",RANK(JV38,$JV$21:$JV$68,0)) ->  | JX38: =IF(OR('Set UP'!F24<>"NS",'Set UP'!C24=0,'Set UP'!D24=0,'Set UP'!E24=0),"",$JP38) ->  | JY38: =IF(OR('Set UP'!F24<>"NS",'Set UP'!C24=0,'Set UP'!D24=0,'Set UP'!E24=0),"",RANK(JX38,$JX$21:$JX$68,0)) ->  | JZ38: =IF(OR('Set UP'!$C24=0,'Set UP'!$D24=0,'Set UP'!$E24=0,JP38=0),"",JP38/MAX(JP$21:JP$68)*1000) -> 792.8660826 | KC38: =MAX(IF(Clubs='Set UP'!D24,'Wet Incident'!JU$21:JU$68)) -> 20
B39: 19 | C39: =IF(OR('Set UP'!$C25=0,'Set UP'!$D25=0,'Set UP'!$E25=0,'Set UP'!F25=0)," --",'Set UP'!C25) -> 2398 | D39: =IF(OR('Set UP'!$C25=0,'Set UP'!$D25=0,'Set UP'!$E25=0,'Set UP'!F25=0)," --",'Set UP'!D25&" "&'Set UP'!E25) -> University of Birmingham C | E39: =IF(OR('Set UP'!$C25=0,'Set UP'!$D25=0,'Set UP'!$E25=0,'Set UP'!F25=0)," --",'Set UP'!F25) -> S | F39: 7 | G39: 7 | H39: 8 | I39: 7 | AF39: =IF(OR('Set UP'!$C25=0,'Set UP'!$D25=0,'Set UP'!$E25=0),"",(F$19*F39)+(G$19*G39)+(H$19*H39)+(I$19*I39)+(J$19*J39)+(K$19*K39)+(L$19*L39)+(M$19*M39)+(N$19*N39)+(O$19*O39)+(P$19*P39)+(Q$19*Q39)+(R$19*R39)+(S$19*S39)+(T$19*T39)+(U$19*U39)+(V$19*V39)+(W$19*W39)+(X$19*X39)+(Y$19*Y39)+(Z$19*Z39)+(AA$19*AA39)+(AB$19*AB39)+(AC$19*AC39)+(AD$19*AD39)) -> 75.5 | AG39: 10 | AH39: 0 | AI39: 10 | AJ39: 10 | AK39: 7 | AL39: 0 | BG39: =IF(OR('Set UP'!$C25=0,'Set UP'!$D25=0,'Set UP'!$E25=0),"",(AG$19*AG39)+(AH$19*AH39)+(AI$19*AI39)+(AJ$19*AJ39)+(AK$19*AK39)+(AL$19*AL39)+(AM$19*AM39)+(AN$19*AN39)+(AO$19*AO39)+(AP$19*AP39)+(AQ$19*AQ39)+(AR$19*AR39)+(AS$19*AS39)+(AT$19*AT39)+(AU$19*AU39)+(AV$19*AV39)+(AW$19*AW39)+(AX$19*AX39)+(AY$19*AY39)+(AZ$19*AZ39)+(BA$19*BA39)+(BB$19*BB39)+(BC$19*BC39)+(BD$19*BD39)+(BE$19*BE39)) -> 60.5 | BH39: 9 | BI39: 8 | BJ39: 4 | BK39: 5 | BL39: 9 | BM39: 1 | BN39: 5 | BO39: 6 | BP39: 7 | BQ39: 6 | CH39: =IF(OR('Set UP'!$C25=0,'Set UP'!$D25=0,'Set UP'!$E25=0),"",(BH$19*BH39)+(BI$19*BI39)+(BJ$19*BJ39)+(BK$19*BK39)+(BL$19*BL39)+(BM$19*BM39)+(BN$19*BN39)+(BO$19*BO39)+(BP$19*BP39)+(BQ$19*BQ39)+(BR$19*BR39)+(BS$19*BS39)+(BT$19*BT39)+(BU$19*BU39)+(BV$19*BV39)+(BW$19*BW39)+(BX$19*BX39)+(BY$19*BY39)+(BZ$19*BZ39)+(CA$19*CA39)+(CB$19*CB39)+(CC$19*CC39)+(CD$19*CD39)+(CE$19*CE39)+(CF$19*CF39)) -> 76 | CI39: 7 | CJ39: 6 | CK39: 7 | CL39: 10 | DI39: =IF(OR('Set UP'!$C25=0,'Set UP'!$D25=0,'Set UP'!$E25=0),"",(CI$19*CI39)+(CJ$19*CJ39)+(CK$19*CK39)+(CL$19*CL39)+(CM$19*CM39)+(CN$19*CN39)+(CO$19*CO39)+(CP$19*CP39)+(CQ$19*CQ39)+(CR$19*CR39)+(CS$19*CS39)+(CT$19*CT39)+(CU$19*CU39)+(CV$19*CV39)+(CW$19*CW39)+(CX$19*CX39)+(CY$19*CY39)+(CZ$19*CZ39)+(DA$19*DA39)+(DB$19*DB39)+(DC$19*DC39)+(DD$19*DD39)+(DE$19*DE39)+(DF$19*DF39)+(DG$19*DG39)) -> 58.5 | DJ39: 3 | DK39: 6 | DL39: 0 | DM39: 0 | DN39: 4 | DO39: 1 | DP39: 1 | EJ39: =IF(OR('Set UP'!$C25=0,'Set UP'!$D25=0,'Set UP'!$E25=0),"",(DJ$19*DJ39)+(DK$19*DK39)+(DL$19*DL39)+(DM$19*DM39)+(DN$19*DN39)+(DO$19*DO39)+(DP$19*DP39)+(DQ$19*DQ39)+(DR$19*DR39)+(DS$19*DS39)+(DT$19*DT39)+(DU$19*DU39)+(DV$19*DV39)+(DW$19*DW39)+(DX$19*DX39)+(DY$19*DY39)+(DZ$19*DZ39)+(EA$19*EA39)+(EB$19*EB39)+(EC$19*EC39)+(ED$19*ED39)+(EE$19*EE39)+(EF$19*EF39)+(EG$19*EG39)+(EH$19*EH39)) -> 19.5 | EK39: 7 | EL39: 7 | EM39: 8 | EN39: 7 | EO39: 8 | EP39: 6 | FK39: =IF(OR('Set UP'!$C25=0,'Set UP'!$D25=0,'Set UP'!$E25=0),"",(EK$19*EK39)+(EL$19*EL39)+(EM$19*EM39)+(EN$19*EN39)+(EO$19*EO39)+(EP$19*EP39)+(EQ$19*EQ39)+(ER$19*ER39)+(ES$19*ES39)+(ET$19*ET39)+(EU$19*EU39)+(EV$19*EV39)+(EW$19*EW39)+(EX$19*EX39)+(EY$19*EY39)+(EZ$19*EZ39)+(FA$19*FA39)+(FB$19*FB39)+(FC$19*FC39)+(FD$19*FD39)+(FE$19*FE39)+(FF$19*FF39)+(FG$19*FG39)+(FH$19*FH39)+(FI$19*FI39)) -> 49.25 | GL39: =IF(OR('Set UP'!$C25=0,'Set UP'!$D25=0,'Set UP'!$E25=0),"",(FL$19*FL39)+(FM$19*FM39)+(FN$19*FN39)+(FO$19*FO39)+(FP$19*FP39)+(FQ$19*FQ39)+(FR$19*FR39)+(FS$19*FS39)+(FT$19*FT39)+(FU$19*FU39)+(FV$19*FV39)+(FW$19*FW39)+(FX$19*FX39)+(FY$19*FY39)+(FZ$19*FZ39)+(GA$19*GA39)+(GB$19*GB39)+(GC$19*GC39)+(GD$19*GD39)+(GE$19*GE39)+(GF$19*GF39)+(GG$19*GG39)+(GH$19*GH39)+(GI$19*GI39)+(GJ$19*GJ39)) -> 0 | HM39: =IF(OR('Set UP'!$C25=0,'Set UP'!$D25=0,'Set UP'!$E25=0),"",(GM$19*GM39)+(GN$19*GN39)+(GO$19*GO39)+(GP$19*GP39)+(GQ$19*GQ39)+(GR$19*GR39)+(GS$19*GS39)+(GT$19*GT39)+(GU$19*GU39)+(GV$19*GV39)+(GW$19*GW39)+(GX$19*GX39)+(GY$19*GY39)+(GZ$19*GZ39)+(HA$19*HA39)+(HB$19*HB39)+(HC$19*HC39)+(HD$19*HD39)+(HE$19*HE39)+(HF$19*HF39)+(HG$19*HG39)+(HH$19*HH39)+(HI$19*HI39)+(HJ$19*HJ39)+(HK$19*HK39)) -> 0 | IN39: =IF(OR('Set UP'!$C25=0,'Set UP'!$D25=0,'Set UP'!$E25=0),"",(HN$19*HN39)+(HO$19*HO39)+(HP$19*HP39)+(HQ$19*HQ39)+(HR$19*HR39)+(HS$19*HS39)+(HT$19*HT39)+(HU$19*HU39)+(HV$19*HV39)+(HW$19*HW39)+(HX$19*HX39)+(HY$19*HY39)+(HZ$19*HZ39)+(IA$19*IA39)+(IB$19*IB39)+(IC$19*IC39)+(ID$19*ID39)+(IE$19*IE39)+(IF$19*IF39)+(IG$19*IG39)+(IH$19*IH39)+(II$19*II39)+(IJ$19*IJ39)+(IK$19*IK39)+(IL$19*IL39)) -> 0 | JO39: =IF(OR('Set UP'!$C25=0,'Set UP'!$D25=0,'Set UP'!$E25=0),"",(IO$19*IO39)+(IP$19*IP39)+(IQ$19*IQ39)+(IR$19*IR39)+(IS$19*IS39)+(IT$19*IT39)+(IU$19*IU39)+(IV$19*IV39)+(IW$19*IW39)+(IX$19*IX39)+(IY$19*IY39)+(IZ$19*IZ39)+(JA$19*JA39)+(JB$19*JB39)+(JC$19*JC39)+(JD$19*JD39)+(JE$19*JE39)+(JF$19*JF39)+(JG$19*JG39)+(JH$19*JH39)+(JI$19*JI39)+(JJ$19*JJ39)+(JK$19*JK39)+(JL$19*JL39)+(JM$19*JM39)) -> 0 | JP39: =IF(OR('Set UP'!$C25=0,'Set UP'!$D25=0,'Set UP'!$E25=0),"",(AF39+BG39+CH39+DI39+EJ39+FK39+GL39+HM39+IN39+JO39)) -> 339.25 | JQ39: =IF(OR('Set UP'!$C25=0,'Set UP'!$D25=0,'Set UP'!$E25=0),"",RANK(JP39,$JP$21:$JP$68,0)) -> 9 | JR39: =IF(OR('Set UP'!K25<>1,'Set UP'!C25=0,'Set UP'!D25=0,'Set UP'!E25=0,'Set UP'!F25=0),"",$JP39) ->  | JS39: =IF(OR('Set UP'!K25<>1,'Set UP'!C25=0,'Set UP'!D25=0,'Set UP'!E25=0,'Set UP'!F25=0),"",RANK(JR39,$JR$21:$JR$68,0)) ->  | JT39: =IF(OR('Set UP'!K25<>2,'Set UP'!C25=0,'Set UP'!D25=0,'Set UP'!E25=0,'Set UP'!F25=0),"",$JP39) -> 339.25 | JU39: =IF(OR('Set UP'!K25<>2,'Set UP'!C25=0,'Set UP'!D25=0,'Set UP'!E25=0,'Set UP'!F25=0),"",RANK(JT39,$JT$21:$JT$68,0)) -> 6 | JV39: =IF(OR(LEFT('Set UP'!F25,1)<>"F",'Set UP'!C25=0,'Set UP'!D25=0,'Set UP'!E25=0),"",$JP39) ->  | JW39: =IF(OR(LEFT('Set UP'!F25,1)<>"F",'Set UP'!C25=0,'Set UP'!D25=0,'Set UP'!E25=0),"",RANK(JV39,$JV$21:$JV$68,0)) ->  | JX39: =IF(OR('Set UP'!F25<>"NS",'Set UP'!C25=0,'Set UP'!D25=0,'Set UP'!E25=0),"",$JP39) ->  | JY39: =IF(OR('Set UP'!F25<>"NS",'Set UP'!C25=0,'Set UP'!D25=0,'Set UP'!E25=0),"",RANK(JX39,$JX$21:$JX$68,0)) ->  | JZ39: =IF(OR('Set UP'!$C25=0,'Set UP'!$D25=0,'Set UP'!$E25=0,JP39=0),"",JP39/MAX(JP$21:JP$68)*1000) -> 849.1864831 | KC39: =MAX(IF(Clubs='Set UP'!D25,'Wet Incident'!JU$21:JU$68)) -> 13
B40: 20 | C40: =IF(OR('Set UP'!$C26=0,'Set UP'!$D26=0,'Set UP'!$E26=0,'Set UP'!F26=0)," --",'Set UP'!C26) -> 2399 | D40: =IF(OR('Set UP'!$C26=0,'Set UP'!$D26=0,'Set UP'!$E26=0,'Set UP'!F26=0)," --",'Set UP'!D26&" "&'Set UP'!E26) -> UoB LSC A | E40: =IF(OR('Set UP'!$C26=0,'Set UP'!$D26=0,'Set UP'!$E26=0,'Set UP'!F26=0)," --",'Set UP'!F26) -> NC | F40: 6 | G40: 7 | H40: 7 | I40: 7 | AF40: =IF(OR('Set UP'!$C26=0,'Set UP'!$D26=0,'Set UP'!$E26=0),"",(F$19*F40)+(G$19*G40)+(H$19*H40)+(I$19*I40)+(J$19*J40)+(K$19*K40)+(L$19*L40)+(M$19*M40)+(N$19*N40)+(O$19*O40)+(P$19*P40)+(Q$19*Q40)+(R$19*R40)+(S$19*S40)+(T$19*T40)+(U$19*U40)+(V$19*V40)+(W$19*W40)+(X$19*X40)+(Y$19*Y40)+(Z$19*Z40)+(AA$19*AA40)+(AB$19*AB40)+(AC$19*AC40)+(AD$19*AD40)) -> 71 | AG40: 10 | AH40: 10 | AI40: 10 | AJ40: 10 | AK40: 10 | AL40: 9 | BG40: =IF(OR('Set UP'!$C26=0,'Set UP'!$D26=0,'Set UP'!$E26=0),"",(AG$19*AG40)+(AH$19*AH40)+(AI$19*AI40)+(AJ$19*AJ40)+(AK$19*AK40)+(AL$19*AL40)+(AM$19*AM40)+(AN$19*AN40)+(AO$19*AO40)+(AP$19*AP40)+(AQ$19*AQ40)+(AR$19*AR40)+(AS$19*AS40)+(AT$19*AT40)+(AU$19*AU40)+(AV$19*AV40)+(AW$19*AW40)+(AX$19*AX40)+(AY$19*AY40)+(AZ$19*AZ40)+(BA$19*BA40)+(BB$19*BB40)+(BC$19*BC40)+(BD$19*BD40)+(BE$19*BE40)) -> 93.5 | BH40: 3 | BI40: 0 | BJ40: 0 | BK40: 0 | BL40: 9 | BM40: 8 | BN40: 7 | BO40: 5 | BP40: 6 | BQ40: 7 | CH40: =IF(OR('Set UP'!$C26=0,'Set UP'!$D26=0,'Set UP'!$E26=0),"",(BH$19*BH40)+(BI$19*BI40)+(BJ$19*BJ40)+(BK$19*BK40)+(BL$19*BL40)+(BM$19*BM40)+(BN$19*BN40)+(BO$19*BO40)+(BP$19*BP40)+(BQ$19*BQ40)+(BR$19*BR40)+(BS$19*BS40)+(BT$19*BT40)+(BU$19*BU40)+(BV$19*BV40)+(BW$19*BW40)+(BX$19*BX40)+(BY$19*BY40)+(BZ$19*BZ40)+(CA$19*CA40)+(CB$19*CB40)+(CC$19*CC40)+(CD$19*CD40)+(CE$19*CE40)+(CF$19*CF40)) -> 64.25 | CI40: 8 | CJ40: 5 | CK40: 5 | CL40: 0 | DI40: =IF(OR('Set UP'!$C26=0,'Set UP'!$D26=0,'Set UP'!$E26=0),"",(CI$19*CI40)+(CJ$19*CJ40)+(CK$19*CK40)+(CL$19*CL40)+(CM$19*CM40)+(CN$19*CN40)+(CO$19*CO40)+(CP$19*CP40)+(CQ$19*CQ40)+(CR$19*CR40)+(CS$19*CS40)+(CT$19*CT40)+(CU$19*CU40)+(CV$19*CV40)+(CW$19*CW40)+(CX$19*CX40)+(CY$19*CY40)+(CZ$19*CZ40)+(DA$19*DA40)+(DB$19*DB40)+(DC$19*DC40)+(DD$19*DD40)+(DE$19*DE40)+(DF$19*DF40)+(DG$19*DG40)) -> 44.5 | DJ40: 5 | DK40: 5 | DL40: 6 | DM40: 5 | DN40: 5 | DO40: 5 | DP40: 4 | EJ40: =IF(OR('Set UP'!$C26=0,'Set UP'!$D26=0,'Set UP'!$E26=0),"",(DJ$19*DJ40)+(DK$19*DK40)+(DL$19*DL40)+(DM$19*DM40)+(DN$19*DN40)+(DO$19*DO40)+(DP$19*DP40)+(DQ$19*DQ40)+(DR$19*DR40)+(DS$19*DS40)+(DT$19*DT40)+(DU$19*DU40)+(DV$19*DV40)+(DW$19*DW40)+(DX$19*DX40)+(DY$19*DY40)+(DZ$19*DZ40)+(EA$19*EA40)+(EB$19*EB40)+(EC$19*EC40)+(ED$19*ED40)+(EE$19*EE40)+(EF$19*EF40)+(EG$19*EG40)+(EH$19*EH40)) -> 46.5 | EK40: 6 | EL40: 5 | EM40: 5 | EN40: 8 | EO40: 7 | EP40: 7 | FK40: =IF(OR('Set UP'!$C26=0,'Set UP'!$D26=0,'Set UP'!$E26=0),"",(EK$19*EK40)+(EL$19*EL40)+(EM$19*EM40)+(EN$19*EN40)+(EO$19*EO40)+(EP$19*EP40)+(EQ$19*EQ40)+(ER$19*ER40)+(ES$19*ES40)+(ET$19*ET40)+(EU$19*EU40)+(EV$19*EV40)+(EW$19*EW40)+(EX$19*EX40)+(EY$19*EY40)+(EZ$19*EZ40)+(FA$19*FA40)+(FB$19*FB40)+(FC$19*FC40)+(FD$19*FD40)+(FE$19*FE40)+(FF$19*FF40)+(FG$19*FG40)+(FH$19*FH40)+(FI$19*FI40)) -> 44.5 | GL40: =IF(OR('Set UP'!$C26=0,'Set UP'!$D26=0,'Set UP'!$E26=0),"",(FL$19*FL40)+(FM$19*FM40)+(FN$19*FN40)+(FO$19*FO40)+(FP$19*FP40)+(FQ$19*FQ40)+(FR$19*FR40)+(FS$19*FS40)+(FT$19*FT40)+(FU$19*FU40)+(FV$19*FV40)+(FW$19*FW40)+(FX$19*FX40)+(FY$19*FY40)+(FZ$19*FZ40)+(GA$19*GA40)+(GB$19*GB40)+(GC$19*GC40)+(GD$19*GD40)+(GE$19*GE40)+(GF$19*GF40)+(GG$19*GG40)+(GH$19*GH40)+(GI$19*GI40)+(GJ$19*GJ40)) -> 0 | HM40: =IF(OR('Set UP'!$C26=0,'Set UP'!$D26=0,'Set UP'!$E26=0),"",(GM$19*GM40)+(GN$19*GN40)+(GO$19*GO40)+(GP$19*GP40)+(GQ$19*GQ40)+(GR$19*GR40)+(GS$19*GS40)+(GT$19*GT40)+(GU$19*GU40)+(GV$19*GV40)+(GW$19*GW40)+(GX$19*GX40)+(GY$19*GY40)+(GZ$19*GZ40)+(HA$19*HA40)+(HB$19*HB40)+(HC$19*HC40)+(HD$19*HD40)+(HE$19*HE40)+(HF$19*HF40)+(HG$19*HG40)+(HH$19*HH40)+(HI$19*HI40)+(HJ$19*HJ40)+(HK$19*HK40)) -> 0 | IN40: =IF(OR('Set UP'!$C26=0,'Set UP'!$D26=0,'Set UP'!$E26=0),"",(HN$19*HN40)+(HO$19*HO40)+(HP$19*HP40)+(HQ$19*HQ40)+(HR$19*HR40)+(HS$19*HS40)+(HT$19*HT40)+(HU$19*HU40)+(HV$19*HV40)+(HW$19*HW40)+(HX$19*HX40)+(HY$19*HY40)+(HZ$19*HZ40)+(IA$19*IA40)+(IB$19*IB40)+(IC$19*IC40)+(ID$19*ID40)+(IE$19*IE40)+(IF$19*IF40)+(IG$19*IG40)+(IH$19*IH40)+(II$19*II40)+(IJ$19*IJ40)+(IK$19*IK40)+(IL$19*IL40)) -> 0 | JO40: =IF(OR('Set UP'!$C26=0,'Set UP'!$D26=0,'Set UP'!$E26=0),"",(IO$19*IO40)+(IP$19*IP40)+(IQ$19*IQ40)+(IR$19*IR40)+(IS$19*IS40)+(IT$19*IT40)+(IU$19*IU40)+(IV$19*IV40)+(IW$19*IW40)+(IX$19*IX40)+(IY$19*IY40)+(IZ$19*IZ40)+(JA$19*JA40)+(JB$19*JB40)+(JC$19*JC40)+(JD$19*JD40)+(JE$19*JE40)+(JF$19*JF40)+(JG$19*JG40)+(JH$19*JH40)+(JI$19*JI40)+(JJ$19*JJ40)+(JK$19*JK40)+(JL$19*JL40)+(JM$19*JM40)) -> 0 | JP40: =IF(OR('Set UP'!$C26=0,'Set UP'!$D26=0,'Set UP'!$E26=0),"",(AF40+BG40+CH40+DI40+EJ40+FK40+GL40+HM40+IN40+JO40)) -> 364.25 | JQ40: =IF(OR('Set UP'!$C26=0,'Set UP'!$D26=0,'Set UP'!$E26=0),"",RANK(JP40,$JP$21:$JP$68,0)) -> 5 | JR40: =IF(OR('Set UP'!K26<>1,'Set UP'!C26=0,'Set UP'!D26=0,'Set UP'!E26=0,'Set UP'!F26=0),"",$JP40) ->  | JS40: =IF(OR('Set UP'!K26<>1,'Set UP'!C26=0,'Set UP'!D26=0,'Set UP'!E26=0,'Set UP'!F26=0),"",RANK(JR40,$JR$21:$JR$68,0)) ->  | JT40: =IF(OR('Set UP'!K26<>2,'Set UP'!C26=0,'Set UP'!D26=0,'Set UP'!E26=0,'Set UP'!F26=0),"",$JP40) ->  | JU40: =IF(OR('Set UP'!K26<>2,'Set UP'!C26=0,'Set UP'!D26=0,'Set UP'!E26=0,'Set UP'!F26=0),"",RANK(JT40,$JT$21:$JT$68,0)) ->  | JV40: =IF(OR(LEFT('Set UP'!F26,1)<>"F",'Set UP'!C26=0,'Set UP'!D26=0,'Set UP'!E26=0),"",$JP40) ->  | JW40: =IF(OR(LEFT('Set UP'!F26,1)<>"F",'Set UP'!C26=0,'Set UP'!D26=0,'Set UP'!E26=0),"",RANK(JV40,$JV$21:$JV$68,0)) ->  | JX40: =IF(OR('Set UP'!F26<>"NS",'Set UP'!C26=0,'Set UP'!D26=0,'Set UP'!E26=0),"",$JP40) ->  | JY40: =IF(OR('Set UP'!F26<>"NS",'Set UP'!C26=0,'Set UP'!D26=0,'Set UP'!E26=0),"",RANK(JX40,$JX$21:$JX$68,0)) ->  | JZ40: =IF(OR('Set UP'!$C26=0,'Set UP'!$D26=0,'Set UP'!$E26=0,JP40=0),"",JP40/MAX(JP$21:JP$68)*1000) -> 911.7647059 | KC40: =MAX(IF(Clubs='Set UP'!D26,'Wet Incident'!JU$21:JU$68)) -> 0
B41: 21 | C41: =IF(OR('Set UP'!$C27=0,'Set UP'!$D27=0,'Set UP'!$E27=0,'Set UP'!F27=0)," --",'Set UP'!C27) -> 2401 | D41: =IF(OR('Set UP'!$C27=0,'Set UP'!$D27=0,'Set UP'!$E27=0,'Set UP'!F27=0)," --",'Set UP'!D27&" "&'Set UP'!E27) -> UoB LSC C | E41: =IF(OR('Set UP'!$C27=0,'Set UP'!$D27=0,'Set UP'!$E27=0,'Set UP'!F27=0)," --",'Set UP'!F27) -> NC | F41: 7 | G41: 6 | H41: 8 | I41: 5 | AF41: =IF(OR('Set UP'!$C27=0,'Set UP'!$D27=0,'Set UP'!$E27=0),"",(F$19*F41)+(G$19*G41)+(H$19*H41)+(I$19*I41)+(J$19*J41)+(K$19*K41)+(L$19*L41)+(M$19*M41)+(N$19*N41)+(O$19*O41)+(P$19*P41)+(Q$19*Q41)+(R$19*R41)+(S$19*S41)+(T$19*T41)+(U$19*U41)+(V$19*V41)+(W$19*W41)+(X$19*X41)+(Y$19*Y41)+(Z$19*Z41)+(AA$19*AA41)+(AB$19*AB41)+(AC$19*AC41)+(AD$19*AD41)) -> 66.5 | AG41: 10 | AH41: 6 | AI41: 10 | AJ41: 10 | AK41: 2 | AL41: 0 | BG41: =IF(OR('Set UP'!$C27=0,'Set UP'!$D27=0,'Set UP'!$E27=0),"",(AG$19*AG41)+(AH$19*AH41)+(AI$19*AI41)+(AJ$19*AJ41)+(AK$19*AK41)+(AL$19*AL41)+(AM$19*AM41)+(AN$19*AN41)+(AO$19*AO41)+(AP$19*AP41)+(AQ$19*AQ41)+(AR$19*AR41)+(AS$19*AS41)+(AT$19*AT41)+(AU$19*AU41)+(AV$19*AV41)+(AW$19*AW41)+(AX$19*AX41)+(AY$19*AY41)+(AZ$19*AZ41)+(BA$19*BA41)+(BB$19*BB41)+(BC$19*BC41)+(BD$19*BD41)+(BE$19*BE41)) -> 62 | BH41: 9 | BI41: 7 | BJ41: 0 | BK41: 1 | BL41: 7 | BM41: 5 | BN41: 5 | BO41: 6 | BP41: 5 | BQ41: 3 | CH41: =IF(OR('Set UP'!$C27=0,'Set UP'!$D27=0,'Set UP'!$E27=0),"",(BH$19*BH41)+(BI$19*BI41)+(BJ$19*BJ41)+(BK$19*BK41)+(BL$19*BL41)+(BM$19*BM41)+(BN$19*BN41)+(BO$19*BO41)+(BP$19*BP41)+(BQ$19*BQ41)+(BR$19*BR41)+(BS$19*BS41)+(BT$19*BT41)+(BU$19*BU41)+(BV$19*BV41)+(BW$19*BW41)+(BX$19*BX41)+(BY$19*BY41)+(BZ$19*BZ41)+(CA$19*CA41)+(CB$19*CB41)+(CC$19*CC41)+(CD$19*CD41)+(CE$19*CE41)+(CF$19*CF41)) -> 68 | CI41: 6 | CJ41: 4 | CK41: 7 | CL41: 0 | DI41: =IF(OR('Set UP'!$C27=0,'Set UP'!$D27=0,'Set UP'!$E27=0),"",(CI$19*CI41)+(CJ$19*CJ41)+(CK$19*CK41)+(CL$19*CL41)+(CM$19*CM41)+(CN$19*CN41)+(CO$19*CO41)+(CP$19*CP41)+(CQ$19*CQ41)+(CR$19*CR41)+(CS$19*CS41)+(CT$19*CT41)+(CU$19*CU41)+(CV$19*CV41)+(CW$19*CW41)+(CX$19*CX41)+(CY$19*CY41)+(CZ$19*CZ41)+(DA$19*DA41)+(DB$19*DB41)+(DC$19*DC41)+(DD$19*DD41)+(DE$19*DE41)+(DF$19*DF41)+(DG$19*DG41)) -> 47 | DJ41: 6 | DK41: 2 | DL41: 1 | DM41: 1 | DN41: 6 | DO41: 2 | DP41: 1 | EJ41: =IF(OR('Set UP'!$C27=0,'Set UP'!$D27=0,'Set UP'!$E27=0),"",(DJ$19*DJ41)+(DK$19*DK41)+(DL$19*DL41)+(DM$19*DM41)+(DN$19*DN41)+(DO$19*DO41)+(DP$19*DP41)+(DQ$19*DQ41)+(DR$19*DR41)+(DS$19*DS41)+(DT$19*DT41)+(DU$19*DU41)+(DV$19*DV41)+(DW$19*DW41)+(DX$19*DX41)+(DY$19*DY41)+(DZ$19*DZ41)+(EA$19*EA41)+(EB$19*EB41)+(EC$19*EC41)+(ED$19*ED41)+(EE$19*EE41)+(EF$19*EF41)+(EG$19*EG41)+(EH$19*EH41)) -> 24.5 | EK41: 2 | EL41: 2 | EM41: 3 | EN41: 4 | EO41: 8 | EP41: 4 | FK41: =IF(OR('Set UP'!$C27=0,'Set UP'!$D27=0,'Set UP'!$E27=0),"",(EK$19*EK41)+(EL$19*EL41)+(EM$19*EM41)+(EN$19*EN41)+(EO$19*EO41)+(EP$19*EP41)+(EQ$19*EQ41)+(ER$19*ER41)+(ES$19*ES41)+(ET$19*ET41)+(EU$19*EU41)+(EV$19*EV41)+(EW$19*EW41)+(EX$19*EX41)+(EY$19*EY41)+(EZ$19*EZ41)+(FA$19*FA41)+(FB$19*FB41)+(FC$19*FC41)+(FD$19*FD41)+(FE$19*FE41)+(FF$19*FF41)+(FG$19*FG41)+(FH$19*FH41)+(FI$19*FI41)) -> 33 | GL41: =IF(OR('Set UP'!$C27=0,'Set UP'!$D27=0,'Set UP'!$E27=0),"",(FL$19*FL41)+(FM$19*FM41)+(FN$19*FN41)+(FO$19*FO41)+(FP$19*FP41)+(FQ$19*FQ41)+(FR$19*FR41)+(FS$19*FS41)+(FT$19*FT41)+(FU$19*FU41)+(FV$19*FV41)+(FW$19*FW41)+(FX$19*FX41)+(FY$19*FY41)+(FZ$19*FZ41)+(GA$19*GA41)+(GB$19*GB41)+(GC$19*GC41)+(GD$19*GD41)+(GE$19*GE41)+(GF$19*GF41)+(GG$19*GG41)+(GH$19*GH41)+(GI$19*GI41)+(GJ$19*GJ41)) -> 0 | HM41: =IF(OR('Set UP'!$C27=0,'Set UP'!$D27=0,'Set UP'!$E27=0),"",(GM$19*GM41)+(GN$19*GN41)+(GO$19*GO41)+(GP$19*GP41)+(GQ$19*GQ41)+(GR$19*GR41)+(GS$19*GS41)+(GT$19*GT41)+(GU$19*GU41)+(GV$19*GV41)+(GW$19*GW41)+(GX$19*GX41)+(GY$19*GY41)+(GZ$19*GZ41)+(HA$19*HA41)+(HB$19*HB41)+(HC$19*HC41)+(HD$19*HD41)+(HE$19*HE41)+(HF$19*HF41)+(HG$19*HG41)+(HH$19*HH41)+(HI$19*HI41)+(HJ$19*HJ41)+(HK$19*HK41)) -> 0 | IN41: =IF(OR('Set UP'!$C27=0,'Set UP'!$D27=0,'Set UP'!$E27=0),"",(HN$19*HN41)+(HO$19*HO41)+(HP$19*HP41)+(HQ$19*HQ41)+(HR$19*HR41)+(HS$19*HS41)+(HT$19*HT41)+(HU$19*HU41)+(HV$19*HV41)+(HW$19*HW41)+(HX$19*HX41)+(HY$19*HY41)+(HZ$19*HZ41)+(IA$19*IA41)+(IB$19*IB41)+(IC$19*IC41)+(ID$19*ID41)+(IE$19*IE41)+(IF$19*IF41)+(IG$19*IG41)+(IH$19*IH41)+(II$19*II41)+(IJ$19*IJ41)+(IK$19*IK41)+(IL$19*IL41)) -> 0 | JO41: =IF(OR('Set UP'!$C27=0,'Set UP'!$D27=0,'Set UP'!$E27=0),"",(IO$19*IO41)+(IP$19*IP41)+(IQ$19*IQ41)+(IR$19*IR41)+(IS$19*IS41)+(IT$19*IT41)+(IU$19*IU41)+(IV$19*IV41)+(IW$19*IW41)+(IX$19*IX41)+(IY$19*IY41)+(IZ$19*IZ41)+(JA$19*JA41)+(JB$19*JB41)+(JC$19*JC41)+(JD$19*JD41)+(JE$19*JE41)+(JF$19*JF41)+(JG$19*JG41)+(JH$19*JH41)+(JI$19*JI41)+(JJ$19*JJ41)+(JK$19*JK41)+(JL$19*JL41)+(JM$19*JM41)) -> 0 | JP41: =IF(OR('Set UP'!$C27=0,'Set UP'!$D27=0,'Set UP'!$E27=0),"",(AF41+BG41+CH41+DI41+EJ41+FK41+GL41+HM41+IN41+JO41)) -> 301 | JQ41: =IF(OR('Set UP'!$C27=0,'Set UP'!$D27=0,'Set UP'!$E27=0),"",RANK(JP41,$JP$21:$JP$68,0)) -> 22 | JR41: =IF(OR('Set UP'!K27<>1,'Set UP'!C27=0,'Set UP'!D27=0,'Set UP'!E27=0,'Set UP'!F27=0),"",$JP41) ->  | JS41: =IF(OR('Set UP'!K27<>1,'Set UP'!C27=0,'Set UP'!D27=0,'Set UP'!E27=0,'Set UP'!F27=0),"",RANK(JR41,$JR$21:$JR$68,0)) ->  | JT41: =IF(OR('Set UP'!K27<>2,'Set UP'!C27=0,'Set UP'!D27=0,'Set UP'!E27=0,'Set UP'!F27=0),"",$JP41) ->  | JU41: =IF(OR('Set UP'!K27<>2,'Set UP'!C27=0,'Set UP'!D27=0,'Set UP'!E27=0,'Set UP'!F27=0),"",RANK(JT41,$JT$21:$JT$68,0)) ->  | JV41: =IF(OR(LEFT('Set UP'!F27,1)<>"F",'Set UP'!C27=0,'Set UP'!D27=0,'Set UP'!E27=0),"",$JP41) ->  | JW41: =IF(OR(LEFT('Set UP'!F27,1)<>"F",'Set UP'!C27=0,'Set UP'!D27=0,'Set UP'!E27=0),"",RANK(JV41,$JV$21:$JV$68,0)) ->  | JX41: =IF(OR('Set UP'!F27<>"NS",'Set UP'!C27=0,'Set UP'!D27=0,'Set UP'!E27=0),"",$JP41) ->  | JY41: =IF(OR('Set UP'!F27<>"NS",'Set UP'!C27=0,'Set UP'!D27=0,'Set UP'!E27=0),"",RANK(JX41,$JX$21:$JX$68,0)) ->  | JZ41: =IF(OR('Set UP'!$C27=0,'Set UP'!$D27=0,'Set UP'!$E27=0,JP41=0),"",JP41/MAX(JP$21:JP$68)*1000) -> 753.4418023 | KC41: =MAX(IF(Clubs='Set UP'!D27,'Wet Incident'!JU$21:JU$68)) -> 0
B42: 22 | C42: =IF(OR('Set UP'!$C28=0,'Set UP'!$D28=0,'Set UP'!$E28=0,'Set UP'!F28=0)," --",'Set UP'!C28) -> 2387 | D42: =IF(OR('Set UP'!$C28=0,'Set UP'!$D28=0,'Set UP'!$E28=0,'Set UP'!F28=0)," --",'Set UP'!D28&" "&'Set UP'!E28) -> University of Nottingham A | E42: =IF(OR('Set UP'!$C28=0,'Set UP'!$D28=0,'Set UP'!$E28=0,'Set UP'!F28=0)," --",'Set UP'!F28) -> S | F42: 6 | G42: 7 | H42: 8 | I42: 7 | AF42: =IF(OR('Set UP'!$C28=0,'Set UP'!$D28=0,'Set UP'!$E28=0),"",(F$19*F42)+(G$19*G42)+(H$19*H42)+(I$19*I42)+(J$19*J42)+(K$19*K42)+(L$19*L42)+(M$19*M42)+(N$19*N42)+(O$19*O42)+(P$19*P42)+(Q$19*Q42)+(R$19*R42)+(S$19*S42)+(T$19*T42)+(U$19*U42)+(V$19*V42)+(W$19*W42)+(X$19*X42)+(Y$19*Y42)+(Z$19*Z42)+(AA$19*AA42)+(AB$19*AB42)+(AC$19*AC42)+(AD$19*AD42)) -> 73 | AG42: 10 | AH42: 10 | AI42: 6 | AJ42: 3 | AK42: 0 | AL42: 0 | BG42: =IF(OR('Set UP'!$C28=0,'Set UP'!$D28=0,'Set UP'!$E28=0),"",(AG$19*AG42)+(AH$19*AH42)+(AI$19*AI42)+(AJ$19*AJ42)+(AK$19*AK42)+(AL$19*AL42)+(AM$19*AM42)+(AN$19*AN42)+(AO$19*AO42)+(AP$19*AP42)+(AQ$19*AQ42)+(AR$19*AR42)+(AS$19*AS42)+(AT$19*AT42)+(AU$19*AU42)+(AV$19*AV42)+(AW$19*AW42)+(AX$19*AX42)+(AY$19*AY42)+(AZ$19*AZ42)+(BA$19*BA42)+(BB$19*BB42)+(BC$19*BC42)+(BD$19*BD42)+(BE$19*BE42)) -> 46.5 | BH42: 9 | BI42: 8 | BJ42: 8 | BK42: 7 | BL42: 9 | BM42: 3 | BN42: 5 | BO42: 7 | BP42: 2 | BQ42: 4 | CH42: =IF(OR('Set UP'!$C28=0,'Set UP'!$D28=0,'Set UP'!$E28=0),"",(BH$19*BH42)+(BI$19*BI42)+(BJ$19*BJ42)+(BK$19*BK42)+(BL$19*BL42)+(BM$19*BM42)+(BN$19*BN42)+(BO$19*BO42)+(BP$19*BP42)+(BQ$19*BQ42)+(BR$19*BR42)+(BS$19*BS42)+(BT$19*BT42)+(BU$19*BU42)+(BV$19*BV42)+(BW$19*BW42)+(BX$19*BX42)+(BY$19*BY42)+(BZ$19*BZ42)+(CA$19*CA42)+(CB$19*CB42)+(CC$19*CC42)+(CD$19*CD42)+(CE$19*CE42)+(CF$19*CF42)) -> 84.25 | CI42: 9 | CJ42: 8 | CK42: 6 | CL42: 10 | DI42: =IF(OR('Set UP'!$C28=0,'Set UP'!$D28=0,'Set UP'!$E28=0),"",(CI$19*CI42)+(CJ$19*CJ42)+(CK$19*CK42)+(CL$19*CL42)+(CM$19*CM42)+(CN$19*CN42)+(CO$19*CO42)+(CP$19*CP42)+(CQ$19*CQ42)+(CR$19*CR42)+(CS$19*CS42)+(CT$19*CT42)+(CU$19*CU42)+(CV$19*CV42)+(CW$19*CW42)+(CX$19*CX42)+(CY$19*CY42)+(CZ$19*CZ42)+(DA$19*DA42)+(DB$19*DB42)+(DC$19*DC42)+(DD$19*DD42)+(DE$19*DE42)+(DF$19*DF42)+(DG$19*DG42)) -> 62.5 | DJ42: 7 | DK42: 6 | DL42: 4 | DM42: 3 | DN42: 6 | DO42: 2 | DP42: 1 | EJ42: =IF(OR('Set UP'!$C28=0,'Set UP'!$D28=0,'Set UP'!$E28=0),"",(DJ$19*DJ42)+(DK$19*DK42)+(DL$19*DL42)+(DM$19*DM42)+(DN$19*DN42)+(DO$19*DO42)+(DP$19*DP42)+(DQ$19*DQ42)+(DR$19*DR42)+(DS$19*DS42)+(DT$19*DT42)+(DU$19*DU42)+(DV$19*DV42)+(DW$19*DW42)+(DX$19*DX42)+(DY$19*DY42)+(DZ$19*DZ42)+(EA$19*EA42)+(EB$19*EB42)+(EC$19*EC42)+(ED$19*ED42)+(EE$19*EE42)+(EF$19*EF42)+(EG$19*EG42)+(EH$19*EH42)) -> 40 | EK42: 4 | EL42: 5 | EM42: 3 | EN42: 4 | EO42: 5 | EP42: 6 | FK42: =IF(OR('Set UP'!$C28=0,'Set UP'!$D28=0,'Set UP'!$E28=0),"",(EK$19*EK42)+(EL$19*EL42)+(EM$19*EM42)+(EN$19*EN42)+(EO$19*EO42)+(EP$19*EP42)+(EQ$19*EQ42)+(ER$19*ER42)+(ES$19*ES42)+(ET$19*ET42)+(EU$19*EU42)+(EV$19*EV42)+(EW$19*EW42)+(EX$19*EX42)+(EY$19*EY42)+(EZ$19*EZ42)+(FA$19*FA42)+(FB$19*FB42)+(FC$19*FC42)+(FD$19*FD42)+(FE$19*FE42)+(FF$19*FF42)+(FG$19*FG42)+(FH$19*FH42)+(FI$19*FI42)) -> 32 | GL42: =IF(OR('Set UP'!$C28=0,'Set UP'!$D28=0,'Set UP'!$E28=0),"",(FL$19*FL42)+(FM$19*FM42)+(FN$19*FN42)+(FO$19*FO42)+(FP$19*FP42)+(FQ$19*FQ42)+(FR$19*FR42)+(FS$19*FS42)+(FT$19*FT42)+(FU$19*FU42)+(FV$19*FV42)+(FW$19*FW42)+(FX$19*FX42)+(FY$19*FY42)+(FZ$19*FZ42)+(GA$19*GA42)+(GB$19*GB42)+(GC$19*GC42)+(GD$19*GD42)+(GE$19*GE42)+(GF$19*GF42)+(GG$19*GG42)+(GH$19*GH42)+(GI$19*GI42)+(GJ$19*GJ42)) -> 0 | HM42: =IF(OR('Set UP'!$C28=0,'Set UP'!$D28=0,'Set UP'!$E28=0),"",(GM$19*GM42)+(GN$19*GN42)+(GO$19*GO42)+(GP$19*GP42)+(GQ$19*GQ42)+(GR$19*GR42)+(GS$19*GS42)+(GT$19*GT42)+(GU$19*GU42)+(GV$19*GV42)+(GW$19*GW42)+(GX$19*GX42)+(GY$19*GY42)+(GZ$19*GZ42)+(HA$19*HA42)+(HB$19*HB42)+(HC$19*HC42)+(HD$19*HD42)+(HE$19*HE42)+(HF$19*HF42)+(HG$19*HG42)+(HH$19*HH42)+(HI$19*HI42)+(HJ$19*HJ42)+(HK$19*HK42)) -> 0 | IN42: =IF(OR('Set UP'!$C28=0,'Set UP'!$D28=0,'Set UP'!$E28=0),"",(HN$19*HN42)+(HO$19*HO42)+(HP$19*HP42)+(HQ$19*HQ42)+(HR$19*HR42)+(HS$19*HS42)+(HT$19*HT42)+(HU$19*HU42)+(HV$19*HV42)+(HW$19*HW42)+(HX$19*HX42)+(HY$19*HY42)+(HZ$19*HZ42)+(IA$19*IA42)+(IB$19*IB42)+(IC$19*IC42)+(ID$19*ID42)+(IE$19*IE42)+(IF$19*IF42)+(IG$19*IG42)+(IH$19*IH42)+(II$19*II42)+(IJ$19*IJ42)+(IK$19*IK42)+(IL$19*IL42)) -> 0 | JO42: =IF(OR('Set UP'!$C28=0,'Set UP'!$D28=0,'Set UP'!$E28=0),"",(IO$19*IO42)+(IP$19*IP42)+(IQ$19*IQ42)+(IR$19*IR42)+(IS$19*IS42)+(IT$19*IT42)+(IU$19*IU42)+(IV$19*IV42)+(IW$19*IW42)+(IX$19*IX42)+(IY$19*IY42)+(IZ$19*IZ42)+(JA$19*JA42)+(JB$19*JB42)+(JC$19*JC42)+(JD$19*JD42)+(JE$19*JE42)+(JF$19*JF42)+(JG$19*JG42)+(JH$19*JH42)+(JI$19*JI42)+(JJ$19*JJ42)+(JK$19*JK42)+(JL$19*JL42)+(JM$19*JM42)) -> 0 | JP42: =IF(OR('Set UP'!$C28=0,'Set UP'!$D28=0,'Set UP'!$E28=0),"",(AF42+BG42+CH42+DI42+EJ42+FK42+GL42+HM42+IN42+JO42)) -> 338.25 | JQ42: =IF(OR('Set UP'!$C28=0,'Set UP'!$D28=0,'Set UP'!$E28=0),"",RANK(JP42,$JP$21:$JP$68,0)) -> 10 | JR42: =IF(OR('Set UP'!K28<>1,'Set UP'!C28=0,'Set UP'!D28=0,'Set UP'!E28=0,'Set UP'!F28=0),"",$JP42) ->  | JS42: =IF(OR('Set UP'!K28<>1,'Set UP'!C28=0,'Set UP'!D28=0,'Set UP'!E28=0,'Set UP'!F28=0),"",RANK(JR42,$JR$21:$JR$68,0)) ->  | JT42: =IF(OR('Set UP'!K28<>2,'Set UP'!C28=0,'Set UP'!D28=0,'Set UP'!E28=0,'Set UP'!F28=0),"",$JP42) -> 338.25 | JU42: =IF(OR('Set UP'!K28<>2,'Set UP'!C28=0,'Set UP'!D28=0,'Set UP'!E28=0,'Set UP'!F28=0),"",RANK(JT42,$JT$21:$JT$68,0)) -> 7 | JV42: =IF(OR(LEFT('Set UP'!F28,1)<>"F",'Set UP'!C28=0,'Set UP'!D28=0,'Set UP'!E28=0),"",$JP42) ->  | JW42: =IF(OR(LEFT('Set UP'!F28,1)<>"F",'Set UP'!C28=0,'Set UP'!D28=0,'Set UP'!E28=0),"",RANK(JV42,$JV$21:$JV$68,0)) ->  | JX42: =IF(OR('Set UP'!F28<>"NS",'Set UP'!C28=0,'Set UP'!D28=0,'Set UP'!E28=0),"",$JP42) ->  | JY42: =IF(OR('Set UP'!F28<>"NS",'Set UP'!C28=0,'Set UP'!D28=0,'Set UP'!E28=0),"",RANK(JX42,$JX$21:$JX$68,0)) ->  | JZ42: =IF(OR('Set UP'!$C28=0,'Set UP'!$D28=0,'Set UP'!$E28=0,JP42=0),"",JP42/MAX(JP$21:JP$68)*1000) -> 846.6833542 | KC42: =MAX(IF(Clubs='Set UP'!D28,'Wet Incident'!JU$21:JU$68)) -> 18
B43: 23 | C43: =IF(OR('Set UP'!$C29=0,'Set UP'!$D29=0,'Set UP'!$E29=0,'Set UP'!F29=0)," --",'Set UP'!C29) -> 2378 | D43: =IF(OR('Set UP'!$C29=0,'Set UP'!$D29=0,'Set UP'!$E29=0,'Set UP'!F29=0)," --",'Set UP'!D29&" "&'Set UP'!E29) -> Bristol University A | E43: =IF(OR('Set UP'!$C29=0,'Set UP'!$D29=0,'Set UP'!$E29=0,'Set UP'!F29=0)," --",'Set UP'!F29) -> S | F43: 9 | G43: 8 | H43: 9 | I43: 9 | AF43: =IF(OR('Set UP'!$C29=0,'Set UP'!$D29=0,'Set UP'!$E29=0),"",(F$19*F43)+(G$19*G43)+(H$19*H43)+(I$19*I43)+(J$19*J43)+(K$19*K43)+(L$19*L43)+(M$19*M43)+(N$19*N43)+(O$19*O43)+(P$19*P43)+(Q$19*Q43)+(R$19*R43)+(S$19*S43)+(T$19*T43)+(U$19*U43)+(V$19*V43)+(W$19*W43)+(X$19*X43)+(Y$19*Y43)+(Z$19*Z43)+(AA$19*AA43)+(AB$19*AB43)+(AC$19*AC43)+(AD$19*AD43)) -> 91.5 | AG43: 10 | AH43: 0 | AI43: 10 | AJ43: 6 | AK43: 4 | AL43: 3 | BG43: =IF(OR('Set UP'!$C29=0,'Set UP'!$D29=0,'Set UP'!$E29=0),"",(AG$19*AG43)+(AH$19*AH43)+(AI$19*AI43)+(AJ$19*AJ43)+(AK$19*AK43)+(AL$19*AL43)+(AM$19*AM43)+(AN$19*AN43)+(AO$19*AO43)+(AP$19*AP43)+(AQ$19*AQ43)+(AR$19*AR43)+(AS$19*AS43)+(AT$19*AT43)+(AU$19*AU43)+(AV$19*AV43)+(AW$19*AW43)+(AX$19*AX43)+(AY$19*AY43)+(AZ$19*AZ43)+(BA$19*BA43)+(BB$19*BB43)+(BC$19*BC43)+(BD$19*BD43)+(BE$19*BE43)) -> 54.5 | BH43: 9 | BI43: 4 | BJ43: 0 | BK43: 3 | BL43: 8 | BM43: 1 | BN43: 2 | BO43: 9 | BP43: 7 | BQ43: 6 | CH43: =IF(OR('Set UP'!$C29=0,'Set UP'!$D29=0,'Set UP'!$E29=0),"",(BH$19*BH43)+(BI$19*BI43)+(BJ$19*BJ43)+(BK$19*BK43)+(BL$19*BL43)+(BM$19*BM43)+(BN$19*BN43)+(BO$19*BO43)+(BP$19*BP43)+(BQ$19*BQ43)+(BR$19*BR43)+(BS$19*BS43)+(BT$19*BT43)+(BU$19*BU43)+(BV$19*BV43)+(BW$19*BW43)+(BX$19*BX43)+(BY$19*BY43)+(BZ$19*BZ43)+(CA$19*CA43)+(CB$19*CB43)+(CC$19*CC43)+(CD$19*CD43)+(CE$19*CE43)+(CF$19*CF43)) -> 56.75 | CI43: 9 | CJ43: 8 | CK43: 9 | CL43: 10 | DI43: =IF(OR('Set UP'!$C29=0,'Set UP'!$D29=0,'Set UP'!$E29=0),"",(CI$19*CI43)+(CJ$19*CJ43)+(CK$19*CK43)+(CL$19*CL43)+(CM$19*CM43)+(CN$19*CN43)+(CO$19*CO43)+(CP$19*CP43)+(CQ$19*CQ43)+(CR$19*CR43)+(CS$19*CS43)+(CT$19*CT43)+(CU$19*CU43)+(CV$19*CV43)+(CW$19*CW43)+(CX$19*CX43)+(CY$19*CY43)+(CZ$19*CZ43)+(DA$19*DA43)+(DB$19*DB43)+(DC$19*DC43)+(DD$19*DD43)+(DE$19*DE43)+(DF$19*DF43)+(DG$19*DG43)) -> 74.5 | DJ43: 4 | DK43: 4 | DL43: 4 | DM43: 6 | DN43: 4 | DO43: 4 | DP43: 7 | EJ43: =IF(OR('Set UP'!$C29=0,'Set UP'!$D29=0,'Set UP'!$E29=0),"",(DJ$19*DJ43)+(DK$19*DK43)+(DL$19*DL43)+(DM$19*DM43)+(DN$19*DN43)+(DO$19*DO43)+(DP$19*DP43)+(DQ$19*DQ43)+(DR$19*DR43)+(DS$19*DS43)+(DT$19*DT43)+(DU$19*DU43)+(DV$19*DV43)+(DW$19*DW43)+(DX$19*DX43)+(DY$19*DY43)+(DZ$19*DZ43)+(EA$19*EA43)+(EB$19*EB43)+(EC$19*EC43)+(ED$19*ED43)+(EE$19*EE43)+(EF$19*EF43)+(EG$19*EG43)+(EH$19*EH43)) -> 39.5 | EK43: 5 | EL43: 3 | EM43: 6 | EN43: 4 | EO43: 5 | EP43: 5 | FK43: =IF(OR('Set UP'!$C29=0,'Set UP'!$D29=0,'Set UP'!$E29=0),"",(EK$19*EK43)+(EL$19*EL43)+(EM$19*EM43)+(EN$19*EN43)+(EO$19*EO43)+(EP$19*EP43)+(EQ$19*EQ43)+(ER$19*ER43)+(ES$19*ES43)+(ET$19*ET43)+(EU$19*EU43)+(EV$19*EV43)+(EW$19*EW43)+(EX$19*EX43)+(EY$19*EY43)+(EZ$19*EZ43)+(FA$19*FA43)+(FB$19*FB43)+(FC$19*FC43)+(FD$19*FD43)+(FE$19*FE43)+(FF$19*FF43)+(FG$19*FG43)+(FH$19*FH43)+(FI$19*FI43)) -> 31.25 | GL43: =IF(OR('Set UP'!$C29=0,'Set UP'!$D29=0,'Set UP'!$E29=0),"",(FL$19*FL43)+(FM$19*FM43)+(FN$19*FN43)+(FO$19*FO43)+(FP$19*FP43)+(FQ$19*FQ43)+(FR$19*FR43)+(FS$19*FS43)+(FT$19*FT43)+(FU$19*FU43)+(FV$19*FV43)+(FW$19*FW43)+(FX$19*FX43)+(FY$19*FY43)+(FZ$19*FZ43)+(GA$19*GA43)+(GB$19*GB43)+(GC$19*GC43)+(GD$19*GD43)+(GE$19*GE43)+(GF$19*GF43)+(GG$19*GG43)+(GH$19*GH43)+(GI$19*GI43)+(GJ$19*GJ43)) -> 0 | HM43: =IF(OR('Set UP'!$C29=0,'Set UP'!$D29=0,'Set UP'!$E29=0),"",(GM$19*GM43)+(GN$19*GN43)+(GO$19*GO43)+(GP$19*GP43)+(GQ$19*GQ43)+(GR$19*GR43)+(GS$19*GS43)+(GT$19*GT43)+(GU$19*GU43)+(GV$19*GV43)+(GW$19*GW43)+(GX$19*GX43)+(GY$19*GY43)+(GZ$19*GZ43)+(HA$19*HA43)+(HB$19*HB43)+(HC$19*HC43)+(HD$19*HD43)+(HE$19*HE43)+(HF$19*HF43)+(HG$19*HG43)+(HH$19*HH43)+(HI$19*HI43)+(HJ$19*HJ43)+(HK$19*HK43)) -> 0 | IN43: =IF(OR('Set UP'!$C29=0,'Set UP'!$D29=0,'Set UP'!$E29=0),"",(HN$19*HN43)+(HO$19*HO43)+(HP$19*HP43)+(HQ$19*HQ43)+(HR$19*HR43)+(HS$19*HS43)+(HT$19*HT43)+(HU$19*HU43)+(HV$19*HV43)+(HW$19*HW43)+(HX$19*HX43)+(HY$19*HY43)+(HZ$19*HZ43)+(IA$19*IA43)+(IB$19*IB43)+(IC$19*IC43)+(ID$19*ID43)+(IE$19*IE43)+(IF$19*IF43)+(IG$19*IG43)+(IH$19*IH43)+(II$19*II43)+(IJ$19*IJ43)+(IK$19*IK43)+(IL$19*IL43)) -> 0 | JO43: =IF(OR('Set UP'!$C29=0,'Set UP'!$D29=0,'Set UP'!$E29=0),"",(IO$19*IO43)+(IP$19*IP43)+(IQ$19*IQ43)+(IR$19*IR43)+(IS$19*IS43)+(IT$19*IT43)+(IU$19*IU43)+(IV$19*IV43)+(IW$19*IW43)+(IX$19*IX43)+(IY$19*IY43)+(IZ$19*IZ43)+(JA$19*JA43)+(JB$19*JB43)+(JC$19*JC43)+(JD$19*JD43)+(JE$19*JE43)+(JF$19*JF43)+(JG$19*JG43)+(JH$19*JH43)+(JI$19*JI43)+(JJ$19*JJ43)+(JK$19*JK43)+(JL$19*JL43)+(JM$19*JM43)) -> 0 | JP43: =IF(OR('Set UP'!$C29=0,'Set UP'!$D29=0,'Set UP'!$E29=0),"",(AF43+BG43+CH43+DI43+EJ43+FK43+GL43+HM43+IN43+JO43)) -> 348 | JQ43: =IF(OR('Set UP'!$C29=0,'Set UP'!$D29=0,'Set UP'!$E29=0),"",RANK(JP43,$JP$21:$JP$68,0)) -> 8 | JR43: =IF(OR('Set UP'!K29<>1,'Set UP'!C29=0,'Set UP'!D29=0,'Set UP'!E29=0,'Set UP'!F29=0),"",$JP43) ->  | JS43: =IF(OR('Set UP'!K29<>1,'Set UP'!C29=0,'Set UP'!D29=0,'Set UP'!E29=0,'Set UP'!F29=0),"",RANK(JR43,$JR$21:$JR$68,0)) ->  | JT43: =IF(OR('Set UP'!K29<>2,'Set UP'!C29=0,'Set UP'!D29=0,'Set UP'!E29=0,'Set UP'!F29=0),"",$JP43) -> 348 | JU43: =IF(OR('Set UP'!K29<>2,'Set UP'!C29=0,'Set UP'!D29=0,'Set UP'!E29=0,'Set UP'!F29=0),"",RANK(JT43,$JT$21:$JT$68,0)) -> 5 | JV43: =IF(OR(LEFT('Set UP'!F29,1)<>"F",'Set UP'!C29=0,'Set UP'!D29=0,'Set UP'!E29=0),"",$JP43) ->  | JW43: =IF(OR(LEFT('Set UP'!F29,1)<>"F",'Set UP'!C29=0,'Set UP'!D29=0,'Set UP'!E29=0),"",RANK(JV43,$JV$21:$JV$68,0)) ->  | JX43: =IF(OR('Set UP'!F29<>"NS",'Set UP'!C29=0,'Set UP'!D29=0,'Set UP'!E29=0),"",$JP43) ->  | JY43: =IF(OR('Set UP'!F29<>"NS",'Set UP'!C29=0,'Set UP'!D29=0,'Set UP'!E29=0),"",RANK(JX43,$JX$21:$JX$68,0)) ->  | JZ43: =IF(OR('Set UP'!$C29=0,'Set UP'!$D29=0,'Set UP'!$E29=0,JP43=0),"",JP43/MAX(JP$21:JP$68)*1000) -> 871.0888611 | KC43: =MAX(IF(Clubs='Set UP'!D29,'Wet Incident'!JU$21:JU$68)) -> 20
B44: 24 | C44: =IF(OR('Set UP'!$C30=0,'Set UP'!$D30=0,'Set UP'!$E30=0,'Set UP'!F30=0)," --",'Set UP'!C30) -> 2381 | D44: =IF(OR('Set UP'!$C30=0,'Set UP'!$D30=0,'Set UP'!$E30=0,'Set UP'!F30=0)," --",'Set UP'!D30&" "&'Set UP'!E30) -> Loughborough University A | E44: =IF(OR('Set UP'!$C30=0,'Set UP'!$D30=0,'Set UP'!$E30=0,'Set UP'!F30=0)," --",'Set UP'!F30) -> S | F44: 8 | G44: 9 | H44: 9 | I44: 8 | AF44: =IF(OR('Set UP'!$C30=0,'Set UP'!$D30=0,'Set UP'!$E30=0),"",(F$19*F44)+(G$19*G44)+(H$19*H44)+(I$19*I44)+(J$19*J44)+(K$19*K44)+(L$19*L44)+(M$19*M44)+(N$19*N44)+(O$19*O44)+(P$19*P44)+(Q$19*Q44)+(R$19*R44)+(S$19*S44)+(T$19*T44)+(U$19*U44)+(V$19*V44)+(W$19*W44)+(X$19*X44)+(Y$19*Y44)+(Z$19*Z44)+(AA$19*AA44)+(AB$19*AB44)+(AC$19*AC44)+(AD$19*AD44)) -> 89 | AG44: 10 | AH44: 10 | AI44: 10 | AJ44: 10 | AK44: 9 | AL44: 0 | BG44: =IF(OR('Set UP'!$C30=0,'Set UP'!$D30=0,'Set UP'!$E30=0),"",(AG$19*AG44)+(AH$19*AH44)+(AI$19*AI44)+(AJ$19*AJ44)+(AK$19*AK44)+(AL$19*AL44)+(AM$19*AM44)+(AN$19*AN44)+(AO$19*AO44)+(AP$19*AP44)+(AQ$19*AQ44)+(AR$19*AR44)+(AS$19*AS44)+(AT$19*AT44)+(AU$19*AU44)+(AV$19*AV44)+(AW$19*AW44)+(AX$19*AX44)+(AY$19*AY44)+(AZ$19*AZ44)+(BA$19*BA44)+(BB$19*BB44)+(BC$19*BC44)+(BD$19*BD44)+(BE$19*BE44)) -> 78.5 | BH44: 9 | BI44: 5 | BJ44: 0 | BK44: 1 | BL44: 9 | BM44: 9 | BN44: 7 | BO44: 9 | BP44: 8 | BQ44: 5 | CH44: =IF(OR('Set UP'!$C30=0,'Set UP'!$D30=0,'Set UP'!$E30=0),"",(BH$19*BH44)+(BI$19*BI44)+(BJ$19*BJ44)+(BK$19*BK44)+(BL$19*BL44)+(BM$19*BM44)+(BN$19*BN44)+(BO$19*BO44)+(BP$19*BP44)+(BQ$19*BQ44)+(BR$19*BR44)+(BS$19*BS44)+(BT$19*BT44)+(BU$19*BU44)+(BV$19*BV44)+(BW$19*BW44)+(BX$19*BX44)+(BY$19*BY44)+(BZ$19*BZ44)+(CA$19*CA44)+(CB$19*CB44)+(CC$19*CC44)+(CD$19*CD44)+(CE$19*CE44)+(CF$19*CF44)) -> 89.75 | CI44: 5 | CJ44: 8 | CK44: 5 | CL44: 7 | DI44: =IF(OR('Set UP'!$C30=0,'Set UP'!$D30=0,'Set UP'!$E30=0),"",(CI$19*CI44)+(CJ$19*CJ44)+(CK$19*CK44)+(CL$19*CL44)+(CM$19*CM44)+(CN$19*CN44)+(CO$19*CO44)+(CP$19*CP44)+(CQ$19*CQ44)+(CR$19*CR44)+(CS$19*CS44)+(CT$19*CT44)+(CU$19*CU44)+(CV$19*CV44)+(CW$19*CW44)+(CX$19*CX44)+(CY$19*CY44)+(CZ$19*CZ44)+(DA$19*DA44)+(DB$19*DB44)+(DC$19*DC44)+(DD$19*DD44)+(DE$19*DE44)+(DF$19*DF44)+(DG$19*DG44)) -> 51 | DJ44: 5 | DK44: 5 | DL44: 6 | DM44: 5 | DN44: 7 | DO44: 6 | DP44: 5 | EJ44: =IF(OR('Set UP'!$C30=0,'Set UP'!$D30=0,'Set UP'!$E30=0),"",(DJ$19*DJ44)+(DK$19*DK44)+(DL$19*DL44)+(DM$19*DM44)+(DN$19*DN44)+(DO$19*DO44)+(DP$19*DP44)+(DQ$19*DQ44)+(DR$19*DR44)+(DS$19*DS44)+(DT$19*DT44)+(DU$19*DU44)+(DV$19*DV44)+(DW$19*DW44)+(DX$19*DX44)+(DY$19*DY44)+(DZ$19*DZ44)+(EA$19*EA44)+(EB$19*EB44)+(EC$19*EC44)+(ED$19*ED44)+(EE$19*EE44)+(EF$19*EF44)+(EG$19*EG44)+(EH$19*EH44)) -> 50.5 | EK44: 2 | EL44: 0 | EM44: 4 | EN44: 4 | EO44: 8 | EP44: 7 | FK44: =IF(OR('Set UP'!$C30=0,'Set UP'!$D30=0,'Set UP'!$E30=0),"",(EK$19*EK44)+(EL$19*EL44)+(EM$19*EM44)+(EN$19*EN44)+(EO$19*EO44)+(EP$19*EP44)+(EQ$19*EQ44)+(ER$19*ER44)+(ES$19*ES44)+(ET$19*ET44)+(EU$19*EU44)+(EV$19*EV44)+(EW$19*EW44)+(EX$19*EX44)+(EY$19*EY44)+(EZ$19*EZ44)+(FA$19*FA44)+(FB$19*FB44)+(FC$19*FC44)+(FD$19*FD44)+(FE$19*FE44)+(FF$19*FF44)+(FG$19*FG44)+(FH$19*FH44)+(FI$19*FI44)) -> 34.5 | GL44: =IF(OR('Set UP'!$C30=0,'Set UP'!$D30=0,'Set UP'!$E30=0),"",(FL$19*FL44)+(FM$19*FM44)+(FN$19*FN44)+(FO$19*FO44)+(FP$19*FP44)+(FQ$19*FQ44)+(FR$19*FR44)+(FS$19*FS44)+(FT$19*FT44)+(FU$19*FU44)+(FV$19*FV44)+(FW$19*FW44)+(FX$19*FX44)+(FY$19*FY44)+(FZ$19*FZ44)+(GA$19*GA44)+(GB$19*GB44)+(GC$19*GC44)+(GD$19*GD44)+(GE$19*GE44)+(GF$19*GF44)+(GG$19*GG44)+(GH$19*GH44)+(GI$19*GI44)+(GJ$19*GJ44)) -> 0 | HM44: =IF(OR('Set UP'!$C30=0,'Set UP'!$D30=0,'Set UP'!$E30=0),"",(GM$19*GM44)+(GN$19*GN44)+(GO$19*GO44)+(GP$19*GP44)+(GQ$19*GQ44)+(GR$19*GR44)+(GS$19*GS44)+(GT$19*GT44)+(GU$19*GU44)+(GV$19*GV44)+(GW$19*GW44)+(GX$19*GX44)+(GY$19*GY44)+(GZ$19*GZ44)+(HA$19*HA44)+(HB$19*HB44)+(HC$19*HC44)+(HD$19*HD44)+(HE$19*HE44)+(HF$19*HF44)+(HG$19*HG44)+(HH$19*HH44)+(HI$19*HI44)+(HJ$19*HJ44)+(HK$19*HK44)) -> 0 | IN44: =IF(OR('Set UP'!$C30=0,'Set UP'!$D30=0,'Set UP'!$E30=0),"",(HN$19*HN44)+(HO$19*HO44)+(HP$19*HP44)+(HQ$19*HQ44)+(HR$19*HR44)+(HS$19*HS44)+(HT$19*HT44)+(HU$19*HU44)+(HV$19*HV44)+(HW$19*HW44)+(HX$19*HX44)+(HY$19*HY44)+(HZ$19*HZ44)+(IA$19*IA44)+(IB$19*IB44)+(IC$19*IC44)+(ID$19*ID44)+(IE$19*IE44)+(IF$19*IF44)+(IG$19*IG44)+(IH$19*IH44)+(II$19*II44)+(IJ$19*IJ44)+(IK$19*IK44)+(IL$19*IL44)) -> 0 | JO44: =IF(OR('Set UP'!$C30=0,'Set UP'!$D30=0,'Set UP'!$E30=0),"",(IO$19*IO44)+(IP$19*IP44)+(IQ$19*IQ44)+(IR$19*IR44)+(IS$19*IS44)+(IT$19*IT44)+(IU$19*IU44)+(IV$19*IV44)+(IW$19*IW44)+(IX$19*IX44)+(IY$19*IY44)+(IZ$19*IZ44)+(JA$19*JA44)+(JB$19*JB44)+(JC$19*JC44)+(JD$19*JD44)+(JE$19*JE44)+(JF$19*JF44)+(JG$19*JG44)+(JH$19*JH44)+(JI$19*JI44)+(JJ$19*JJ44)+(JK$19*JK44)+(JL$19*JL44)+(JM$19*JM44)) -> 0 | JP44: =IF(OR('Set UP'!$C30=0,'Set UP'!$D30=0,'Set UP'!$E30=0),"",(AF44+BG44+CH44+DI44+EJ44+FK44+GL44+HM44+IN44+JO44)) -> 393.25 | JQ44: =IF(OR('Set UP'!$C30=0,'Set UP'!$D30=0,'Set UP'!$E30=0),"",RANK(JP44,$JP$21:$JP$68,0)) -> 3 | JR44: =IF(OR('Set UP'!K30<>1,'Set UP'!C30=0,'Set UP'!D30=0,'Set UP'!E30=0,'Set UP'!F30=0),"",$JP44) ->  | JS44: =IF(OR('Set UP'!K30<>1,'Set UP'!C30=0,'Set UP'!D30=0,'Set UP'!E30=0,'Set UP'!F30=0),"",RANK(JR44,$JR$21:$JR$68,0)) ->  | JT44: =IF(OR('Set UP'!K30<>2,'Set UP'!C30=0,'Set UP'!D30=0,'Set UP'!E30=0,'Set UP'!F30=0),"",$JP44) -> 393.25 | JU44: =IF(OR('Set UP'!K30<>2,'Set UP'!C30=0,'Set UP'!D30=0,'Set UP'!E30=0,'Set UP'!F30=0),"",RANK(JT44,$JT$21:$JT$68,0)) -> 2 | JV44: =IF(OR(LEFT('Set UP'!F30,1)<>"F",'Set UP'!C30=0,'Set UP'!D30=0,'Set UP'!E30=0),"",$JP44) ->  | JW44: =IF(OR(LEFT('Set UP'!F30,1)<>"F",'Set UP'!C30=0,'Set UP'!D30=0,'Set UP'!E30=0),"",RANK(JV44,$JV$21:$JV$68,0)) ->  | JX44: =IF(OR('Set UP'!F30<>"NS",'Set UP'!C30=0,'Set UP'!D30=0,'Set UP'!E30=0),"",$JP44) ->  | JY44: =IF(OR('Set UP'!F30<>"NS",'Set UP'!C30=0,'Set UP'!D30=0,'Set UP'!E30=0),"",RANK(JX44,$JX$21:$JX$68,0)) ->  | JZ44: =IF(OR('Set UP'!$C30=0,'Set UP'!$D30=0,'Set UP'!$E30=0,JP44=0),"",JP44/MAX(JP$21:JP$68)*1000) -> 984.3554443 | KC44: =MAX(IF(Clubs='Set UP'!D30,'Wet Incident'!JU$21:JU$68)) -> 6
B45: 25 | C45: =IF(OR('Set UP'!$C31=0,'Set UP'!$D31=0,'Set UP'!$E31=0,'Set UP'!F31=0)," --",'Set UP'!C31) -> 2383 | D45: =IF(OR('Set UP'!$C31=0,'Set UP'!$D31=0,'Set UP'!$E31=0,'Set UP'!F31=0)," --",'Set UP'!D31&" "&'Set UP'!E31) -> Loughborough University C | E45: =IF(OR('Set UP'!$C31=0,'Set UP'!$D31=0,'Set UP'!$E31=0,'Set UP'!F31=0)," --",'Set UP'!F31) -> S | F45: 8 | G45: 8 | H45: 7 | I45: 5 | AF45: =IF(OR('Set UP'!$C31=0,'Set UP'!$D31=0,'Set UP'!$E31=0),"",(F$19*F45)+(G$19*G45)+(H$19*H45)+(I$19*I45)+(J$19*J45)+(K$19*K45)+(L$19*L45)+(M$19*M45)+(N$19*N45)+(O$19*O45)+(P$19*P45)+(Q$19*Q45)+(R$19*R45)+(S$19*S45)+(T$19*T45)+(U$19*U45)+(V$19*V45)+(W$19*W45)+(X$19*X45)+(Y$19*Y45)+(Z$19*Z45)+(AA$19*AA45)+(AB$19*AB45)+(AC$19*AC45)+(AD$19*AD45)) -> 73 | AG45: 10 | AH45: 10 | AI45: 10 | AJ45: 10 | AK45: 2 | AL45: 0 | BG45: =IF(OR('Set UP'!$C31=0,'Set UP'!$D31=0,'Set UP'!$E31=0),"",(AG$19*AG45)+(AH$19*AH45)+(AI$19*AI45)+(AJ$19*AJ45)+(AK$19*AK45)+(AL$19*AL45)+(AM$19*AM45)+(AN$19*AN45)+(AO$19*AO45)+(AP$19*AP45)+(AQ$19*AQ45)+(AR$19*AR45)+(AS$19*AS45)+(AT$19*AT45)+(AU$19*AU45)+(AV$19*AV45)+(AW$19*AW45)+(AX$19*AX45)+(AY$19*AY45)+(AZ$19*AZ45)+(BA$19*BA45)+(BB$19*BB45)+(BC$19*BC45)+(BD$19*BD45)+(BE$19*BE45)) -> 68 | BH45: 9 | BI45: 7 | BJ45: 7 | BK45: 6 | BL45: 9 | BM45: 7 | BN45: 6 | BO45: 7 | BP45: 7 | BQ45: 4 | CH45: =IF(OR('Set UP'!$C31=0,'Set UP'!$D31=0,'Set UP'!$E31=0),"",(BH$19*BH45)+(BI$19*BI45)+(BJ$19*BJ45)+(BK$19*BK45)+(BL$19*BL45)+(BM$19*BM45)+(BN$19*BN45)+(BO$19*BO45)+(BP$19*BP45)+(BQ$19*BQ45)+(BR$19*BR45)+(BS$19*BS45)+(BT$19*BT45)+(BU$19*BU45)+(BV$19*BV45)+(BW$19*BW45)+(BX$19*BX45)+(BY$19*BY45)+(BZ$19*BZ45)+(CA$19*CA45)+(CB$19*CB45)+(CC$19*CC45)+(CD$19*CD45)+(CE$19*CE45)+(CF$19*CF45)) -> 100.75 | CI45: 7 | CJ45: 4 | CK45: 8 | CL45: 10 | DI45: =IF(OR('Set UP'!$C31=0,'Set UP'!$D31=0,'Set UP'!$E31=0),"",(CI$19*CI45)+(CJ$19*CJ45)+(CK$19*CK45)+(CL$19*CL45)+(CM$19*CM45)+(CN$19*CN45)+(CO$19*CO45)+(CP$19*CP45)+(CQ$19*CQ45)+(CR$19*CR45)+(CS$19*CS45)+(CT$19*CT45)+(CU$19*CU45)+(CV$19*CV45)+(CW$19*CW45)+(CX$19*CX45)+(CY$19*CY45)+(CZ$19*CZ45)+(DA$19*DA45)+(DB$19*DB45)+(DC$19*DC45)+(DD$19*DD45)+(DE$19*DE45)+(DF$19*DF45)+(DG$19*DG45)) -> 57.5 | DJ45: 4 | DK45: 7 | DL45: 1 | DM45: 6 | DN45: 7 | DO45: 4 | DP45: 5 | EJ45: =IF(OR('Set UP'!$C31=0,'Set UP'!$D31=0,'Set UP'!$E31=0),"",(DJ$19*DJ45)+(DK$19*DK45)+(DL$19*DL45)+(DM$19*DM45)+(DN$19*DN45)+(DO$19*DO45)+(DP$19*DP45)+(DQ$19*DQ45)+(DR$19*DR45)+(DS$19*DS45)+(DT$19*DT45)+(DU$19*DU45)+(DV$19*DV45)+(DW$19*DW45)+(DX$19*DX45)+(DY$19*DY45)+(DZ$19*DZ45)+(EA$19*EA45)+(EB$19*EB45)+(EC$19*EC45)+(ED$19*ED45)+(EE$19*EE45)+(EF$19*EF45)+(EG$19*EG45)+(EH$19*EH45)) -> 40 | EK45: 6 | EL45: 2 | EM45: 2 | EN45: 4 | EO45: 3 | EP45: 3 | FK45: =IF(OR('Set UP'!$C31=0,'Set UP'!$D31=0,'Set UP'!$E31=0),"",(EK$19*EK45)+(EL$19*EL45)+(EM$19*EM45)+(EN$19*EN45)+(EO$19*EO45)+(EP$19*EP45)+(EQ$19*EQ45)+(ER$19*ER45)+(ES$19*ES45)+(ET$19*ET45)+(EU$19*EU45)+(EV$19*EV45)+(EW$19*EW45)+(EX$19*EX45)+(EY$19*EY45)+(EZ$19*EZ45)+(FA$19*FA45)+(FB$19*FB45)+(FC$19*FC45)+(FD$19*FD45)+(FE$19*FE45)+(FF$19*FF45)+(FG$19*FG45)+(FH$19*FH45)+(FI$19*FI45)) -> 22 | GL45: =IF(OR('Set UP'!$C31=0,'Set UP'!$D31=0,'Set UP'!$E31=0),"",(FL$19*FL45)+(FM$19*FM45)+(FN$19*FN45)+(FO$19*FO45)+(FP$19*FP45)+(FQ$19*FQ45)+(FR$19*FR45)+(FS$19*FS45)+(FT$19*FT45)+(FU$19*FU45)+(FV$19*FV45)+(FW$19*FW45)+(FX$19*FX45)+(FY$19*FY45)+(FZ$19*FZ45)+(GA$19*GA45)+(GB$19*GB45)+(GC$19*GC45)+(GD$19*GD45)+(GE$19*GE45)+(GF$19*GF45)+(GG$19*GG45)+(GH$19*GH45)+(GI$19*GI45)+(GJ$19*GJ45)) -> 0 | HM45: =IF(OR('Set UP'!$C31=0,'Set UP'!$D31=0,'Set UP'!$E31=0),"",(GM$19*GM45)+(GN$19*GN45)+(GO$19*GO45)+(GP$19*GP45)+(GQ$19*GQ45)+(GR$19*GR45)+(GS$19*GS45)+(GT$19*GT45)+(GU$19*GU45)+(GV$19*GV45)+(GW$19*GW45)+(GX$19*GX45)+(GY$19*GY45)+(GZ$19*GZ45)+(HA$19*HA45)+(HB$19*HB45)+(HC$19*HC45)+(HD$19*HD45)+(HE$19*HE45)+(HF$19*HF45)+(HG$19*HG45)+(HH$19*HH45)+(HI$19*HI45)+(HJ$19*HJ45)+(HK$19*HK45)) -> 0 | IN45: =IF(OR('Set UP'!$C31=0,'Set UP'!$D31=0,'Set UP'!$E31=0),"",(HN$19*HN45)+(HO$19*HO45)+(HP$19*HP45)+(HQ$19*HQ45)+(HR$19*HR45)+(HS$19*HS45)+(HT$19*HT45)+(HU$19*HU45)+(HV$19*HV45)+(HW$19*HW45)+(HX$19*HX45)+(HY$19*HY45)+(HZ$19*HZ45)+(IA$19*IA45)+(IB$19*IB45)+(IC$19*IC45)+(ID$19*ID45)+(IE$19*IE45)+(IF$19*IF45)+(IG$19*IG45)+(IH$19*IH45)+(II$19*II45)+(IJ$19*IJ45)+(IK$19*IK45)+(IL$19*IL45)) -> 0 | JO45: =IF(OR('Set UP'!$C31=0,'Set UP'!$D31=0,'Set UP'!$E31=0),"",(IO$19*IO45)+(IP$19*IP45)+(IQ$19*IQ45)+(IR$19*IR45)+(IS$19*IS45)+(IT$19*IT45)+(IU$19*IU45)+(IV$19*IV45)+(IW$19*IW45)+(IX$19*IX45)+(IY$19*IY45)+(IZ$19*IZ45)+(JA$19*JA45)+(JB$19*JB45)+(JC$19*JC45)+(JD$19*JD45)+(JE$19*JE45)+(JF$19*JF45)+(JG$19*JG45)+(JH$19*JH45)+(JI$19*JI45)+(JJ$19*JJ45)+(JK$19*JK45)+(JL$19*JL45)+(JM$19*JM45)) -> 0 | JP45: =IF(OR('Set UP'!$C31=0,'Set UP'!$D31=0,'Set UP'!$E31=0),"",(AF45+BG45+CH45+DI45+EJ45+FK45+GL45+HM45+IN45+JO45)) -> 361.25 | JQ45: =IF(OR('Set UP'!$C31=0,'Set UP'!$D31=0,'Set UP'!$E31=0),"",RANK(JP45,$JP$21:$JP$68,0)) -> 6 | JR45: =IF(OR('Set UP'!K31<>1,'Set UP'!C31=0,'Set UP'!D31=0,'Set UP'!E31=0,'Set UP'!F31=0),"",$JP45) ->  | JS45: =IF(OR('Set UP'!K31<>1,'Set UP'!C31=0,'Set UP'!D31=0,'Set UP'!E31=0,'Set UP'!F31=0),"",RANK(JR45,$JR$21:$JR$68,0)) ->  | JT45: =IF(OR('Set UP'!K31<>2,'Set UP'!C31=0,'Set UP'!D31=0,'Set UP'!E31=0,'Set UP'!F31=0),"",$JP45) -> 361.25 | JU45: =IF(OR('Set UP'!K31<>2,'Set UP'!C31=0,'Set UP'!D31=0,'Set UP'!E31=0,'Set UP'!F31=0),"",RANK(JT45,$JT$21:$JT$68,0)) -> 3 | JV45: =IF(OR(LEFT('Set UP'!F31,1)<>"F",'Set UP'!C31=0,'Set UP'!D31=0,'Set UP'!E31=0),"",$JP45) ->  | JW45: =IF(OR(LEFT('Set UP'!F31,1)<>"F",'Set UP'!C31=0,'Set UP'!D31=0,'Set UP'!E31=0),"",RANK(JV45,$JV$21:$JV$68,0)) ->  | JX45: =IF(OR('Set UP'!F31<>"NS",'Set UP'!C31=0,'Set UP'!D31=0,'Set UP'!E31=0),"",$JP45) ->  | JY45: =IF(OR('Set UP'!F31<>"NS",'Set UP'!C31=0,'Set UP'!D31=0,'Set UP'!E31=0),"",RANK(JX45,$JX$21:$JX$68,0)) ->  | JZ45: =IF(OR('Set UP'!$C31=0,'Set UP'!$D31=0,'Set UP'!$E31=0,JP45=0),"",JP45/MAX(JP$21:JP$68)*1000) -> 904.2553191 | KC45: =MAX(IF(Clubs='Set UP'!D31,'Wet Incident'!JU$21:JU$68)) -> 6
